Workbook

Sheet Control Panel
A1: GO TO
A2: Utah | B2: Wyoming | D2: FILING INFORMATION | N2: Model Checks
A3: 1.1 | B3: 1.1 | N3: (Must Be 0)
A4: 1.2 | B4: 1.2 | F4: UTAH | J4: WYOMING | N4: ='Model Checks'!D7 -> 
A5: 1.3 pg 1 | B5: 1.3 pg 1 | E5: Current Case No. | F5: 12-057-08 | J5: 30010-115-GP-12 | N5: (If this is not 0, or very close, go to
A6: 1.3 pg 2 | B6: 1.3 pg 2 | E6: Filing Date | F6: 2012-08-01 | J6: 2012-02-29 | N6: the "Model Checks"
B7: 1.3 pg 3 | E7: Test Year Ending | F7: 2013-08-31 | J7: 2013-03-31 | N7: Tab and find the
A8: 1.4 pg 1 | B8: 1.4 pg 1 | E8: Proposed Effective Date | F8: 2012-09-01 | J8: 2012-04-01 | N8: problem.)
A9: 1.4 pg 2 | B9: 1.4 pg 2 | E9: Prior Case No. | F9: 11-057-08 | J9: 30010-111-GP-11
A10: 1.4 pg 3 | N10: Go To
A11: 1.5 | B11: 1.5 | D11: Total Increase (Decrease) | F11: ='Utah Summary-by class'!Q28 -> -5720234.911 | H11: =F11-G11 -> -5720234.911 | J11: ='Wy 1.7 p2'!F49 -> 313398.9636 | L11: =J11-K11 -> 313398.9636 | N11: Model Checks'
A12: 1.6 pg 1 | B12: 1.6 pg 1
A13: 1.6 pg 2 | B13: 1.6 pg 2
A14: 1.6 pg 3 | B14: 1.6 pg 3 | D14: Typical Customer's Bill
A15: 1.7 pg 1 | B15: 1.7 pg 1 | N15: New Data color
A16: 1.7 pg 2 | B16: 1.7 pg 2 | E16: Previous | F16: ='Ut 1.7'!F30 -> 681.11 | J16: ='Wy 1.7 p1'!F33 -> 768.52 | N16: Old Data color
A17: 1.8 | B17: 1.8 | E17: Proposed | F17: ='Ut 1.7'!H30 -> 676.68 | J17: ='Wy 1.7 p1'!G33 -> 754.84
A18: 1.9 | B18: 1.9 | E18: Difference | F18: ='Ut 1.7'!J30 -> -4.43 | H18: =F18-G18 -> -4.43 | J18: ='Wy 1.7 p1'!H33 -> -13.68 | L18: =J18-K18 -> -13.68
A19: Monthly Inputs | E19: % Difference | F19: ='Ut 1.7'!J32 -> -0.65 | H19: =F19-G19 -> -0.65 | J19: ='Wy 1.7 p1'!H37 -> -1.78 | L19: =J19-K19 -> -1.78
A20: Other Inputs
A21: Expenses
A22: Rate Base
N28: 37777609
D29: Exhibit Headings | N29: 8603966
N30: =SUM(N28:N29) -> 46381575
D31: UTAH
F32: Questar Gas Company
F33: ="Docket No. "&F5 -> Docket No. 12-057-08
D35: WYOMING
F36: =F32 -> Questar Gas Company
F37: ="PSCW Docket No. "&J5 -> PSCW Docket No. 30010-115-GP-12
D39: Test Year (enter as text)
E40: from | F40: Sep-12
E41: to | F41: Aug-13

Sheet Application
A1: Application Information
B3: Utah | F3: Wyoming
A4: Utah Gas Costs | B4: ='Ut 1.5'!G41 -> 529432680.6 | E4: Wyoming Gas Costs | F4: ='Wy 1.5'!F43 -> 19541462.51
A5: Increase (Decrease) to Commodity | B5: ='Utah Summary-by class'!G31 -> -465000 | E5: Increase (Decrease) to Commodity | F5: ='Wy 1.7 p2'!F49 -> 313398.9636
A6: Increase (Decrease) to SNG | B6: ='Utah Summary-by class'!N31 -> -5256000
A7: Total Increase (Decrease) | B7: ='Utah Summary-by class'!Q31 -> -5720000
A8: Typical Increase in $ | B8: ='Ut 1.7'!J30 -> -4.43 | E8: Typical Increase in $ | F8: ='Wy 1.7 p1'!H33 -> -13.68
A9: Typical Monthly Increase | B9: =B8/12 -> -0.3691666667 | E9: Typical Monthly Increase | F9: =F8/12 -> -1.14
A10: Typical Increase in % | B10: ='Ut 1.7'!J32/100 -> -0.0065 | E10: Typical Increase in % | F10: ='Wy 1.7 p1'!H37/100 -> -0.0178
A11: Proposed Rate Effective Date | B11: ='Control Panel'!F8 -> 2012-09-01 | E11: Proposed Rate Effective Date | F11: ='Control Panel'!J8 -> 2012-04-01
A12: Test Year Ending | B12: ='Control Panel'!F7 -> 2013-08-31 | E12: Test Year Ending | F12: ='Control Panel'!J7 -> 2013-03-31
A13: System-Wide Production Costs | B13: ='Ut 1.1'!H1369 -> 322105537.8 | E13: System-Wide Production Costs | F13: ='Wy 1.1'!H1369 -> 322105537.8
A14: System-Wide Royalty Payments | B14: ='Ut 1.1'!H1364 -> 36339973.77 | E14: System-Wide Royalty Payments | F14: ='Wy 1.1'!H1364 -> 36339973.77
A15: Wexpro Operators Service Fee | B15: ='Ut 1.1'!H1366 -> 285765564 | E15: Wexpro Operators Service Fee | F15: ='Wy 1.1'!H1366 -> 285765564
A16: Purchased Gas Costs | B16: ='Ut 1.2'!G24 -> 163140452 | E16: Purchased Gas Costs | F16: ='Wy 1.2'!G25 -> 163140451.4
A17: Purchased Gas Costs per Dth | B17: ='Ut 1.2'!F24 -> 3.319945501 | E17: Purchased Gas Costs per Dth | F17: ='Wy 1.2'!F25 -> 3.31994549
A18: Contracted Dth | B18: ='Ut 1.2'!E17 -> 26695000 | C18: Dth | E18: Contracted Dth | F18: ='Wy 1.2'!E18 -> 26695000 | G18: Dth
A19: Contracted Dth Costs | B19: ='Ut 1.2'!G17 -> 93129991.98 | E19: Contracted Dth Costs | F19: ='Wy 1.2'!G18 -> 93129991.92
A20: Stabailization Costs | B20: ='Ut 1.2'!G16 -> 1999999.98 | E20: Stabailization Costs | F20: ='Wy 1.2'!G17 -> 1999999.98
A21: Spot Market Dth | B21: ='Ut 1.2'!E19 -> 22135977 | C21: Dth | E21: Spot Market Dth | F21: ='Wy 1.2'!E20 -> 22135977 | G21: Dth
A22: Spot Market Costs | B22: ='Ut 1.2'!G19 -> 69054262 | E22: Spot Market Costs | F22: ='Wy 1.2'!G20 -> 69054261.51
A23: Purchased Gas Dth | B23: ='Ut 1.2'!E24 -> 49139497 | C23: Dth | E23: Purchased Gas Dth | F23: ='Wy 1.2'!E25 -> 49139497 | G23: Dth
A24: Future Contract Dth | B24: ='Ut 1.2'!E21 -> 308520 | C24: Dth | E24: Future Contract Dth | F24: ='Wy 1.2'!E22 -> 308520 | G24: Dth
A25: Future Contract Costs | B25: ='Ut 1.2'!G21 -> 956198 | E25: Future Contract Costs | F25: ='Wy 1.2'!G22 -> 956198
A26: Transportation & Gathering Costs | B26: ='Ut 1.3 p1'!M59 -> 83972097 | E26: Transportation & Gathering Costs | F26: ='Wy 1.3 p1'!M57 -> 83938456.5
A27: Transportation Costs | B27: ='Ut 1.3 p1'!M28 -> 62219845 | E27: Kern River Transportation Costs | F27: ='Wy 1.3 p1'!M28 -> 62186205.07
A28: Capacity Release Credits | B28: =-'Ut 1.3 p1'!L19 -> 302762 | E28: Capacity Release Credits | F28: =-'Wy 1.3 p1'!L19 -> 336401.85
A29: Transportation Commodity Costs | B29: ='Ut 1.3 p1'!M43 -> 580977 | E29: Transportation Commodity Costs | F29: ='Wy 1.3 p1'!M43 -> 580977.0169
E30: QGM Gathering Costs | F30: ='Wy 1.3 p1'!M49 -> 15972759.79
A31: Other Trans. & Gathering Costs | B31: ='Ut 1.3 p1'!L52 -> 2362113 | E31: Other Trans. & Gathering Costs | F31: ='Wy 1.3 p1'!M54 -> 5198514.62
A32: CO2 Processing Costs
A33: Storage & Working Gas Costs | B33: ='Ut 1.3 p1'!L53 -> 2836402 | E33: Storage & Working Gas Costs | F33: ='Wy 1.3 p2'!K57 -> 21029730.79
A34: Total Other Costs | B34: ='Ut 1.3 p1'!M54 -> 5198515
A35: Storage Costs | B35: ='Ut 1.3 p2'!K57 -> 20971458.55 | E35: Storage Costs | F35: ='Wy 1.3 p2'!K32 -> 17154627
A36: Storage Demand | B36: ='Ut 1.3 p2'!J21 -> 16725058
A37: Storage Commodity | B37: ='Ut 1.3 p2'!J28 -> 121687
A38: Working Storage Gas Return | B38: ='Ut 1.3 p2'!K54 -> 3816831.553 | E38: Working Storage Gas Return | F38: ='Wy 1.3 p2'!K54 -> 3875103.791
A39: Total Other Revenues | B39: ='Ut 1.4 p3'!H32 -> 26212014
E40: Production Depreciation & Amort. | F40: ='Wy 1.3 p3'!J20 -> 762096.57
E41: Return on Production Plant | F41: ='Wy 1.3 p3'!J47 -> 535363.7153
E42: Total Production Return & Exp. | F42: ='Wy 1.3 p3'!J50 -> 1297460.285
A43: Utah Gas Costs | B43: ='Ut 1.5'!G41 -> 529432680.6 | E43: Wyoming Gas Costs | F43: ='Wy 1.5'!$F$43 -> 19541462.51
A44: Utah Gas Costs | B44: =B43 -> 529432680.6 | E44: Core Customer Gas Costs | F44: ='Wy 1.6 p1'!J17 -> 18863289.99
A45: Utah Net Gas Costs | B45: ='Ut 1.6 p1'!J16 -> 520152330.8 | E45: Core Customer Unit Cost of Gas | F45: ='Wy 1.6 p1'!F31 -> 4.94335
A46: Commodity Portion of Gas Costs | B46: ='Ut 1.6 p1'!J28 -> 423033765.1
A47: Firm Gas Cost | B47: ='Ut 1.6 p1'!F34 -> 4.0888
A48: Current Amortization | B48: ='Ut 1.6 p1'!H35 -> 0 | E48: Current Amortization | F48: ='Wy 1.6 p1'!H32 -> 0
A49: Previous Case No. | B49: ='Ut 1.6 p1'!H32 -> 11-057-08
A50: Forecasted 191 Account Balance | B50: ='Ut 1.6 p1'!D55 -> 7588452 | E50: Forecasted 191 Account Balance | F50: ='Wy 1.6 p1'!F53 -> -880250
A51: Proposed Amortization | B51: ='Ut 1.6 p1'!F35 -> 0.07334552032 | E51: Proposed Amortization | F51: ='Wy 1.6 p1'!F32 -> 0
A52: Total Unit Cost in Rates | B52: ='Ut 1.6 p1'!F36 -> 4.16214552 | E52: Total Unit Cost in Rates | F52: ='Wy 1.6 p1'!F33 -> 4.94335
A53: Increase in Unit Cost In Rates | B53: ='Ut 1.6 p1'!J36 -> -0.004494479677
A54: Test Year SNG Costs | B54: ='Ut 1.6 p2'!F14 -> 97118565.69
A55: Forested 191 SNG Balance | B55: ='Ut 1.6 p2'!F15 -> 0
A56: Total SNG | B56: ='Ut 1.6 p2'!F16 -> 97118565.69
A57: Forecasted Current SNG Revenues | B57: ='Ut 1.6 p2'!F19 -> 102374366.8
A58: % Change in SNG Rates | B58: =-ROUND('Ut 1.6 p2'!F35,2)/100 -> 0.0516
A59: Average Monthly Increase | B59: ='Ut 1.7'!J30/12 -> -0.3691666667 | E59: Typical Increase in $ | F59: ='Wy 1.7 p1'!H33 -> -13.68
A60: Typical Increase in % | B60: ='Ut 1.7'!J32/100 -> -0.0065 | E60: Typical Increase in % | F60: ='Wy 1.7 p1'!H37/100 -> -0.0178
A61: Company Owned Gas % | E61: Company Owned Gas % | F61: =Calculations!P176 -> 0.5818120577
A62: Utah Gas Costs | B62: ='Ut 1.5'!G41 -> 529432680.6 | E62: Wyoming Gas Costs | F62: ='Wy 1.5'!$F$43 -> 19541462.51

Sheet Monthly Inputs
A1: MONTHLY INPUTS | E1: Col. E-F, copy from col. J-K (or appropriate columns), rows 3 through 76, before updating test year
G2: TEST YEAR COLUMNS | S2: 12-Month
E3: Jul12 | F3: Aug12 | G3: Sep12 | H3: Oct12 | I3: Nov12 | J3: Dec12 | K3: Jan13 | L3: Feb13 | M3: Mar13 | N3: Apr13 | O3: May13 | P3: Jun13 | Q3: Jul13 | R3: Aug13 | S3: Total
E4: =MONTH(E3) -> 7 | F4: 8 | G4: =MONTH(G3) -> 9 | H4: 10 | I4: 11 | J4: 12 | K4: 1 | L4: 2 | M4: 3 | N4: 4 | O4: 5 | P4: 6 | Q4: 7 | R4: 8
A5: QGC Company Produced Gas In MDth | G5: Scott Nelsen | I5: Updated: | J5: 2012-07-19
B7: Prior Company | E7: 642.841 | F7: 692.534 | G7: 747.42 | H7: 676.38 | I7: 670.27 | J7: 645.1 | K7: 606.65 | L7: 546.59 | M7: 444.72 | N7: 241.26 | O7: 779.8 | P7: 636.49 | Q7: 648.83 | R7: 698.62 | S7: =SUM(G7:R7) -> 7342.13 | U7: ScottN
B8: D24 & D21 | E8: 4918.455 | F8: 4610.747 | G8: 4663.062 | H8: 5076.172 | I8: 5110.722 | J8: 5220.034 | K8: 5379.792 | L8: 4890.29 | M8: 5432.562 | N8: 5469.334 | O8: 5112.272 | P8: 4948.843 | Q8: 4972.565 | R8: 4675.091 | S8: =SUM(G8:R8) -> 60950.739 | U8: ScottN
B9: Total Prior Company & D24 | E9: =SUM(E7:E8) -> 5561.296 | F9: 5303.281 | G9: =SUM(G7:G8) -> 5410.482 | H9: =SUM(H7:H8) -> 5752.552 | I9: 5780.992 | J9: 5865.134 | K9: 5986.442 | L9: 5436.88 | M9: 5877.282 | N9: 5710.594 | O9: 5892.072 | P9: 5585.333 | Q9: 5621.395 | R9: 5373.711 | S9: =SUM(G9:R9) -> 68292.869
B11: Brady | E11: 8.136 | F11: 8.368 | G11: 8.0308 | H11: 6.675 | I11: 7.0949 | J11: 3.4155 | K11: 3.5068 | L11: 3.2921 | M11: 4.5055 | N11: 3.9871 | O11: 8.4995 | P11: 7.7443 | Q11: 8.2122 | R11: 8.4414 | S11: =SUM(G11:R11) -> 73.4051 | U11: ScottN
B12: Total Company Produced Gas (MDth) | E12: =SUM(E9:E11) -> 5569.432 | F12: 5311.649 | G12: =SUM(G9:G11) -> 5418.5128 | H12: =SUM(H9:H11) -> 5759.227 | I12: 5788.0869 | J12: 5868.5495 | K12: 5989.9488 | L12: 5440.1721 | M12: 5881.7875 | N12: 5714.5811 | O12: 5900.5715 | P12: 5593.0773 | Q12: 5629.6072 | R12: =SUM(R9:R11) -> 5382.1524 | S12: =SUM(G12:R12) -> 68366.2741 | T12: =SUM(S9+S11) -> 68366.2741 | U12: ck
B16: Company Production In Dth | E16: 5569433 | F16: 5311649 | G16: 5418513 | H16: 5759227 | I16: 5788087 | J16: 5868550 | K16: 5989949 | L16: 5440172 | M16: 5881788 | N16: 5714581 | O16: 5900572 | P16: 5593077 | Q16: 5629607 | R16: 5382152 | S16: =SUM(G16:R16) -> 68366275 | U16: ScottN
B17: Birch Cr Gathering | E17: =E16/$S$16*$S$17 -> 0 | F17: 0 | G17: =G16/$S$16*$S$17 -> 0 | H17: =H16/$S$16*$S$17 -> 0 | I17: =I16/$S$16*$S$17 -> 0 | J17: 0 | K17: 0 | L17: 0 | M17: 0 | N17: 0 | O17: 0 | P17: 0 | Q17: 0 | R17: =R16/$S$16*$S$17 -> 0 | S17: ='Other Inputs'!$D$163 -> 0
B18: QGM Gathering | E18: =E16/$S$16*$S$18 -> 4016894.258 | F18: 3830970.292 | G18: =G16/$S$16*$S$18 -> 3908044.814 | H18: =H16/$S$16*$S$18 -> 4153781.16 | I18: 4174596.127 | J18: 4232629.21 | K18: 4320186.946 | L18: 3923666.138 | M18: 4242176.976 | N18: 4121580.707 | O18: 4255724.736 | P18: 4033947.241 | Q18: 4060294.115 | R18: =R16/$S$16*$S$18 -> 3881819.83 | S18: ='Other Inputs'!$D$177 -> 49308448
G33: 1000
B34: Injections in Dth
C35: Chalk Creek | E35: 0 | F35: 0 | G35: 0 | H35: 151738 | I35: 165129 | J35: 0 | K35: 0 | L35: 0 | M35: 0 | N35: 0 | O35: 0 | P35: 0 | Q35: 0 | R35: 0 | S35: =SUM(G35:R35) -> 316867 | U35: ScottN
C36: Clay Basin | E36: 2307750 | F36: 2154380 | G36: 1899490 | H36: 1798100 | I36: 1167200 | J36: 0 | K36: 0 | L36: 0 | M36: 0 | N36: 0 | O36: 716040 | P36: 1878900 | Q36: 2150830 | R36: 1989720 | S36: 11600280 | U36: ScottN
C37: Coalville | E37: 0 | F37: 0 | G37: 132991 | H37: 254447 | I37: 10368 | J37: 0 | K37: 0 | L37: 0 | M37: 0 | N37: 0 | O37: 0 | P37: 0 | Q37: 0 | R37: 0 | S37: 397806 | U37: ScottN
C38: Leroy | E38: 0 | F38: 0 | G38: 0 | H38: 458807 | I38: 0 | J38: 0 | K38: 0 | L38: 0 | M38: 0 | N38: 0 | O38: 0 | P38: 0 | Q38: 0 | R38: 0 | S38: 458807 | U38: ScottN
C39: Ryckman | E39: 370410 | F39: 370410 | G39: 0 | H39: 0 | I39: 0 | J39: 0 | K39: 0 | L39: 0 | M39: 0 | N39: 358460 | O39: 370410 | P39: 358460 | Q39: 370410 | R39: 358460 | S39: 1816200 | U39: ScottN
C40: Total Injections | E40: =SUM(E35:E39) -> 2678160 | F40: 2524790 | G40: =SUM(G35:G39) -> 2032481 | H40: 2663092 | I40: 1342697 | J40: 0 | K40: 0 | L40: 0 | M40: 0 | N40: 358460 | O40: 1086450 | P40: 2237360 | Q40: 2521240 | R40: 2348180 | S40: 14589960
B42: Withdrawls In Dth
C43: Chalk Creek | E43: 0 | F43: 0 | G43: 0 | H43: 0 | I43: 0 | J43: 0 | K43: 0 | L43: 325690 | M43: 0 | N43: 0 | O43: 0 | P43: 0 | Q43: 0 | R43: 0 | S43: =SUM(G43:R43) -> 325690 | U43: ScottN
C44: Clay Basin | E44: 0 | F44: 0 | G44: 0 | H44: 0 | I44: 0 | J44: 604640 | K44: 5355500 | L44: 2760160 | M44: 625180 | N44: 1002320 | O44: =192490-17566 -> 174924 | P44: 78760 | Q44: 61400 | R44: 58150 | S44: 10721034 | U44: ScottN
C45: Coalville | E45: 0 | F45: 0 | G45: 0 | H45: 0 | I45: 0 | J45: 0 | K45: 0 | L45: 364893 | M45: 0 | N45: 0 | O45: 0 | P45: 0 | Q45: 0 | R45: 0 | S45: 364893 | U45: ScottN
C46: Leroy | E46: 0 | F46: 0 | G46: 0 | H46: 0 | I46: 0 | J46: 0 | K46: 0 | L46: 0 | M46: 88677 | N46: 363811 | O46: 0 | P46: 0 | Q46: 0 | R46: 0 | S46: 452488 | U46: ScottN
C47: Ryckman | E47: 0 | F47: 0 | G47: 0 | H47: 0 | I47: 0 | J47: 0 | K47: 0 | L47: 0 | M47: 0 | N47: 0 | O47: 0 | P47: 0 | Q47: 0 | R47: 0 | S47: 0 | U47: ScottN
C48: Total Withdrawls | E48: =SUM(E43:E47) -> 0 | F48: 0 | G48: =SUM(G43:G47) -> 0 | H48: 0 | I48: 0 | J48: 604640 | K48: 5355500 | L48: 3450743 | M48: 713857 | N48: 1366131 | O48: 174924 | P48: 78760 | Q48: 61400 | R48: 58150 | S48: 11864105
B50: Lost & Unaccounted for on QPC
A53: Injection and Withdrawl Used, Lost and Unaccounted For
D54: Gas Use
D55: %
B56: Injections in Dth
C57: Chalk Creek | D57: ='Other Inputs'!E138 -> 0.0188 | E57: =E35*-$D57 -> 0 | F57: 0 | G57: =G35*-$D57 -> 0 | H57: =H35*-$D57 -> -2852.6744 | I57: =I35*-$D57 -> -3104.4252 | J57: =J35*-$D57 -> 0 | K57: 0 | L57: 0 | M57: 0 | N57: 0 | O57: 0 | P57: 0 | Q57: 0 | R57: 0 | S57: =SUM(G57:R57) -> -5957.0996
C58: Clay Basin | D58: ='Other Inputs'!E147 -> 0.01483 | E58: =E36*-$D58 -> -34223.9325 | F58: -31949.4554 | G58: =G36*-$D58 -> -28169.4367 | H58: =H36*-$D58 -> -26665.823 | I58: =I36*-$D58 -> -17309.576 | J58: =J36*-$D58 -> 0 | K58: 0 | L58: 0 | M58: 0 | N58: =N36*-$D58 -> 0 | O58: -10618.8732 | P58: -27864.087 | Q58: -31896.8089 | R58: -29507.5476 | S58: =SUM(G58:R58) -> -172032.1524
C59: Coalville | D59: ='Other Inputs'!E150 -> 0.012 | E59: =E37*-$D59 -> 0 | F59: 0 | G59: =G37*-$D59 -> -1595.892 | H59: -3053.364 | I59: -124.416 | J59: 0 | K59: 0 | L59: 0 | M59: 0 | N59: 0 | O59: 0 | P59: 0 | Q59: 0 | R59: 0 | S59: =SUM(G59:R59) -> -4773.672
C60: Leroy | D60: ='Other Inputs'!E144 -> 0.0334 | E60: =E38*-$D60 -> 0 | F60: 0 | G60: =G38*-$D60 -> 0 | H60: -15324.1538 | I60: 0 | J60: 0 | K60: 0 | L60: 0 | M60: 0 | N60: 0 | O60: 0 | P60: 0 | Q60: 0 | R60: 0 | S60: =SUM(G60:R60) -> -15324.1538
C61: Ryckman | D61: ='Other Inputs'!E141 -> 0.025 | E61: -9260.25 | F61: -9260.25 | G61: 0 | H61: 0 | I61: 0 | J61: 0 | K61: 0 | L61: 0 | M61: 0 | N61: -8961.5 | O61: -9260.25 | P61: -8961.5 | Q61: -9260.25 | R61: -8961.5 | S61: =SUM(G61:R61) -> -45405
C62: Total Injections | E62: =SUM(E57:E61) -> -43484.1825 | F62: -41209.7054 | G62: =SUM(G57:G61) -> -29765.3287 | H62: -47896.0152 | I62: -20538.4172 | J62: 0 | K62: 0 | L62: 0 | M62: 0 | N62: -8961.5 | O62: -19879.1232 | P62: -36825.587 | Q62: -41157.0589 | R62: -38469.0476 | S62: =SUM(S57:S61) -> -243492.0778
B64: Withdrawls In Dth
C65: Chalk Creek | D65: ='Other Inputs'!E139 -> 0.0144 | E65: =E43*-$D65 -> 0 | F65: 0 | G65: =G43*-$D65 -> 0 | H65: 0 | I65: 0 | J65: 0 | K65: 0 | L65: -4689.936 | M65: 0 | N65: 0 | O65: 0 | P65: 0 | Q65: 0 | R65: 0 | S65: =SUM(G65:R65) -> -4689.936
C66: Clay Basin | D66: ='Other Inputs'!E148 -> 0.00567 | E66: =E44*-$D66 -> 0 | F66: 0 | G66: =G44*-$D66 -> 0 | H66: 0 | I66: 0 | J66: -3428.3088 | K66: -30365.685 | L66: -15650.1072 | M66: -3544.7706 | N66: -5683.1544 | O66: -991.81908 | P66: -446.5692 | Q66: -348.138 | R66: -329.7105 | S66: =SUM(G66:R66) -> -60788.26278
C67: Coalville | D67: ='Other Inputs'!E151 -> 0.0129 | E67: =E45*-$D67 -> 0 | F67: =F45*-$D67 -> 0 | G67: =G45*-$D67 -> 0 | H67: 0 | I67: 0 | J67: 0 | K67: =K45*-$D67 -> 0 | L67: -4707.1197 | M67: 0 | N67: 0 | O67: 0 | P67: 0 | Q67: 0 | R67: 0 | S67: =SUM(G67:R67) -> -4707.1197
C68: Leroy | D68: ='Other Inputs'!E145 -> 0.0199 | E68: =E46*-$D68 -> 0 | F68: 0 | G68: =G46*-$D68 -> 0 | H68: 0 | I68: 0 | J68: 0 | K68: 0 | L68: 0 | M68: -1764.6723 | N68: -7239.8389 | O68: 0 | P68: 0 | Q68: 0 | R68: 0 | S68: =SUM(G68:R68) -> -9004.5112
C69: Ryckman | D69: ='Other Inputs'!E142 -> 0 | E69: 0 | F69: 0 | G69: 0 | H69: 0 | I69: 0 | J69: 0 | K69: 0 | L69: 0 | M69: 0 | N69: =N47*-$D69 -> 0 | O69: 0 | P69: 0 | Q69: 0 | R69: 0 | S69: =SUM(G69:R69) -> 0
C70: Total Withdrawls | E70: =SUM(E65:E69) -> 0 | F70: =SUM(F65:F69) -> 0 | G70: =SUM(G65:G69) -> 0 | H70: 0 | I70: 0 | J70: -3428.3088 | K70: =SUM(K65:K69) -> -30365.685 | L70: -25047.1629 | M70: -5309.4429 | N70: -12922.9933 | O70: -991.81908 | P70: -446.5692 | Q70: -348.138 | R70: -329.7105 | S70: =SUM(S65:S69) -> -79189.82968
B72: QPC Transportation Loss
C73: Chalk Creek | D73: ='Other Inputs'!$E$264 -> 0.0141 | E73: =E43*-$D73 -> 0 | F73: 0 | G73: =G43*-$D73 -> 0 | H73: 0 | I73: 0 | J73: 0 | K73: 0 | L73: -4592.229 | M73: 0 | N73: 0 | O73: 0 | P73: 0 | Q73: 0 | R73: 0 | S73: =SUM(G73:R73) -> -4592.229
C74: Clay Basin | D74: ='Other Inputs'!$E$264 -> 0.0141 | E74: =E44*-$D74 -> 0 | F74: 0 | G74: =G44*-$D74 -> 0 | H74: 0 | I74: 0 | J74: -8525.424 | K74: -75512.55 | L74: -38918.256 | M74: -8815.038 | N74: -14132.712 | O74: -2466.4284 | P74: -1110.516 | Q74: -865.74 | R74: -819.915 | S74: =SUM(G74:R74) -> -151166.5794
C75: Coalville | D75: ='Other Inputs'!$E$264 -> 0.0141 | E75: =E45*-$D75 -> 0 | F75: 0 | G75: =G45*-$D75 -> 0 | H75: 0 | I75: 0 | J75: 0 | K75: 0 | L75: -5144.9913 | M75: 0 | N75: 0 | O75: 0 | P75: 0 | Q75: 0 | R75: 0 | S75: =SUM(G75:R75) -> -5144.9913
C76: Leroy | D76: ='Other Inputs'!$E$264 -> 0.0141 | E76: =E46*-$D76 -> 0 | F76: 0 | G76: =G46*-$D76 -> 0 | H76: 0 | I76: 0 | J76: 0 | K76: 0 | L76: 0 | M76: -1250.3457 | N76: -5129.7351 | O76: 0 | P76: 0 | Q76: 0 | R76: 0 | S76: =SUM(G76:R76) -> -6380.0808
C77: Ryckman | D77: ='Other Inputs'!$E$264 -> 0.0141 | E77: 0 | F77: 0 | G77: 0 | H77: 0 | I77: 0 | J77: 0 | K77: 0 | L77: 0 | M77: 0 | N77: =N47*-$D77 -> 0 | O77: 0 | P77: 0 | Q77: 0 | R77: 0 | S77: =SUM(G77:R77) -> 0
C78: Total Withdrawls | E78: =SUM(E73:E77) -> 0 | F78: 0 | G78: =SUM(G73:G77) -> 0 | H78: 0 | I78: 0 | J78: -8525.424 | K78: -75512.55 | L78: -48655.4763 | M78: -10065.3837 | N78: -19262.4471 | O78: -2466.4284 | P78: -1110.516 | Q78: -865.74 | R78: -819.915 | S78: -167283.8805
B81: Total Injections & Withdrawls | E81: =E62+E70 -> -43484.1825 | F81: =F62+F70 -> -41209.7054 | G81: =G62+G70 -> -29765.3287 | H81: =H62+H70 -> -47896.0152 | I81: =I62+I70 -> -20538.4172 | J81: -3428.3088 | K81: =K62+K70 -> -30365.685 | L81: -25047.1629 | M81: -5309.4429 | N81: -21884.4933 | O81: -20870.94228 | P81: -37272.1562 | Q81: -41505.1969 | R81: -38798.7581 | S81: =S62+S70 -> -322681.9075
R83: Fuel Factor | S83: =-S81/(S48+S40) -> 0.01219781941
S85: 12-Month
E86: =E3 -> Jul12 | F86: =F3 -> Aug12 | G86: =G3 -> Sep12 | H86: Oct12 | I86: Nov12 | J86: Dec12 | K86: Jan13 | L86: Feb13 | M86: Mar13 | N86: Apr13 | O86: May13 | P86: Jun13 | Q86: Jul13 | R86: Aug13 | S86: Total
I88: Updated: | J88: 2012-07-25 | K88: EXH 1.2
A89: Natural Gas Spot Price Forecast - Average of GI, Cera & Pira | E89: (Forecast --->) | G89: (Forecast --->)
B90: Kern River Opal, Wyoming | E90: 2.47 | F90: 2.64 | G90: 2.49 | H90: 2.58 | I90: 2.99 | J90: 3.14 | K90: 3.31 | L90: 3.38 | M90: 3.46 | N90: 3.6 | O90: 3.75 | P90: 3.96 | Q90: 4.15 | R90: 4.16
D91: Used in WY | E91: <------ change formula if UT and WY have different test years | G91: <------ change formula if UT and WY have different test years
D92: Used In UT | E92: <------ change formula if UT and WY have different test years | G92: <------ change formula if UT and WY have different test years
B93: Spot Purchases from IRP | E93: 151.116 | F93: 4.276 | G93: 840.99 | H93: 4012.684 | I93: =6127.571-3167.585 -> 2959.986 | J93: =6527.846-819.342 -> 5708.504 | K93: =5535.856-3622.733 -> 1913.123 | L93: =3855.634-2781.022 -> 1074.612 | M93: =3439.204-681.379 -> 2757.825 | N93: =2968.357-100.104 -> 2868.253 | O93: 0 | P93: 0 | Q93: 0 | R93: 0 | S93: =SUM(G93:R93) -> 22135.977
C94: In DTH | E94: =E93*1000 -> 151116 | F94: =F93*1000 -> 4276 | G94: =G93*1000 -> 840990 | H94: =H93*1000 -> 4012684 | I94: 2959986 | J94: 5708504 | K94: 1913123 | L94: 1074612 | M94: 2757825 | N94: 2868253 | O94: 0 | P94: 0 | Q94: 0 | R94: 0 | S94: =SUM(G94:R94) -> 22135977
C95: In $ | E95: =E94*E90 -> 373256.52 | F95: 11288.64 | G95: 2094065.1 | H95: 10352724.72 | I95: 8850358.14 | J95: 17924702.56 | K95: =K94*K90 -> 6332437.13 | L95: 3632188.56 | M95: 9542074.5 | N95: 10325710.8 | O95: 0 | P95: 0 | Q95: 0 | R95: 0 | S95: =SUM(G95:R95) -> 69054261.51
A98: CONTRACT PURCHASES | I98: Updated: | J98: 2012-07-25
B99: RESET FORMULAS TO Brent's WORKSHEET
B100: Peaking Purchases (DTH) | G100: ='[2]Peaking Purchases'!$L$16 -> 0 | H100: ='[2]Peaking Purchases'!$N$16 -> 0 | I100: ='[2]Peaking Purchases'!$P$16 -> 3000000 | J100: ='[2]Peaking Purchases'!$R$16 -> 3500000 | K100: ='[2]Peaking Purchases'!$T$16 -> 5000000 | L100: ='[2]Peaking Purchases'!$V$16 -> 4000000 | M100: ='[2]Peaking Purchases'!$X$16 -> 1400000 | N100: ='[2]Peaking Purchases'!$Z$16 -> 0 | O100: ='[2]Peaking Purchases'!$AB$16 -> 0 | P100: ='[2]Peaking Purchases'!$AD$16 -> 0 | Q100: ='[2]Peaking Purchases'!$AF$16 -> 0 | R100: ='[2]Peaking Purchases'!$AH$16 -> 0 | S100: =SUM(G100:R100) -> 16900000 | T100: =S101/S100 -> 3.456801742
B101: Peaking Purchases ($) | G101: ='[2]Peaking Purchases'!$M$16 -> 0 | H101: ='[2]Peaking Purchases'!$O$16 -> 0 | I101: ='[2]Peaking Purchases'!$Q$16 -> 9504386.235 | J101: ='[2]Peaking Purchases'!$S$16 -> 11735625.49 | K101: ='[2]Peaking Purchases'!$U$16 -> 17670375.55 | L101: ='[2]Peaking Purchases'!$W$16 -> 14389195.71 | M101: ='[2]Peaking Purchases'!$Y$16 -> 5120366.466 | N101: ='[2]Peaking Purchases'!$AA$16 -> 0 | O101: ='[2]Peaking Purchases'!$AC$16 -> 0 | P101: ='[2]Peaking Purchases'!$AE$16 -> 0 | Q101: ='[2]Peaking Purchases'!$AG$16 -> 0 | R101: ='[2]Peaking Purchases'!$AI$16 -> 0 | S101: =SUM(G101:R101) -> 58419949.44
B103: Term Purchases (DTH) | G103: ='[2]Term Purchases'!$K$16 -> 0 | H103: ='[2]Term Purchases'!$M$16 -> 0 | I103: ='[2]Term Purchases'!$O$16 -> 1200000 | J103: ='[2]Term Purchases'!$Q$16 -> 2480000 | K103: ='[2]Term Purchases'!$S$16 -> 2480000 | L103: ='[2]Term Purchases'!$U$16 -> 2240000 | M103: ='[2]Term Purchases'!$W$16 -> 1395000 | N103: ='[2]Term Purchases'!$Y$16 -> 0 | O103: ='[2]Term Purchases'!$AA$16 -> 0 | P103: ='[2]Term Purchases'!$AC$16 -> 0 | Q103: ='[2]Term Purchases'!$AE$16 -> 0 | R103: ='[2]Term Purchases'!$AG$16 -> 0 | S103: =SUM(G103:R103) -> 9795000
B104: Term Purchases ($) | G104: ='[2]Term Purchases'!$L$16 -> 0 | H104: ='[2]Term Purchases'!$N$16 -> 0 | I104: ='[2]Term Purchases'!$P$16 -> 3796275 | J104: ='[2]Term Purchases'!$R$16 -> 8000092.5 | K104: ='[2]Term Purchases'!$T$16 -> 8316292.5 | L104: ='[2]Term Purchases'!$V$16 -> 7629090 | M104: ='[2]Term Purchases'!$X$16 -> 4968292.5 | N104: ='[2]Term Purchases'!$Z$16 -> 0 | O104: ='[2]Term Purchases'!$AB$16 -> 0 | P104: ='[2]Term Purchases'!$AD$16 -> 0 | Q104: ='[2]Term Purchases'!$AF$16 -> 0 | R104: ='[2]Term Purchases'!$AH$16 -> 0 | S104: =SUM(G104:R104) -> 32710042.5 | T104: =S104/S103 -> 3.339463247
B105: Stabalization Costs (Winter Months - Oct to Mar) | G105: 0 | H105: 333333.33 | I105: 333333.33 | J105: 333333.33 | K105: 333333.33 | L105: 333333.33 | M105: 333333.33 | N105: 0 | O105: 0 | P105: 0 | Q105: 0 | R105: 0 | S105: =SUM(G105:R105) -> 1999999.98
B108: Total Purchases (DTH) | E108: =E100+E103 -> 0 | F108: 0 | G108: 0 | H108: =H100+H103 -> 0 | I108: 4200000 | J108: 5980000 | K108: 7480000 | L108: =L100+L103 -> 6240000 | M108: 2795000 | N108: 0 | O108: 0 | P108: 0 | Q108: 0 | R108: 0 | S108: =SUM(G108:R108) -> 26695000
B109: Total Purchases ($) | E109: 0 | F109: 0 | G109: 0 | H109: 0 | I109: 13300661.23 | J109: 19735717.99 | K109: 25986668.05 | L109: =L101+L104 -> 22018285.71 | M109: 10088658.97 | N109: 0 | O109: 0 | P109: 0 | Q109: 0 | R109: 0 | S109: =SUM(G109:R109) -> 91129991.94
A112: Typical Customer Monthly Usage in Dth
B113: Utah | G113: =VLOOKUP(MONTH(G3),$F$122:$G$133,2,FALSE) -> 2 | H113: =VLOOKUP(MONTH(H3),$F$122:$G$133,2,FALSE) -> 3.1 | I113: 6.3 | J113: 11.5 | K113: 14.9 | L113: 12.5 | M113: 10.1 | N113: 8.3 | O113: 4.4 | P113: 3.1 | Q113: 2 | R113: 1.8 | S113: =SUM(G113:R113) -> 80
B114: Wyoming | G114: =VLOOKUP(MONTH(G3),$F$122:$H$133,3,FALSE) -> 2.1 | H114: =VLOOKUP(MONTH(H3),$F$122:$H$133,3,FALSE) -> 4.1 | I114: 8 | J114: 12.3 | K114: 14.7 | L114: 14.1 | M114: 11.8 | N114: 9.4 | O114: 5.8 | P114: 3.7 | Q114: 2.3 | R114: 1.7 | S114: =SUM(G114:R114) -> 90
A116: INPUTS FROM WEXPRO | G116: =G3 -> Sep12 | H116: =H3 -> Oct12 | I116: Nov12 | J116: Dec12 | K116: Jan13 | L116: Feb13 | M116: Mar13 | N116: Apr13 | O116: May13 | P116: Jun13 | Q116: Jul13 | R116: Aug13 | S116: 12-Month
G117: =G3 -> Sep12 | H117: =H3 -> Oct12 | I117: Nov12 | J117: Dec12 | K117: Jan13 | L117: Feb13 | M117: Mar13 | N117: Apr13 | O117: May13 | P117: Jun13 | Q117: Jul13 | R117: Aug13 | S117: Total
A118: Wexpro Operator Fee (Wexpro forecast) | D118: Updated from Brady Rasmussen 7/26/12 | G118: 23671922 | H118: 24125625 | I118: 23469219 | J118: 23733099 | K118: 23605798 | L118: 23563830 | M118: 23667145 | N118: 24427139 | O118: 23528314 | P118: 23473256 | Q118: 24115602 | R118: 24384615 | S118: =SUM(G118:R118) -> 285765564
F121: Typical UPC | G121: UT | H121: WY
F122: 1 | G122: 14.9 | H122: 14.7
F123: 2 | G123: 12.5 | H123: 14.1
F124: 3 | G124: 10.1 | H124: 11.8
F125: 4 | G125: 8.3 | H125: 9.4
F126: 5 | G126: 4.4 | H126: 5.8
F127: 6 | G127: 3.1 | H127: 3.7
F128: 7 | G128: 2 | H128: 2.3
F129: 8 | G129: 1.8 | H129: 1.7
F130: 9 | G130: 2 | H130: 2.1
F131: 10 | G131: 3.1 | H131: 4.1
F132: 11 | G132: 6.3 | H132: 8
F133: 12 | G133: 11.5 | H133: 12.3
F134: Total | G134: =SUM(G122:G133) -> 80 | H134: =SUM(H122:H133) -> 90

Sheet Graph (Ex 1.10) Inputs
C1: ACTUAL | D1: G.I. | E1: CERA | F1: PIRA | G1: AVG
B2: 2012-08-01 | E2: 2.5 | F2: 2.78 | G2: =ROUND(AVERAGE(D2:F2),2) -> 2.64
B3: 2012-09-01 | E3: 2.39 | F3: 2.58 | G3: 2.49
B4: 2012-10-01 | E4: 2.26 | F4: 2.9 | G4: 2.58
B5: 2012-11-01 | E5: 2.72 | F5: 3.25 | G5: 2.99
B6: 2012-12-01 | E6: 2.76 | F6: 3.52 | G6: 3.14
B7: 2013-01-01 | E7: 2.87 | F7: 3.74 | G7: 3.31
B8: 2013-02-01 | E8: 3.04 | F8: 3.72 | G8: 3.38
B9: 2013-03-01 | E9: 3.19 | F9: 3.73 | G9: 3.46
B10: 2013-04-01 | E10: 3.28 | F10: 3.91 | G10: 3.6
B11: 2013-05-01 | E11: 3.39 | F11: 4.1 | G11: 3.75
B12: 2013-06-01 | E12: 3.66 | F12: 4.25 | G12: 3.96
B13: 2013-07-01 | E13: 3.83 | F13: 4.47 | G13: 4.15
B14: 2013-08-01 | E14: 4.02 | F14: 4.29 | G14: 4.16
E17: Price Forecasts
B19: Make sure all pricing is in Whole number @ 2 decimal places only

Sheet Other Inputs
H1: Used In
A2: INPUT SECTION | H2: Ut | I2: Wy | J2: Source
A3: INPUTS FROM QUESTAR PIPELINE TARIFF AND CONTRACTS
B5: QPC Storage Commodity Rates | E5: Rate | F5: Effective
B6: Peaking Injections | E6: 0.03872 | F6: 2012-01-01 | H6: 1.3.2 | I6: 1.3p2 | J6: QPC Tariff Statement of Rates
B7: Peaking Withdrawals | E7: 0.03872 | F7: =$F$6 -> 2012-01-01 | H7: 1.3.2 | I7: 1.3p2 | J7: =J6 -> QPC Tariff Statement of Rates
B8: Ryckman Injections | E8: 0.015 | F8: =$F$6 -> 2012-01-01 | H8: 1.3.2 | I8: 1.3p2 | J8: =J5 -> 0
B9: Ryckman Withdrawals | E9: 0.01 | F9: =$F$6 -> 2012-01-01 | H9: 1.3.2 | I9: 1.3p2 | J9: =J6 -> QPC Tariff Statement of Rates
B10: Clay Basin Injections | E10: 0.01049 | F10: =$F$6 -> 2012-01-01 | H10: 1.3.2 | I10: 1.3p2 | J10: =J9 -> QPC Tariff Statement of Rates
B11: Clay Basin Withdrawals | E11: 0.01781 | F11: =$F$6 -> 2012-01-01 | H11: 1.3.2 | I11: 1.3p2 | J11: =J10 -> QPC Tariff Statement of Rates
B13: QPC Storage Field Reservation Charges
B14: Peaking Storage Fields Demand (Leroy, Chalk Creek, Coalville) | E14: 2.87375 | F14: =$F$6 -> 2012-01-01 | H14: 1.3.2 | I14: 1.3p2 | J14: =$J$6 -> QPC Tariff Statement of Rates
B15: Ryckman | E15: 0.09 | F15: =$F$6 -> 2012-01-01 | H15: 1.3.2 | I15: 1.3p2 | J15: =$J$6 -> QPC Tariff Statement of Rates
B16: Clay Basin Demand | E16: 2.85338 | F16: =$F$6 -> 2012-01-01 | H16: 1.3.2 | I16: 1.3p2 | J16: =$J$6 -> QPC Tariff Statement of Rates
B17: Clay Basin Capacity | E17: 0.02378 | F17: =$F$6 -> 2012-01-01 | H17: 1.3.2 | I17: 1.3p2 | J17: =$J$6 -> QPC Tariff Statement of Rates
B19: Volumes verified with Glen Watkins on 02/04/2009
J20: used in Exhibit 1.3
B21: FIRM TRANSPORTATION | D21: Contract Dth | E21: Months | F21: Maximum Rate | G21: Effective
B22: T-1 Transportation - Yearly (MT241) | D22: =798902 -> 798902 | E22: 12 | F22: 5.28804 | G22: 1/1/2012 | H22: 1.3p1 | J22: =$J$6 -> QPC Tariff Statement of Rates | N22: 4000000
B23: T-1 Transportation - Yearly (Mainline 104) | D23: 30000 | F23: 5.28804 | G23: =$G$22 -> 1/1/2012 | H23: Jan | J23: =$J$6 -> QPC Tariff Statement of Rates | N23: 28100
B24: T-1 Transportation - Yearly (Tieline 112) | D24: 52000 | F24: 5.28804 | G24: =$G$22 -> 1/1/2012 | H24: 1.3p1 | J24: =$J$6 -> QPC Tariff Statement of Rates | N24: =N22/N23 -> 142.3487544
B25: Total Yearly T-1 Transportation | D25: =SUM(D22:D24) -> 880902 | E25: 12 | J25: as long as total is same as previous, don't worry about ind. Contracts
B27: T-1 Transportation - Seasonal(BASE TARIFF RATE LOW LOAD) Mainline 104 | D27: 0 | E27: 0 | F27: 0 | J27: not using currently - ck with Glen
B29: No-Notice Transportation (BASE TARIFF RATE) | D29: 203542 | E29: 12 | F29: 0.86753 | G29: =$G$22 -> 1/1/2012 | H29: 1.3p1 | J29: =$J$6 -> QPC Tariff Statement of Rates
B30: GRI - Yearly (SURCHARGE LOW LOAD CUSTOMERS MAXIMUM) | D30: =D25 -> 880902 | E30: 12 | F30: 0 | G30: =$G$22 -> 1/1/2012 | H30: 1.3p1 | J30: =$J$6 -> QPC Tariff Statement of Rates
B31: GRI - Seasonal (No GRI currently) | D31: 30000 | E31: 3 | F31: =+F30 -> 0 | G31: =$G$22 -> 1/1/2012 | H31: 1.3p1 | J31: =$J$6 -> QPC Tariff Statement of Rates
B32: GRI | D32: 52000 | E32: 12 | F32: =+F30 -> 0 | G32: =$G$22 -> 1/1/2012 | H32: 1.3p1 | J32: =$J$6 -> QPC Tariff Statement of Rates
B34: TRANSPORTATION COMMODITY
B35: PIPELINE USAGE CHARGE TO VOLUMETRIC RELEASES
B36: QPC Commodity
B37: QPC Firm Transportation Usage Charge (Max & Min) (BASE TARIFF RATE) | F37: 0.00267 | G37: 2012-01-01 | H37: 1.3p1 | J37: =$J$6 -> QPC Tariff Statement of Rates
B38: QPC (ANNUAL CHARGE ADJUSTMENT) | F38: =+F43 -> 0.0018 | G38: =G37 -> 2012-01-01 | H38: 1.3p1 | J38: =$J$6 -> QPC Tariff Statement of Rates
B39: QPC GRI SURCHARGE | F39: 0 | G39: =G37 -> 2012-01-01 | H39: 1.3p1 | J39: =$J$6 -> QPC Tariff Statement of Rates
E40: Current | F40: Proposed
B41: INTER TRANS (T-2 PIPELINE BASE TARIFF) MAX | D41: Base Tariff | E41: 0.17652 | F41: 0.17652 | G41: 2012-01-01 | J41: =$J$6 -> QPC Tariff Statement of Rates
D42: GRI Surcharge | E42: 0 | F42: 0 | G42: =G41 -> 2012-01-01 | J42: =$J$6 -> QPC Tariff Statement of Rates
D43: Annual Charge | E43: 0.0018 | F43: 0.0018 | G43: =G41 -> 2012-01-01 | J43: =$J$6 -> QPC Tariff Statement of Rates
D44: Total | E44: =SUM(E41:E43) -> 0.17832 | F44: =SUM(F41:F43) -> 0.17832
B47: Utah | E47: =ROUND((E44)/(1-$E261),5) -> 0.1792 | F47: =ROUND((F44)/(1-E261),5) -> 0.1792 | H47: 1.6.3 | J47: Before Adjustment for Bad Debt (Transport grossed up for QGC fuel)
B48: Wyoming | F48: =ROUND((F44)/(1-E262),5) -> 0.18104
A50: INPUTS FROM KERN RIVER PIPELINE TARIFF AND CONTRACTS
B51: Kern River 2003 Expansion | D51: Contract Dth | E51: Months | F51: Maximum Rate | G51: Effective
F52: 0.4717 | J52: KR Tariff 5-A
B53: Jan - Dec | D53: 3000 | E53: 12 | F53: =F52*E56/E53 -> 14.34754167 | G53: 2011-04-01 | H53: 1.3.1
B54: November - March | D54: 50000 | E54: 5 | F54: =F53 -> 14.34754167 | G54: =G53 -> 2011-04-01 | H54: Jan
B55: Jan - Dec | D55: 1885 | E55: 12 | F55: =F56*E56/E55 -> 17.74204167 | G55: =G54 -> 2011-04-01
B56: Days in Tariff Rate | E56: 365 | F56: 0.5833 | J56: e.g., if rates effective Jan 1 in a leap year, then use 366
B58: Kern River 2003 Expansion | E58: Days in TEST PERIOD
B59: Jan - Dec | C59: 1.2426551 | D59: =D53+D55 -> 4885 | E59: 365 | F59: 0.0044 | G59: =G53 -> 2011-04-01 | H59: 1.3p1 | J59: KR Tariff 5-A
B60: November - March | C60: =C59 -> 1.2426551 | D60: =D54 -> 50000 | E60: 151 | F60: 0.0044 | G60: =G53 -> 2011-04-01 | H60: 1.3p1 | J60: KR Tariff 5-A
A62: INPUTS FROM QUESTAR GAS TARIFF
B64: I-Sales Commodity Rates | E64: I-2 -eliminated | F64: IS
B65: Effective Date | E65: 11/1/2005 | F65: 7/31/2009
B66: Commodity Rate | E66: 0 | F66: =ROUND((7353080/1941997),5) -> 3.78635 | G66: Should this just be utah
B67: CO2 Refund | E67: 0 | F67: 0
B68: Net Commodity Rate | E68: =SUM(E66:E67) -> 0 | F68: =SUM(F66:F67) -> 3.78635
A70: Current SNG Rates
B71: UTAH | E71: Current SNG Base | F71: Current SNG Amort. | G71: Current SNG Total | J71: Effective
B72: GS | D72: Winter | E72: 1.17116 | F72: 0 | G72: =E72+F72 -> 1.17116 | J72: 2012-02-01
D73: Summer | E73: 0.54987 | F73: 0 | G73: =E73+F73 -> 0.54987 | J73: =J72 -> 2012-02-01
B75: FS | D75: Winter | E75: 1.14067 | F75: 0 | G75: =E75+F75 -> 1.14067 | J75: 2012-02-01
D76: Summer | E76: 0.54985 | F76: 0 | G76: =E76+F76 -> 0.54985 | J76: =J75 -> 2012-02-01
B78: F-4 | E78: 0 | F78: 0 | G78: =E78+F78 -> 0 | J78: 2010-08-01
B80: NGV | E80: 0.84514 | F80: 0 | G80: =E80+F80 -> 0.84514 | J80: 2012-02-01
B82: (This includes bad debt adjustment) IS | E82: 0.18009 | F82: 0 | G82: =E82+F82 -> 0.18009 | J82: 2012-02-01
B85: ES | E85: 6.07073 | F85: 0 | G85: =E85+F85 -> 6.07073 | J85: 2011-10-01
A87: Current Rates
B88: Utah GS | J88: Effective
B89: Block 1 | D89: Summer | G89: 7.0826 | J89: 2012-02-01
B90: Block 2 | D90: Summer | G90: 5.86094 | J90: =$J$89 -> 2012-02-01
B91: Block 1 | D91: Winter | G91: 8.06781 | J91: =$J$89 -> 2012-02-01
B92: Block 2 | D92: Winter | G92: 6.7187 | J92: =$J$89 -> 2012-02-01
B93: #1 BSF | G93: 5 | J93: =J89 -> 2012-02-01
B95: Wyoming GS
B96: Block 1 | G96: 7.20588 | J96: 2011-10-01
B97: Block 2 | G97: 6.46011 | J97: =J96 -> 2011-10-01
B98: BSF | G98: 10 | J98: =J96 -> 2011-10-01
A100: INPUTS FROM PREVIOUS PASSTHROUGH CASE
B101: PRIOR PERIOD COMPANY PRODUCTION AVERAGE GAS COST
E102: PROPOSED | F102: PRIOR CASE | G102: Most Recent
B103: VOLUMES DTH | E103: ='Monthly Inputs'!S16 -> 68366275 | F103: 72356011 | G103: EXH 1.1 | J103: LAST CASE IN WHICH RATES CHANGED
B104: AMOUNT | E104: =+D185 -> 322105537.8 | F104: 310544730 | G104: EXH 1.1
B105: AVG COST | E105: =+E104/E103 -> 4.711468305 | F105: =ROUND(+F104/F103,5) -> 4.2919
B107: Utah Cost of Gas by Component
B108: Unit Cost Of Gas (Line 11) | F108: 4.16664 | J108: Exhibit 1.6 pg 1 (Prior case column)
B109: 191 Account Amortization (Line 12) | F109: 0 | J109: Exhibit 1.6 pg 1 (Prior case column)
B110: Total Unit Cost In Rates (Line 13) | F110: =SUM(F108:F109) -> 4.16664
B112: I-2 Commodity Cost (excluding bad debt) | E112: 0
B114: Wyoming Cost of Gas by Component
B115: Unit Cost Of Gas (Line 10) | F115: 4.86122 | J115: (WY) Exhibit 1.6 pg 1
B116: 191 Account Amortization (Line 11) | F116: 0 | J116: (WY) Exhibit 1.6 pg 1
B117: Total Unit Cost In Rates (Line 13) | F117: =F115+F116 -> 4.86122 | J117: (WY) Exhibit 1.6 pg 1
J120: Exhibit 1.6 pg 1
J121: (WY) Exhibit 1.6 pg 1
A122: INPUTS FROM 191 ACCOUNT YEAR END BALANCE ACTUAL OR FORECAST | E122: Utah | F122: Wyoming
E123: 2011 | F123: 2011-07-01
H124: 1.6.2
D125: current yr /mo(text)
B126: August 2012 191 account (Forecast/Actual) | D126: 2012 | E126: 16975477 | F126: -880250 | H126: 1.6.1 | J126: 191 Account Forecast/Actual
B127: Supplier Non-Gas Cost Under (Over) Collected through August 2012 (act/fcst) | D127: August | E127: 9387025 | H127: 1.6.2 | J127: 191 Account Year-End (sometimes through current period)
B128: Commodity Cost Under (Over) Collected during YEAR (Act/Fcst)
A130: INPUTS FROM IRP
B131: #1 Peak Day Demand Forecast | E131: 2013 | F131: Source
B132: Utah | E132: =E134-E133 -> 1243265 | F132: 2011 IRP
B133: Wyoming | E133: 42428
B134: System Total Peak Day Demand Forecast | E134: 1285693 | H134: 1.5 | I134: 1.5
A137: STORAGE FIELD INPUTS | E137: Storage
B138: Chalk Creek Injections Factor | E138: 0.0188 | H138: Scott Nelson Monthly IRP
B139: Chalk Creek Withdrawls Factor | E139: 0.0144 | H139: Scott Nelson Monthly IRP
B141: Ryckman Injections Factor | E141: 0.025 | H141: Scott Nelson Monthly IRP
B142: Ryckman Withdrawls Factor | E142: 0 | H142: Scott Nelson Monthly IRP
B144: Leroy Injections Factor | E144: 0.0334 | H144: Scott Nelson Monthly IRP
B145: Leroy Withdrawls Factor | E145: 0.0199 | H145: Scott Nelson Monthly IRP
B147: Clay Basin Injections Factor | E147: 0.01483 | H147: Scott Nelson Monthly IRP
B148: Clay Basin Withdrawls Factor | E148: 0.00567 | H148: Scott Nelson Monthly IRP
B150: Coalville Injections Factor | E150: 0.012 | H150: Scott Nelson Monthly IRP
B151: Coalville Withdrawls Factor | E151: 0.0129 | H151: Scott Nelson Monthly IRP
B153: QPC Storage Field Reservation Charges | E153: Monthly Dth
B154: Peaking Storage Fields Demand (Leroy, Chalk Creek, Coalville) | E154: 184625 | F154: didn’t change this time | H154: From Glen Watkins (Contract Amounts) (See Ex 1.3 pg 2 if not changed)
B155: Ryckman | E155: 2500000 | H155: From Glen Watkins (Contract Amounts) (See Ex 1.3 pg 2 if not changed)
B156: Clay Basin Demand | E156: 111827 | F156: didn’t change this time | H156: From Glen Watkins (Contract Amounts) (See Ex 1.3 pg 2 if not changed)
B157: Clay Basin Capacity | E157: 13419000 | F157: didn’t change this time | H157: From Glen Watkins (Contract Amounts) (See Ex 1.3 pg 2 if not changed)
A159: OTHER INPUTS FROM GLEN, TOM, TINA & Al | D159: Volume (Dth) | E159: Revenue
B160: OTHER GATHERING
B165: Total Forecasted Birch Creek | D165: 334089 | J165: Birch Creek from Chuck
B167: Other gathering | D167: 2028023.71 | E167: 2012-07-20 | H167: JanB | J167: Chuck Howisey's Query
B168: Total Gathering | D168: =SUM(D165:D167) -> 2362112.71 | H168: 1.3.1 | I168: 1.3P1
B170: Other Transportation | D170: =2289707-117049.14+663744.05 -> 2836401.91 | E170: 2012-07-20 | H170: 1.3.1 | J170: Chuck Howisey's Query
B172: Forecast Future Contracts Premium over spot price | E172: 0.02 | F172: Verified with Tina 08/2009
D174: Commodity | E174: Mo. Demand
D175: Charge | E175: Charge | F175: Effective
B176: QEP Gathering Rates | D176: 0.13918 | E176: 759167.5 | F176: 5-1-2012 - ????? | I176: 1.3p1 | J176: QEP Rates (Changes every Sep 1)
B177: QGC Gathering Throughput Dth From Exhibit 1.1 Backup | D177: ='Ex 1.1 Data'!E1 -> 49308448 | E177: 12 | I177: 1.3p1 | J177: Ex. 1.1 updated on 11-17-2010
A180: OTHER INPUTS FROM JIM LIVSEY | D180: Volume (Dth) | E180: Revenue
B182: Questar Gas Production 1/ | D182: Current
B183: Test Year Royalties | D183: ='Ut 1.1'!H1364 -> 36339973.77 | H183: 1.4.1 | I183: 1.4P1 | J183: Exhibit 1.1
B184: Operator Service Fee | D184: ='Monthly Inputs'!S118 -> 285765564 | H184: 1.4.1 | I184: 1.4P1 | J184: Jim Livsey (Updated on 11-10-2010
B185: Total Questar Gas Production Costs | D185: =SUM(D183:D184) -> 322105537.8
B187: Total Questar Gas Production Dth | D187: ='Ut 1.1'!E1369 -> 68366275 | J187: this formula changes each time
F188: Hot | G188: Hot
B189: Other Revenue Credits | D189: 1 | E189: 2 | F189: 2 | G189: 2 | I189: 1
D190: Historical | E190: Forecast | F190: =HLOOKUP(F$189,$D$189:$E$197,$I190) -> Forecast | G190: =HLOOKUP(G$189,$D$189:$E$197,$I190) -> Forecast | I190: 2
D191: 12 Mo Ending | E191: 12 Mo Ending | F191: Utah | G191: Wyoming | I191: 3
B192: 483 Sales for Resale | E192: 3701501 | F192: =HLOOKUP(F$189,$D$189:$E$197,$I192) -> 3701501 | G192: =HLOOKUP(G$189,$D$189:$E$197,$I192) -> 3701501 | I192: 4 | J192: Wexpro (Jim Livsey)
B193: 490 Incidental Plant Prod Sales | E193: 4844000 | F193: =HLOOKUP(F$189,$D$189:$E$197,$I193) -> 4844000 | G193: 4844000 | I193: 5 | J193: Wexpro (Jim Livsey)
B194: 492 Incidental Gasoline_Oil Sales | E194: 1326369 | F194: 1326369 | G194: 1326369 | I194: 6 | J194: Wexpro (Jim Livsey)
B195: 4951 Overriding Royalty Revenue from Celsius | E195: 16536069 | F195: 16536069 | G195: 16536069 | I195: 7 | J195: Wexpro (Jim Livsey)
B196: 4952 Oil Revenue Received from Wexpro | E196: 0 | F196: 0 | G196: 0 | I196: 8 | J196: Wexpro (Jim Livsey)
B197: 758001 Gas Well Royalities - Other | E197: -195925 | F197: -195925 | G197: -195925 | I197: 9 | J197: Wexpro (Jim Livsey)
B200: Total Other Revenue Credits | D200: =SUM(D192:D197) -> 0 | E200: =SUM(E192:E197) -> 26212014 | F200: =SUM(F192:F197) -> 26212014 | G200: =SUM(G192:G197) -> 26212014
A203: SUMMARY INPUTS FROM REVRUN, RATE BASE, EXPENSES, ETC.
B205: Supplier Non-Gas Costs Recovered at Current Rates 3/ | E205: ='RevRun Fcst'!T$198 -> 102378717 | H205: 1.6.2 | J205: Dave's Revrun
B206: MT Supplier Non-Gas | E206: ='RevRun Fcst'!T142 -> 1935 | J206: Dave's Revrun
B207: Net Supplier Non-Gas | E207: =E205-E206 -> 102376782
B208: UT Current Int Sales SNG Rate - not including Bad Debt adj. | E208: ='RevRun Fcst'!T93+'RevRun Fcst'!T111 -> 2683531 | F208: 0.17919 | J208: Revrun (D210); SNG from last case in which rates changed (see Exh. 1.6, p. 2, line 6c col. C)
E210: ='Rate Base'!$U$8 -> 2012-06-30 | F210: update to most current
B211: Account 164-1 - Gas Stored Underground | D211: Dth | E211: Ending Balance | F211: $ per Dth
D212: ='Rate Base'!T287 -> -7010307 | E212: ='Rate Base'!T208 -> 29378840.71 | F212: =+E212/D212 -> -4.190806581 | H212: 1.4.2
A215: UT CET and DSM AMORTIZATION FILING INPUTS
E216: Base DNG | F216: Current DNG
B217: GS Rates (Base rates are before CET, DSM, & EA Amortizations) | D217: Summer Blk 1 | E217: 1.87767 | F217: 2.36609
D218: Summer Blk 2 | E218: 0.69704 | F218: 1.14443
D219: Winter Blk 1 | E219: 2.22938 | F219: 2.73001
D220: Winter Blk 2 | E220: 0.92557 | F220: 1.3809 | J220: Base DNG Rate from latest general rate case Docket 09-057-16
J221: Current Rates Effective 6/1/11
D222: Energy Assistance | E222: 0.01519 | F222: Current Rate 8/1/2010 GS Rate
E223: 0.01029 | F223: Current Rate 8/1/2010 FS Rate
E224: 0.00796 | F224: Current Rate 8/1/2010 IS Rate
E225: 0.01829 | F225: Current Rate 8/1/2010 NGV Rate
E226: Ending Balance | F226: Date
B227: CET Balance (Account 191.9) | E227: -1886289.514 | F227: 2011-07-31 | J227: Accounting
B228: DSM Expense Deferral Balance (Account 182.4) | E228: 42000000 | F228: 2011-03-31 | J228: Accounting
B230: GS Block Usage in Dth | D230: Winter Blk 1 | E230: 52526064 | J230: Block out from Dave's REVRUN
D231: Winter Blk 2 | E231: 14984828 | J231: (used Gary's "Rate Design Model - Bill Factor Input.xls" &
D232: Summer Blk 1 | E232: 23076373 | J232: Dave's "PT0802.bk" files) Updated March 31, 2010
D233: Summer Blk 2 | E233: 4705902
A235: WY CET and DSM AMORTIZATION FILING INPUTS
E236: Base DNG | F236: Current DNG
B237: GS Rates (Base rates are before CET and DSM Amortizations) | D237: Blk 1 | E237: 2.00841 | F237: 2.00841
D238: Blk 2 | E238: 1.26955 | F238: 1.26955
J240: Base DNG Rate from latest general rate case Docket 30010-94-GR-08
J241: Current Rates Effective7/1/09
E243: Ending Balance | F243: Date
B244: CET Balance (Account 191.9) | E244: 57097.0875 | F244: 2011-07-31 | J244: Accounting
B245: DSM Expense Deferral Balance (Account 182.4) | E245: 274858.68 | F245: 2011-07-31 | J245: Accounting
B247: GS Block Usage in Dth | D247: Blk 1 | E247: 2593433 | J247: Block out from Dave's REVRUN
D248: Blk 2 | E248: 705379 | J248: (used Gary's "Rate Design Model - Bill Factor Input.xls" &
J249: Dave's "PT0802.bk" files) Updated March 31, 2011
A253: MISCELLANEOUS INPUTS
B254: Test Year | D254: ='Control Panel'!F40 -> Sep-12 | E254: ='Control Panel'!F41 -> Aug-13 | J254: entered as text, beginning and end month
B256: Wexpro Red. @ 6.3% | E256: -0.063 | I256: 1.3p3 | J256: Wexpro Stip.
B258: Pre-Tax Rate of Return % | D258: WYO | E258: 0.1197 | F258: Effective July 2009 | I258: 1.3p2 | J258: Changes with General Rate Case
B259: Pre-Tax Rate of Return % | D259: UTAH | E259: 0.1179 | F259: Effect Aug 1 2010 | J259: Changes with General Rate Case
B261: QGC Lost & Unaccounted For % (Utah | E261: 0.0049 | H261: Q | I261: Q
B262: QGC Lost & Unaccounted For % (Wyoming) | E262: 0.015
B263: QEP Gathering Lost & Unaccounted For | E263: 0.029 | F263: 2010-04-23 | H263: Q | I263: Q | J263: from Gas Supply (Scott N.) - IRP based on this
B264: QPC Lost & Unaccounted For % | E264: 0.0141 | F264: 2010-04-23 | H264: Q | I264: Q | J264: from Gas Supply (Scott N.) - IRP based on this
B265: TOTAL | E265: =SUM(E263:E264) -> 0.0431
B267: Capacity Release Credits | E267: 336401.85 | I267: 1.3p1 | J267: From Chuck Howisey
B268: Capacity Release Credit Sharing % in Utah | E268: 0.9 | J268: Docket 97-057-03 Stipulation
... 16 more rows

Sheet CET & DSM WY
A1: Rate Caclulation for the CET and DSM Amortizations WY
L3: Solver Cells
A4: CET Amortization % Calculation | L4: % Change | M4: Difference
B5: Balance | C5: Date | D5: GS Dth | F5: Amortization per Dth | L5: =J20/D20 -> 0.00935375228 | M5: =G20-B11 -> 0 | O5: -> Difference should be at 0 (Use Goal Seek to Get Difference to Equal 0.
A6: DSM Balance | B6: ='Other Inputs'!$E$245 -> 274858.68 | C6: ='Other Inputs'!$F$245 -> 2011-07-31 | D6: =B20 -> 3298812 | F6: =B6/D6 -> 0.08332050447
O8: Typical Bill Rates
A9: CET Amortization Calculation
B10: Balance | C10: Date | D10: DNG Rev | F10: New DNG | I10: % Change | O10: Current | P10: Proposed
A11: CET Balance | B11: ='Other Inputs'!$E$244 -> 57097.0875 | C11: ='Other Inputs'!$F$244 -> 2011-07-31 | D11: =D20 -> 6104190.681 | F11: =D11+B11 -> 6161287.768 | I11: =L5 -> 0.00935375228 | O11: Effective | R11: SNG & | S11: CET, DSM
O12: ='Other Inputs'!$J$96 -> 2011-10-01 | P12: CET Only | Q12: DSM Only | R12: Commodity | S12: Commodity
O13: BSF | P13: BSF | Q13: BSF | R13: BSF | S13: BSF
B14: Revenue Calculation | F14: CET Amortization | I14: Total DNG | L14: REVRUN Calculation | O14: ='Other Inputs'!$G$98 -> 10 | P14: ='Other Inputs'!$G$98 -> 10 | Q14: ='Other Inputs'!$G$98 -> 10 | R14: ='Other Inputs'!$G$98 -> 10 | S14: ='Wy 1.8'!C10 -> 10
A15: WY GS | B15: Dth | C15: Base DNG | D15: DNG Revenue | F15: CET Rate | G15: Revenue | I15: DNG Rate | J15: Revenue | L15: CET Rate | M15: CET Amort
A16: Block 1 | B16: ='Other Inputs'!E247 -> 2593433 | C16: ='Other Inputs'!E237 -> 2.00841 | D16: =B16*C16 -> 5208676.772 | F16: =ROUND((G16/B16),5) -> 0.01879 | G16: =D16*$L$5 -> 48720.67223 | I16: =C16+F16 -> 2.0272 | J16: =I16*B16 -> 5257407.378 | L16: =ROUND(F16,5) -> 0.01879 | M16: =B16*L16 -> 48730.60607 | O16: ='Other Inputs'!$G$89 -> 7.0826 | P16: =J24 -> 7.06396 | Q16: =J31 -> 7.10562 | R16: =J36 -> 7.06473 | S16: =J41 -> 7.053870504
A17: Block 2 | B17: ='Other Inputs'!E248 -> 705379 | C17: ='Other Inputs'!E238 -> 1.26955 | D17: =B17*C17 -> 895513.9094 | F17: =ROUND((G17/B17),5) -> 0.01188 | G17: =D17*$L$5 -> 8376.415272 | I17: =C17+F17 -> 1.28143 | J17: =I17*B17 -> 903893.812 | L17: =ROUND(F17,5) -> 0.01188 | M17: =B17*L17 -> 8379.90252
O18: ='Other Inputs'!$G$96 -> 7.20588 | P18: =J24 -> 7.06396 | Q18: =J31 -> 7.10562 | R18: =J36 -> 7.06473 | S18: =J41 -> 7.053870504
A20: GS-1 Block Rev | B20: =SUM(B16:B19) -> 3298812 | D20: =SUM(D16:D19) -> 6104190.681 | G20: =SUM(G16:G19) -> 57097.0875 | J20: =B11 -> 57097.0875 | M20: =SUM(M16:M19) -> 57110.50859
A22: Total Rate Calculation With CET Amortization Only | J22: ='Control Panel'!J8 -> 2012-04-01 | L22: ='Other Inputs'!$J$96 -> 2011-10-01
A23: WY GS | B23: Total DNG | C23: CET | D23: DSM | F23: Total DNG | G23: Core Commodity Cost | J23: Total Rate | L23: Total Rate
A24: Block 1 | B24: =$C$16 -> 2.00841 | C24: =$F$16 -> 0.01879 | D24: 0.06792 | F24: =SUM(B24:D24) -> 2.09512 | G24: 4.96884 | J24: =SUM(F24:G24) -> 7.06396 | L24: ='Other Inputs'!G96 -> 7.20588 | M24: =J24-L24 -> -0.14192
A25: Block 2 | B25: =$C$17 -> 1.26955 | C25: =$F$17 -> 0.01188 | D25: =$D$24 -> 0.06792 | F25: =SUM(B25:D25) -> 1.34935 | G25: =G24 -> 4.96884 | J25: =SUM(F25:G25) -> 6.31819 | L25: ='Other Inputs'!$G$97 -> 6.46011 | M25: =J25-L25 -> -0.14192
A29: Total Rate Calculation With DSM Amortization Only | J29: =J22 -> 2012-04-01 | L29: ='Other Inputs'!$J$96 -> 2011-10-01
A30: WY GS | B30: Base DNG | C30: CET | D30: DSM | F30: Total DNG | G30: Core Commodity Cost | J30: Total Rate | L30: Total Rate
A31: Block 1 | B31: =$C$16 -> 2.00841 | C31: 0.04505 | D31: =$F$6 -> 0.08332050447 | F31: =ROUND(SUM(B31:D31),5) -> 2.13678 | G31: =G24 -> 4.96884 | J31: =SUM(F31:I31) -> 7.10562 | L31: ='Other Inputs'!$G$89 -> 7.0826 | M31: =J31-L31 -> 0.02302
A32: Block 2 | B32: =$C$17 -> 1.26955 | C32: 0.02848 | D32: =$F$6 -> 0.08332050447 | F32: =ROUND(SUM(B32:D32),5) -> 1.38135 | G32: =G25 -> 4.96884 | J32: =SUM(F32:I32) -> 6.35019 | L32: ='Other Inputs'!$G$97 -> 6.46011 | M32: =J32-L32 -> -0.10992
A34: Total Rate Calculation With Core Commodity Cost Changes Only | J34: =J22 -> 2012-04-01 | L34: ='Other Inputs'!$J$96 -> 2011-10-01
A35: WY GS | B35: Base DNG | C35: CET | D35: DSM | F35: Total DNG | G35: Core Commodity Cost | J35: Total Rate | L35: Total Rate
A36: Block 1 | B36: =$C$16 -> 2.00841 | C36: =C31 -> 0.04505 | D36: =D24 -> 0.06792 | F36: =SUM(B36:D36) -> 2.12138 | G36: ='Wy 1.6 p1'!$F$33 -> 4.94335 | J36: =SUM(F36:I36) -> 7.06473 | L36: ='Other Inputs'!$G$89 -> 7.0826 | M36: =J36-L36 -> -0.01787
A37: Block 2 | B37: =$C$17 -> 1.26955 | C37: =C32 -> 0.02848 | D37: =D25 -> 0.06792 | F37: =SUM(B37:D37) -> 1.36595 | G37: ='Wy 1.6 p1'!$F$33 -> 4.94335 | J37: =SUM(F37:I37) -> 6.3093 | L37: ='Other Inputs'!$G$97 -> 6.46011 | M37: =J37-L37 -> -0.15081
A39: Total Rate Calculation | J39: =J29 -> 2012-04-01 | L39: ='Other Inputs'!$J$96 -> 2011-10-01
A40: WY GS | B40: Base DNG | C40: CET | D40: DSM | F40: Total DNG | G40: Core Commodity Cost | J40: Total Rate | L40: Total Rate
A41: Block 1 | B41: =$C$16 -> 2.00841 | C41: =$F$16 -> 0.01879 | D41: =$F$6 -> 0.08332050447 | F41: =SUM(B41:D41) -> 2.110520504 | G41: ='Wy 1.6 p1'!$F$33 -> 4.94335 | J41: =SUM(F41:I41) -> 7.053870504 | L41: ='Other Inputs'!$G$89 -> 7.0826 | M41: =J41-L41 -> -0.02872949553
A42: Block 2 | B42: =$C$17 -> 1.26955 | C42: =$F$17 -> 0.01188 | D42: =$F$6 -> 0.08332050447 | F42: =SUM(B42:D42) -> 1.364750504 | G42: ='Wy 1.6 p1'!$F$33 -> 4.94335 | J42: =SUM(F42:I42) -> 6.308100504 | L42: ='Other Inputs'!$G$97 -> 6.46011 | M42: =J42-L42 -> -0.1520094955
A44: Typical Customer Difference - CET Amortization Only
B45: Typical
A46: GS | B46: Dth | C46: =O12 -> 2011-10-01 | D46: =J39 -> 2012-04-01 | F46: Change | G46: % Change
A47: January | B47: 14.7 | C47: =ROUND($O$14+(B47*$O$18),2) -> 115.93 | D47: =ROUND($P$14+(B47*$P$18),2) -> 113.84 | F47: =D47-C47 -> -2.09
A48: February | B48: 14.1 | C48: =ROUND($O$14+(B48*$O$18),2) -> 111.6 | D48: =ROUND($P$14+(B48*$P$18),2) -> 109.6 | F48: =D48-C48 -> -2
A49: March | B49: 11.8 | C49: =ROUND($O$14+(B49*$O$18),2) -> 95.03 | D49: =ROUND($P$14+(B49*$P$18),2) -> 93.35 | F49: -1.68
A50: April | B50: 9.4 | C50: =ROUND($O$14+(B50*$O$16),2) -> 76.58 | D50: =ROUND($P$14+(B50*$P$16),2) -> 76.4 | F50: -0.18
A51: May | B51: 5.8 | C51: 51.08 | D51: =ROUND($P$14+(B51*$P$16),2) -> 50.97 | F51: -0.11
A52: June | B52: 3.7 | C52: 36.21 | D52: 36.14 | F52: -0.07
A53: July | B53: 2.3 | C53: 26.29 | D53: 26.25 | F53: -0.04
A54: August | B54: 1.7 | C54: 22.04 | D54: 22.01 | F54: -0.03
A55: September | B55: 2.1 | C55: 24.87 | D55: 24.83 | F55: -0.04
A56: October | B56: 4.1 | C56: 39.04 | D56: 38.96 | F56: -0.08
A57: November | B57: 8 | C57: =ROUND($O$14+(B57*$O$18),2) -> 67.65 | D57: =ROUND($P$14+(B57*$P$18),2) -> 66.51 | F57: -1.14
A58: December | B58: 12.3 | C58: =ROUND($O$14+(B58*$O$18),2) -> 98.63 | D58: =ROUND($P$14+(B58*$P$18),2) -> 96.89 | F58: -1.74
B59: =SUM(B47:B58) -> 90 | C59: =SUM(C47:C58) -> 764.95 | D59: =SUM(D47:D58) -> 755.75 | F59: =SUM(F47:F58) -> -9.2 | G59: =F59/C59 -> -0.01202692986
A62: Typical Customer Difference - DSM Amortization Only
B63: Typical
A64: GS | B64: Dth | C64: =C46 -> 2011-10-01 | D64: =D46 -> 2012-04-01 | F64: Change | G64: % Change
A65: January | B65: 14.7 | C65: =ROUND($O$14+(B65*$O$18),2) -> 115.93 | D65: =ROUND($Q$14+(B65*$Q$18),2) -> 114.45 | F65: =D65-C65 -> -1.48
A66: February | B66: 14.1 | C66: =ROUND($O$14+(B66*$O$18),2) -> 111.6 | D66: =ROUND($Q$14+(B66*$Q$18),2) -> 110.19 | F66: =D66-C66 -> -1.41
A67: March | B67: 11.8 | C67: =ROUND($O$14+(B67*$O$18),2) -> 95.03 | D67: =ROUND($Q$14+(B67*$Q$18),2) -> 93.85 | F67: -1.18
A68: April | B68: 9.4 | C68: =ROUND($O$14+(B68*$O$16),2) -> 76.58 | D68: =ROUND($Q$14+(B68*$Q$16),2) -> 76.79 | F68: 0.21
A69: May | B69: 5.8 | C69: 51.08 | D69: 51.21 | F69: 0.13
A70: June | B70: 3.7 | C70: 36.21 | D70: 36.29 | F70: 0.08
A71: July | B71: 2.3 | C71: 26.29 | D71: 26.34 | F71: 0.05
A72: August | B72: 1.7 | C72: 22.04 | D72: 22.08 | F72: 0.04
A73: September | B73: 2.1 | C73: 24.87 | D73: 24.92 | F73: 0.05
A74: October | B74: 4.1 | C74: 39.04 | D74: 39.13 | F74: 0.09
A75: November | B75: 8 | C75: =ROUND($O$14+(B75*$O$18),2) -> 67.65 | D75: =ROUND($Q$14+(B75*$Q$18),2) -> 66.84 | F75: -0.81
A76: December | B76: 12.3 | C76: =ROUND($O$14+(B76*$O$18),2) -> 98.63 | D76: =ROUND($Q$14+(B76*$Q$18),2) -> 97.4 | F76: -1.23
B77: =SUM(B65:B76) -> 90 | C77: =SUM(C65:C76) -> 764.95 | D77: =SUM(D65:D76) -> 759.49 | F77: =SUM(F65:F76) -> -5.46 | G77: =F77/C77 -> -0.00713772142
A80: Typical Customer Difference - SNG and Commodity Changes Only
B81: Typical
A82: GS | B82: Dth | C82: =C64 -> 2011-10-01 | D82: =D64 -> 2012-04-01 | F82: Change | G82: % Change
A83: January | B83: 14.7 | C83: =ROUND($O$14+(B83*$O$18),2) -> 115.93 | D83: =ROUND($R$14+(B83*$R$18),2) -> 113.85 | F83: =D83-C83 -> -2.08
A84: February | B84: 14.1 | C84: =ROUND($O$14+(B84*$O$18),2) -> 111.6 | D84: =ROUND($R$14+(B84*$R$18),2) -> 109.61 | F84: =D84-C84 -> -1.99
A85: March | B85: 11.8 | C85: =ROUND($O$14+(B85*$O$18),2) -> 95.03 | D85: =ROUND($R$14+(B85*$R$18),2) -> 93.36 | F85: -1.67
A86: April | B86: 9.4 | C86: =ROUND($O$14+(B86*$O$16),2) -> 76.58 | D86: =ROUND($R$14+(B86*$R$16),2) -> 76.41 | F86: -0.17
A87: May | B87: 5.8 | C87: 51.08 | D87: 50.98 | F87: -0.1
A88: June | B88: 3.7 | C88: 36.21 | D88: 36.14 | F88: -0.07
A89: July | B89: 2.3 | C89: 26.29 | D89: 26.25 | F89: -0.04
A90: August | B90: 1.7 | C90: 22.04 | D90: 22.01 | F90: -0.03
A91: September | B91: 2.1 | C91: 24.87 | D91: 24.84 | F91: -0.03
A92: October | B92: 4.1 | C92: 39.04 | D92: 38.97 | F92: -0.07
A93: November | B93: 8 | C93: =ROUND($O$14+(B93*$O$18),2) -> 67.65 | D93: =ROUND($R$14+(B93*$R$18),2) -> 66.52 | F93: -1.13
A94: December | B94: 12.3 | C94: =ROUND($O$14+(B94*$O$18),2) -> 98.63 | D94: =ROUND($R$14+(B94*$R$18),2) -> 96.9 | F94: -1.73
B95: =SUM(B83:B94) -> 90 | C95: =SUM(C83:C94) -> 764.95 | D95: =SUM(D83:D94) -> 755.84 | F95: =SUM(F83:F94) -> -9.11 | G95: =F95/C95 -> -0.01190927512
A98: Typical Customer Difference - CET & DSM Amort, SNG and Commodity Changes
B99: Typical
A100: GS | B100: Dth | C100: =C46 -> 2011-10-01 | D100: =D46 -> 2012-04-01 | F100: Change | G100: % Change
A101: January | B101: 14.7 | C101: =ROUND($O$14+(B101*$O$18),2) -> 115.93 | D101: =ROUND($S$14+(B101*$S$18),2) -> 113.69 | F101: =D101-C101 -> -2.24
A102: February | B102: 14.1 | C102: =ROUND($O$14+(B102*$O$18),2) -> 111.6 | D102: =ROUND($S$14+(B102*$S$18),2) -> 109.46 | F102: =D102-C102 -> -2.14
A103: March | B103: 11.8 | C103: =ROUND($O$14+(B103*$O$18),2) -> 95.03 | D103: =ROUND($S$14+(B103*$S$18),2) -> 93.24 | F103: -1.79
A104: April | B104: 9.4 | C104: =ROUND($O$14+(B104*$O$16),2) -> 76.58 | D104: =ROUND($S$14+(B104*$S$16),2) -> 76.31 | F104: -0.27
A105: May | B105: 5.8 | C105: 51.08 | D105: 50.91 | F105: -0.17
A106: June | B106: 3.7 | C106: 36.21 | D106: 36.1 | F106: -0.11
A107: July | B107: 2.3 | C107: 26.29 | D107: 26.22 | F107: -0.07
A108: August | B108: 1.7 | C108: 22.04 | D108: 21.99 | F108: -0.05
A109: September | B109: 2.1 | C109: 24.87 | D109: 24.81 | F109: -0.06
A110: October | B110: 4.1 | C110: 39.04 | D110: 38.92 | F110: -0.12
A111: November | B111: 8 | C111: =ROUND($O$14+(B111*$O$18),2) -> 67.65 | D111: =ROUND($S$14+(B111*$S$18),2) -> 66.43 | F111: -1.22
A112: December | B112: 12.3 | C112: =ROUND($O$14+(B112*$O$18),2) -> 98.63 | D112: =ROUND($S$14+(B112*$S$18),2) -> 96.76 | F112: -1.87
B113: =SUM(B101:B112) -> 90 | C113: =SUM(C101:C112) -> 764.95 | D113: =SUM(D101:D112) -> 754.84 | F113: =SUM(F101:F112) -> -10.11 | G113: =F113/C113 -> -0.0132165501

Sheet WY Tariff Sheets
T2: Rates Per Dth Used Each Month
B3: 2.02 General Service Rate Schedule (GS) | K3: 2.02 General Service Rate Schedule (GS) | Q3: 2.03 Firm Sales Service Rate Schedule (FS) | T3: Dth = decatherm = 10 therms = 1,000,000 BTU | Z3: 4.02 INTERRUPTIBLE SALES RATE SERVICE SCHEDULE (IS) | BF3: 2.04 NATURAL GAS VEHICLE RATE (NGV)
L4: Rates Per Dth Used Each Month | R4: Summer Rates: Apr. 1 - Oct. 31
C5: Rates Per Dth Used Each Month | L5: Dth = decatherm = 10 therms = 1,000,000 BTU | R5: First | T5: Next | V5: All Over | Z5: IS VOLUMETRIC RATES | AA5: Rates Per Dth Used Each Month | BF5: NGV Volumetric Rate
C6: Dth = decatherm = 10 therms = 1,000,000 BTU | L6: First 45 Dth | M6: All Over 45 Dth | R6: 80 | T6: 730 | V6: 810 | AA6: Dth = decatherm = 10 therms = 1,000,000 BTU | BJ6: Rates Per Dth Used Each Month
C7: First 45 Dth | D7: All Over 45 Dth | K7: Non-Gas Cost | L7: ='CET & DSM WY'!B31 -> 2.00841 | M7: ='CET & DSM WY'!B32 -> 1.26955 | Q7: Non Gas Cost | R7: ='Wy 1.8'!C14 -> 0.67969 | T7: ='Wy 1.8'!D14 -> 0.60383 | V7: ='Wy 1.8'!E14 -> 0.52778 | AA7: First | AB7: Next | AC7: All Over | BJ7: Dth = decatherm = 10 therms = 1,000,000 BTU
B8: Non-Gas Cost | C8: ='CET & DSM WY'!B24 -> 2.00841 | D8: ='CET & DSM WY'!B25 -> 1.26955 | K8: Conservation Enabling Adjustment | L8: =ROUND('CET & DSM WY'!C31,5) -> 0.04505 | M8: ='CET & DSM WY'!C32 -> 0.02848 | Q8: Core Service Commodity Cost | R8: ='Wy 1.8'!C15 -> 4.94335 | T8: ='Wy 1.8'!D15 -> 4.94335 | V8: ='Wy 1.8'!E15 -> 4.94335 | AA8: 48600 | AB8: 72900 | AC8: 121500
B9: Conservation Enabling Adjustment | C9: ='CET & DSM WY'!C24 -> 0.01879 | D9: ='CET & DSM WY'!C25 -> 0.01188 | K9: Energy Efficiency Services | L9: ='CET & DSM WY'!D31 -> 0.08332050447 | M9: ='CET & DSM WY'!D32 -> 0.08332050447 | Z9: Distribution Non-Gas Rate | AA9: ='Wy 1.8'!C32 -> 0.13102 | AB9: ='Wy 1.8'!D32 -> 0.1148 | AC9: ='Wy 1.8'!E32 -> 0.0986 | BF9: Non-Gas Cost | BG9: ='Wy 1.8'!C26 -> 4.78284
B10: Energy Efficiency Services | C10: ='CET & DSM WY'!D24 -> 0.06792 | D10: ='CET & DSM WY'!D25 -> 0.06792 | K10: Core Service Commodity Cost | L10: ='CET & DSM WY'!G31 -> 4.96884 | M10: =ROUND('CET & DSM WY'!G32,5) -> 4.96884 | Q10: Total Rate | R10: =SUM(R7:R8) -> 5.62304 | T10: =SUM(T7:T8) -> 5.54718 | V10: =SUM(V7:V8) -> 5.47113 | Z10: Upstream Pipeline Cost | AA10: ='Wy 1.8'!C33 -> 0.18104 | AB10: ='Wy 1.8'!D33 -> 0.18104 | AC10: ='Wy 1.8'!E33 -> 0.18104 | BF10: Core Commodity Cost | BG10: ='Wy 1.8'!C27 -> 4.94335
B11: Core Service Commodity Cost | C11: ='CET & DSM WY'!G24 -> 4.96884 | D11: ='CET & DSM WY'!G25 -> 4.96884 | Z11: Commodity Rate | BF11: Total Rate | BG11: =SUM(BG9:BJ10) -> 9.72619
K12: Total Rate | L12: =SUM(L7:L10) -> 7.105620504 | M12: =SUM(M7:M10) -> 6.350190504 | Q12: Minimum Monthly Distribution Non-Gas Charge | W12: ='Wy 1.8'!C18 -> 112
B13: Total Rate | C13: =SUM(C8:C11) -> 7.06396 | D13: =SUM(D8:D11) -> 6.31819
M15: BSF Category 1 | N15: =E16 -> 10
D16: BSF Category 1 | E16: ='CET & DSM WY'!O14 -> 10 | M16: BSF Category 2 | N16: =E17 -> 44 | U16: BSF Category 1 | W16: ='Other Inputs'!G98 -> 10
D17: BSF Category 2 | E17: 44 | M17: BSF Category 3 | N17: =E18 -> 86 | U17: BSF Category 2 | W17: ='Wy 1.8'!C20 -> 44
D18: BSF Category 3 | E18: 86 | M18: BSF Category 4 | N18: =E19 -> 555 | U18: BSF Category 3 | W18: ='Wy 1.8'!C21 -> 86 | Z18: Total Rate | AA18: $ | AB18: $ | AC18: $
D19: BSF Category 4 | E19: 555 | U19: BSF Category 4 | W19: ='Wy 1.8'!C22 -> 555
Z20: Minimum Monthly Distribution Non-Gas Charge
BF23: =B38 -> Issued by R. W. Jibson, President | BI23: Advice No | BJ23: Section Revision No.
AB24: BSF Category 1 | AC24: ='Other Inputs'!G98 -> 10
AB25: BSF Category 2 | AC25: ='Wy 1.8'!C37 -> 44
AB26: BSF Category 3 | AC26: ='Wy 1.8'!C38 -> 86
AB27: BSF Category 4 | AC27: ='Wy 1.8'!C39 -> 555
K37: Issued by R. W. Jibson, President | M37: Section Revision No. | N37: Effective Date
B38: Issued by R. W. Jibson, President | D38: Section Revision No. | E38: Effective Date | Q38: =B38 -> Issued by R. W. Jibson, President | T38: Advice No | U38: Section Revision No. | W38: Effective Date
B42: New CET ONLY | K42: New DSM ONLY | Q42: New Pass Through Values
Z47: =B38 -> Issued by R. W. Jibson, President | AC47: Advice No
Z50: New Pass Through Values

Sheet Calculations
A1: GAS BALANCE FOR 12 MONTHS ENDING: _________________
D3: SALES VOLUMES IN DECATHERMS (12 Months of Forecast)
D4: Forecast | E4: Forecast | F4: Forecast | G4: Forecast | H4: Forecast | I4: Forecast | J4: Forecast | K4: Forecast | L4: Forecast | M4: Forecast | N4: Forecast | O4: Forecast | P4: 12-Month
A5: RATE CLASS | D5: ='Monthly Inputs'!G3 -> Sep12 | E5: ='Monthly Inputs'!H3 -> Oct12 | F5: ='Monthly Inputs'!I3 -> Nov12 | G5: ='Monthly Inputs'!J3 -> Dec12 | H5: ='Monthly Inputs'!K3 -> Jan13 | I5: ='Monthly Inputs'!L3 -> Feb13 | J5: ='Monthly Inputs'!M3 -> Mar13 | K5: ='Monthly Inputs'!N3 -> Apr13 | L5: ='Monthly Inputs'!O3 -> May13 | M5: ='Monthly Inputs'!P3 -> Jun13 | N5: ='Monthly Inputs'!Q3 -> Jul13 | O5: ='Monthly Inputs'!R3 -> Aug13 | P5: Total
A6: UTAH | D6: =MONTH(D5) -> 9 | E6: =MONTH(E5) -> 10 | F6: 11 | G6: 12 | H6: 1 | I6: 2 | J6: 3 | K6: 4 | L6: 5 | M6: 6 | N6: 7 | O6: 8
B7: GSR | D7: ='RevRun Fcst'!H21 -> 3100562 | E7: ='RevRun Fcst'!I21 -> 5909013 | F7: ='RevRun Fcst'!J21 -> 9935867 | G7: ='RevRun Fcst'!K21 -> 16094224 | H7: ='RevRun Fcst'!L21 -> 18593783 | I7: ='RevRun Fcst'!M21 -> 14430773 | J7: ='RevRun Fcst'!N21 -> 10636178 | K7: ='RevRun Fcst'!O21 -> 8200410 | L7: ='RevRun Fcst'!P21 -> 3925756 | M7: ='RevRun Fcst'!Q21 -> 2440056 | N7: ='RevRun Fcst'!R21 -> 2199795 | O7: ='RevRun Fcst'!S21 -> 2117784 | P7: =SUM(D7:O7) -> 97584201
B8: GSC | D8: ='RevRun Fcst'!H30 -> 0 | E8: ='RevRun Fcst'!I30 -> 0 | F8: ='RevRun Fcst'!J30 -> 0 | G8: ='RevRun Fcst'!K30 -> 0 | H8: ='RevRun Fcst'!L30 -> 0 | I8: ='RevRun Fcst'!M30 -> 0 | J8: ='RevRun Fcst'!N30 -> 0 | K8: ='RevRun Fcst'!O30 -> 0 | L8: ='RevRun Fcst'!P30 -> 0 | M8: ='RevRun Fcst'!Q30 -> 0 | N8: ='RevRun Fcst'!R30 -> 0 | O8: ='RevRun Fcst'!S30 -> 0 | P8: 0
B9: GSS | D9: ='RevRun Fcst'!H39 -> 0 | E9: ='RevRun Fcst'!I39 -> 0 | F9: ='RevRun Fcst'!J39 -> 0 | G9: ='RevRun Fcst'!K39 -> 0 | H9: ='RevRun Fcst'!L39 -> 0 | I9: ='RevRun Fcst'!M39 -> 0 | J9: ='RevRun Fcst'!N39 -> 0 | K9: ='RevRun Fcst'!O39 -> 0 | L9: ='RevRun Fcst'!P39 -> 0 | M9: ='RevRun Fcst'!Q39 -> 0 | N9: ='RevRun Fcst'!R39 -> 0 | O9: ='RevRun Fcst'!S39 -> 0 | P9: 0
B10: F-1 | D10: ='RevRun Fcst'!H48 -> 423885 | E10: ='RevRun Fcst'!I48 -> 478400 | F10: ='RevRun Fcst'!J48 -> 528384 | G10: ='RevRun Fcst'!K48 -> 628154 | H10: ='RevRun Fcst'!L48 -> 565532 | I10: ='RevRun Fcst'!M48 -> 471628 | J10: ='RevRun Fcst'!N48 -> 411917 | K10: ='RevRun Fcst'!O48 -> 405022 | L10: ='RevRun Fcst'!P48 -> 321045 | M10: ='RevRun Fcst'!Q48 -> 352891 | N10: ='RevRun Fcst'!R48 -> 371905 | O10: ='RevRun Fcst'!S48 -> 358333 | P10: 5317096
B11: F-4 | D11: ='RevRun Fcst'!H75 -> 0 | E11: ='RevRun Fcst'!I75 -> 0 | F11: ='RevRun Fcst'!J75 -> 0 | G11: ='RevRun Fcst'!K75 -> 0 | H11: ='RevRun Fcst'!L75 -> 0 | I11: ='RevRun Fcst'!M75 -> 0 | J11: ='RevRun Fcst'!N75 -> 0 | K11: ='RevRun Fcst'!O75 -> 0 | L11: ='RevRun Fcst'!P75 -> 0 | M11: ='RevRun Fcst'!Q75 -> 0 | N11: ='RevRun Fcst'!R75 -> 0 | O11: ='RevRun Fcst'!S75 -> 0 | P11: 0
B12: NGV | D12: ='RevRun Fcst'!H66 -> 46700 | E12: ='RevRun Fcst'!I66 -> 46700 | F12: ='RevRun Fcst'!J66 -> 46700 | G12: ='RevRun Fcst'!K66 -> 46700 | H12: ='RevRun Fcst'!L66 -> 46700 | I12: ='RevRun Fcst'!M66 -> 46700 | J12: ='RevRun Fcst'!N66 -> 46700 | K12: ='RevRun Fcst'!O66 -> 46700 | L12: ='RevRun Fcst'!P66 -> 46700 | M12: ='RevRun Fcst'!Q66 -> 46700 | N12: ='RevRun Fcst'!R66 -> 46700 | O12: ='RevRun Fcst'!S66 -> 46700 | P12: 560400
A13: Total Firm Sales | D13: =SUM(D7:D12) -> 3571147 | E13: 6434113 | F13: =SUM(F7:F12) -> 10510951 | G13: 16769078 | H13: 19206015 | I13: 14949101 | J13: 11094795 | K13: 8652132 | L13: 4293501 | M13: 2839647 | N13: 2618400 | O13: 2522817 | P13: 103461697
B15: I-4 | D15: ='RevRun Fcst'!H93 -> 228810 | E15: ='RevRun Fcst'!I93 -> 239307 | F15: ='RevRun Fcst'!J93 -> 256696 | G15: ='RevRun Fcst'!K93 -> 261971 | H15: ='RevRun Fcst'!L93 -> 237673 | I15: ='RevRun Fcst'!M93 -> 194527 | J15: ='RevRun Fcst'!N93 -> 198552 | K15: ='RevRun Fcst'!O93 -> 207116 | L15: ='RevRun Fcst'!P93 -> 190881 | M15: ='RevRun Fcst'!Q93 -> 209355 | N15: ='RevRun Fcst'!R93 -> 220539 | O15: ='RevRun Fcst'!S93 -> 238104 | P15: =SUM(D15:O15) -> 2683531
B16: IS-4 | D16: ='RevRun Fcst'!H111 -> 0 | E16: ='RevRun Fcst'!I111 -> 0 | F16: ='RevRun Fcst'!J111 -> 0 | G16: ='RevRun Fcst'!K111 -> 0 | H16: ='RevRun Fcst'!L111 -> 0 | I16: ='RevRun Fcst'!M111 -> 0 | J16: ='RevRun Fcst'!N111 -> 0 | K16: ='RevRun Fcst'!O111 -> 0 | L16: ='RevRun Fcst'!P111 -> 0 | M16: ='RevRun Fcst'!Q111 -> 0 | N16: ='RevRun Fcst'!R111 -> 0 | O16: ='RevRun Fcst'!S111 -> 0 | P16: =SUM(D16:O16) -> 0
A17: Total Interruptible Sales | D17: =SUM(D15:D16) -> 228810 | E17: 239307 | F17: 256696 | G17: 261971 | H17: 237673 | I17: 194527 | J17: 198552 | K17: 207116 | L17: 190881 | M17: 209355 | N17: 220539 | O17: 238104 | P17: 2683531
A20: Total Utah Sales | D20: =+D13+D17 -> 3799957 | E20: =+E13+E17 -> 6673420 | F20: =+F13+F17 -> 10767647 | G20: 17031049 | H20: 19443688 | I20: 15143628 | J20: 11293347 | K20: 8859248 | L20: 4484382 | M20: 3049002 | N20: 2838939 | O20: 2760921 | P20: 106145228
A22: Total Utah Transportation | D22: ='RevRun Fcst'!H203 -> 4446356 | E22: ='RevRun Fcst'!I203 -> 4514468 | F22: ='RevRun Fcst'!J203 -> 4659878 | G22: ='RevRun Fcst'!K203 -> 5850271 | H22: ='RevRun Fcst'!L203 -> 5858277 | I22: ='RevRun Fcst'!M203 -> 5134685 | J22: ='RevRun Fcst'!N203 -> 5401868 | K22: ='RevRun Fcst'!O203 -> 5056194 | L22: ='RevRun Fcst'!P203 -> 4428018 | M22: ='RevRun Fcst'!Q203 -> 4761973 | N22: ='RevRun Fcst'!R203 -> 4630832 | O22: ='RevRun Fcst'!S203 -> 5109771 | P22: =SUM(D22:O22) -> 59852591
A25: Total Utah Sales & Trans | D25: =+D20+D22 -> 8246313 | E25: 11187888 | F25: 15427525 | G25: 22881320 | H25: 25301965 | I25: 20278313 | J25: 16695215 | K25: 13915442 | L25: 8912400 | M25: 7810975 | N25: 7469771 | O25: 7870692 | P25: 165997819
A27: WYOMING
A28: GS-1 | D28: ='RevRun Fcst'!H243 -> 127144 | E28: ='RevRun Fcst'!I243 -> 208044 | F28: ='RevRun Fcst'!J243 -> 374671 | G28: ='RevRun Fcst'!K243 -> 565682 | H28: ='RevRun Fcst'!L243 -> 650083 | I28: ='RevRun Fcst'!M243 -> 532230 | J28: ='RevRun Fcst'!N243 -> 412173 | K28: ='RevRun Fcst'!O243 -> 319898 | L28: ='RevRun Fcst'!P243 -> 173665 | M28: ='RevRun Fcst'!Q243 -> 92062 | N28: ='RevRun Fcst'!R243 -> 50591 | O28: ='RevRun Fcst'!S243 -> 62530 | P28: =SUM(D28:O28) -> 3568773
A29: GS-W | D29: ='RevRun Fcst'!H270 -> 0 | E29: ='RevRun Fcst'!I270 -> 0 | F29: ='RevRun Fcst'!J270 -> 0 | G29: ='RevRun Fcst'!K270 -> 0 | H29: ='RevRun Fcst'!L270 -> 0 | I29: ='RevRun Fcst'!M270 -> 0 | J29: ='RevRun Fcst'!N270 -> 0 | K29: ='RevRun Fcst'!O270 -> 0 | L29: ='RevRun Fcst'!P270 -> 0 | M29: ='RevRun Fcst'!Q270 -> 0 | N29: ='RevRun Fcst'!R270 -> 0 | O29: ='RevRun Fcst'!S270 -> 0 | P29: =SUM(D29:O29) -> 0
A30: F-1 | D30: ='RevRun Fcst'!H252 -> 14099 | E30: ='RevRun Fcst'!I252 -> 17226 | F30: ='RevRun Fcst'!J252 -> 20372 | G30: ='RevRun Fcst'!K252 -> 27763 | H30: ='RevRun Fcst'!L252 -> 29262 | I30: ='RevRun Fcst'!M252 -> 24237 | J30: ='RevRun Fcst'!N252 -> 21475 | K30: ='RevRun Fcst'!O252 -> 21746 | L30: ='RevRun Fcst'!P252 -> 15880 | M30: ='RevRun Fcst'!Q252 -> 13371 | N30: ='RevRun Fcst'!R252 -> 11937 | O30: ='RevRun Fcst'!S252 -> 10488 | P30: =SUM(D30:O30) -> 227856
A31: NGV | D31: ='RevRun Fcst'!H261 -> 1605 | E31: ='RevRun Fcst'!I261 -> 1605 | F31: ='RevRun Fcst'!J261 -> 1605 | G31: ='RevRun Fcst'!K261 -> 1605 | H31: ='RevRun Fcst'!L261 -> 1605 | I31: ='RevRun Fcst'!M261 -> 1605 | J31: ='RevRun Fcst'!N261 -> 1605 | K31: ='RevRun Fcst'!O261 -> 1605 | L31: ='RevRun Fcst'!P261 -> 1605 | M31: ='RevRun Fcst'!Q261 -> 1605 | N31: ='RevRun Fcst'!R261 -> 1605 | O31: ='RevRun Fcst'!S261 -> 1605 | P31: =SUM(D31:O31) -> 19260
A32: Total Firm Sales | D32: =SUM(D28:D31) -> 142848 | E32: 226875 | F32: 396648 | G32: 595050 | H32: 680950 | I32: 558072 | J32: 435253 | K32: 343249 | L32: 191150 | M32: 107038 | N32: 64133 | O32: 74623 | P32: 3815889
A34: I-2 | D34: ='RevRun Fcst'!H279 -> 6732 | E34: ='RevRun Fcst'!I279 -> 8183 | F34: ='RevRun Fcst'!J279 -> 15071 | G34: ='RevRun Fcst'!K279 -> 19011 | H34: ='RevRun Fcst'!L279 -> 18260 | I34: ='RevRun Fcst'!M279 -> 15125 | J34: ='RevRun Fcst'!N279 -> 14869 | K34: ='RevRun Fcst'!O279 -> 14734 | L34: ='RevRun Fcst'!P279 -> 12776 | M34: ='RevRun Fcst'!Q279 -> 9676 | N34: ='RevRun Fcst'!R279 -> 6490 | O34: ='RevRun Fcst'!S279 -> 6266 | P34: =SUM(D34:O34) -> 147193
A35: I-4 | D35: ='RevRun Fcst'!H288 -> 0 | E35: ='RevRun Fcst'!I288 -> 0 | F35: ='RevRun Fcst'!J288 -> 0 | G35: ='RevRun Fcst'!K288 -> 0 | H35: ='RevRun Fcst'!L288 -> 0 | I35: ='RevRun Fcst'!M288 -> 0 | J35: ='RevRun Fcst'!N288 -> 0 | K35: ='RevRun Fcst'!O288 -> 0 | L35: ='RevRun Fcst'!P288 -> 0 | M35: ='RevRun Fcst'!Q288 -> 0 | N35: ='RevRun Fcst'!R288 -> 0 | O35: ='RevRun Fcst'!S288 -> 0 | P35: =SUM(D35:O35) -> 0
A36: Total Interruptible Sales | D36: =SUM(D34:D35) -> 6732 | E36: 8183 | F36: 15071 | G36: 19011 | H36: 18260 | I36: 15125 | J36: 14869 | K36: 14734 | L36: 12776 | M36: 9676 | N36: 6490 | O36: 6266 | P36: 147193
A39: Total Wyoming Sales | D39: =+D32+D36 -> 149580 | E39: 235058 | F39: 411719 | G39: 614061 | H39: 699210 | I39: 573197 | J39: 450122 | K39: 357983 | L39: 203926 | M39: 116714 | N39: 70623 | O39: 80889 | P39: 3963082
A41: Total Wyoming Transportation | D41: ='RevRun Fcst'!H325 -> 23015 | E41: ='RevRun Fcst'!I325 -> 33128 | F41: ='RevRun Fcst'!J325 -> 33333 | G41: ='RevRun Fcst'!K325 -> 37271 | H41: ='RevRun Fcst'!L325 -> 53172 | I41: ='RevRun Fcst'!M325 -> 58088 | J41: ='RevRun Fcst'!N325 -> 38820 | K41: ='RevRun Fcst'!O325 -> 45092 | L41: ='RevRun Fcst'!P325 -> 60691 | M41: ='RevRun Fcst'!Q325 -> 84069 | N41: ='RevRun Fcst'!R325 -> 22238 | O41: ='RevRun Fcst'!S325 -> 23544 | P41: =SUM(D41:O41) -> 512461
A44: Total Wyoming Sales & Trans | D44: =+D39+D41 -> 172595 | E44: 268186 | F44: 445052 | G44: 651332 | H44: 752382 | I44: 631285 | J44: 488942 | K44: 403075 | L44: 264617 | M44: 200783 | N44: 92861 | O44: 104433 | P44: 4475543
A47: Total System Sales and Trans | D47: =+D25+D44 -> 8418908 | E47: 11456074 | F47: 15872577 | G47: 23532652 | H47: 26054347 | I47: 20909598 | J47: 17184157 | K47: 14318517 | L47: 9177017 | M47: 8011758 | N47: 7562632 | O47: =+O25+O44 -> 7975125 | P47: 170473362
A49: Usage by Season
C50: Month | D50: =MONTH(D5) -> 9 | E50: 10 | F50: 11 | G50: 12 | H50: 1 | I50: 2 | J50: 3 | K50: 4 | L50: 5 | M50: 6 | N50: 7 | O50: 8
A51: GS | C51: Season (0=Winter, 1=Summer) | D51: =IF(D$50<4,0,IF(D$50>10,0,1)) -> 1 | E51: =IF(E$50<4,0,IF(E$50>10,0,1)) -> 1 | F51: 0 | G51: 0 | H51: 0 | I51: 0 | J51: 0 | K51: 1 | L51: 1 | M51: 1 | N51: 1 | O51: 1 | P51: Total
B52: Winter | D52: =IF(D51=0,D7+D8,0) -> 0 | E52: =IF(E51=0,E7+E8,0) -> 0 | F52: 9935867 | G52: 16094224 | H52: 18593783 | I52: 14430773 | J52: 10636178 | K52: 0 | L52: 0 | M52: 0 | N52: 0 | O52: 0 | P52: =SUM(D52:O52) -> 69690825 | Q52: =SUM(G52:I52) -> 49118780
B53: Summer | D53: =IF(D51=1,D7+D8,0) -> 3100562 | E53: 5909013 | F53: 0 | G53: 0 | H53: 0 | I53: 0 | J53: 0 | K53: 8200410 | L53: 3925756 | M53: 2440056 | N53: 2199795 | O53: 2117784 | P53: =SUM(D53:O53) -> 27893376 | Q53: =P52+P53-Q52 -> 48465421
A54: GSS
B55: Winter | D55: =IF(D51=0,D9,0) -> 0 | E55: 0 | F55: 0 | G55: 0 | H55: 0 | I55: 0 | J55: 0 | K55: 0 | L55: 0 | M55: 0 | N55: 0 | O55: 0 | P55: =SUM(D55:O55) -> 0
B56: Summer | D56: =IF(D51=1,D9,0) -> 0 | E56: 0 | F56: 0 | G56: 0 | H56: 0 | I56: 0 | J56: 0 | K56: 0 | L56: 0 | M56: 0 | N56: 0 | O56: 0 | P56: =SUM(D56:O56) -> 0
A57: F-S
B58: Winter | D58: =IF(D51=0,D10,0) -> 0 | E58: 0 | F58: 528384 | G58: 628154 | H58: 565532 | I58: 471628 | J58: 411917 | K58: 0 | L58: 0 | M58: 0 | N58: 0 | O58: 0 | P58: =SUM(D58:O58) -> 2605615 | Q58: =SUM(G58:I58) -> 1665314
B59: Summer | D59: =IF(D51=1,D10,0) -> 423885 | E59: 478400 | F59: 0 | G59: 0 | H59: 0 | I59: 0 | J59: 0 | K59: 405022 | L59: 321045 | M59: 352891 | N59: 371905 | O59: 358333 | P59: =SUM(D59:O59) -> 2711481 | Q59: =P58+P59-Q58 -> 3651782
B62: Rates: R050201.R1 | C62: WYOMING NON-CORE DNG REVENUES FROM DEMAND FORECAST AND CURRENTLY EFFECTIVE I-SALES GAS COST RATES
D63: Forecast | E63: Forecast | F63: Forecast | G63: Forecast | H63: Forecast | I63: Forecast | J63: Forecast | K63: Forecast | L63: Forecast | M63: Forecast | N63: Forecast | O63: Forecast | P63: 12-Month
D64: ='Monthly Inputs'!G3 -> Sep12 | E64: ='Monthly Inputs'!H3 -> Oct12 | F64: ='Monthly Inputs'!I3 -> Nov12 | G64: ='Monthly Inputs'!J3 -> Dec12 | H64: ='Monthly Inputs'!K3 -> Jan13 | I64: ='Monthly Inputs'!L3 -> Feb13 | J64: ='Monthly Inputs'!M3 -> Mar13 | K64: ='Monthly Inputs'!N3 -> Apr13 | L64: ='Monthly Inputs'!O3 -> May13 | M64: ='Monthly Inputs'!P3 -> Jun13 | N64: ='Monthly Inputs'!Q3 -> Jul13 | O64: ='Monthly Inputs'!R3 -> Aug13 | P64: Total
A65: I-2 & 1-4 (Non-Gas Revenue) (Yearly) | D65: ='RevRun Fcst'!H272+'RevRun Fcst'!H281 -> 2719 | E65: ='RevRun Fcst'!I272+'RevRun Fcst'!I281 -> 2909 | F65: ='RevRun Fcst'!J272+'RevRun Fcst'!J281 -> 3811 | G65: ='RevRun Fcst'!K272+'RevRun Fcst'!K281 -> 4328 | H65: ='RevRun Fcst'!L272+'RevRun Fcst'!L281 -> 4229 | I65: ='RevRun Fcst'!M272+'RevRun Fcst'!M281 -> 3818 | J65: ='RevRun Fcst'!N272+'RevRun Fcst'!N281 -> 3784 | K65: ='RevRun Fcst'!O272+'RevRun Fcst'!O281 -> 3768 | L65: ='RevRun Fcst'!P272+'RevRun Fcst'!P281 -> 3511 | M65: ='RevRun Fcst'!Q272+'RevRun Fcst'!Q281 -> 3104 | N65: ='RevRun Fcst'!R272+'RevRun Fcst'!R281 -> 2687 | O65: ='RevRun Fcst'!S272+'RevRun Fcst'!S281 -> 2659 | P65: =SUM(D65:O65) -> 41327
A66: IC (Total Revenue) (Yearly) | D66: =ROUND(D41*$P66/$P41,0) -> 4378 | E66: 6301 | F66: 6340 | G66: 7089 | H66: 10114 | I66: 11049 | J66: 7384 | K66: 8577 | L66: 11544 | M66: 15991 | N66: 4230 | O66: =P66-SUM(D66:N66) -> 4478 | P66: ='RevRun Fcst'!T299+'RevRun Fcst'!T313 -> 97475
A68: ="I-2 Gas Cost (Rate Effective "&'Other Inputs'!E65&")" -> I-2 Gas Cost (Rate Effective 11/1/2005) | D68: ='Other Inputs'!E68 -> 0 | E68: =+D68 -> 0 | F68: 0 | G68: 0 | H68: 0 | I68: 0 | J68: 0 | K68: 0 | L68: 0 | M68: 0 | N68: 0 | O68: 0
A69: ="I-4 Gas Cost (Rate Effective "&'Other Inputs'!F65&")" -> I-4 Gas Cost (Rate Effective 7/31/2009) | D69: ='Other Inputs'!F68 -> 3.78635 | E69: =+D69 -> 3.78635 | F69: 3.78635 | G69: 3.78635 | H69: 3.78635 | I69: 3.78635 | J69: 3.78635 | K69: 3.78635 | L69: 3.78635 | M69: 3.78635 | N69: 3.78635 | O69: 3.78635
D72: ALLOCATION BASES
D73: DEMAND | G73: OTHER COST
A74: Utah Peak Day Demand | D74: =+D76-D75 -> 1243265 | E74: =D74/D76 -> 0.9669998981 | G74: Utah Sales | H74: =+P20 -> 106145228 | I74: =H74/H76 -> 0.9640074214
A75: Wyoming Peak Day Demand | D75: ='Other Inputs'!E133 -> 42428 | E75: =1-E74 -> 0.03300010189 | G75: Wyoming Sales | H75: =+P39 -> 3963082 | I75: =1-I74 -> 0.03599257858
A76: Peak Day Demand | D76: ='Other Inputs'!E134 -> 1285693 | E76: =ROUND(D76/D$76,4) -> 1 | G76: Total Sales | H76: =+H74+H75 -> 110108310 | I76: =ROUND(H76/H$76,4) -> 1
D79: Financial Report Information (Latest 12 Months of Actual Expenses and 13 Months of Rate Base)
D80: Actual | E80: Actual | F80: Actual | G80: Actual | H80: Actual | I80: Actual | J80: Actual | K80: Actual | L80: Actual | M80: Actual | N80: Actual | O80: Actual
A81: Accounts | D81: =Expenses!J9 -> 2011-10-01 | E81: =Expenses!K9 -> 2011-11-01 | F81: =Expenses!L9 -> 2011-12-01 | G81: =Expenses!M9 -> 2012-01-01 | H81: =Expenses!N9 -> 2012-02-01 | I81: =Expenses!O9 -> 2012-03-01 | J81: =Expenses!P9 -> 2012-04-01 | K81: =Expenses!Q9 -> 2012-05-01 | L81: =Expenses!R9 -> 2012-06-01 | M81: =Expenses!G9 -> 2011-07-01 | N81: =Expenses!H9 -> 2011-08-01 | O81: =Expenses!I9 -> 2011-09-01 | P81: =+'Monthly Inputs'!S3 -> Total
A82: EXPENSES
B83: Gas Use In Dth (Acct 810 & 812) | D83: 0 | E83: 0 | F83: 0 | G83: 0 | H83: 0 | I83: 0 | J83: 0 | K83: 0 | L83: 0 | M83: 0 | N83: 0 | O83: 0 | P83: =SUM(D83:O83) -> 0
B85: Other Revenue (Yearly)
B86: Sales for Resale (account 483) | D86: =Expenses!J445 -> 301813.05 | E86: =Expenses!K445 -> 434944.23 | F86: =Expenses!L445 -> 352068.13 | G86: =Expenses!M445 -> 344918.21 | H86: =Expenses!N445 -> 370470.26 | I86: =Expenses!O445 -> 267808.97 | J86: =Expenses!P445 -> 232010.73 | K86: =Expenses!Q445 -> 257129.36 | L86: =Expenses!R445 -> 205540.95 | M86: =Expenses!G445 -> 217135.37 | N86: =Expenses!H445 -> 458923.78 | O86: =Expenses!I445 -> 367628 | P86: =SUM(D86:O86) -> 3810391.04
B87: Incidental Plant Prod Sales (Acct 490) | D87: =Expenses!J446 -> 246990.6 | E87: =Expenses!K446 -> 304.31 | F87: =Expenses!L446 -> 640622.73 | G87: =Expenses!M446 -> 367955.09 | H87: =Expenses!N446 -> 354811.86 | I87: =Expenses!O446 -> 705728.65 | J87: =Expenses!P446 -> 667706.6 | K87: =Expenses!Q446 -> 738698.17 | L87: =Expenses!R446 -> 581730.47 | M87: =Expenses!G446 -> 806677.91 | N87: =Expenses!H446 -> 423593.82 | O87: =Expenses!I446 -> 6.82 | P87: =SUM(D87:O87) -> 5534827.03
B88: Gas Processed by Others (account 491) | D88: =Expenses!J461 -> 0 | E88: =Expenses!K461 -> 0 | F88: =Expenses!L461 -> 0 | G88: =Expenses!M461 -> 0 | H88: =Expenses!N461 -> 0 | I88: =Expenses!O461 -> 0 | J88: =Expenses!P461 -> 0 | K88: =Expenses!Q461 -> 0 | L88: =Expenses!R461 -> 0 | M88: =Expenses!G461 -> 0 | N88: =Expenses!H461 -> 0 | O88: =Expenses!I461 -> 0 | P88: =SUM(D88:O88) -> 0
B89: Gasoline - Oil Sales (account 492) | D89: =Expenses!J447 -> 79793.77 | E89: =Expenses!K447 -> 108387.23 | F89: =Expenses!L447 -> 125917.63 | G89: =Expenses!M447 -> 132166.94 | H89: =Expenses!N447 -> 160808.31 | I89: =Expenses!O447 -> 112921.76 | J89: =Expenses!P447 -> 131638.72 | K89: =Expenses!Q447 -> 156857.26 | L89: =Expenses!R447 -> 192189.79 | M89: =Expenses!G447 -> 130107.58 | N89: =Expenses!H447 -> 143347.33 | O89: =Expenses!I447 -> 162310.65 | P89: =SUM(D89:O89) -> 1636446.97
B90: Gasoline - Oil Cost (account 758.001) | D90: =-Expenses!J450 -> -11708.11 | E90: =-Expenses!K450 -> -14932.37 | F90: =-Expenses!L450 -> -18559.03 | G90: =-Expenses!M450 -> -19651.05 | H90: =-Expenses!N450 -> -23884.31 | I90: =-Expenses!O450 -> -25462.12 | J90: =-Expenses!P450 -> -20156.44 | K90: =-Expenses!Q450 -> -23335.22 | L90: =-Expenses!R450 -> -29720.81 | M90: =-Expenses!G450 -> -18701.13 | N90: =-Expenses!H450 -> -20411.74 | O90: =-Expenses!I450 -> -24752.36 | P90: =SUM(D90:O90) -> -251274.69
B93: Overriding Royalty (account 495-1) | D93: =Expenses!J448 -> 1551150.34 | E93: =Expenses!K448 -> 1299816.58 | F93: =Expenses!L448 -> 1900020.85 | G93: =Expenses!M448 -> 1657000.97 | H93: =Expenses!N448 -> 1646756.12 | I93: =Expenses!O448 -> 1426009.44 | J93: =Expenses!P448 -> 1104892.94 | K93: =Expenses!Q448 -> 1167135.57 | L93: =Expenses!R448 -> 928089.73 | M93: =Expenses!G448 -> 1605832.48 | N93: =Expenses!H448 -> 1463455.06 | O93: =Expenses!I448 -> 1479310.88 | P93: =SUM(D93:O93) -> 17229470.96
B94: Wexpro Revenue Sharing (account 495-2) | D94: =Expenses!J449 -> 233538 | E94: =Expenses!K449 -> 442416 | F94: =Expenses!L449 -> 436268 | G94: =Expenses!M449 -> 329190 | H94: =Expenses!N449 -> 226213 | I94: =Expenses!O449 -> 213854 | J94: =Expenses!P449 -> 263861 | K94: =Expenses!Q449 -> 404379 | L94: =Expenses!R449 -> 367577 | M94: =Expenses!G449 -> 60431 | N94: =Expenses!H449 -> 171875 | O94: =Expenses!I449 -> 119286 | P94: =SUM(D94:O94) -> 3268888
P95: Page 2 of 6
C96: Actual | D96: Actual | E96: Actual | F96: Actual | G96: Actual | H96: Actual | I96: Actual | J96: Actual | K96: Actual | L96: Actual | M96: Actual | N96: Actual | O96: Actual | P96: 13-Month
A97: Accounts | C97: ='Rate Base'!H8 -> 2011-06-21 | D97: ='Rate Base'!I8 -> 2011-07-21 | E97: ='Rate Base'!J8 -> 2011-08-20 | F97: ='Rate Base'!K8 -> 2011-09-19 | G97: ='Rate Base'!L8 -> 2011-10-19 | H97: ='Rate Base'!M8 -> 2011-11-18 | I97: ='Rate Base'!N8 -> 2011-12-18 | J97: ='Rate Base'!O8 -> 2012-01-17 | K97: ='Rate Base'!P8 -> 2012-02-16 | L97: ='Rate Base'!Q8 -> 2012-03-17 | M97: ='Rate Base'!R8 -> 2012-04-16 | N97: ='Rate Base'!S8 -> 2012-05-16 | O97: ='Rate Base'!T8 -> 2012-06-15 | P97: Average
A98: RATE BASE - PRODUCTION
B99: Acct 164 (Working Gas) - Production | C99: ='Rate Base'!H209 -> 18701733.87 | D99: ='Rate Base'!I209 -> 28586567.05 | E99: ='Rate Base'!J209 -> 39424262.69 | F99: ='Rate Base'!K209 -> 49586017.16 | G99: ='Rate Base'!L209 -> 56877322.03 | H99: ='Rate Base'!M209 -> 59095984.09 | I99: ='Rate Base'!N209 -> 40267239.18 | J99: ='Rate Base'!O209 -> 29171248.22 | K99: ='Rate Base'!P209 -> 19379640.34 | L99: ='Rate Base'!Q209 -> 12903260.28 | M99: ='Rate Base'!R209 -> 11695451.32 | N99: ='Rate Base'!S209 -> 17454303.39 | O99: ='Rate Base'!T209 -> 29378840.71 | P99: =(((+C99+O99)/2)+SUM(D99:N99))/12 -> 32373465.25
B100: Acct 101 - Production | C100: ='Rate Base'!H158 -> 83069634.05 | D100: ='Rate Base'!I158 -> 83069634.05 | E100: ='Rate Base'!J158 -> 83069408.33 | F100: ='Rate Base'!K158 -> 83069408.33 | G100: ='Rate Base'!L158 -> 83069408.33 | H100: ='Rate Base'!M158 -> 83069408.33 | I100: ='Rate Base'!N158 -> 83069408.33 | J100: ='Rate Base'!O158 -> 83069408.33 | K100: ='Rate Base'!P158 -> 83069408.33 | L100: ='Rate Base'!Q158 -> 83069408.33 | M100: ='Rate Base'!R158 -> 83069408.33 | N100: ='Rate Base'!S158 -> 82934846.12 | O100: ='Rate Base'!T158 -> 82934723.76 | P100: 83052611.17
B101: Acct 108 - Production | C101: ='Rate Base'!H176 -> -68058306.34 | D101: ='Rate Base'!I176 -> -68124947.77 | E101: ='Rate Base'!J176 -> -68189861.96 | F101: ='Rate Base'!K176 -> -68254868.29 | G101: ='Rate Base'!L176 -> -68322938.21 | H101: ='Rate Base'!M176 -> -68427537.38 | I101: ='Rate Base'!N176 -> -68485402.93 | J101: ='Rate Base'!O176 -> -68559878.25 | K101: ='Rate Base'!P176 -> -68586023.06 | L101: ='Rate Base'!Q176 -> -68667111.5 | M101: ='Rate Base'!R176 -> -68719234.18 | N101: ='Rate Base'!S176 -> -68619477.32 | O101: ='Rate Base'!T176 -> -68781185.05 | P101: -68448085.55
B102: Acct 111 - Production | C102: ='Rate Base'!H183 -> -6038527.21 | D102: ='Rate Base'!I183 -> -6040045.92 | E102: ='Rate Base'!J183 -> -6041524.98 | F102: ='Rate Base'!K183 -> -6043000.49 | G102: ='Rate Base'!L183 -> -6044556.96 | H102: ='Rate Base'!M183 -> -6046347.92 | I102: ='Rate Base'!N183 -> -6047634.72 | J102: ='Rate Base'!O183 -> -6049360.46 | K102: ='Rate Base'!P183 -> -6050539.83 | L102: ='Rate Base'!Q183 -> -6052360.24 | M102: ='Rate Base'!R183 -> -6053476.35 | N102: ='Rate Base'!S183 -> -6054151.72 | O102: ='Rate Base'!T183 -> -6060379.02 | P102: -6047704.392
B103: Acct 2550 - Production | C103: ='Rate Base'!H244 -> -94070.78 | D103: ='Rate Base'!I244 -> -90687.4 | E103: ='Rate Base'!J244 -> -87304.02 | F103: ='Rate Base'!K244 -> -83920.64 | G103: ='Rate Base'!L244 -> -80537.26 | H103: ='Rate Base'!M244 -> -77153.88 | I103: ='Rate Base'!N244 -> -73770.47 | J103: ='Rate Base'!O244 -> -70750.69 | K103: ='Rate Base'!P244 -> -67730.91 | L103: ='Rate Base'!Q244 -> -64711.13 | M103: ='Rate Base'!R244 -> -61691.35 | N103: ='Rate Base'!S244 -> -58671.57 | O103: ='Rate Base'!T244 -> -55651.79 | P103: -74315.88375
B104: Acct 2820 - Production | C104: ='Rate Base'!H251 -> -2426755.35 | D104: ='Rate Base'!I251 -> -2337665.93 | E104: ='Rate Base'!J251 -> -2202722.33 | F104: ='Rate Base'!K251 -> -2108267.49 | G104: ='Rate Base'!L251 -> -2201917.35 | H104: ='Rate Base'!M251 -> -2419054.37 | I104: ='Rate Base'!N251 -> -2377089.42 | J104: ='Rate Base'!O251 -> -2326727.37 | K104: ='Rate Base'!P251 -> -2276294.76 | L104: ='Rate Base'!Q251 -> -2292686.99 | M104: ='Rate Base'!R251 -> -2264262.19 | N104: ='Rate Base'!S251 -> -2234935.48 | O104: ='Rate Base'!T251 -> -2216048.7 | P104: -2280252.142
B105: Acct 2821 - Production | C105: ='Rate Base'!H258 -> -1188424.08 | D105: ='Rate Base'!I258 -> -1188424.08 | E105: ='Rate Base'!J258 -> -1188424.08 | F105: ='Rate Base'!K258 -> -1188424.08 | G105: ='Rate Base'!L258 -> -1188424.08 | H105: ='Rate Base'!M258 -> -1161446.33 | I105: ='Rate Base'!N258 -> -1196642.93 | J105: ='Rate Base'!O258 -> -1196642.93 | K105: ='Rate Base'!P258 -> -1196642.93 | L105: ='Rate Base'!Q258 -> -1196642.93 | M105: ='Rate Base'!R258 -> -1196642.93 | N105: ='Rate Base'!S258 -> -1196642.93 | O105: ='Rate Base'!T258 -> -1196642.93 | P105: -1190627.811
D107: Production | H107: Acct 101 | I107: Acct 108 | J107: Acct 111 | K107: Acct 2550 | L107: Acct 2820 | M107: Acct 2821 | N107: Total
B108: Depreciation - Acct 403 | D108: =Expenses!S385 -> 740244.76 | F108: Thirteen month average | H108: =P100 -> 83052611.17 | I108: =P101 -> -68448085.55 | J108: =P102 -> -6047704.392 | K108: =P103 -> -74315.88375 | L108: =P104 -> -2280252.142 | M108: =P105 -> -1190627.811 | N108: =SUM(H108:M108) -> 5011625.396
B109: Amortization & Depletion - Acct 404 | D109: =Expenses!S392 -> 21851.81 | F109: =CONCATENATE("Wexpro Red. @ ",-'Other Inputs'!E256*100," %") -> Wexpro Red. @ 6.3 % | H109: =H108*'Other Inputs'!$E$256 -> -5232314.504 | I109: =I108*'Other Inputs'!$E$256 -> 4312229.389 | J109: =J108*'Other Inputs'!$E$256 -> 381005.3767 | N109: =SUM(H109:M109) -> -539079.7377
B110: Utah Pre-Tax Return on Production Assets | D110: =+N111 -> 527313.1331 | M110: =SUM(N108:N109) -> 4472545.658
B111: Utah Production Cost | D111: =SUM(D108:D110) -> 1289409.703 | M111: ="Utah Pre-Tax Rate of Return on Production Assets ("&'Other Inputs'!E259&")" -> Utah Pre-Tax Rate of Return on Production Assets (0.1179) | N111: =M110*'Other Inputs'!E259 -> 527313.1331
M112: ="Wyoming Pre-Tax Rate of Return on Production Assets ("&'Other Inputs'!E258&")" -> Wyoming Pre-Tax Rate of Return on Production Assets (0.1197) | N112: =M110*'Other Inputs'!E258 -> 535363.7153
A114: TACTICAL PLAN INFORMATION (IRP) | P114: 12-Month
D115: ='Monthly Inputs'!G3 -> Sep12 | E115: ='Monthly Inputs'!H3 -> Oct12 | F115: ='Monthly Inputs'!I3 -> Nov12 | G115: ='Monthly Inputs'!J3 -> Dec12 | H115: ='Monthly Inputs'!K3 -> Jan13 | I115: ='Monthly Inputs'!L3 -> Feb13 | J115: ='Monthly Inputs'!M3 -> Mar13 | K115: ='Monthly Inputs'!N3 -> Apr13 | L115: ='Monthly Inputs'!O3 -> May13 | M115: ='Monthly Inputs'!P3 -> Jun13 | N115: ='Monthly Inputs'!Q3 -> Jul13 | O115: ='Monthly Inputs'!R3 -> Aug13 | P115: Total
A116: COMPANY PRODUCTION
B117: Prior Company
B118: D24 Wells
B119: Brady & Powel
B120: Total Company Production | D120: ='Monthly Inputs'!G16 -> 5418513 | E120: ='Monthly Inputs'!H16 -> 5759227 | F120: ='Monthly Inputs'!I16 -> 5788087 | G120: ='Monthly Inputs'!J16 -> 5868550 | H120: ='Monthly Inputs'!K16 -> 5989949 | I120: ='Monthly Inputs'!L16 -> 5440172 | J120: ='Monthly Inputs'!M16 -> 5881788 | K120: ='Monthly Inputs'!N16 -> 5714581 | L120: ='Monthly Inputs'!O16 -> 5900572 | M120: ='Monthly Inputs'!P16 -> 5593077 | N120: ='Monthly Inputs'!Q16 -> 5629607 | O120: ='Monthly Inputs'!R16 -> 5382152 | P120: =SUM(D120:O120) -> 68366275
A122: STORAGE INJECTIONS
B123: Chalk Creek | D123: ='Monthly Inputs'!G35 -> 0 | E123: ='Monthly Inputs'!H35 -> 151738 | F123: ='Monthly Inputs'!I35 -> 165129 | G123: ='Monthly Inputs'!J35 -> 0 | H123: ='Monthly Inputs'!K35 -> 0 | I123: ='Monthly Inputs'!L35 -> 0 | J123: ='Monthly Inputs'!M35 -> 0 | K123: ='Monthly Inputs'!N35 -> 0 | L123: ='Monthly Inputs'!O35 -> 0 | M123: ='Monthly Inputs'!P35 -> 0 | N123: ='Monthly Inputs'!Q35 -> 0 | O123: ='Monthly Inputs'!R35 -> 0 | P123: =SUM(D123:O123) -> 316867
B124: Coalville | D124: ='Monthly Inputs'!G37 -> 132991 | E124: ='Monthly Inputs'!H37 -> 254447 | F124: ='Monthly Inputs'!I37 -> 10368 | G124: ='Monthly Inputs'!J37 -> 0 | H124: ='Monthly Inputs'!K37 -> 0 | I124: ='Monthly Inputs'!L37 -> 0 | J124: ='Monthly Inputs'!M37 -> 0 | K124: ='Monthly Inputs'!N37 -> 0 | L124: ='Monthly Inputs'!O37 -> 0 | M124: ='Monthly Inputs'!P37 -> 0 | N124: ='Monthly Inputs'!Q37 -> 0 | O124: ='Monthly Inputs'!R37 -> 0 | P124: =SUM(D124:O124) -> 397806
B125: Leroy | D125: ='Monthly Inputs'!G38 -> 0 | E125: ='Monthly Inputs'!H38 -> 458807 | F125: ='Monthly Inputs'!I38 -> 0 | G125: ='Monthly Inputs'!J38 -> 0 | H125: ='Monthly Inputs'!K38 -> 0 | I125: ='Monthly Inputs'!L38 -> 0 | J125: ='Monthly Inputs'!M38 -> 0 | K125: ='Monthly Inputs'!N38 -> 0 | L125: ='Monthly Inputs'!O38 -> 0 | M125: ='Monthly Inputs'!P38 -> 0 | N125: ='Monthly Inputs'!Q38 -> 0 | O125: ='Monthly Inputs'!R38 -> 0 | P125: =SUM(D125:O125) -> 458807
B126: Ryckman | D126: ='Monthly Inputs'!G39 -> 0 | E126: ='Monthly Inputs'!H39 -> 0 | F126: ='Monthly Inputs'!I39 -> 0 | G126: ='Monthly Inputs'!J39 -> 0 | H126: ='Monthly Inputs'!K39 -> 0 | I126: ='Monthly Inputs'!L39 -> 0 | J126: ='Monthly Inputs'!M39 -> 0 | K126: ='Monthly Inputs'!N39 -> 358460 | L126: ='Monthly Inputs'!O39 -> 370410 | M126: ='Monthly Inputs'!P39 -> 358460 | N126: ='Monthly Inputs'!Q39 -> 370410 | O126: ='Monthly Inputs'!R39 -> 358460 | P126: =SUM(D126:O126) -> 1816200
B127: Total Peaking Storage | D127: =SUM(D123:D126) -> 132991 | E127: 864992 | F127: 175497 | G127: 0 | H127: 0 | I127: 0 | J127: 0 | K127: 358460 | L127: 370410 | M127: 358460 | N127: 370410 | O127: 358460 | P127: 2989680
B128: Clay Basin | D128: ='Monthly Inputs'!G36 -> 1899490 | E128: ='Monthly Inputs'!H36 -> 1798100 | F128: ='Monthly Inputs'!I36 -> 1167200 | G128: ='Monthly Inputs'!J36 -> 0 | H128: ='Monthly Inputs'!K36 -> 0 | I128: ='Monthly Inputs'!L36 -> 0 | J128: ='Monthly Inputs'!M36 -> 0 | K128: ='Monthly Inputs'!N36 -> 0 | L128: ='Monthly Inputs'!O36 -> 716040 | M128: ='Monthly Inputs'!P36 -> 1878900 | N128: ='Monthly Inputs'!Q36 -> 2150830 | O128: ='Monthly Inputs'!R36 -> 1989720 | P128: =SUM(D128:O128) -> 11600280
B129: Total Storage Injections | D129: =SUM(D127:D128) -> 2032481 | E129: =SUM(E127:E128) -> 2663092 | F129: 1342697 | G129: 0 | H129: 0 | I129: 0 | J129: 0 | K129: 358460 | L129: 1086450 | M129: 2237360 | N129: 2521240 | O129: 2348180 | P129: 14589960
A130: STORAGE WITHDRAWLS
B131: Chalk Creek | D131: ='Monthly Inputs'!G43 -> 0 | E131: ='Monthly Inputs'!H43 -> 0 | F131: ='Monthly Inputs'!I43 -> 0 | G131: ='Monthly Inputs'!J43 -> 0 | H131: ='Monthly Inputs'!K43 -> 0 | I131: ='Monthly Inputs'!L43 -> 325690 | J131: ='Monthly Inputs'!M43 -> 0 | K131: ='Monthly Inputs'!N43 -> 0 | L131: ='Monthly Inputs'!O43 -> 0 | M131: ='Monthly Inputs'!P43 -> 0 | N131: ='Monthly Inputs'!Q43 -> 0 | O131: ='Monthly Inputs'!R43 -> 0 | P131: =SUM(D131:O131) -> 325690
B132: Coalville | D132: ='Monthly Inputs'!G45 -> 0 | E132: ='Monthly Inputs'!H45 -> 0 | F132: ='Monthly Inputs'!I45 -> 0 | G132: ='Monthly Inputs'!J45 -> 0 | H132: ='Monthly Inputs'!K45 -> 0 | I132: ='Monthly Inputs'!L45 -> 364893 | J132: ='Monthly Inputs'!M45 -> 0 | K132: ='Monthly Inputs'!N45 -> 0 | L132: ='Monthly Inputs'!O45 -> 0 | M132: ='Monthly Inputs'!P45 -> 0 | N132: ='Monthly Inputs'!Q45 -> 0 | O132: ='Monthly Inputs'!R45 -> 0 | P132: =SUM(D132:O132) -> 364893
B133: Leroy | D133: ='Monthly Inputs'!G46 -> 0 | E133: ='Monthly Inputs'!H46 -> 0 | F133: ='Monthly Inputs'!I46 -> 0 | G133: ='Monthly Inputs'!J46 -> 0 | H133: ='Monthly Inputs'!K46 -> 0 | I133: ='Monthly Inputs'!L46 -> 0 | J133: ='Monthly Inputs'!M46 -> 88677 | K133: ='Monthly Inputs'!N46 -> 363811 | L133: ='Monthly Inputs'!O46 -> 0 | M133: ='Monthly Inputs'!P46 -> 0 | N133: ='Monthly Inputs'!Q46 -> 0 | O133: ='Monthly Inputs'!R46 -> 0 | P133: =SUM(D133:O133) -> 452488
B134: Ryckman | D134: ='Monthly Inputs'!G47 -> 0 | E134: ='Monthly Inputs'!H47 -> 0 | F134: ='Monthly Inputs'!I47 -> 0 | G134: ='Monthly Inputs'!J47 -> 0 | H134: ='Monthly Inputs'!K47 -> 0 | I134: ='Monthly Inputs'!L47 -> 0 | J134: ='Monthly Inputs'!M47 -> 0 | K134: ='Monthly Inputs'!N47 -> 0 | L134: ='Monthly Inputs'!O47 -> 0 | M134: ='Monthly Inputs'!P47 -> 0 | N134: ='Monthly Inputs'!Q47 -> 0 | O134: ='Monthly Inputs'!R47 -> 0 | P134: =SUM(D134:O134) -> 0
B135: Total Peaking Storage | D135: =SUM(D131:D134) -> 0 | E135: =SUM(E131:E134) -> 0 | F135: 0 | G135: 0 | H135: 0 | I135: 690583 | J135: 88677 | K135: 363811 | L135: 0 | M135: 0 | N135: 0 | O135: 0 | P135: 1143071
B136: Clay Basin | D136: ='Monthly Inputs'!G44 -> 0 | E136: ='Monthly Inputs'!H44 -> 0 | F136: ='Monthly Inputs'!I44 -> 0 | G136: ='Monthly Inputs'!J44 -> 604640 | H136: ='Monthly Inputs'!K44 -> 5355500 | I136: ='Monthly Inputs'!L44 -> 2760160 | J136: ='Monthly Inputs'!M44 -> 625180 | K136: ='Monthly Inputs'!N44 -> 1002320 | L136: ='Monthly Inputs'!O44 -> 174924 | M136: ='Monthly Inputs'!P44 -> 78760 | N136: ='Monthly Inputs'!Q44 -> 61400 | O136: ='Monthly Inputs'!R44 -> 58150 | P136: =SUM(D136:O136) -> 10721034
B137: Total Storage Withdrawls | D137: =SUM(D135:D136) -> 0 | E137: 0 | F137: 0 | G137: 604640 | H137: 5355500 | I137: 3450743 | J137: 713857 | K137: 1366131 | L137: 174924 | M137: 78760 | N137: 61400 | O137: 58150 | P137: 11864105
A140: Gas Supply and Demand | D140: =D4 -> Forecast | E140: Forecast | F140: Forecast | G140: Forecast | H140: Forecast | I140: Forecast | J140: Forecast | K140: Forecast | L140: Forecast | M140: Forecast | N140: Forecast | O140: Forecast | P140: 12-Month
A141: Demand | D141: =D5 -> Sep12 | E141: Oct12 | F141: Nov12 | G141: Dec12 | H141: Jan13 | I141: Feb13 | J141: Mar13 | K141: Apr13 | L141: May13 | M141: Jun13 | N141: Jul13 | O141: Aug13 | P141: Total
A143: Utah Sales | D143: =+D20 -> 3799957 | E143: 6673420 | F143: =+F20 -> 10767647 | G143: 17031049 | H143: 19443688 | I143: 15143628 | J143: 11293347 | K143: 8859248 | L143: 4484382 | M143: 3049002 | N143: 2838939 | O143: 2760921 | P143: =SUM(D143:O143) -> 106145228
A144: Wyoming Sales | D144: =+D39 -> 149580 | E144: 235058 | F144: 411719 | G144: 614061 | H144: 699210 | I144: 573197 | J144: 450122 | K144: 357983 | L144: 203926 | M144: 116714 | N144: 70623 | O144: 80889 | P144: =SUM(D144:O144) -> 3963082
A145: Total Sales | D145: =+D143+D144 -> 3949537 | E145: 6908478 | F145: 11179366 | G145: 17645110 | H145: 20142898 | I145: 15716825 | J145: 11743469 | K145: 9217231 | L145: 4688308 | M145: 3165716 | N145: 2909562 | O145: 2841810 | P145: 110108310
A147: Distribution Use (Offices) | C147: Check formulas for correct month | D147: =ROUND(O83,0) -> 0 | E147: =ROUND(D83,0) -> 0 | F147: =ROUND(E83,0) -> 0 | G147: 0 | H147: 0 | I147: 0 | J147: 0 | K147: 0 | L147: 0 | M147: 0 | N147: 0 | O147: 0 | P147: =SUM(D147:O147) -> 0 | Q147: =(O145/O150)-1 -> -0.004899847784
A148: Distribution Lost and Unaccounted for | D148: =+D150-D145-D147 -> 19448 | E148: =+E150-E145-E147 -> 34018 | F148: 55049 | G148: 86887 | H148: 99186 | I148: 77392 | J148: 57826 | K148: 45387 | L148: 23086 | M148: 15588 | N148: 14327 | O148: =+O150-O145-O147 -> 13993 | P148: =SUM(D148:O148) -> 542187
A150: Total City Gate | D150: =ROUND((D145+D147)/(1-'Other Inputs'!$E$261),0) -> 3968985 | E150: =ROUND((E145+E147)/(1-'Other Inputs'!$E$261),0) -> 6942496 | F150: =ROUND((F145+F147)/(1-'Other Inputs'!$E$261),0) -> 11234415 | G150: =ROUND((G145+G147)/(1-'Other Inputs'!$E$261),0) -> 17731997 | H150: =ROUND((H145+H147)/(1-'Other Inputs'!$E$261),0) -> 20242084 | I150: =ROUND((I145+I147)/(1-'Other Inputs'!$E$261),0) -> 15794217 | J150: =ROUND((J145+J147)/(1-'Other Inputs'!$E$261),0) -> 11801295 | K150: =ROUND((K145+K147)/(1-'Other Inputs'!$E$261),0) -> 9262618 | L150: =ROUND((L145+L147)/(1-'Other Inputs'!$E$261),0) -> 4711394 | M150: =ROUND((M145+M147)/(1-'Other Inputs'!$E$261),0) -> 3181304 | N150: =ROUND((N145+N147)/(1-'Other Inputs'!$E$261),0) -> 2923889 | O150: =ROUND((O145+O147)/(1-'Other Inputs'!$E$261),0) -> 2855803 | P150: =SUM(D150:O150) -> 110650497
A152: Peaking Injection | D152: =+D127 -> 132991 | E152: 864992 | F152: 175497 | G152: 0 | H152: 0 | I152: 0 | J152: 0 | K152: 358460 | L152: 370410 | M152: =+M127 -> 358460 | N152: 370410 | O152: 358460 | P152: =SUM(D152:O152) -> 2989680
A153: Clay Basin Injection | D153: =+D128 -> 1899490 | E153: 1798100 | F153: 1167200 | G153: 0 | H153: 0 | I153: 0 | J153: 0 | K153: 0 | L153: 716040 | M153: 1878900 | N153: 2150830 | O153: 1989720 | P153: =SUM(D153:O153) -> 11600280
A154: Storage Lost & Unaccounted For | D154: =-'Monthly Inputs'!G62 -> 29765.3287 | E154: =-'Monthly Inputs'!H62 -> 47896.0152 | F154: =-'Monthly Inputs'!I62 -> 20538.4172 | G154: =-'Monthly Inputs'!J62 -> 0 | H154: =-'Monthly Inputs'!K62 -> 0 | I154: =-'Monthly Inputs'!L62 -> 0 | J154: =-'Monthly Inputs'!M62 -> 0 | K154: =-'Monthly Inputs'!N62 -> 8961.5 | L154: =-'Monthly Inputs'!O62 -> 19879.1232 | M154: =-'Monthly Inputs'!P62 -> 36825.587 | N154: =-'Monthly Inputs'!Q62 -> 41157.0589 | O154: =-'Monthly Inputs'!R62 -> 38469.0476 | P154: =SUM(D154:O154) -> 243492.0778
A155: Total Demand | D155: =SUM(D150:D154) -> 6031231.329 | E155: =SUM(E150:E154) -> 9653484.015 | F155: 12597650.42 | G155: 17731997 | H155: =SUM(H150:H154) -> 20242084 | I155: 15794217 | J155: 11801295 | K155: 9630039.5 | L155: 5817723.123 | M155: 5455489.587 | N155: 5486286.059 | O155: =SUM(O150:O154) -> 5242452.048 | P155: =SUM(D155:O155) -> 125483949.1
A157: Supply
A158: Company Production | D158: =+D120 -> 5418513 | E158: 5759227 | F158: 5788087 | G158: 5868550 | H158: 5989949 | I158: 5440172 | J158: 5881788 | K158: 5714581 | L158: 5900572 | M158: 5593077 | N158: 5629607 | O158: 5382152 | P158: =SUM(D158:O158) -> 68366275
A159: Co Prod Lost & Unaccounted For | D159: =ROUND(D158*(-'Other Inputs'!$E$263-'Other Inputs'!$E$264),0) -> -233538 | E159: =ROUND(E158*(-'Other Inputs'!$E$263-'Other Inputs'!$E$264),0) -> -248223 | F159: =ROUND(F158*(-'Other Inputs'!$E$263-'Other Inputs'!$E$264),0) -> -249467 | G159: =ROUND(G158*(-'Other Inputs'!$E$263-'Other Inputs'!$E$264),0) -> -252935 | H159: =ROUND(H158*(-'Other Inputs'!$E$263-'Other Inputs'!$E$264),0) -> -258167 | I159: =ROUND(I158*(-'Other Inputs'!$E$263-'Other Inputs'!$E$264),0) -> -234471 | J159: =ROUND(J158*(-'Other Inputs'!$E$263-'Other Inputs'!$E$264),0) -> -253505 | K159: =ROUND(K158*(-'Other Inputs'!$E$263-'Other Inputs'!$E$264),0) -> -246298 | L159: =ROUND(L158*(-'Other Inputs'!$E$263-'Other Inputs'!$E$264),0) -> -254315 | M159: =ROUND(M158*(-'Other Inputs'!$E$263-'Other Inputs'!$E$264),0) -> -241062 | N159: =ROUND(N158*(-'Other Inputs'!$E$263-'Other Inputs'!$E$264),0) -> -242636 | O159: =ROUND(O158*(-'Other Inputs'!$E$263-'Other Inputs'!$E$264),0) -> -231971 | P159: =SUM(D159:O159) -> -2946588
A160: Company Production @ City Gate | D160: =SUM(D158:D159) -> 5184975 | E160: =SUM(E158:E159) -> 5511004 | F160: 5538620 | G160: 5615615 | H160: 5731782 | I160: 5205701 | J160: 5628283 | K160: 5468283 | L160: 5646257 | M160: 5352015 | N160: 5386971 | O160: 5150181 | P160: =SUM(D160:O160) -> 65419687
A162: Peaking Withdrawal | D162: =+D135 -> 0 | E162: 0 | F162: 0 | G162: 0 | H162: 0 | I162: 690583 | J162: 88677 | K162: 363811 | L162: 0 | M162: 0 | N162: 0 | O162: 0 | P162: =SUM(D162:O162) -> 1143071
A163: Clay Basin Withdrawal | D163: =+D136 -> 0 | E163: 0 | F163: =+F136 -> 0 | G163: 604640 | H163: 5355500 | I163: 2760160 | J163: 625180 | K163: 1002320 | L163: 174924 | M163: 78760 | N163: 61400 | O163: 58150 | P163: =SUM(D163:O163) -> 10721034
A164: QPC Transportation Loss on Storage | D164: ='Monthly Inputs'!G78+'Monthly Inputs'!G70 -> 0 | E164: ='Monthly Inputs'!H78+'Monthly Inputs'!H70 -> 0 | F164: ='Monthly Inputs'!I78+'Monthly Inputs'!I70 -> 0 | G164: ='Monthly Inputs'!J78+'Monthly Inputs'!J70 -> -11953.7328 | H164: ='Monthly Inputs'!K78+'Monthly Inputs'!K70 -> -105878.235 | I164: ='Monthly Inputs'!L78+'Monthly Inputs'!L70 -> -73702.6392 | J164: ='Monthly Inputs'!M78+'Monthly Inputs'!M70 -> -15374.8266 | K164: ='Monthly Inputs'!N78+'Monthly Inputs'!N70 -> -32185.4404 | L164: ='Monthly Inputs'!O78+'Monthly Inputs'!O70 -> -3458.24748 | M164: ='Monthly Inputs'!P78+'Monthly Inputs'!P70 -> -1557.0852 | N164: ='Monthly Inputs'!Q78+'Monthly Inputs'!Q70 -> -1213.878 | O164: ='Monthly Inputs'!R78+'Monthly Inputs'!R70 -> -1149.6255 | P164: =SUM(D164:O164) -> -246473.7102 | R164: =4761675+168421 -> 4930096
A165: Storage Lost & Unaccounted For | D165: ='Monthly Inputs'!G62 -> -29765.3287 | E165: ='Monthly Inputs'!H62 -> -47896.0152 | F165: ='Monthly Inputs'!I62 -> -20538.4172 | G165: ='Monthly Inputs'!J62 -> 0 | H165: ='Monthly Inputs'!K62 -> 0 | I165: ='Monthly Inputs'!L62 -> 0 | J165: ='Monthly Inputs'!M62 -> 0 | K165: ='Monthly Inputs'!N62 -> -8961.5 | L165: ='Monthly Inputs'!O62 -> -19879.1232 | M165: ='Monthly Inputs'!P62 -> -36825.587 | N165: ='Monthly Inputs'!Q62 -> -41157.0589 | O165: ='Monthly Inputs'!R62 -> -38469.0476 | P165: =SUM(D165:O165) -> -243492.0778
A166: Storage Supply @ City Gate | D166: =SUM(D162:D165) -> -29765.3287 | E166: =SUM(E162:E165) -> -47896.0152 | F166: -20538.4172 | G166: 592686.2672 | H166: 5249621.765 | I166: 3377040.361 | J166: 698482.1734 | K166: 1324984.06 | L166: 151586.6293 | M166: 40377.3278 | N166: 19029.0631 | O166: 18531.3269 | P166: 11374139.21
A168: Gas Purchased @ City Gate | D168: =D155-D160-D166-D154 -> 846256.3287 | E168: =E155-E160-E166-E154 -> 4142480.015 | F168: =F155-F160-F166-F154 -> 7059030.417 | G168: 11523695.73 | H168: =H155-H160-H166-H154 -> 9260680.235 | I168: =I155-I160-I166-I154 -> 7211475.639 | J168: 5474529.827 | K168: 2827810.94 | L168: =L155-L160-L166-L154 -> 0.3706800003 | M168: =M155-M160-M166-M154 -> 26271.6722 | N168: 39128.9369 | O168: 35270.6731 | P168: =SUM(D168:O168) -> 48446630.79
A169: Gas Reimbursement | D169: =+D170-D168 -> 12102.6713 | E169: =+E170-E168 -> 59243.9848 | F169: 100955.5828 | G169: 164808.2672 | H169: 132442.765 | I169: 103136.3608 | J169: 78295.1734 | K169: 40442.0596 | L169: -0.3706800003 | M169: 375.3278 | N169: 560.0631 | O169: 504.3269 | P169: =SUM(D169:O169) -> 692866.212
A170: Gas Purchased - Dth ( /.98) | D170: =ROUND(D168/(1-'Other Inputs'!$E$264),0) -> 858359 | E170: =ROUND(E168/(1-'Other Inputs'!$E$264),0) -> 4201724 | F170: =ROUND(F168/(1-'Other Inputs'!$E$264),0) -> 7159986 | G170: =ROUND(G168/(1-'Other Inputs'!$E$264),0) -> 11688504 | H170: =ROUND(H168/(1-'Other Inputs'!$E$264),0) -> 9393123 | I170: =ROUND(I168/(1-'Other Inputs'!$E$264),0) -> 7314612 | J170: =ROUND(J168/(1-'Other Inputs'!$E$264),0) -> 5552825 | K170: =ROUND(K168/(1-'Other Inputs'!$E$264),0) -> 2868253 | L170: =ROUND(L168/(1-'Other Inputs'!$E$264),0) -> 0 | M170: =ROUND(M168/(1-'Other Inputs'!$E$264),0) -> 26647 | N170: =ROUND(N168/(1-'Other Inputs'!$E$264),0) -> 39689 | O170: =ROUND(O168/(1-'Other Inputs'!$E$264),0) -> 35775 | P170: =SUM(D170:O170) -> 49139497
A172: Transported Volumes - total | D172: =+D160+D168+D137+D164 -> 6031231.329 | E172: =+E160+E168+E137+E164 -> 9653484.015 | F172: 12597650.42 | G172: 17731997 | H172: 20242084 | I172: 15794217 | J172: 11801295 | K172: 9630039.5 | L172: 5817723.123 | M172: 5455489.587 | N172: 5486286.059 | O172: =+O160+O168+O137+O164 -> 5242452.048 | P172: =+P160+P168+P137+P164 -> 125483949.1
A173: Kern transported volumes | D173: =HLOOKUP(MONTH(D5),kernrivertrans,6,FALSE) -> 111838.959 | E173: 115566.9243 | F173: 1975821.609 | G173: 2041682.329 | H173: 2041682.329 | I173: 1844100.168 | J173: 2041682.329 | K173: 111838.959 | L173: 115566.9243 | M173: 111838.959 | N173: 115566.9243 | O173: 115566.9243
A174: Storage Fuel % | C174: =(P154-P165)/(P162+P163+P152+P153) -> 0.01840867011
A176: Company Production as % of Total Supply / Demand | D176: =D158/(D170+D158) -> 0.8632505171 | E176: 0.5781804368 | F176: =F158/(F170+F158) -> 0.4470230435 | G176: 0.3342559634 | H176: =H158/(H170+H158) -> 0.3893857482 | I176: 0.4265201198 | J176: 0.514384527 | K176: 0.6658151608 | L176: 1 | M176: 0.9952583081 | N176: 0.9929993071 | O176: 0.993396921 | P176: =P158/(P170+P158) -> 0.5818120577
A178: PURCHASES BREAKDOWN
A179: Spot Market Purchases | D179: ='Monthly Inputs'!G94 -> 840990 | E179: ='Monthly Inputs'!H94 -> 4012684 | F179: ='Monthly Inputs'!I94 -> 2959986 | G179: ='Monthly Inputs'!J94 -> 5708504 | H179: ='Monthly Inputs'!K94 -> 1913123 | I179: ='Monthly Inputs'!L94 -> 1074612 | J179: ='Monthly Inputs'!M94 -> 2757825 | K179: ='Monthly Inputs'!N94 -> 2868253 | L179: ='Monthly Inputs'!O94 -> 0 | M179: ='Monthly Inputs'!P94 -> 0 | N179: ='Monthly Inputs'!Q94 -> 0 | O179: ='Monthly Inputs'!R94 -> 0 | P179: =SUM(D179:O179) -> 22135977
A180: Spot Market Purchases Cost | D180: ='Monthly Inputs'!G95 -> 2094065.1 | E180: ='Monthly Inputs'!H95 -> 10352724.72 | F180: ='Monthly Inputs'!I95 -> 8850358.14 | G180: ='Monthly Inputs'!J95 -> 17924702.56 | H180: ='Monthly Inputs'!K95 -> 6332437.13 | I180: ='Monthly Inputs'!L95 -> 3632188.56 | J180: ='Monthly Inputs'!M95 -> 9542074.5 | K180: ='Monthly Inputs'!N95 -> 10325710.8 | L180: ='Monthly Inputs'!O95 -> 0 | M180: ='Monthly Inputs'!P95 -> 0 | N180: ='Monthly Inputs'!Q95 -> 0 | O180: ='Monthly Inputs'!R95 -> 0 | P180: =SUM(D180:O180) -> 69054261.51
A182: Contract Purchases (Dth) | D182: ='Monthly Inputs'!G103 -> 0 | E182: ='Monthly Inputs'!H103 -> 0 | F182: ='Monthly Inputs'!I103 -> 1200000 | G182: ='Monthly Inputs'!J103 -> 2480000 | H182: ='Monthly Inputs'!K103 -> 2480000 | I182: ='Monthly Inputs'!L103 -> 2240000 | J182: ='Monthly Inputs'!M103 -> 1395000 | K182: ='Monthly Inputs'!N103 -> 0 | L182: ='Monthly Inputs'!O103 -> 0 | M182: ='Monthly Inputs'!P103 -> 0 | N182: ='Monthly Inputs'!Q103 -> 0 | O182: ='Monthly Inputs'!R103 -> 0 | P182: =SUM(D182:O182) -> 9795000
A183: Contract Purchases Cost Including Stabalization Costs | D183: ='Monthly Inputs'!G104+'Monthly Inputs'!G105 -> 0 | E183: ='Monthly Inputs'!H104+'Monthly Inputs'!H105 -> 333333.33 | F183: ='Monthly Inputs'!I104+'Monthly Inputs'!I105 -> 4129608.33 | G183: ='Monthly Inputs'!J104+'Monthly Inputs'!J105 -> 8333425.83 | H183: ='Monthly Inputs'!K104+'Monthly Inputs'!K105 -> 8649625.83 | I183: ='Monthly Inputs'!L104+'Monthly Inputs'!L105 -> 7962423.33 | J183: ='Monthly Inputs'!M104+'Monthly Inputs'!M105 -> 5301625.83 | K183: ='Monthly Inputs'!N104+'Monthly Inputs'!N105 -> 0 | L183: ='Monthly Inputs'!O104+'Monthly Inputs'!O105 -> 0 | M183: ='Monthly Inputs'!P104+'Monthly Inputs'!P105 -> 0 | N183: ='Monthly Inputs'!Q104+'Monthly Inputs'!Q105 -> 0 | O183: ='Monthly Inputs'!R104+'Monthly Inputs'!R105 -> 0 | P183: =SUM(D183:O183) -> 34710042.48
Q184: =P183+P186 -> 93129991.92
A185: Peak Purchases (Dth) | D185: ='Monthly Inputs'!G100 -> 0 | E185: ='Monthly Inputs'!H100 -> 0 | F185: ='Monthly Inputs'!I100 -> 3000000 | G185: ='Monthly Inputs'!J100 -> 3500000 | H185: ='Monthly Inputs'!K100 -> 5000000 | I185: ='Monthly Inputs'!L100 -> 4000000 | J185: ='Monthly Inputs'!M100 -> 1400000 | K185: ='Monthly Inputs'!N100 -> 0 | L185: ='Monthly Inputs'!O100 -> 0 | M185: ='Monthly Inputs'!P100 -> 0 | N185: ='Monthly Inputs'!Q100 -> 0 | O185: ='Monthly Inputs'!R100 -> 0 | P185: =SUM(D185:O185) -> 16900000
A186: Peak Purchases Cost | D186: ='Monthly Inputs'!G101 -> 0 | E186: ='Monthly Inputs'!H101 -> 0 | F186: ='Monthly Inputs'!I101 -> 9504386.235 | G186: ='Monthly Inputs'!J101 -> 11735625.49 | H186: ='Monthly Inputs'!K101 -> 17670375.55 | I186: ='Monthly Inputs'!L101 -> 14389195.71 | J186: ='Monthly Inputs'!M101 -> 5120366.466 | K186: ='Monthly Inputs'!N101 -> 0 | L186: ='Monthly Inputs'!O101 -> 0 | M186: ='Monthly Inputs'!P101 -> 0 | N186: ='Monthly Inputs'!Q101 -> 0 | O186: ='Monthly Inputs'!R101 -> 0 | P186: =SUM(D186:O186) -> 58419949.44
A188: Future Purchases | D188: =+D170-D179-D182-D185 -> 17369 | E188: =+E170-E179-E182-E185 -> 189040 | F188: =+F170-F179-F182-F185 -> 0 | G188: =+G170-G179-G182-G185 -> 0 | H188: =+H170-H179-H182-H185 -> 0 | I188: =+I170-I179-I182-I185 -> 0 | J188: 0 | K188: =+K170-K179-K182-K185 -> 0 | L188: 0 | M188: =+M170-M179-M182-M185 -> 26647 | N188: 39689 | O188: 35775 | P188: =SUM(D188:O188) -> 308520
A189: Future Purchases Cost | D189: =ROUND(D188*D196,0) -> 43596 | E189: =ROUND(E188*E196,0) -> 491504 | F189: =ROUND(F188*F196,0) -> 0 | G189: 0 | H189: =ROUND(H188*H196,0) -> 0 | I189: 0 | J189: 0 | K189: 0 | L189: 0 | M189: 106055 | N189: 165503 | O189: 149540 | P189: =SUM(D189:O189) -> 956198
A191: Total Purchases Cost | D191: =+D180+D183+D186+D189 -> 2137661.1 | E191: =+E180+E183+E186+E189 -> 11177562.05 | F191: =+F180+F183+F186+F189 -> 22484352.7 | G191: =+G180+G183+G186+G189 -> 37993753.88 | H191: =+H180+H183+H186+H189 -> 32652438.51 | I191: 25983807.6 | J191: =+J180+J183+J186+J189 -> 19964066.8 | K191: 10325710.8 | L191: 0 | M191: 106055 | N191: 165503 | O191: 149540 | P191: 163140451.4
A193: Gas Cost
A194: Gas Cost Purchases | D194: =IF(D170=0,0,ROUND(D191/D170,5)) -> 2.4904 | E194: =IF(E170=0,0,ROUND(E191/E170,5)) -> 2.66023 | F194: 3.14028 | G194: 3.25052 | H194: 3.47621 | I194: 3.55232 | J194: 3.5953 | K194: 3.6 | L194: 0 | M194: 3.98 | N194: 4.17 | O194: 4.18001
A195: Gas Cost Injection Rate - this line not used - DELETE? | D195: ='Ut Storage'!K27 -> 4.420387907 | E195: =+D195 -> 4.420387907 | F195: 4.420387907 | G195: 4.420387907 | H195: 4.420387907 | I195: 4.420387907 | J195: 4.420387907 | K195: 4.420387907 | L195: 4.420387907 | M195: 4.420387907 | N195: 4.420387907 | O195: 4.420387907
A196: =CONCATENATE("'Future Contract Price (spot + $",'Other Inputs'!E172,")") -> 'Future Contract Price (spot + $0.02) | D196: =+D228+'Other Inputs'!$E$172 -> 2.51 | E196: =+E228+'Other Inputs'!$E$172 -> 2.6 | F196: =+F228+'Other Inputs'!$E$172 -> 3.01 | G196: =+G228+'Other Inputs'!$E$172 -> 3.16 | H196: =+H228+'Other Inputs'!$E$172 -> 3.33 | I196: =+I228+'Other Inputs'!$E$172 -> 3.4 | J196: =+J228+'Other Inputs'!$E$172 -> 3.48 | K196: =+K228+'Other Inputs'!$E$172 -> 3.62 | L196: =+L228+'Other Inputs'!$E$172 -> 3.77 | M196: =+M228+'Other Inputs'!$E$172 -> 3.98 | N196: =+N228+'Other Inputs'!$E$172 -> 4.17 | O196: =+O228+'Other Inputs'!$E$172 -> 4.18
A198: System Production | D198: =+D160 -> 5184975 | E198: 5511004 | F198: 5538620 | G198: 5615615 | H198: 5731782 | I198: 5205701 | J198: 5628283 | K198: 5468283 | L198: 5646257 | M198: 5352015 | N198: 5386971 | O198: 5150181 | P198: =SUM(D198:O198) -> 65419687
A199: System Purchases | D199: =+D168 -> 846256.3287 | E199: 4142480.015 | F199: 7059030.417 | G199: 11523695.73 | H199: 9260680.235 | I199: 7211475.639 | J199: 5474529.827 | K199: 2827810.94 | L199: 0.3706800003 | M199: 26271.6722 | N199: 39128.9369 | O199: 35270.6731 | P199: =SUM(D199:O199) -> 48446630.79
A200: System Gathering of Production | D200: =ROUND($P200*D$120/$P$120,0) -> 3908045 | E200: 4153781 | F200: 4174596 | G200: 4232629 | H200: 4320187 | I200: 3923666 | J200: 4242177 | K200: 4121581 | L200: 4255725 | M200: 4033947 | N200: 4060294 | O200: 3881820 | P200: ='Other Inputs'!$D$177 -> 49308448
A201: System Birch Creek Gathering | D201: 0 | E201: 0 | F201: 0 | G201: 0 | H201: 0 | I201: 0 | J201: 0 | K201: 0 | L201: 0 | M201: 0 | N201: 0 | O201: 0 | P201: ='Other Inputs'!$D$161 -> 0
A203: Utah Production | D203: =ROUND(D198*$I$74,0) -> 4998354 | E203: 5312649 | F203: 5339271 | G203: 5413495 | H203: 5525480 | I203: 5018334 | J203: 5425707 | K203: 5271465 | L203: 5443034 | M203: 5159382 | N203: 5193080 | O203: 4964813 | P203: =SUM(D203:O203) -> 63065064
A204: Utah Purchases | D204: =ROUND(D199*$I$74,0) -> 815797 | E204: 3993381 | F204: 6804958 | G204: 11108928 | H204: 8927364 | I204: 6951916 | J204: 5277487 | K204: 2726031 | L204: 0 | M204: 25326 | N204: 37721 | O204: 34001 | P204: =SUM(D204:O204) -> 46702910
A205: Utah Gathering | D205: =ROUND(D200*$I$74,0) -> 3767384 | E205: 4004276 | F205: 4024342 | G205: 4080286 | H205: 4164692 | I205: 3782443 | J205: 4089490 | K205: 3973235 | L205: 4102550 | M205: 3888755 | N205: 3914154 | O205: 3742103 | P205: =SUM(D205:O205) -> 47533710
A206: Utah Birch Creek Gathering | D206: =ROUND(D201*$I$74,0) -> 0 | E206: 0 | F206: 0 | G206: 0 | H206: 0 | I206: 0 | J206: 0 | K206: 0 | L206: 0 | M206: 0 | N206: 0 | O206: 0 | P206: =SUM(D206:O206) -> 0
A208: Wyoming Production | D208: =+D198-D203 -> 186621 | E208: 198355 | F208: 199349 | G208: 202120 | H208: 206302 | I208: 187367 | J208: 202576 | K208: 196818 | L208: 203223 | M208: 192633 | N208: 193891 | O208: 185368 | P208: =SUM(D208:O208) -> 2354623
A209: Wyoming Purchases | D209: =+D199-D204 -> 30459.3287 | E209: 149099.0152 | F209: 254072.4172 | G209: 414767.7328 | H209: 333316.235 | I209: 259559.6392 | J209: 197042.8266 | K209: 101779.9404 | L209: 0.3706800003 | M209: 945.6722 | N209: 1407.9369 | O209: 1269.6731 | P209: =SUM(D209:O209) -> 1743720.788
A210: Wyoming Gathering | D210: =+D200-D205 -> 140661 | E210: 149505 | F210: 150254 | G210: 152343 | H210: 155495 | I210: 141223 | J210: 152687 | K210: 148346 | L210: 153175 | M210: 145192 | N210: 146140 | O210: 139717 | P210: =SUM(D210:O210) -> 1774738
A211: Wyoming Birch Creek Gathering | D211: =+D201-D206 -> 0 | E211: 0 | F211: 0 | G211: 0 | H211: 0 | I211: 0 | J211: 0 | K211: 0 | L211: 0 | M211: 0 | N211: 0 | O211: 0 | P211: =SUM(D211:O211) -> 0
A214: I-2, I-4 Averate Gas Cost Calculations
A215: Wyoming
B216: Wyoming I-2 Volumes | D216: =D34 -> 6732 | E216: =E34 -> 8183 | F216: 15071 | G216: 19011 | H216: 18260 | I216: 15125 | J216: 14869 | K216: 14734 | L216: 12776 | M216: 9676 | N216: 6490 | O216: 6266 | P216: 147193
B217: Wyoming I-4 Volumes | D217: =D35 -> 0 | E217: =E35 -> 0 | F217: 0 | G217: 0 | H217: 0 | I217: 0 | J217: 0 | K217: 0 | L217: 0 | M217: 0 | N217: 0 | O217: 0 | P217: 0
D218: =SUM(D216:D217) -> 6732 | E218: =SUM(E216:E217) -> 8183 | F218: 15071 | G218: 19011 | H218: 18260 | I218: 15125 | J218: 14869 | K218: 14734 | L218: 12776 | M218: 9676 | N218: 6490 | O218: 6266 | P218: 147193
B220: Global Insight Spot Price Forecast | D220: ='Monthly Inputs'!G90 -> 2.49 | E220: ='Monthly Inputs'!H90 -> 2.58 | F220: ='Monthly Inputs'!I90 -> 2.99 | G220: ='Monthly Inputs'!J90 -> 3.14 | H220: ='Monthly Inputs'!K90 -> 3.31 | I220: ='Monthly Inputs'!L90 -> 3.38 | J220: ='Monthly Inputs'!M90 -> 3.46 | K220: ='Monthly Inputs'!N90 -> 3.6 | L220: ='Monthly Inputs'!O90 -> 3.75 | M220: ='Monthly Inputs'!P90 -> 3.96 | N220: ='Monthly Inputs'!Q90 -> 4.15 | O220: ='Monthly Inputs'!R90 -> 4.16
D221: =D218*D220 -> 16762.68 | E221: =E218*E220 -> 21112.14 | F221: 45062.29 | G221: 59694.54 | H221: 60440.6 | I221: 51122.5 | J221: 51446.74 | K221: 53042.4 | L221: 47910 | M221: 38316.96 | N221: 26933.5 | O221: 26066.56 | P221: =SUM(D221:O221) -> 497910.91
P222: =P221/P218 -> 3.382707805
P223: =1-'Other Inputs'!$E$262 -> 0.985
P224: =1-'Other Inputs'!$E$264 -> 0.9859
P225: =P222/P223/P224 -> 3.483336162
A226: Utah
B227: Utah I-4 & IS-4 Volumes | D227: =D15+D16 -> 228810 | E227: 239307 | F227: 256696 | G227: 261971 | H227: 237673 | I227: 194527 | J227: 198552 | K227: 207116 | L227: 190881 | M227: 209355 | N227: 220539 | O227: 238104 | P227: 2683531
B228: =B220 -> Global Insight Spot Price Forecast | D228: ='Monthly Inputs'!G90 -> 2.49 | E228: ='Monthly Inputs'!H90 -> 2.58 | F228: ='Monthly Inputs'!I90 -> 2.99 | G228: ='Monthly Inputs'!J90 -> 3.14 | H228: ='Monthly Inputs'!K90 -> 3.31 | I228: ='Monthly Inputs'!L90 -> 3.38 | J228: ='Monthly Inputs'!M90 -> 3.46 | K228: ='Monthly Inputs'!N90 -> 3.6 | L228: ='Monthly Inputs'!O90 -> 3.75 | M228: ='Monthly Inputs'!P90 -> 3.96 | N228: ='Monthly Inputs'!Q90 -> 4.15 | O228: ='Monthly Inputs'!R90 -> 4.16
D229: =D227*D228 -> 569736.9 | E229: =E227*E228 -> 617412.06 | F229: 767521.04 | G229: 822588.94 | H229: 786697.63 | I229: 657501.26 | J229: 686989.92 | K229: 745617.6 | L229: 715803.75 | M229: 829045.8 | N229: 915236.85 | O229: =O227*O228 -> 990512.64 | P229: =SUM(D229:O229) -> 9104664.39
P230: =P229/P227 -> 3.392792701
P231: =1-'Other Inputs'!$E$261 -> 0.9951
P232: =1-'Other Inputs'!$E$264 -> 0.9859
P234: =P230/P231/P232 -> 3.458260724
D236: =MONTH(D237) -> 1 | E236: =MONTH(E237) -> 2 | F236: =MONTH(F237) -> 3 | G236: 4 | H236: 5 | I236: 6 | J236: 7 | K236: 8 | L236: 9 | M236: 10 | N236: 11 | O236: 12
D237: 2011-01-01 | E237: 2011-02-01 | F237: 2011-03-01 | G237: 2011-04-01 | H237: 2011-05-01 | I237: 2011-06-01 | J237: 2011-07-01 | K237: 2010-08-01 | L237: 2010-09-01 | M237: 2010-10-01 | N237: 2010-11-01 | O237: 2010-12-01
D238: 31 | E238: 28 | F238: 31 | G238: 30 | H238: 31 | I238: 30 | J238: 31 | K238: 31 | L238: 30 | M238: 31 | N238: 30 | O238: 31
D239: ='Other Inputs'!$D$53+'Other Inputs'!$D$54 -> 53000 | E239: ='Other Inputs'!$D$53+'Other Inputs'!$D$54 -> 53000 | F239: ='Other Inputs'!$D$53+'Other Inputs'!$D$54 -> 53000 | G239: ='Other Inputs'!$D$53 -> 3000 | H239: ='Other Inputs'!$D$53 -> 3000 | I239: ='Other Inputs'!$D$53 -> 3000 | J239: ='Other Inputs'!$D$53 -> 3000 | K239: ='Other Inputs'!$D$53 -> 3000 | L239: ='Other Inputs'!$D$53 -> 3000 | M239: ='Other Inputs'!$D$53 -> 3000 | N239: ='Other Inputs'!$D$53+'Other Inputs'!$D$54 -> 53000 | O239: ='Other Inputs'!$D$53+'Other Inputs'!$D$54 -> 53000
D240: ='Other Inputs'!$C$59 -> 1.2426551 | E240: ='Other Inputs'!$C$59 -> 1.2426551 | F240: ='Other Inputs'!$C$59 -> 1.2426551 | G240: ='Other Inputs'!$C$59 -> 1.2426551 | H240: ='Other Inputs'!$C$59 -> 1.2426551 | I240: ='Other Inputs'!$C$59 -> 1.2426551 | J240: ='Other Inputs'!$C$59 -> 1.2426551 | K240: ='Other Inputs'!$C$59 -> 1.2426551 | L240: ='Other Inputs'!$C$59 -> 1.2426551 | M240: ='Other Inputs'!$C$59 -> 1.2426551 | N240: ='Other Inputs'!$C$59 -> 1.2426551 | O240: ='Other Inputs'!$C$59 -> 1.2426551
D241: =D238*D239*D240 -> 2041682.329 | E241: =E238*E239*E240 -> 1844100.168 | F241: 2041682.329 | G241: 111838.959 | H241: 115566.9243 | I241: 111838.959 | J241: 115566.9243 | K241: 115566.9243 | L241: 111838.959 | M241: 115566.9243 | N241: 1975821.609 | O241: 2041682.329 | P241: =SUM(D241:O241) -> 10742753.34
D245: 0.13 | E245: 0.14 | F245: 0.05 | G245: 0.05 | H245: 0.02 | I245: 0.02 | J245: 0.02 | K245: 0.02 | L245: 0.01 | M245: 0 | N245: 0 | O245: 0
D246: =D245*(D179+D182+D185+D188) -> 111586.67 | E246: =E245*(E179+E182+E185+E188) -> 588241.36 | F246: 357999.3 | G246: 584425.2 | H246: 187862.46 | I246: 146292.24 | J246: 111056.5 | K246: 57365.06 | L246: 0 | M246: 0 | N246: 0 | O246: 0

Sheet CET & DSM
A1: Rate Caclulation for the CET and DSM Amortizations
P3: Solver Cells
A4: CET Amortization % Calculation | P4: % Change | Q4: Difference
B5: Balance | C5: Date | D5: GS Dth | H5: Amortization per Dth | P5: =J20/D20 -> -0.01062219098 | Q5: =J20-B11 -> 0 | S5: -> Difference should be at 0 (Use Goal Seek to Get Difference to Equal 0.
A6: DSM Balance | B6: ='Other Inputs'!$E$228 -> 42000000 | C6: ='Other Inputs'!$F$228 -> 2011-03-31 | D6: =B20 -> 95293167 | H6: =ROUND(B6/D6,5) -> 0.44075
S8: Typical Bill Rates
A9: CET Amortization Calculation
B10: Balance | C10: Date | D10: DNG Rev | H10: New DNG | L10: % Change | S10: Current | T10: Proposed
A11: CET Balance | B11: ='Other Inputs'!$E$227 -> -1886289.514 | C11: ='Other Inputs'!$F$227 -> 2011-07-31 | D11: =D20 -> 177580079 | H11: =D11+B11 -> 175693789.5 | L11: =P5 -> -0.01062219098 | S11: Effective | V11: SNG & | W11: CET, DSM
S12: ='Other Inputs'!$J$89 -> 2012-02-01 | T12: CET Only | U12: DSM Only | V12: Commodity | W12: Commodity
S13: BSF | T13: BSF | U13: BSF | V13: BSF | W13: BSF
B14: Revenue Calculation | H14: CET Amortization | L14: Total DNG | P14: REVRUN Calculation | S14: ='Other Inputs'!$G$93 -> 5 | T14: ='Other Inputs'!$G$93 -> 5 | U14: ='Other Inputs'!$G$93 -> 5 | V14: ='Other Inputs'!$G$93 -> 5 | W14: ='Ut 1.8'!$C$12 -> 5
A15: Utah GS | B15: Dth | C15: Base DNG | D15: DNG Revenue | H15: CET Rate | J15: Revenue | L15: DNG Rate | N15: Revenue | P15: CET Rate | Q15: CET Amort
A16: Block 1 Summer | B16: ='Other Inputs'!E232 -> 23076373 | C16: ='Other Inputs'!E217 -> 1.87767 | D16: =B16*C16 -> 43329813.29 | H16: =ROUND((J16/B16),5) -> -0.01994 | J16: =D16*$P$5 -> -460257.552 | L16: =C16+H16 -> 1.85773 | N16: =L16*B16 -> 42869670.41 | P16: =ROUND(H16,5) -> -0.01994 | Q16: =B16*P16 -> -460142.8776 | S16: ='Other Inputs'!$G$89 -> 7.0826 | T16: =N24 -> 7.26669 | U16: =N31 -> 7.22644 | V16: =N38 -> 6.98673552 | W16: =N45 -> 7.54791552
A17: Block 2 Summer | B17: ='Other Inputs'!E233 -> 4705902 | C17: ='Other Inputs'!E218 -> 0.69704 | D17: =B17*C17 -> 3280201.93 | H17: =ROUND((J17/B17),5) -> -0.0074 | J17: =D17*$P$5 -> -34842.93136 | L17: =C17+H17 -> 0.68964 | N17: =L17*B17 -> 3245378.255 | P17: =ROUND(H17,5) -> -0.0074 | Q17: =B17*P17 -> -34823.6748
A18: Block 1 Winter | B18: ='Other Inputs'!E230 -> 52526064 | C18: ='Other Inputs'!E219 -> 2.22938 | D18: =B18*C18 -> 117100556.6 | H18: =ROUND((J18/B18),5) -> -0.02368 | J18: =D18*$P$5 -> -1243864.476 | L18: =C18+H18 -> 2.2057 | N18: =L18*B18 -> 115856739.4 | P18: =ROUND(H18,5) -> -0.02368 | Q18: =B18*P18 -> -1243817.196 | S18: ='Other Inputs'!$G$91 -> 8.06781 | T18: =N26 -> 8.26368 | U18: =N33 -> 8.21595 | V18: =N40 -> 7.92191552 | W18: =N47 -> 9.07981552
A19: Block 2 Winter | B19: ='Other Inputs'!E231 -> 14984828 | C19: ='Other Inputs'!E220 -> 0.92557 | D19: =B19*C19 -> 13869507.25 | H19: =ROUND((J19/B19),5) -> -0.00983 | J19: =D19*$P$5 -> -147324.5548 | L19: =C19+H19 -> 0.91574 | N19: =L19*B19 -> 13722206.39 | P19: =ROUND(H19,5) -> -0.00983 | Q19: =B19*P19 -> -147300.8592
A20: GS-1 Block Rev | B20: =SUM(B16:B19) -> 95293167 | D20: =SUM(D16:D19) -> 177580079 | J20: =B11 -> -1886289.514 | N20: =SUM(N16:N19) -> 175693994.4 | Q20: =SUM(Q16:Q19) -> -1886084.607
A22: Total Rate Calculation With CET Amortization Only | N22: ='Control Panel'!F8 -> 2012-09-01 | P22: ='Other Inputs'!$J$89 -> 2012-02-01
A23: Utah GS | B23: Base DNG | C23: CET | D23: DSM | E23: Energy Assist | F23: Infrastructure | H23: Total DNG | I23: Base SNG | J23: SNG Amort | L23: Base Gas Cost | M23: 191 Amort | N23: Total Rate | P23: Total Rate
A24: Block 1 Summer | B24: =$C$16 -> 1.87767 | C24: =$H$16 -> -0.01994 | D24: 0.44104 | E24: 0.01519 | F24: 0.02908 | H24: =SUM(B24:F24) -> 2.34304 | I24: 0.55715 | J24: 0.01244 | L24: 4.21339 | M24: 0.14067 | N24: =SUM(H24:M24) -> 7.26669 | P24: ='Other Inputs'!$G$89 -> 7.0826 | Q24: =N24-P24 -> 0.18409
A25: Block 2 Summer | B25: =$C$17 -> 0.69704 | C25: =$H$17 -> -0.0074 | D25: =$D$24 -> 0.44104 | E25: =$E$24 -> 0.01519 | F25: 0.0108 | H25: =SUM(B25:F25) -> 1.15667 | I25: =I24 -> 0.55715 | J25: =J24 -> 0.01244 | L25: =L24 -> 4.21339 | M25: =$M$24 -> 0.14067 | N25: =SUM(H25:M25) -> 6.08032 | P25: ='Other Inputs'!$G$90 -> 5.86094 | Q25: =N25-P25 -> 0.21938
A26: Block 1 Winter | B26: =$C$18 -> 2.22938 | C26: =$H$18 -> -0.02368 | D26: =$D$24 -> 0.44104 | E26: =$E$24 -> 0.01519 | F26: 0.03453 | H26: =SUM(B26:F26) -> 2.69646 | I26: 1.18665 | J26: 0.02651 | L26: =L24 -> 4.21339 | M26: =$M$24 -> 0.14067 | N26: =SUM(H26:M26) -> 8.26368 | P26: ='Other Inputs'!$G$91 -> 8.06781 | Q26: =N26-P26 -> 0.19587
A27: Block 2 Winter | B27: =$C$19 -> 0.92557 | C27: =$H$19 -> -0.00983 | D27: =$D$24 -> 0.44104 | E27: =$E$24 -> 0.01519 | F27: 0.01434 | H27: =SUM(B27:F27) -> 1.38631 | I27: =I26 -> 1.18665 | J27: =J26 -> 0.02651 | L27: =L24 -> 4.21339 | M27: =$M$24 -> 0.14067 | N27: =SUM(H27:M27) -> 6.95353 | P27: ='Other Inputs'!$G$92 -> 6.7187 | Q27: =N27-P27 -> 0.23483
A29: Total Rate Calculation With DSM Amortization Only | N29: =N22 -> 2012-09-01 | P29: ='Other Inputs'!$J$89 -> 2012-02-01
A30: Utah GS | B30: Base DNG | C30: CET | D30: DSM | E30: Energy Assist | F30: Infrastructure | H30: Total DNG | I30: Base SNG | J30: SNG Amort | L30: Commodity | M30: 191 Amort | N30: Total Rate | P30: Total Rate
A31: Block 1 Summer | B31: =$C$16 -> 1.87767 | C31: -0.0599 | D31: =$H$6 -> 0.44075 | E31: =$E$24 -> 0.01519 | F31: =F24 -> 0.02908 | H31: =SUM(B31:F31) -> 2.30279 | I31: =$I$24 -> 0.55715 | J31: =J24 -> 0.01244 | L31: =$L$24 -> 4.21339 | M31: =$M$24 -> 0.14067 | N31: =SUM(H31:M31) -> 7.22644 | P31: ='Other Inputs'!$G$89 -> 7.0826 | Q31: =N31-P31 -> 0.14384
A32: Block 2 Summer | B32: =$C$17 -> 0.69704 | C32: -0.02224 | D32: =$H$6 -> 0.44075 | E32: =$E$24 -> 0.01519 | F32: =F25 -> 0.0108 | H32: =SUM(B32:F32) -> 1.14154 | I32: =$I$24 -> 0.55715 | J32: =J25 -> 0.01244 | L32: =$L$24 -> 4.21339 | M32: =$M$24 -> 0.14067 | N32: =SUM(H32:M32) -> 6.06519 | P32: ='Other Inputs'!$G$90 -> 5.86094 | Q32: =N32-P32 -> 0.20425
A33: Block 1 Winter | B33: =$C$18 -> 2.22938 | C33: -0.07112 | D33: =$H$6 -> 0.44075 | E33: =$E$24 -> 0.01519 | F33: =F26 -> 0.03453 | H33: =SUM(B33:F33) -> 2.64873 | I33: =$I$26 -> 1.18665 | J33: =J26 -> 0.02651 | L33: =$L$24 -> 4.21339 | M33: =$M$24 -> 0.14067 | N33: =SUM(H33:M33) -> 8.21595 | P33: ='Other Inputs'!$G$91 -> 8.06781 | Q33: =N33-P33 -> 0.14814
A34: Block 2 Winter | B34: =$C$19 -> 0.92557 | C34: -0.02953 | D34: =$H$6 -> 0.44075 | E34: =$E$24 -> 0.01519 | F34: =F27 -> 0.01434 | H34: =SUM(B34:F34) -> 1.36632 | I34: =$I$26 -> 1.18665 | J34: =J27 -> 0.02651 | L34: =$L$24 -> 4.21339 | M34: =$M$24 -> 0.14067 | N34: =SUM(H34:M34) -> 6.93354 | P34: ='Other Inputs'!$G$92 -> 6.7187 | Q34: =N34-P34 -> 0.21484
A36: Total Rate Calculation With SNG and Commodity Changes Only | N36: =N22 -> 2012-09-01 | P36: ='Other Inputs'!$J$89 -> 2012-02-01
A37: Utah GS | B37: Base DNG | C37: CET | D37: DSM | E37: Energy Assist | F37: Infrastructure | H37: Total DNG | I37: Base SNG | J37: SNG | L37: Commodity | M37: 191 Amort | N37: Total Rate | P37: Total Rate
A38: Block 1 Summer | B38: =$C$16 -> 1.87767 | C38: =C31 -> -0.0599 | D38: =D24 -> 0.44104 | E38: =$E$24 -> 0.01519 | F38: =F24 -> 0.02908 | H38: =SUM(B38:F38) -> 2.30308 | I38: ='Ut 1.6 p3'!G17 -> 0.52151 | J38: ='Ut 1.6 p3'!$H$17 -> 0 | L38: ='Ut 1.6 p1'!$F$34 -> 4.0888 | M38: ='Ut 1.6 p1'!$F$35 -> 0.07334552032 | N38: =SUM(H38:M38) -> 6.98673552 | P38: ='Other Inputs'!$G$89 -> 7.0826 | Q38: =N38-P38 -> -0.09586447968
A39: Block 2 Summer | B39: =$C$17 -> 0.69704 | C39: =C32 -> -0.02224 | D39: =D25 -> 0.44104 | E39: =$E$24 -> 0.01519 | F39: =F25 -> 0.0108 | H39: =SUM(B39:F39) -> 1.14183 | I39: ='Ut 1.6 p3'!G17 -> 0.52151 | J39: ='Ut 1.6 p3'!$H$17 -> 0 | L39: ='Ut 1.6 p1'!$F$34 -> 4.0888 | M39: ='Ut 1.6 p1'!$F$35 -> 0.07334552032 | N39: =SUM(H39:M39) -> 5.82548552 | P39: ='Other Inputs'!$G$90 -> 5.86094 | Q39: =N39-P39 -> -0.03545447968
A40: Block 1 Winter | B40: =$C$18 -> 2.22938 | C40: =C33 -> -0.07112 | D40: =D26 -> 0.44104 | E40: =$E$24 -> 0.01519 | F40: =F26 -> 0.03453 | H40: =SUM(B40:F40) -> 2.64902 | I40: ='Ut 1.6 p3'!G16 -> 1.11075 | J40: ='Ut 1.6 p3'!$H$16 -> 0 | L40: ='Ut 1.6 p1'!$F$34 -> 4.0888 | M40: ='Ut 1.6 p1'!$F$35 -> 0.07334552032 | N40: =SUM(H40:M40) -> 7.92191552 | P40: ='Other Inputs'!$G$91 -> 8.06781 | Q40: =N40-P40 -> -0.1458944797
A41: Block 2 Winter | B41: =$C$19 -> 0.92557 | C41: =C34 -> -0.02953 | D41: =D27 -> 0.44104 | E41: =$E$24 -> 0.01519 | F41: =F27 -> 0.01434 | H41: =SUM(B41:F41) -> 1.36661 | I41: ='Ut 1.6 p3'!G16 -> 1.11075 | J41: ='Ut 1.6 p3'!$H$16 -> 0 | L41: ='Ut 1.6 p1'!$F$34 -> 4.0888 | M41: ='Ut 1.6 p1'!$F$35 -> 0.07334552032 | N41: =SUM(H41:M41) -> 6.63950552 | P41: ='Other Inputs'!$G$92 -> 6.7187 | Q41: =N41-P41 -> -0.07919447968
A43: Total Rate Calculation | N43: =N29 -> 2012-09-01 | P43: ='Other Inputs'!$J$89 -> 2012-02-01
A44: Utah GS | B44: Base DNG | C44: CET | D44: DSM | E44: Energy Assist | F44: Infrastructure | H44: Total DNG | I44: Base SNG | J44: SNG | L44: Commodity | N44: Total Rate | P44: Total Rate
A45: Block 1 Summer | B45: =$C$16 -> 1.87767 | C45: =$H$16 -> -0.01994 | D45: =$H$6 -> 0.44075 | E45: =$E$24 -> 0.01519 | F45: =F38 -> 0.02908 | H45: =SUM(B45:F45) -> 2.34275 | I45: =I38 -> 0.52151 | J45: ='Ut 1.6 p3'!$I$17 -> 0.52151 | L45: ='Ut 1.6 p1'!$F$36 -> 4.16214552 | N45: =SUM(H45:L45) -> 7.54791552 | P45: ='Other Inputs'!$G$89 -> 7.0826 | Q45: =N45-P45 -> 0.4653155203
A46: Block 2 Summer | B46: =$C$17 -> 0.69704 | C46: =$H$17 -> -0.0074 | D46: =$H$6 -> 0.44075 | E46: =$E$24 -> 0.01519 | F46: =F39 -> 0.0108 | H46: =SUM(B46:F46) -> 1.15638 | I46: =I39 -> 0.52151 | J46: ='Ut 1.6 p3'!$I$17 -> 0.52151 | L46: =$L$45 -> 4.16214552 | N46: =SUM(H46:L46) -> 6.36154552 | P46: ='Other Inputs'!$G$90 -> 5.86094 | Q46: =N46-P46 -> 0.5006055203
A47: Block 1 Winter | B47: =$C$18 -> 2.22938 | C47: =$H$18 -> -0.02368 | D47: =$H$6 -> 0.44075 | E47: =$E$24 -> 0.01519 | F47: =F40 -> 0.03453 | H47: =SUM(B47:F47) -> 2.69617 | I47: =I40 -> 1.11075 | J47: ='Ut 1.6 p3'!$I$16 -> 1.11075 | L47: =$L$45 -> 4.16214552 | N47: =SUM(H47:L47) -> 9.07981552 | P47: ='Other Inputs'!$G$91 -> 8.06781 | Q47: =N47-P47 -> 1.01200552
A48: Block 2 Winter | B48: =$C$19 -> 0.92557 | C48: =$H$19 -> -0.00983 | D48: =$H$6 -> 0.44075 | E48: =$E$24 -> 0.01519 | F48: =F41 -> 0.01434 | H48: =SUM(B48:F48) -> 1.38602 | I48: =I41 -> 1.11075 | J48: ='Ut 1.6 p3'!$I$16 -> 1.11075 | L48: =$L$45 -> 4.16214552 | N48: =SUM(H48:L48) -> 7.76966552 | P48: ='Other Inputs'!$G$92 -> 6.7187 | Q48: =N48-P48 -> 1.05096552
A50: Typical Customer Difference - CET Amortization Only
B51: Typical
A52: GS | B52: Dth | C52: =S12 -> 2012-02-01 | D52: =N43 -> 2012-09-01 | H52: Change | J52: % Change
A53: January | B53: 14.9 | C53: =ROUND($S$14+(B53*$S$18),2) -> 125.21 | D53: =ROUND($T$14+(B53*$T$18),2) -> 128.13 | H53: =D53-C53 -> 2.92
A54: February | B54: 12.5 | C54: =ROUND($S$14+(B54*$S$18),2) -> 105.85 | D54: =ROUND($T$14+(B54*$T$18),2) -> 108.3 | H54: 2.45
A55: March | B55: 10.1 | C55: =ROUND($S$14+(B55*$S$18),2) -> 86.48 | D55: =ROUND($T$14+(B55*$T$18),2) -> 88.46 | H55: 1.98
A56: April | B56: 8.3 | C56: =ROUND($S$14+(B56*$S$16),2) -> 63.79 | D56: =ROUND($T$14+(B56*$T$16),2) -> 65.31 | H56: 1.52
A57: May | B57: 4.4 | C57: 36.16 | D57: =ROUND($T$14+(B57*$T$16),2) -> 36.97 | H57: 0.81
A58: June | B58: 3.1 | C58: 26.96 | D58: 27.53 | H58: 0.57
A59: July | B59: 2 | C59: 19.17 | D59: 19.53 | H59: 0.36
A60: August | B60: 1.8 | C60: 17.75 | D60: 18.08 | H60: 0.33
A61: September | B61: 2 | C61: 19.17 | D61: 19.53 | H61: 0.36
A62: October | B62: 3.1 | C62: 26.96 | D62: 27.53 | H62: 0.57
A63: November | B63: 6.3 | C63: =ROUND($S$14+(B63*$S$18),2) -> 55.83 | D63: =ROUND($T$14+(B63*$T$18),2) -> 57.06 | H63: 1.23
A64: December | B64: 11.5 | C64: =ROUND($S$14+(B64*$S$18),2) -> 97.78 | D64: =ROUND($T$14+(B64*$T$18),2) -> 100.03 | H64: 2.25
B65: =SUM(B53:B64) -> 80 | C65: =SUM(C53:C64) -> 681.11 | D65: =SUM(D53:D64) -> 696.46 | H65: =SUM(H53:H64) -> 15.35 | J65: =H65/C65 -> 0.0225367415
A68: Typical Customer Difference - DSM Amortization Only
B69: Typical
A70: GS | B70: Dth | C70: =C52 -> 2012-02-01 | D70: =D52 -> 2012-09-01 | H70: Change | J70: % Change
A71: January | B71: 14.9 | C71: =ROUND($S$14+(B71*$S$18),2) -> 125.21 | D71: =ROUND($U$14+(B71*$U$18),2) -> 127.42 | H71: =D71-C71 -> 2.21
A72: February | B72: 12.5 | C72: =ROUND($S$14+(B72*$S$18),2) -> 105.85 | D72: =ROUND($U$14+(B72*$U$18),2) -> 107.7 | H72: 1.85
A73: March | B73: 10.1 | C73: =ROUND($S$14+(B73*$S$18),2) -> 86.48 | D73: =ROUND($U$14+(B73*$U$18),2) -> 87.98 | H73: 1.5
A74: April | B74: 8.3 | C74: =ROUND($S$14+(B74*$S$16),2) -> 63.79 | D74: =ROUND($U$14+(B74*$U$16),2) -> 64.98 | H74: 1.19
A75: May | B75: 4.4 | C75: 36.16 | D75: 36.8 | H75: 0.64
A76: June | B76: 3.1 | C76: 26.96 | D76: 27.4 | H76: 0.44
A77: July | B77: 2 | C77: 19.17 | D77: 19.45 | H77: 0.28
A78: August | B78: 1.8 | C78: 17.75 | D78: 18.01 | H78: 0.26
A79: September | B79: 2 | C79: 19.17 | D79: 19.45 | H79: 0.28
A80: October | B80: 3.1 | C80: 26.96 | D80: 27.4 | H80: 0.44
A81: November | B81: 6.3 | C81: =ROUND($S$14+(B81*$S$18),2) -> 55.83 | D81: =ROUND($U$14+(B81*$U$18),2) -> 56.76 | H81: 0.93
A82: December | B82: 11.5 | C82: =ROUND($S$14+(B82*$S$18),2) -> 97.78 | D82: =ROUND($U$14+(B82*$U$18),2) -> 99.48 | H82: 1.7
B83: =SUM(B71:B82) -> 80 | C83: =SUM(C71:C82) -> 681.11 | D83: =SUM(D71:D82) -> 692.83 | H83: =SUM(H71:H82) -> 11.72 | J83: =H83/C83 -> 0.01720720588
A86: Typical Customer Difference - SNG and Commodity Changes Only
B87: Typical
A88: GS-1 | B88: Dth | C88: =C70 -> 2012-02-01 | D88: =D70 -> 2012-09-01 | H88: Change | J88: % Change
A89: January | B89: 14.9 | C89: =ROUND($S$14+(B89*$S$18),2) -> 125.21 | D89: =ROUND($V$14+(B89*$V$18),2) -> 123.04 | H89: =D89-C89 -> -2.17
A90: February | B90: 12.5 | C90: =ROUND($S$14+(B90*$S$18),2) -> 105.85 | D90: =ROUND($V$14+(B90*$V$18),2) -> 104.02 | H90: -1.83
A91: March | B91: 10.1 | C91: =ROUND($S$14+(B91*$S$18),2) -> 86.48 | D91: =ROUND($V$14+(B91*$V$18),2) -> 85.01 | H91: -1.47
A92: April | B92: 8.3 | C92: =ROUND($S$14+(B92*$S$16),2) -> 63.79 | D92: =ROUND($V$14+(B92*$V$16),2) -> 62.99 | H92: -0.8
A93: May | B93: 4.4 | C93: 36.16 | D93: 35.74 | H93: -0.42
A94: June | B94: 3.1 | C94: 26.96 | D94: 26.66 | H94: -0.3
A95: July | B95: 2 | C95: 19.17 | D95: 18.97 | H95: -0.2
A96: August | B96: 1.8 | C96: 17.75 | D96: 17.58 | H96: -0.17
A97: September | B97: 2 | C97: 19.17 | D97: 18.97 | H97: -0.2
A98: October | B98: 3.1 | C98: 26.96 | D98: 26.66 | H98: -0.3
A99: November | B99: 6.3 | C99: =ROUND($S$14+(B99*$S$18),2) -> 55.83 | D99: =ROUND($V$14+(B99*$V$18),2) -> 54.91 | H99: -0.92
A100: December | B100: 11.5 | C100: =ROUND($S$14+(B100*$S$18),2) -> 97.78 | D100: =ROUND($V$14+(B100*$V$18),2) -> 96.1 | H100: -1.68
B101: =SUM(B89:B100) -> 80 | C101: =SUM(C89:C100) -> 681.11 | D101: =SUM(D89:D100) -> 670.65 | H101: =SUM(H89:H100) -> -10.46 | J101: =H101/C101 -> -0.01535728443
A104: Typical Customer Difference - CET & DSM Amort, SNG and Commodity Changes
B105: Typical
A106: GS-1 | B106: Dth | C106: =C52 -> 2012-02-01 | D106: =D52 -> 2012-09-01 | H106: Change | J106: % Change
A107: January | B107: 14.9 | C107: =ROUND($S$14+(B107*$S$18),2) -> 125.21 | D107: =ROUND($W$14+(B107*$W$18),2) -> 140.29 | H107: =D107-C107 -> 15.08
A108: February | B108: 12.5 | C108: =ROUND($S$14+(B108*$S$18),2) -> 105.85 | D108: =ROUND($W$14+(B108*$W$18),2) -> 118.5 | H108: 12.65
A109: March | B109: 10.1 | C109: =ROUND($S$14+(B109*$S$18),2) -> 86.48 | D109: =ROUND($W$14+(B109*$W$18),2) -> 96.71 | H109: 10.23
A110: April | B110: 8.3 | C110: =ROUND($S$14+(B110*$S$16),2) -> 63.79 | D110: =ROUND($W$14+(B110*$W$16),2) -> 67.65 | H110: 3.86
A111: May | B111: 4.4 | C111: 36.16 | D111: 38.21 | H111: 2.05
A112: June | B112: 3.1 | C112: 26.96 | D112: 28.4 | H112: 1.44
A113: July | B113: 2 | C113: 19.17 | D113: 20.1 | H113: 0.93
A114: August | B114: 1.8 | C114: 17.75 | D114: 18.59 | H114: 0.84
A115: September | B115: 2 | C115: 19.17 | D115: 20.1 | H115: 0.93
A116: October | B116: 3.1 | C116: 26.96 | D116: 28.4 | H116: 1.44
A117: November | B117: 6.3 | C117: =ROUND($S$14+(B117*$S$18),2) -> 55.83 | D117: =ROUND($W$14+(B117*$W$18),2) -> 62.2 | H117: 6.37
A118: December | B118: 11.5 | C118: =ROUND($S$14+(B118*$S$18),2) -> 97.78 | D118: =ROUND($W$14+(B118*$W$18),2) -> 109.42 | H118: 11.64
B119: =SUM(B107:B118) -> 80 | C119: =SUM(C107:C118) -> 681.11 | D119: =SUM(D107:D118) -> 748.57 | H119: =SUM(H107:H118) -> 67.46 | J119: =H119/C119 -> 0.09904420725

Sheet UT Tariff Sheets PT
B2: 2.02 GS Rate Schedule | J2: 2.03 FS Rate Schedule | AB2: 4.03 ES Rate Schedule | AI2: 2.05 NGV Rate Schedule
C3: Rates Per Dth Used Each Month | M3: Rates Per Dth Used Each Month | T3: 4.02 IS Rate Schedule | AB3: ES Volumetric Rates | AI3: NGV Volumetric Rate
C4: Summer Rates: Apr. 1 - Oct. 31 | E4: Winter Rates: Nov. 1 - Mar. 31 | M4: Dth = decatherm = 10 therms = 1,000,000 BTU | T4: IS Volumetric Rates
C5: First 45 Dth | D5: All Over 45 Dth | E5: First 45 Dth | F5: All Over 45 Dth | K5: Summer Rates: Apr. 1 - Oct. 31 | N5: Winter Rates: Nov. 1 - Mar. 31 | U5: Rates Per Dth Used Each Month | AE5: Rates Per Dth Used Each Month | AM5: Rates Per Dth Used Each Month
B6: Base DNG | C6: ='CET & DSM'!B38 -> 1.87767 | D6: ='CET & DSM'!B39 -> 0.69704 | E6: ='CET & DSM'!B40 -> 2.22938 | F6: ='CET & DSM'!B41 -> 0.92557 | K6: First | L6: Next | M6: All Over | N6: First | O6: Next | P6: All Over | U6: Dth = decatherm = 10 therms = 1,000,000 BTU | AE6: Dth = decatherm = 10 therms = 1,000,000 BTU | AM6: Dth = decatherm = 10 therms = 1,000,000 BTU
B7: CET Amortization | C7: ='CET & DSM'!C38 -> -0.0599 | D7: ='CET & DSM'!C39 -> -0.02224 | E7: ='CET & DSM'!C40 -> -0.07112 | F7: ='CET & DSM'!C41 -> -0.02953 | K7: 200 | L7: 1800 | M7: 2000 | N7: 200 | O7: 1800 | P7: 2000 | U7: First | V7: Next | W7: All Over | AB7: Distribution Non-Gas Rate | AC7: ='Ut 1.8'!C73 -> 1.77311 | AI7: Base DNG | AK7: ='Ut 1.8'!C52 -> 5.1946
B8: DSM Amortization | C8: =ROUND('CET & DSM'!D38,5) -> 0.44104 | D8: =ROUND('CET & DSM'!D39,5) -> 0.44104 | E8: =ROUND('CET & DSM'!D40,5) -> 0.44104 | F8: =ROUND('CET & DSM'!D41,5) -> 0.44104 | J8: Base DNG | K8: ='Ut 1.8'!C19 -> 0.69341 | L8: ='Ut 1.8'!D19 -> 0.5445 | M8: ='Ut 1.8'!E19 -> 0.47444 | N8: ='Ut 1.8'!F19 -> 0.77424 | O8: ='Ut 1.8'!G19 -> 0.6214 | P8: ='Ut 1.8'!H19 -> 0.56027 | U8: 2000 | V8: 18000 | W8: 20000 | AI8: Energy Assistance | AK8: ='Other Inputs'!$E$225 -> 0.01829
B9: Energy Assistance | C9: ='Other Inputs'!$E$222 -> 0.01519 | D9: ='Other Inputs'!$E$222 -> 0.01519 | E9: ='Other Inputs'!$E$222 -> 0.01519 | F9: ='Other Inputs'!$E$222 -> 0.01519 | J9: Energy Assistance | K9: ='Other Inputs'!$E$223 -> 0.01029 | L9: ='Other Inputs'!$E$223 -> 0.01029 | M9: ='Other Inputs'!$E$223 -> 0.01029 | N9: ='Other Inputs'!$E$223 -> 0.01029 | O9: ='Other Inputs'!$E$223 -> 0.01029 | P9: ='Other Inputs'!$E$223 -> 0.01029 | T9: Base DNG | U9: ='Ut 1.8'!C60 -> 0.23781 | V9: ='Ut 1.8'!D60 -> 0.21878 | W9: ='Ut 1.8'!E60 -> 0.20128 | AB9: Base SNG | AC9: =ROUND('Ut 1.6 p3'!G$26,5) -> 5.75759 | AI9: Distribution Non-Gas Rate | AK9: =SUM(AK7:AM8) -> 5.21289
B10: Distribution Non-Gas Rate | C10: =SUM(C6:C9) -> 2.274 | D10: =SUM(D6:D9) -> 1.13103 | E10: =SUM(E6:E9) -> 2.61449 | F10: =SUM(F6:F9) -> 1.35227 | J10: Distribution Non-Gas Rate | K10: =SUM(K8:K9) -> 0.7037 | L10: 0.55479 | M10: 0.48473 | N10: 0.78453 | O10: 0.63169 | P10: 0.57056 | T10: Energy Assistance | U10: ='Other Inputs'!$E$224 -> 0.00796 | V10: ='Other Inputs'!$E$224 -> 0.00796 | W10: ='Other Inputs'!$E$224 -> 0.00796 | AB10: SNG Amortization | AC10: =ROUND('Ut 1.6 p3'!H$26,5) -> 0
T11: Distribution Non-Gas Rate | U11: =SUM(U9:U10) -> 0.24577 | V11: =SUM(V9:V10) -> 0.22674 | W11: =SUM(W9:W10) -> 0.20924 | AB11: Supplier Non-Gas Rate | AC11: =SUM(AC9:AF10) -> 5.75759 | AI11: Base SNG | AK11: =ROUND('Ut 1.6 p3'!G$22,5) -> 0.80155
B12: Base SNG | C12: ='CET & DSM'!I38 -> 0.52151 | D12: ='CET & DSM'!I39 -> 0.52151 | E12: ='CET & DSM'!I40 -> 1.11075 | F12: ='CET & DSM'!I41 -> 1.11075 | J12: Base SNG | K12: =ROUND('Ut 1.6 p3'!G$20,5) -> 0.52149 | L12: =ROUND('Ut 1.6 p3'!G$20,5) -> 0.52149 | M12: =ROUND('Ut 1.6 p3'!G$20,5) -> 0.52149 | N12: =ROUND('Ut 1.6 p3'!G$19,5) -> 1.08183 | O12: =ROUND('Ut 1.6 p3'!G$19,5) -> 1.08183 | P12: =ROUND('Ut 1.6 p3'!G$19,5) -> 1.08183 | T12: Supplier Non-Gas Rate | U12: =ROUND('Ut 1.6 p3'!$G$24/(1-'Other Inputs'!$E$272),5) -> 0.17992 | V12: =ROUND('Ut 1.6 p3'!$G$24/(1-'Other Inputs'!$E$272),5) -> 0.17992 | W12: =ROUND('Ut 1.6 p3'!$G$24/(1-'Other Inputs'!$E$272),5) -> 0.17992 | AI12: SNG Amortization | AK12: =ROUND('Ut 1.6 p3'!H$22,5) -> 0
B13: SNG Amortization | C13: ='CET & DSM'!J38 -> 0 | D13: ='CET & DSM'!J39 -> 0 | E13: ='CET & DSM'!J40 -> 0 | F13: ='CET & DSM'!J41 -> 0 | J13: SNG Amortization | K13: =ROUND('Ut 1.6 p3'!H$20,5) -> 0 | L13: =ROUND('Ut 1.6 p3'!H$20,5) -> 0 | M13: =ROUND('Ut 1.6 p3'!H$20,5) -> 0 | N13: =ROUND('Ut 1.6 p3'!H$19,5) -> 0 | O13: =ROUND('Ut 1.6 p3'!H$19,5) -> 0 | P13: =ROUND('Ut 1.6 p3'!H$19,5) -> 0 | AB13: Commodity Rate | AC13: Highest Gas Cost | AI13: Supplier Non-Gas Rate | AK13: =SUM(AK11:AM12) -> 0.80155
B14: Supplier Non-Gas Rate | C14: =SUM(C12:C13) -> 0.52151 | D14: =SUM(D12:D13) -> 0.52151 | E14: =SUM(E12:E13) -> 1.11075 | F14: =SUM(F12:F13) -> 1.11075 | J14: Supplier Non-Gas Rate | K14: =SUM(K12:K13) -> 0.52149 | L14: 0.52149 | M14: 0.52149 | N14: 1.08183 | O14: 1.08183 | P14: 1.08183 | AB14: Total Rate | AC14: $
AI15: Base Gas Cost | AK15: =ROUND('Ut 1.6 p1'!$F$34,5) -> 4.0888
B16: Base Gas Cost | C16: ='Ut 1.6 p1'!$F$34 -> 4.0888 | D16: ='Ut 1.6 p1'!$F$34 -> 4.0888 | E16: ='Ut 1.6 p1'!$F$34 -> 4.0888 | F16: ='Ut 1.6 p1'!$F$34 -> 4.0888 | J16: Base Gas Cost | K16: =ROUND('Ut 1.6 p1'!$F$34,5) -> 4.0888 | L16: =ROUND('Ut 1.6 p1'!$F$34,5) -> 4.0888 | M16: =ROUND('Ut 1.6 p1'!$F$34,5) -> 4.0888 | N16: =ROUND('Ut 1.6 p1'!$F$34,5) -> 4.0888 | O16: =ROUND('Ut 1.6 p1'!$F$34,5) -> 4.0888 | P16: =ROUND('Ut 1.6 p1'!$F$34,5) -> 4.0888 | AB16: Penalty for failure to interrupt or limit usage when requested by the Company. See See § 3.02 | AI16: Commodity Amortization | AK16: =ROUND('Ut 1.6 p1'!$F$35,5) -> 0.07335
B17: 191 Amortization | C17: ='Ut 1.6 p1'!$F$35 -> 0.07334552032 | D17: ='Ut 1.6 p1'!$F$35 -> 0.07334552032 | E17: ='Ut 1.6 p1'!$F$35 -> 0.07334552032 | F17: ='Ut 1.6 p1'!$F$35 -> 0.07334552032 | J17: 191 Amortization | K17: =ROUND('Ut 1.6 p1'!$F$35,5) -> 0.07335 | L17: =ROUND('Ut 1.6 p1'!$F$35,5) -> 0.07335 | M17: =ROUND('Ut 1.6 p1'!$F$35,5) -> 0.07335 | N17: =ROUND('Ut 1.6 p1'!$F$35,5) -> 0.07335 | O17: =ROUND('Ut 1.6 p1'!$F$35,5) -> 0.07335 | P17: =ROUND('Ut 1.6 p1'!$F$35,5) -> 0.07335 | AI17: Commodity Rate | AK17: =SUM(AK15:AM16) -> 4.16215
B18: Commodity Rate | C18: =SUM(C16:C17) -> 4.16214552 | D18: =SUM(D16:D17) -> 4.16214552 | E18: =SUM(E16:E17) -> 4.16214552 | F18: =SUM(F16:F17) -> 4.16214552 | J18: Commodity Rate | K18: =SUM(K16:K17) -> 4.16215 | L18: 4.16215 | M18: 4.16215 | N18: 4.16215 | O18: 4.16215 | P18: 4.16215 | T18: Total Rate | U18: $ | V18: $ | W18: $
AI19: Total Rate | AK19: =SUM(AK9,AK13,AK17) -> 10.17659
B20: Total Rate | C20: =SUM(C18,C14,C10) -> 6.95765552 | D20: =SUM(D18,D14,D10) -> 5.81468552 | E20: =SUM(E18,E14,E10) -> 7.88738552 | F20: =SUM(F18,F14,F10) -> 6.62516552 | J20: Total Rate | K20: =SUM(K18,K14,K10) -> 5.38734 | L20: 5.23843 | M20: 5.16837 | N20: 6.02851 | O20: 5.87567 | P20: 5.81454 | T20: Minimum Monthly Distribution Non-Gas Charge
AI21: Penalty for failure to interrupt or limit usage when requested by the Company. See See § 3.02
E22: BSF Category 1 | F22: ='Ut 1.8'!C12 -> 5 | J22: Minimum Monthly Distribution Non-Gas Charge | O22: Summer | P22: =ROUND(K8*175,0) -> 121
E23: BSF Category 2 | F23: ='Ut 1.8'!C13 -> 21 | O23: Winter | P23: =ROUND(N8*175,0) -> 135
E24: BSF Category 3 | F24: ='Ut 1.8'!C14 -> 55 | V24: BSF Category 1 | W24: 5
E25: BSF Category 4 | F25: ='Ut 1.8'!C15 -> 244 | V25: BSF Category 2 | W25: 29
N26: BSF Category 1 | P26: 5 | V26: BSF Category 3 | W26: 67
N27: BSF Category 2 | P27: 21 | V27: BSF Category 4 | W27: 274
N28: BSF Category 3 | P28: 55
N29: BSF Category 4 | P29: 244
AI30: =B44 -> Issued by R. W. Jibson, President | AL30: Advice No | AM30: Section Revision No.
AB39: =B44 -> Issued by R. W. Jibson, President | AE39: Advice No | AF39: Section Revision No.
AB42: New Pass Through Values
B44: Issued by R. W. Jibson, President | D44: Advice No | E44: Section Revision No. | F44: Effective Date
T47: =B44 -> Issued by R. W. Jibson, President | W47: Advice No
B48: Pass Through Changes | J48: =B44 -> Issued by R. W. Jibson, President | M48: Advice No | N48: Section Revision No. | P48: Effective Date
T50: New Pass Through Values
J51: New Pass Through Values

Sheet UT Tariff Sheets
B2: 2.02 GS Rate Schedule | I2: 2.02 GS Rate Schedule
C3: Rates Per Dth Used Each Month | J3: Rates Per Dth Used Each Month
C4: Summer Rates: Apr. 1 - Oct. 31 | E4: Winter Rates: Nov. 1 - Mar. 31 | J4: Summer Rates: Apr. 1 - Oct. 31 | L4: Winter Rates: Nov. 1 - Mar. 31
C5: First 45 Dth | D5: All Over 45 Dth | E5: First 45 Dth | F5: All Over 45 Dth | J5: First 45 Dth | K5: All Over 45 Dth | L5: First 45 Dth | M5: All Over 45 Dth
B6: Base DNG | C6: ='CET & DSM'!B24 -> 1.87767 | D6: ='CET & DSM'!B25 -> 0.69704 | E6: ='CET & DSM'!B26 -> 2.22938 | F6: ='CET & DSM'!B27 -> 0.92557 | I6: Base DNG | J6: ='CET & DSM'!B31 -> 1.87767 | K6: ='CET & DSM'!B32 -> 0.69704 | L6: ='CET & DSM'!B33 -> 2.22938 | M6: ='CET & DSM'!B34 -> 0.92557
B7: CET Amortization | C7: ='CET & DSM'!H16 -> -0.01994 | D7: ='CET & DSM'!H17 -> -0.0074 | E7: ='CET & DSM'!H18 -> -0.02368 | F7: ='CET & DSM'!H19 -> -0.00983 | I7: CET Amortization | J7: ='CET & DSM'!C31 -> -0.0599 | K7: ='CET & DSM'!C32 -> -0.02224 | L7: ='CET & DSM'!C33 -> -0.07112 | M7: ='CET & DSM'!C34 -> -0.02953
B8: DSM Amortization | C8: ='CET & DSM'!D24 -> 0.44104 | D8: ='CET & DSM'!D25 -> 0.44104 | E8: ='CET & DSM'!D26 -> 0.44104 | F8: ='CET & DSM'!D27 -> 0.44104 | I8: DSM Amortization | J8: =ROUND('CET & DSM'!D31,5) -> 0.44075 | K8: =ROUND('CET & DSM'!D32,5) -> 0.44075 | L8: =ROUND('CET & DSM'!D33,5) -> 0.44075 | M8: =ROUND('CET & DSM'!D34,5) -> 0.44075
B9: Energy Assistance | C9: ='Other Inputs'!$E$222 -> 0.01519 | D9: ='Other Inputs'!$E$222 -> 0.01519 | E9: ='Other Inputs'!$E$222 -> 0.01519 | F9: ='Other Inputs'!$E$222 -> 0.01519 | I9: Energy Assistance | J9: ='Other Inputs'!$E$222 -> 0.01519 | K9: ='Other Inputs'!$E$222 -> 0.01519 | L9: ='Other Inputs'!$E$222 -> 0.01519 | M9: ='Other Inputs'!$E$222 -> 0.01519
B10: Distribution Non-Gas Rate | C10: =SUM(C6:C9) -> 2.31396 | D10: =SUM(D6:D9) -> 1.14587 | E10: =SUM(E6:E9) -> 2.66193 | F10: =SUM(F6:F9) -> 1.37197 | I10: Distribution Non-Gas Rate | J10: =SUM(J6:J9) -> 2.27371 | K10: =SUM(K6:K9) -> 1.13074 | L10: =SUM(L6:L9) -> 2.6142 | M10: =SUM(M6:M9) -> 1.35198
B12: Base SNG | C12: ='CET & DSM'!I24 -> 0.55715 | D12: ='CET & DSM'!I25 -> 0.55715 | E12: ='CET & DSM'!I26 -> 1.18665 | F12: ='CET & DSM'!I27 -> 1.18665 | I12: Base SNG | J12: ='CET & DSM'!I31 -> 0.55715 | K12: ='CET & DSM'!I32 -> 0.55715 | L12: ='CET & DSM'!I33 -> 1.18665 | M12: ='CET & DSM'!I34 -> 1.18665
B13: SNG Amortization | C13: ='CET & DSM'!J24 -> 0.01244 | D13: ='CET & DSM'!J25 -> 0.01244 | E13: ='CET & DSM'!J26 -> 0.02651 | F13: ='CET & DSM'!J27 -> 0.02651 | I13: SNG Amortization | J13: ='CET & DSM'!J31 -> 0.01244 | K13: ='CET & DSM'!J32 -> 0.01244 | L13: ='CET & DSM'!J33 -> 0.02651 | M13: ='CET & DSM'!J34 -> 0.02651
B14: Supplier Non-Gas Rate | C14: =SUM(C12:C13) -> 0.56959 | D14: =SUM(D12:D13) -> 0.56959 | E14: =SUM(E12:E13) -> 1.21316 | F14: =SUM(F12:F13) -> 1.21316 | I14: Supplier Non-Gas Rate | J14: =SUM(J12:J13) -> 0.56959 | K14: =SUM(K12:K13) -> 0.56959 | L14: =SUM(L12:L13) -> 1.21316 | M14: =SUM(M12:M13) -> 1.21316
B16: Base Gas Cost | C16: ='CET & DSM'!L24 -> 4.21339 | D16: ='CET & DSM'!L25 -> 4.21339 | E16: ='CET & DSM'!L26 -> 4.21339 | F16: ='CET & DSM'!L27 -> 4.21339 | I16: Base Gas Cost | J16: ='CET & DSM'!L31 -> 4.21339 | K16: ='CET & DSM'!L32 -> 4.21339 | L16: ='CET & DSM'!L33 -> 4.21339 | M16: ='CET & DSM'!L34 -> 4.21339
B17: 191 Amortization | C17: ='CET & DSM'!M24 -> 0.14067 | D17: ='CET & DSM'!M25 -> 0.14067 | E17: ='CET & DSM'!M26 -> 0.14067 | F17: ='CET & DSM'!M27 -> 0.14067 | I17: 191 Amortization | J17: ='CET & DSM'!M31 -> 0.14067 | K17: ='CET & DSM'!M32 -> 0.14067 | L17: ='CET & DSM'!M33 -> 0.14067 | M17: ='CET & DSM'!M34 -> 0.14067
B18: Commodity Rate | C18: =SUM(C16:C17) -> 4.35406 | D18: =SUM(D16:D17) -> 4.35406 | E18: =SUM(E16:E17) -> 4.35406 | F18: =SUM(F16:F17) -> 4.35406 | I18: Commodity Rate | J18: =SUM(J16:J17) -> 4.35406 | K18: =SUM(K16:K17) -> 4.35406 | L18: =SUM(L16:L17) -> 4.35406 | M18: =SUM(M16:M17) -> 4.35406
B20: Total Rate | C20: =SUM(C18,C14,C10) -> 7.23761 | D20: =SUM(D18,D14,D10) -> 6.06952 | E20: =SUM(E18,E14,E10) -> 8.22915 | F20: =SUM(F18,F14,F10) -> 6.93919 | I20: Total Rate | J20: =SUM(J18,J14,J10) -> 7.19736 | K20: =SUM(K18,K14,K10) -> 6.05439 | L20: =SUM(L18,L14,L10) -> 8.18142 | M20: =SUM(M18,M14,M10) -> 6.9192
E23: BSF Category 1 | F23: ='Ut 1.8'!C12 -> 5 | L23: BSF Category 1 | M23: ='Ut 1.8'!C12 -> 5
E24: BSF Category 2 | F24: ='Ut 1.8'!C13 -> 21 | L24: BSF Category 2 | M24: ='Ut 1.8'!C13 -> 21
E25: BSF Category 3 | F25: ='Ut 1.8'!C14 -> 55 | L25: BSF Category 3 | M25: ='Ut 1.8'!C14 -> 55
E26: BSF Category 4 | F26: ='Ut 1.8'!C15 -> 244 | L26: BSF Category 4 | M26: ='Ut 1.8'!C15 -> 244
B45: Issued by R. W. Jibson, President | D45: Advice No | E45: Section Revision No. | F45: Effective Date | I45: Issued by R. W. Jibson, President | K45: Advice No | L45: Section Revision No. | M45: Effective Date
B49: New CET Only | I49: NEW DSM ONLY

Sheet Utah Summary-by class
A1: UTAH SUMMARY
B2: NOT AN EXHIBIT !!!
A3: NEEDS TO BE UPDATED FOR GSR AND GSC RATES | Q3: Sub Total
C4: COMMODITY | J4: SNG | Q4: TOTAL
C5: Current | D5: Proposed | E5: Current | F5: Proposed | G5: Revenue | H5: % | J5: Current | K5: Proposed | L5: Current | M5: Proposed | N5: Revenue | O5: % | Q5: Revenue | R5: %
A6: RATE | B6: Dth Sales | C6: Rates | D6: Rates | E6: Revenue | F6: Revenue | G6: Difference | H6: Change | J6: Rates | K6: Rates | L6: Revenue | M6: Revenue | N6: Difference | O6: Change | Q6: Difference | R6: Change
A8: GS (W) | B8: =Calculations!P52 -> 69690825 | C8: ='Ut 1.6 p1'!$H$36 -> 4.16664 | D8: =ROUND('Ut 1.6 p1'!$F$36,5) -> 4.16215 | E8: =ROUND(B8*C8,0) -> 290376579 | F8: =ROUND(B8*D8,0) -> 290063667 | G8: =(F8-E8) -> -312912 | J8: ='Ut 1.6 p3'!E16 -> 1.17116 | K8: ='Ut 1.6 p3'!I16 -> 1.11075 | L8: =ROUND(B8*J8,0) -> 81619107 | M8: =B8*K8 -> 77409083.87 | N8: =(M8-L8) -> -4210023.131 | Q8: =G8+N8 -> -4522935.131
A9: GS (S) | B9: =Calculations!P53 -> 27893376 | C9: ='Ut 1.6 p1'!$H$36 -> 4.16664 | D9: =D8 -> 4.16215 | E9: =ROUND(B9*C9,0) -> 116221656 | F9: =ROUND(B9*D9,0) -> 116096415 | G9: =(F9-E9) -> -125241 | J9: ='Ut 1.6 p3'!E17 -> 0.54987 | K9: ='Ut 1.6 p3'!I17 -> 0.52151 | L9: =ROUND(B9*J9,0) -> 15337731 | M9: =B9*K9 -> 14546674.52 | N9: =(M9-L9) -> -791056.4822 | Q9: =G9+N9 -> -916297.4822
A10: Total | B10: =SUM(B8:B9) -> 97584201 | E10: =SUM(E8:E9) -> 406598235 | F10: =SUM(F8:F9) -> 406160082 | G10: =SUM(G8:G9) -> -438153 | H10: =IF(G10=0,0,G10/E10) -> -0.001077606744 | L10: =SUM(L8:L9) -> 96956838 | M10: =SUM(M8:M9) -> 91955758.39 | N10: =SUM(N8:N9) -> -5001079.613 | O10: =IF(N10=0,0,N10/L10) -> -0.0515804735 | Q10: =SUM(Q8:Q9) -> -5439232.613 | R10: =IF(Q10=0,0,Q10/(E10+L10)) -> -0.01080166382
A13: FS | B13: =Calculations!P58 -> 2605615 | C13: ='Ut 1.6 p1'!$H$36 -> 4.16664 | D13: =D8 -> 4.16215 | E13: =ROUND(B13*C13,0) -> 10856660 | F13: =ROUND(B13*D13,0) -> 10844960 | G13: =(F13-E13) -> -11700 | J13: ='Ut 1.6 p3'!E19 -> 1.14067 | K13: ='Ut 1.6 p3'!I19 -> 1.08183 | L13: =ROUND(B13*J13,0) -> 2972147 | M13: =B13*K13 -> 2818832.475 | N13: =(M13-L13) -> -153314.5245 | Q13: =G13+N13 -> -165014.5245
B14: =Calculations!P59 -> 2711481 | C14: ='Ut 1.6 p1'!$H$36 -> 4.16664 | D14: =D9 -> 4.16215 | E14: =ROUND(B14*C14,0) -> 11297765 | F14: =ROUND(B14*D14,0) -> 11285591 | G14: =(F14-E14) -> -12174 | J14: ='Ut 1.6 p3'!E20 -> 0.54985 | K14: ='Ut 1.6 p3'!I20 -> 0.52149 | L14: =ROUND(B14*J14,0) -> 1490908 | M14: =B14*K14 -> 1414010.227 | N14: =(M14-L14) -> -76897.77331 | Q14: =G14+N14 -> -89071.77331
A15: Total | B15: =SUM(B13:B14) -> 5317096 | E15: =SUM(E13:E14) -> 22154425 | F15: =SUM(F13:F14) -> 22130551 | G15: =SUM(G13:G14) -> -23874 | H15: =IF(G15=0,0,G15/E15) -> -0.001077617677 | L15: =SUM(L13:L14) -> 4463055 | M15: =SUM(M13:M14) -> 4232842.702 | N15: =SUM(N13:N14) -> -230212.2979 | O15: =IF(N15=0,0,N15/L15) -> -0.05158177478 | Q15: =SUM(Q13:Q14) -> -254086.2979 | R15: =IF(Q15=0,0,Q15/(E15+L15)) -> -0.009545843478
A19: NGV | B19: =Calculations!P12 -> 560400 | C19: ='Ut 1.6 p1'!$H$36 -> 4.16664 | D19: =D8 -> 4.16215 | E19: =ROUND(B19*C19,0) -> 2334985 | F19: =ROUND(B19*D19,0) -> 2332469 | G19: =(F19-E19) -> -2516 | H19: =IF(G19=0,0,G19/E19) -> -0.001077522982 | J19: ='Ut 1.6 p3'!E22 -> 0.84514 | K19: ='Ut 1.6 p3'!I22 -> 0.80155 | L19: =ROUND(B19*J19,0) -> 473616 | M19: =ROUND(B19*K19,0) -> 449189 | N19: =(M19-L19) -> -24427 | O19: =IF(N19=0,0,N19/L19) -> -0.05157553799 | Q19: =G19+N19 -> -26943 | R19: =IF(Q19=0,0,Q19/(E19+L19)) -> -0.009593032261
G21: =G10+G15+G19 -> -464543 | N21: =N10+N15+N19 -> -5255718.911 | Q21: =Q10+Q15+Q19 -> -5720261.911
A24: IS | B24: =Calculations!P15 -> 2683531 | E24: =ROUND(B24*C24,0) -> 0 | F24: =ROUND(B24*D24,0) -> 0 | G24: =(F24-E24) -> 0 | H24: =IF(G24=0,0,G24/E24) -> 0 | J24: ='Ut 1.6 p3'!E24 -> 0.17919 | K24: ='Ut 1.6 p3'!I24 -> 0.1792 | L24: =ROUND(B24*J24,0) -> 480862 | M24: =ROUND(B24*K24,0) -> 480889 | N24: =(M24-L24) -> 27 | O24: =IF(N24=0,0,N24/L24) -> 5.614916546e-05 | Q24: =G24+N24 -> 27 | R24: =IF(Q24=0,0,Q24/(E24+L24)) -> 5.614916546e-05
A26: ES | B26: 0 | E26: =ROUND(B26*C26,0) -> 0 | F26: =ROUND(B26*D26,0) -> 0 | G26: =(F26-E26) -> 0 | H26: =IF(G26=0,0,G26/E26) -> 0 | J26: ='Ut 1.6 p3'!E26 -> 6.07073 | K26: ='Ut 1.6 p3'!I26 -> 5.75759 | L26: =ROUND(B26*J26,0) -> 0 | M26: =ROUND(B26*K26,0) -> 0 | N26: =(M26-L26) -> 0 | O26: =IF(N26=0,0,N26/L26) -> 0 | Q26: =G26+N26 -> 0 | R26: =IF(Q26=0,0,Q26/(E26+L26)) -> 0
B27: - | E27: - | F27: - | G27: - | L27: ------------------- | M27: ------------------- | N27: ------------------- | Q27: -------------------
B28: =B10+B15+B19+B24+B26 -> 106145228 | E28: =E10+E15+E19+E24+E26 -> 431087645 | F28: =F10+F15+F19+F24+F26 -> 430623102 | G28: =G10+G15+G19+G24+G26 -> -464543 | H28: =IF(G28=0,0,G28/E28) -> -0.001077606852 | L28: =L10+L15+L19+L24+L26 -> 102374371 | M28: =M10+M15+M19+M24+M26 -> 97118679.09 | N28: =N10+N15+N19+N24+N26 -> -5255691.911 | O28: =IF(N28=0,0,N28/L28) -> -0.05133796535 | Q28: =Q10+Q15+Q19+Q24+Q26 -> -5720234.911 | R28: =IF(Q28=0,0,Q28/(E28+L28)) -> -0.01072285325 | W28: =49300714-6927605-5328088 -> 37045021
G29: =IF(G28>0,"Commodity Increase","Commodity Decrease") -> Commodity Decrease | N29: =IF(N28>0,"Increase to SNG","Decrease to SNG") -> Decrease to SNG | W29: =W28-N28 -> 42300712.91
B30: NOT AN EXHIBIT !!!
G31: =ROUND(G28,-3) -> -465000 | N31: =ROUND(N28,-3) -> -5256000 | Q31: =ROUND(Q28,-3) -> -5720000 | W31: =W29-8603966 -> 33696746.91
G32: Rounded | N32: Rounded | Q32: Rounded
A35: FT2 | B35: ='RevRun Fcst'!S138+'RevRun Fcst'!S183 -> 10532 | M35: =0.0005*B24 -> 1341.7655
M36: =M35+M28 -> 97120020.85
A37: IT | B37: ='RevRun Fcst'!S165+'RevRun Fcst'!S174 -> 2618486
A40: winter | B40: =B8+B13 -> 72296440 | J40: =L40/B40 -> 1.170061126 | L40: =L8+L13 -> 84591254
A41: summer | B41: =B9+B14 -> 30604857 | J41: =L41/B41 -> 0.5498682448 | L41: =L9+L14 -> 16828639
A42: year | B42: =B10+B15 -> 102901297 | J42: =L42/B42 -> 0.9856036411 | L42: =L10+L15 -> 101419893
B44: =B10+B15+B19 -> 103461697 | J44: =L44/B44 -> 0.9848428158 | L44: =L10+L15+L19 -> 101893509

Sheet UT Summary - by cost

Sheet WY Summary - by cost

Sheet Model Checks
B2: Model Checks
B3: If the total of all checks is not zero, or very close to zero, find the checks below that are out of balance and follow the calculations
B4: back through the model and correct any errors.
D6: Total of all Checks
D7: =ABS(SUM(D10:D2000)) -> 
B9: Forecasted Demand
C10: Utah | D10: =Calculations!P25-'RevRun Fcst'!T204 -> 0
C11: Wyoming | D11: =Calculations!P44-'RevRun Fcst'!T326 -> 0
C12: Total System | D12: =Calculations!P47-'RevRun Fcst'!T367 -> 0
B13: Forecasted Utah Demand Check by Month
C14: 1 | D14: =Calculations!D25-'RevRun Fcst'!H204 -> 0
C15: 2 | D15: =Calculations!E25-'RevRun Fcst'!I204 -> 0
C16: 3 | D16: =Calculations!F25-'RevRun Fcst'!J204 -> 0
C17: 4 | D17: =Calculations!G25-'RevRun Fcst'!K204 -> 0
C18: 5 | D18: =Calculations!H25-'RevRun Fcst'!L204 -> 0
C19: 6 | D19: =Calculations!I25-'RevRun Fcst'!M204 -> 0
C20: 7 | D20: =Calculations!J25-'RevRun Fcst'!N204 -> 0
C21: 8 | D21: =Calculations!K25-'RevRun Fcst'!O204 -> 0
C22: 9 | D22: =Calculations!L25-'RevRun Fcst'!P204 -> 0
C23: 10 | D23: =Calculations!M25-'RevRun Fcst'!Q204 -> 0
C24: 11 | D24: =Calculations!N25-'RevRun Fcst'!R204 -> 0
C25: 12 | D25: =Calculations!O25-'RevRun Fcst'!S204 -> 0
C26: Wyoming I-2 and I-4 Revenues | D26: =('RevRun Fcst'!S277+'RevRun Fcst'!S288)-Calculations!P65 -> -23274
C27: System Sales Volumes | D27: =Calculations!H76-'RevRun Fcst'!T365 -> 0
C28: Utah Sales Volumes | D28: =Calculations!P20-'Utah Summary-by class'!B28 -> 0
B29: Company Production | D29: =Calculations!P120-'Monthly Inputs'!S12*1000 -> 0.8999999911
B30: Company Produced Gas | D30: ='Monthly Inputs'!S9-'Monthly Inputs'!S7-'Monthly Inputs'!S8 -> 0
B31: Company Produced Gas | D31: ='Monthly Inputs'!S12-'Monthly Inputs'!S11-'Monthly Inputs'!S9 -> 0
B32: Injections | D32: ='Monthly Inputs'!S40-SUM('Monthly Inputs'!S34:S39) -> 0
B33: Withdrawls | D33: ='Monthly Inputs'!S48-SUM('Monthly Inputs'!S43:S47) -> 0
B34: Injections & Withdrawls | D34: =SUM('Ut 1.3 p2'!D24:D27)-'Monthly Inputs'!S40-'Monthly Inputs'!S48 -> -22321314
B35: Injections | D35: =Calculations!P129-'Monthly Inputs'!S40 -> 0
B36: Withdrawls | D36: =Calculations!P137-'Monthly Inputs'!S48 -> 0
B37: Sales for Resale | D37: =Expenses!S445-Calculations!P86 -> 0
B38: Incidental Plant Prod Sales | D38: =Expenses!S446-Calculations!P87 -> 0
B39: Incidental Gas & Oil Sales | D39: =Expenses!S447-Calculations!P89 -> 0
B40: Gasoline and Oil Costs | D40: =Expenses!S450+Calculations!P90 -> 0
B41: Wexpro Revenue Sharing | D41: =Expenses!S449-Calculations!P94 -> 0
B42: Storage Gas | D42: ='Rate Base'!U209-Calculations!P99 -> 0
B43: 101 Production | D43: ='Rate Base'!U158-Calculations!P100 -> 0
B44: 108 Production | D44: ='Rate Base'!U176-Calculations!P101 -> 0
B45: 111 Production | D45: ='Rate Base'!U183-Calculations!P102 -> 0
B46: 255 Production | D46: ='Rate Base'!U244-Calculations!P103 -> 0
B47: 282 Production | D47: ='Rate Base'!U251-Calculations!P104 -> 0
B48: 282.1 Production | D48: ='Rate Base'!U258-Calculations!P105 -> 0
B49: Production Rate Base | D49: =SUM(Calculations!P99:P105)-'Rate Base'!U278 -> 0
B50: Purchased Gas Cost | D50: ='Ut 1.2'!G24-Calculations!P191 -> 0.5455346107
B51: Production Function | D51: ='Wy 1.3 p3'!I40-Calculations!N108 -> 0
B52: Production Function | D52: ='Wy 1.3 p3'!I40-'Rate Base'!U158-'Rate Base'!U176-'Rate Base'!U183-'Rate Base'!U244-'Rate Base'!U251-'Rate Base'!U258 -> -3.492459655e-09
B53: Wexpro Reduction | D53: ='Wy 1.3 p3'!I42-Calculations!N109 -> 0
B54: Wyoming Production Return | D54: ='Wy 1.3 p3'!J47-Calculations!N112 -> 0
B55: Working Gas Rate Base | D55: =Calculations!P99-'Ut 1.3 p2'!D54 -> 0
B56: Allocations | D56: ='Ut 1.5'!E41-'Ut 1.5'!F41-'Ut 1.5'!G41+'Ut 1.5'!G39 -> 0
B58: System Sales | D58: ='SDR#1'!C10-'RevRun Fcst'!T365 -> 0
B59: Lost & Unaccounted For | D59: ='SDR#1'!C15-(('SDR#1'!C10+'SDR#1'!C11)/(1-'Other Inputs'!E261)) -> 
B60: Supply / Demand | D60: ='SDR#1'!C36-'SDR#1'!C15 -> -0.1481800079
B61: System Sales | D61: ='SDR#3'!H36-'SDR#1'!C10 -> 0
B62: SNG Revenue | D62: ='SDR#4'!G23-'Utah Summary-by class'!L28 -> -0.6660900116
B63: Utah Sales | D63: ='SDR#3'!D36-'SDR#4'!E23 -> 0
B64: Utah Sales | D64: ='SDR#2'!G59+'Ut 1.6 p1'!J25 -> 0.5560376495
B65: Seasonal Volumes | D65: =Calculations!P52+Calculations!P53-Calculations!P7-Calculations!P8 -> 0
B66: Seasonal Volumes | D66: =Calculations!P55+Calculations!P56-Calculations!P9 -> 0
B67: Seasonal Volumes | D67: =Calculations!P58+Calculations!P59-Calculations!P10 -> 0
B68: GS-1 Sales Dth | D68: ='CET & DSM'!B20-'SDR#4'!E12-'SDR#4'!E13 -> -2291034

Sheet SDR#1
F1: ='Control Panel'!F32 -> Questar Gas Company
F2: ='Control Panel'!F33 -> Docket No. 12-057-08
B4: Standard Data Request #1
B5: Summary of Sources of Supply and Demand
A8: 1 | B8: DEMAND | C8: Total | D8: Utah | E8: Wyoming
A10: =A8+1 -> 2 | B10: SALES IN DTHS | C10: =D10+E10 -> 110108310 | D10: =Calculations!P20 -> 106145228 | E10: =Calculations!P39 -> 3963082
A11: =A10+1 -> 3 | B11: DIST. CO. USE &
A12: =A11+1 -> 4 | B12: DIST. LOST & UNACCT. (0.49%) | C12: =Calculations!P148 -> 542187
A15: =A12+1 -> 5 | B15: TOTAL | C15: =SUM(C10:C12) -> 110650497
A19: =A15+1 -> 6 | B19: SUPPLY | C19: Total | D19: Utah | E19: Wyoming
A21: =A19+1 -> 7 | B21: COMPANY PRODUCTION | C21: ='Ut 1.1'!E1369 -> 68366275 | D21: =$D$10/$C$10*C21 -> 65905596.47 | E21: =$E$10/$C$10*C21 -> 2460678.525
A22: =A21+1 -> 8 | B22: GAS REIMBURSEMENT | C22: =C21*-'Other Inputs'!$E$265 -> -2946586.453 | D22: =D21*-'Other Inputs'!$E$265 -> -2840531.208 | E22: =E21*-'Other Inputs'!$E$265 -> -106055.2444 | G22: =C21/C10 -> 0.62090023 | H22: =D21/D10 -> 0.62090023 | I22: =E21/E10 -> 0.62090023
A25: =A22+1 -> 9 | B25: CONTRACT GAS | C25: ='Ut 1.2'!E24 -> 49139497 | D25: =$D$10/$C$10*C25 -> 47370839.79 | E25: =$E$10/$C$10*C25 -> 1768657.207
A26: =A25+1 -> 10 | B26: GAS REIMBURSEMENT | C26: =C25*-'Other Inputs'!$E$264 -> -692866.9077 | D26: =D25*-'Other Inputs'!$E$264 -> -667928.8411 | E26: =E25*-'Other Inputs'!$E$264 -> -24938.06662
A28: =A26+1 -> 11 | B28: STORAGE
A29: =A28+1 -> 12 | B29: INJECTIONS | C29: ='Ut 1.4 p2'!E22 -> -14589960 | D29: =$D$10/$C$10*C29 -> -14064829.72 | E29: =$E$10/$C$10*C29 -> -525130.2818
A30: =A29+1 -> 13 | B30: WITHDRAWALS | C30: ='Ut 1.4 p2'!E21 -> 11864105 | D30: =$D$10/$C$10*C30 -> 11437085.27 | E30: =$E$10/$C$10*C30 -> 427019.7315
A31: =A30+1 -> 14 | B31: NET (INJECTIONS) WITHDRAWALS | C31: =C29+C30 -> -2725855 | D31: =D29+D30 -> -2627744.45 | E31: =E29+E30 -> -98110.55029
A33: =A31+1 -> 15 | B33: Storage Fuel | C33: =Calculations!P164+Calculations!P165-1 -> -489966.788 | D33: =D10/C10*C33 -> -472331.6199 | E33: =E10/C10*C33 -> -17635.16812
A36: =A33+1 -> 16 | B36: TOTAL SUPPLY | C36: =C21+C22+C25+C26+C29+C30+C33 -> 110650496.9 | D36: =SUM(D21:D30)+D33 -> 106667900.1 | E36: =SUM(E21:E30)+E33 -> 3982596.703
A38: =A36+1 -> 17 | B38: Company Use & Loss % | C38: =(+C36-C10)/C36 -> 0.004899994733 | D38: =(+D36-D10)/D36 -> 0.004899994733 | E38: =(+E36-E10)/E36 -> 0.004899994733
B41: Difference | C41: =C15-C36 -> 0.1481800079

Sheet SDR#2
H1: ='Control Panel'!F32 -> Questar Gas Company
H2: ='Control Panel'!F33 -> Docket No. 12-057-08
A5: Standard Data Request #2
A6: Supplier Non-Gas Costs
B8: (A) | C8: (B) | D8: (C) | E8: (D) | F8: (E) | G8: (F) | T8: withdraw
A9: I. Transportation (QPC T-1) | C9: Volume (Dth) | G9: Utah Total | J9: Utah gas | K9: Utah Co. | L9: Utah gas | M9: Wyo gas | N9: Wyo Co. | O9: Wyo gas | Q9: @city gate | R9: @city gate | T9: loss | U9: Kern River
B10: Month | C10: Utah | D10: Wyoming | E10: $/dth | F10: Demand | G10: b*d+e*(Ut %) | J10: purchased | K10: production | L10: withdrawn | M10: purchased | N10: production | O10: withdrawn | P10: Total | Q10: purchased | R10: co production | S10: withdrawls | T10: =-Calculations!P164/Calculations!P137 -> 0.02077474114 | U10: Transportation
B12: ='Wy Storage'!B11 -> Sep12 | C12: =J12+K12+L12-(T12+$B$43*U12)*$J$39 -> 5638595.305 | D12: =M12+N12+O12-(T12+$B$43*U12)*$K$39 -> 210524.9193 | E12: ='Other Inputs'!$F$37 -> 0.00267 | F12: =('Other Inputs'!$D$22)*('Other Inputs'!$F$22)-('Other Inputs'!$E$269/12)+('Other Inputs'!$D$29*'Other Inputs'!$F$29) -> 4375974.385 | G12: =(+C12)*E12+F12*$J$33/$L$33 -> 4246621.833 | J12: =Q12*$J$39 -> 815797.3813 | K12: =R12*$J$39 -> 4998354.38 | L12: =S12*$J$39 -> 0 | M12: =Q12-J12 -> 30458.94741 | N12: =R12-K12 -> 186620.6201 | O12: =S12-L12 -> 0 | P12: =SUM(J12:O12)-U12 -> 5884681.329 | Q12: =Calculations!D168 -> 846256.3287 | R12: =Calculations!D160 -> 5184975 | S12: =Calculations!D162+Calculations!D163 -> 0 | T12: =S12*$T$10 -> 0 | U12: =V12*W12 -> 146550 | V12: 4885 | W12: 30 | X12: =B12 -> Sep12
B13: ='Wy Storage'!B12 -> Oct12 | C13: =J13+K13+L13-(T13+$B$43*U13)*$J$39 -> 9124621.895 | D13: =M13+N13+O13-(T13+$B$43*U13)*$K$39 -> 340680.6455 | E13: ='Other Inputs'!$F$37 -> 0.00267 | F13: =('Other Inputs'!$D$22)*('Other Inputs'!$F$22)-('Other Inputs'!$E$269/12)+('Other Inputs'!$D$29*'Other Inputs'!$F$29) -> 4375974.385 | G13: 4255929.524 | J13: 3993381.478 | K13: 5312648.755 | L13: 0 | M13: 149098.5375 | N13: 198355.2445 | O13: 0 | P13: 9502049.015 | Q13: =Calculations!E168 -> 4142480.015 | R13: =Calculations!E160 -> 5511004 | S13: =Calculations!E162+Calculations!E163 -> 0 | T13: =S13*$T$10 -> 0 | U13: =V13*W13 -> 151435 | V13: 4885 | W13: 31 | X13: =B13 -> Oct12
B14: ='Wy Storage'!B13 -> Nov12 | C14: 10171778.93 | D14: 379777.7323 | E14: ='Other Inputs'!$F$37 -> 0.00267 | F14: =('Other Inputs'!$D$22)*('Other Inputs'!$F$22)-('Other Inputs'!$E$269/12)+('Other Inputs'!$D$29*'Other Inputs'!$F$29) -> 4375974.385 | G14: 4258725.434 | J14: 6804957.71 | K14: 5339270.784 | L14: 0 | M14: 254072.707 | N14: 199349.2156 | O14: 0 | P14: 10951100.42 | Q14: =Calculations!F168 -> 7059030.417 | R14: =Calculations!F160 -> 5538620 | S14: =Calculations!F162+Calculations!F163 -> 0 | T14: 0 | U14: 1646550 | V14: 54885 | W14: 30 | X14: Nov12
B15: ='Wy Storage'!B14 -> Dec12 | C15: 15054993.18 | D15: 562099.4331 | E15: ='Other Inputs'!$F$37 -> 0.00267 | F15: =('Other Inputs'!$D$22)*('Other Inputs'!$F$22)-('Other Inputs'!$E$269/12)+('Other Inputs'!$D$29*'Other Inputs'!$F$29) -> 4375974.385 | G15: 4271763.616 | J15: 11108928.21 | K15: 5413494.536 | L15: 582877.4473 | M15: 414767.5242 | N15: 202120.4642 | O15: 21762.55271 | P15: 16042515.73 | Q15: =Calculations!G168 -> 11523695.73 | R15: =Calculations!G160 -> 5615615 | S15: =Calculations!G162+Calculations!G163 -> 604640 | T15: 12561.23948 | U15: 1701435 | V15: 54885 | W15: 31 | X15: Dec12
B16: ='Wy Storage'!B15 -> Jan13 | C16: 17470134.1 | D16: 652272.1303 | E16: ='Other Inputs'!$F$37 -> 0.00267 | F16: =('Other Inputs'!$D$22)*('Other Inputs'!$F$22)-('Other Inputs'!$E$269/12)+('Other Inputs'!$D$29*'Other Inputs'!$F$29) -> 4375974.385 | G16: 4278212.042 | J16: 8927364.474 | K16: 5525480.386 | L16: 5162741.745 | M16: 333315.7611 | N16: 206301.614 | O16: 192758.2546 | P16: 18646527.23 | Q16: =Calculations!H168 -> 9260680.235 | R16: =Calculations!H160 -> 5731782 | S16: =Calculations!H162+Calculations!H163 -> 5355500 | T16: 111259.1262 | U16: 1701435 | V16: 54885 | W16: 31 | X16: Jan13
B17: ='Wy Storage'!B16 -> Feb13 | C17: 13386731.32 | D17: 499812.5204 | E17: ='Other Inputs'!$F$37 -> 0.00267 | F17: =('Other Inputs'!$D$22)*('Other Inputs'!$F$22)-('Other Inputs'!$E$269/12)+('Other Inputs'!$D$29*'Other Inputs'!$F$29) -> 4375974.385 | G17: 4267309.357 | J17: 6951916.036 | K17: 5018334.398 | L17: 3326541.861 | M17: 259559.6036 | N17: 187366.6023 | O17: 124201.1386 | P17: 14331139.64 | Q17: =Calculations!I168 -> 7211475.639 | R17: =Calculations!I160 -> 5205701 | S17: =Calculations!I162+Calculations!I163 -> 3450743 | T17: 71688.29255 | U17: 1536780 | V17: 54885 | W17: 28 | X17: Feb13
B18: ='Wy Storage'!B17 -> Mar13 | C18: 9338863.108 | D18: 348679.6438 | E18: ='Other Inputs'!$F$37 -> 0.00267 | F18: =('Other Inputs'!$D$22)*('Other Inputs'!$F$22)-('Other Inputs'!$E$269/12)+('Other Inputs'!$D$29*'Other Inputs'!$F$29) -> 4375974.385 | G18: 4256501.549 | J18: 5277487.382 | K18: 5425706.582 | L18: 688163.4458 | M18: 197042.445 | N18: 202576.4181 | O18: 25693.55417 | P18: 10115234.83 | Q18: =Calculations!J168 -> 5474529.827 | R18: =Calculations!J160 -> 5628283 | S18: =Calculations!J162+Calculations!J163 -> 713857 | T18: 14830.19438 | U18: 1701435 | V18: 54885 | W18: 31 | X18: Mar13
B19: ='Wy Storage'!B18 -> Apr13 | C19: 9111540.581 | D19: 340192.2362 | E19: ='Other Inputs'!$F$37 -> 0.00267 | F19: =('Other Inputs'!$D$22)*('Other Inputs'!$F$22)-('Other Inputs'!$E$269/12)+('Other Inputs'!$D$29*'Other Inputs'!$F$29) -> 4375974.385 | G19: 4255894.597 | J19: 2726030.733 | K19: 5271465.394 | L19: 1316960.423 | M19: 101780.2075 | N19: 196817.6056 | O19: 49170.57737 | P19: 9515674.94 | Q19: =Calculations!K168 -> 2827810.94 | R19: =Calculations!K160 -> 5468283 | S19: =Calculations!K162+Calculations!K163 -> 1366131 | T19: 28381.01788 | U19: 146550 | V19: 4885 | W19: 30 | X19: Apr13
B20: ='Wy Storage'!B19 -> May13 | C20: 5426750.5 | D20: 202615.3943 | E20: ='Other Inputs'!$F$37 -> 0.00267 | F20: =('Other Inputs'!$D$22)*('Other Inputs'!$F$22)-('Other Inputs'!$E$269/12)+('Other Inputs'!$D$29*'Other Inputs'!$F$29) -> 4375974.385 | G20: 4246056.208 | J20: 0.3573382712 | K20: 5443033.651 | L20: 168628.0342 | M20: 0.01334172904 | N20: 203223.3488 | O20: 6295.965816 | P20: 5669746.371 | Q20: =Calculations!L168 -> 0.3706800003 | R20: =Calculations!L160 -> 5646257 | S20: =Calculations!L162+Calculations!L163 -> 174924 | T20: 3634.000818 | U20: 151435 | V20: 4885 | W20: 31 | X20: May13
B21: ='Wy Storage'!B20 -> Jun13 | C21: 5083499.707 | D21: 189799.6412 | E21: ='Other Inputs'!$F$37 -> 0.00267 | F21: =('Other Inputs'!$D$22)*('Other Inputs'!$F$22)-('Other Inputs'!$E$269/12)+('Other Inputs'!$D$29*'Other Inputs'!$F$29) -> 4375974.385 | G21: 4245139.728 | J21: 25326.08697 | K21: 5159382.18 | L21: 75925.22451 | M21: 945.5852261 | N21: 192632.8204 | O21: 2834.775489 | P21: 5310496.672 | Q21: =Calculations!M168 -> 26271.6722 | R21: =Calculations!M160 -> 5352015 | S21: =Calculations!M162+Calculations!M163 -> 78760 | T21: 1636.218612 | U21: 146550 | V21: 4885 | W21: 30 | X21: Jun13
B22: ='Wy Storage'!B21 -> Jul13 | C22: 5107352.668 | D22: 190690.2251 | E22: ='Other Inputs'!$F$37 -> 0.00267 | F22: =('Other Inputs'!$D$22)*('Other Inputs'!$F$22)-('Other Inputs'!$E$269/12)+('Other Inputs'!$D$29*'Other Inputs'!$F$29) -> 4375974.385 | G22: 4245203.416 | J22: 37720.58556 | K22: 5193080.023 | L22: 59190.05568 | M22: 1408.351336 | N22: 193890.977 | O22: 2209.944325 | P22: 5336064.937 | Q22: =Calculations!N168 -> 39128.9369 | R22: =Calculations!N160 -> 5386971 | S22: =Calculations!N162+Calculations!N163 -> 61400 | T22: 1275.569106 | U22: 151435 | V22: 4885 | W22: 31 | X22: Jul13
B23: ='Wy Storage'!B22 -> Aug13 | C23: 4872298.019 | D23: 181914.1279 | E23: ='Other Inputs'!$F$37 -> 0.00267 | F23: =('Other Inputs'!$D$22)*('Other Inputs'!$F$22)-('Other Inputs'!$E$269/12)+('Other Inputs'!$D$29*'Other Inputs'!$F$29) -> 4375974.385 | G23: 4244575.82 | J23: 34001.19063 | K23: 4964812.706 | L23: 56057.03156 | M23: 1269.482473 | N23: 185368.2943 | O23: 2092.968444 | P23: 5092166.673 | Q23: =Calculations!O168 -> 35270.6731 | R23: =Calculations!O160 -> 5150181 | S23: =Calculations!O162+Calculations!O163 -> 58150 | T23: 1208.051197 | U23: 151435 | V23: 4885 | W23: 31 | X23: Aug13
C26: =SUM(C12:C23) -> 109787159.3 | D26: =SUM(D12:D23) -> 4099058.649 | G26: =SUM(G12:G23) -> 51071933.12 | J26: =SUM(J12:J25) -> 46702911.62 | K26: 63065063.77 | L26: 11437085.27 | M26: 1743719.166 | N26: 2354623.225 | O26: 427019.7315 | P26: =SUM(P12:P23) -> 116397397.8 | Q26: 48446630.79 | R26: 65419687 | S26: 11864105 | T26: 246473.7102 | U26: 9333025
C29: Months | F29: System | G29: Utah | J29: Allocation Factors
C30: or Days | D30: Dth | E30: Rate | F30: Total | G30: Total
J31: Peak Demand Allocation Base
A32: II. Transportation (ML 104 demand) | C32: ='Other Inputs'!E25 -> 12 | D32: ='Other Inputs'!D23 -> 30000 | E32: ='Other Inputs'!F23 -> 5.28804 | F32: =C32*D32*E32 -> 1903694.4 | G32: =F32*J34 -> 1840872.291 | J32: Utah | K32: Wyo | L32: Total
J33: ='Other Inputs'!E132 -> 1243265 | K33: ='Other Inputs'!E133 -> 42428 | L33: =J33+K33 -> 1285693
J34: =J33/L33 -> 0.9669998981 | K34: =K33/L33 -> 0.03300010189
A36: III. Transportation (TL 112 demand) | C36: ='Other Inputs'!E25 -> 12 | D36: ='Other Inputs'!D24 -> 52000 | E36: ='Other Inputs'!F24 -> 5.28804 | F36: =C36*D36*E36 -> 3299736.96 | G36: =F36*J34 -> 3190845.304 | J36: Dth Sales Allocation Base
J37: Utah | K37: Wyo | L37: Total
J38: =Calculations!P20 -> 106145228 | K38: =Calculations!P39 -> 3963082 | L38: =J38+K38 -> 110108310
A39: IV. Transportation (KR 2003 Expansion) | C39: ='Other Inputs'!E53 -> 12 | D39: ='Other Inputs'!D53 -> 3000 | E39: ='Other Inputs'!F53 -> 14.34754167 | F39: =C39*D39*E39 -> 516511.5 | J39: =J38/L38 -> 0.9640074214 | K39: =K38/L38 -> 0.03599257858
C40: ='Other Inputs'!E54 -> 5 | D40: ='Other Inputs'!D54 -> 50000 | E40: ='Other Inputs'!F54 -> 14.34754167 | F40: =C40*D40*E40 -> 3586885.417 | G40: =(F39+F40+F41)*J34 -> 4356065.618
C41: ='Other Inputs'!E55 -> 12 | D41: ='Other Inputs'!D55 -> 1885 | E41: ='Other Inputs'!F55 -> 17.74204167 | F41: =C41*D41*E41 -> 401324.9825
A43: V. Trans (KR 2003 Expansion) | B43: ='Other Inputs'!C60 -> 1.2426551 | C43: ='Other Inputs'!E59 -> 365 | D43: ='Other Inputs'!D59 -> 4885 | E43: ='Other Inputs'!F59 -> 0.0044 | F43: =B43*C43*D43*E43 -> 9749.014483
B44: ='Other Inputs'!C59 -> 1.2426551 | C44: ='Other Inputs'!E60 -> 151 | D44: ='Other Inputs'!D60 -> 50000 | E44: ='Other Inputs'!F60 -> 0.0044 | F44: =B44*C44*D44*E44 -> 41281.00242 | G44: =(F43+F44)*J39 -> 49193.31501
A47: VI. Other Trans, Gathering & Processing | F47: ='Other Inputs'!$D$165+'Other Inputs'!$D$167+'Other Inputs'!$D$170 -> 5198514.62 | G47: =F47*$J$39 -> 5011406.674
A49: VII. QGM Gathering | B49: Demand | C49: ='Ut 1.3 p1'!H48 -> 12 | E49: ='Ut 1.3 p1'!J48 -> 759167.5 | F49: =C49*E49 -> 9110010
B50: Commodity | C50: ='Ut 1.3 p1'!F49 -> 49308448 | D50: ='Ut 1.3 p1'!H49 -> 0 | E50: ='Ut 1.3 p1'!J49 -> 0.13918 | F50: =C50*E50 -> 6862749.793 | G50: =(F49)*'Ut 1.5'!G51+(F50)*'Ut 1.5'!G54 -> 15425120.47
A53: VII. Storage Demand | C53: 12 | D53: ='Other Inputs'!E154 -> 184625 | E53: ='Other Inputs'!E14 -> 2.87375 | F53: =C53*D53*E53 -> 6366793.125
C54: 12 | D54: ='Other Inputs'!E155 -> 2500000 | E54: ='Other Inputs'!E15 -> 0.09 | F54: =C54*D54*E54 -> 2700000
C55: 12 | D55: ='Other Inputs'!E156 -> 111827 | E55: ='Other Inputs'!E16 -> 2.85338 | F55: =C55*D55*E55 -> 3829019.103
C56: 12 | D56: ='Other Inputs'!E157 -> 13419000 | E56: ='Other Inputs'!E17 -> 0.02378 | F56: =C56*D56*E56 -> 3829245.84 | G56: =SUM(F53:F56)*J34 -> 16173129.45
A59: Total Supplier Non-Gas Costs | G59: =G26+G32+G36+G40+G44+G47+G56+G50 -> 97118566.25

Sheet SDR#3
I1: ='Control Panel'!F32 -> Questar Gas Company
I2: ='Control Panel'!F33 -> Docket No. 12-057-08
C5: Standard Data Request #3
C6: Monthly Forecasted Sales
D8: Utah Sales | F8: Wyoming Sales | H8: System Total
C9: Month | D9: Dth | F9: Dth | H9: Dth
B11: 1 | C11: =Calculations!D141 -> Sep12 | D11: =Calculations!D20 -> 3799957 | F11: =Calculations!D39 -> 149580 | H11: =SUM(D11:F11) -> 3949537
B13: =B11+1 -> 2 | C13: =Calculations!E141 -> Oct12 | D13: =Calculations!E20 -> 6673420 | F13: =Calculations!E39 -> 235058 | H13: =SUM(D13:F13) -> 6908478
B15: =B13+1 -> 3 | C15: =Calculations!F141 -> Nov12 | D15: =Calculations!F20 -> 10767647 | F15: =Calculations!F39 -> 411719 | H15: 11179366
B17: =B15+1 -> 4 | C17: =Calculations!G141 -> Dec12 | D17: =Calculations!G20 -> 17031049 | F17: =Calculations!G39 -> 614061 | H17: 17645110
B19: =B17+1 -> 5 | C19: =Calculations!H141 -> Jan13 | D19: =Calculations!H20 -> 19443688 | F19: =Calculations!H39 -> 699210 | H19: 20142898
B21: =B19+1 -> 6 | C21: =Calculations!I141 -> Feb13 | D21: =Calculations!I20 -> 15143628 | F21: =Calculations!I39 -> 573197 | H21: 15716825
B23: =B21+1 -> 7 | C23: =Calculations!J141 -> Mar13 | D23: =Calculations!J20 -> 11293347 | F23: =Calculations!J39 -> 450122 | H23: 11743469
B25: =B23+1 -> 8 | C25: =Calculations!K141 -> Apr13 | D25: =Calculations!K20 -> 8859248 | F25: =Calculations!K39 -> 357983 | H25: 9217231
B27: =B25+1 -> 9 | C27: =Calculations!L141 -> May13 | D27: =Calculations!L20 -> 4484382 | F27: =Calculations!L39 -> 203926 | H27: 4688308
B29: =B27+1 -> 10 | C29: =Calculations!M141 -> Jun13 | D29: =Calculations!M20 -> 3049002 | F29: =Calculations!M39 -> 116714 | H29: 3165716
B31: =B29+1 -> 11 | C31: =Calculations!N141 -> Jul13 | D31: =Calculations!N20 -> 2838939 | F31: =Calculations!N39 -> 70623 | H31: 2909562
B33: =B31+1 -> 12 | C33: =Calculations!O141 -> Aug13 | D33: =Calculations!O20 -> 2760921 | F33: =Calculations!O39 -> 80889 | H33: 2841810
B36: =B33+1 -> 13 | C36: Total Sales (Dth) | D36: =SUM(D11:D33) -> 106145228 | F36: =SUM(F11:F33) -> 3963082 | H36: =SUM(H11:H33) -> 110108310

Sheet SDR#4
H1: ='Control Panel'!F32 -> Questar Gas Company
H2: ='Control Panel'!F33 -> Docket No. 12-057-08
C5: Standard Data Request #4
C6: Supplier Non-Gas Costs Recovered at Current Rates
C9: (A) | D9: (B) | E9: (C) | F9: (D) | G9: (E)
B10: 1 | C10: Rate Schedule | D10: Season | E10: Sales Dth | F10: SNG Rate | G10: SNG Revenue
B12: =B10+1 -> 2 | C12: GS | D12: winter | E12: ='Utah Summary-by class'!B8 -> 69690825 | F12: ='Utah Summary-by class'!J8 -> 1.17116 | G12: =E12*F12 -> 81619106.61
B13: =B12+1 -> 3 | D13: summer | E13: ='Utah Summary-by class'!B9 -> 27893376 | F13: ='Utah Summary-by class'!J9 -> 0.54987 | G13: =E13*F13 -> 15337730.66
B15: =B13+1 -> 4 | C15: FS | D15: winter | E15: ='Utah Summary-by class'!B13 -> 2605615 | F15: ='Utah Summary-by class'!J13 -> 1.14067 | G15: =E15*F15 -> 2972146.862
B16: =B15+1 -> 5 | D16: summer | E16: ='Utah Summary-by class'!B14 -> 2711481 | F16: ='Utah Summary-by class'!J14 -> 0.54985 | G16: =E16*F16 -> 1490907.828
B18: =B16+1 -> 6 | C18: NGV | D18: annual | E18: ='Utah Summary-by class'!B19 -> 560400 | F18: ='Utah Summary-by class'!J19 -> 0.84514 | G18: =E18*F18 -> 473616.456
B20: =B18+1 -> 7 | C20: IS | D20: annual | E20: ='Utah Summary-by class'!B24 -> 2683531 | F20: ='Utah Summary-by class'!J24 -> 0.17919 | G20: =E20*F20 -> 480861.9199
B23: =B20+1 -> 8 | C23: Total Supplier Non-Gas Costs | E23: =SUM(E12:E20) -> 106145228 | G23: =SUM(G12:G20) -> 102374370.3

Sheet Wy SDR#1
A1: Wyoming Standard Data Request #1
A2: Global Insights Forecast

Sheet Ut 1.1
H1: Questar Gas Company
H2: ='Control Panel'!$F$33 -> Docket No. 12-057-08
H3: Exhibit 1.1
C4: Test Year Cost of Questar Gas' Production
C5: =CONCATENATE('Control Panel'!F40," through ",'Control Panel'!F41) -> Sep-12 through Aug-13
A7: (A) | B7: (B) | C7: (C) | D7: (D) | E7: (E) | F7: (F) | G7: (G) | H7: (H)
E8: Base Year | F8: Market | G8: Royalty | H8: Test Year
A9: Field Name | B9: Well Name | C9: Formation | D9: Price $ | E9: Dth | F9: Value $ | G9: Rate % | H9: Royalty $
A11: ACE UNIT (CO) | B11: ACE UNIT 2 FT UN | C11: FORT UNION | D11: =IF(LEFT(B11,12)=[3]Inputs!$C$24,[3]Inputs!$D$24,IF(LEFT(B11,13)=[3]Inputs!$C$25,[3]Inputs!$D$24,[3]Inputs!$D$26)) -> 3.348253974 | E11: 61243 | F11: =D11*E11 -> 205057.1181 | G11: 0.1268519763 | H11: =F11*G11 -> 26011.90069
B12: ACE UNIT 7 LOWER FT UN | C12: FORT UNION | D12: =IF(LEFT(B12,12)=[3]Inputs!$C$24,[3]Inputs!$D$24,IF(LEFT(B12,13)=[3]Inputs!$C$25,[3]Inputs!$D$24,[3]Inputs!$D$26)) -> 3.348253974 | E12: 4344 | F12: =D12*E12 -> 14544.81526 | G12: 0.1268519763 | H12: =F12*G12 -> 1845.038561
B13: ACE UNIT 10 FT UN | C13: MESAVERDE | D13: =IF(LEFT(B13,12)=[3]Inputs!$C$24,[3]Inputs!$D$24,IF(LEFT(B13,13)=[3]Inputs!$C$25,[3]Inputs!$D$24,[3]Inputs!$D$26)) -> 3.348253974 | E13: 39110 | F13: 130950.2129 | G13: 0.1268519763 | H13: 16611.29331
B14: ACE UNIT 12 FT UN | C14: FORT UNION | D14: =IF(LEFT(B14,12)=[3]Inputs!$C$24,[3]Inputs!$D$24,IF(LEFT(B14,13)=[3]Inputs!$C$25,[3]Inputs!$D$24,[3]Inputs!$D$26)) -> 3.348253974 | E14: 110399 | F14: 369643.8905 | G14: 0.1268519763 | H14: 46890.05804
B15: ACE UNIT 11 FT UN | C15: FORT UNION | D15: =IF(LEFT(B15,12)=[3]Inputs!$C$24,[3]Inputs!$D$24,IF(LEFT(B15,13)=[3]Inputs!$C$25,[3]Inputs!$D$24,[3]Inputs!$D$26)) -> 3.348253974 | E15: 32976 | F15: 110412.023 | G15: 0.1268519763 | H15: 14005.98333
B16: ACE UNIT 13 FT UN | C16: FORT UNION | D16: =IF(LEFT(B16,12)=[3]Inputs!$C$24,[3]Inputs!$D$24,IF(LEFT(B16,13)=[3]Inputs!$C$25,[3]Inputs!$D$24,[3]Inputs!$D$26)) -> 3.348253974 | E16: 49855 | F16: 166927.2019 | G16: 0.1268519763 | H16: 21175.04546
A17: E HIAW (CO) | B17: HIAWATHA UNIT 1 FT UN | C17: FORT UNION | D17: =IF(LEFT(B17,12)=[3]Inputs!$C$24,[3]Inputs!$D$24,IF(LEFT(B17,13)=[3]Inputs!$C$25,[3]Inputs!$D$24,[3]Inputs!$D$26)) -> 3.348253974 | E17: 33059 | F17: 110689.9281 | G17: 0.1925 | H17: 21307.81116
B18: F WILSON A 2 WAS | C18: WASATCH | D18: =IF(LEFT(B18,12)=[3]Inputs!$C$24,[3]Inputs!$D$24,IF(LEFT(B18,13)=[3]Inputs!$C$25,[3]Inputs!$D$24,[3]Inputs!$D$26)) -> 3.348253974 | E18: 107043 | F18: 358407.1501 | G18: 0.1925 | H18: 68993.3764
B19: F WILSON B 3 WAS | C19: WASATCH | D19: =IF(LEFT(B19,12)=[3]Inputs!$C$24,[3]Inputs!$D$24,IF(LEFT(B19,13)=[3]Inputs!$C$25,[3]Inputs!$D$24,[3]Inputs!$D$26)) -> 3.348253974 | E19: 194026 | F19: 649648.3256 | G19: 0.1625 | H19: 105567.8529
B20: F WILSON B 6 WAS | C20: WASATCH | D20: =IF(LEFT(B20,12)=[3]Inputs!$C$24,[3]Inputs!$D$24,IF(LEFT(B20,13)=[3]Inputs!$C$25,[3]Inputs!$D$24,[3]Inputs!$D$26)) -> 3.348253974 | E20: 111825 | F20: 374418.5007 | G20: 0.1625 | H20: 60843.00636
B21: F WILSON A 9 WAS | C21: WASATCH | D21: =IF(LEFT(B21,12)=[3]Inputs!$C$24,[3]Inputs!$D$24,IF(LEFT(B21,13)=[3]Inputs!$C$25,[3]Inputs!$D$24,[3]Inputs!$D$26)) -> 3.348253974 | E21: 12987 | F21: 43483.77436 | G21: 0.1925 | H21: 8370.626565
B22: F WILSON B 12 FT UN | C22: FORT UNION | D22: =IF(LEFT(B22,12)=[3]Inputs!$C$24,[3]Inputs!$D$24,IF(LEFT(B22,13)=[3]Inputs!$C$25,[3]Inputs!$D$24,[3]Inputs!$D$26)) -> 3.348253974 | E22: 63096 | F22: 211261.4327 | G22: 0.1625 | H22: 34329.98282
B23: F WILSON B 2 UNIT (HIAW) FT UN | C23: FORT UNION | D23: =IF(LEFT(B23,12)=[3]Inputs!$C$24,[3]Inputs!$D$24,IF(LEFT(B23,13)=[3]Inputs!$C$25,[3]Inputs!$D$24,[3]Inputs!$D$26)) -> 3.348253974 | E23: 46986 | F23: 157321.0612 | G23: 0.1625 | H23: 25564.67245
B24: F WILSON A 22 FT UN | C24: FORT UNION | D24: =IF(LEFT(B24,12)=[3]Inputs!$C$24,[3]Inputs!$D$24,IF(LEFT(B24,13)=[3]Inputs!$C$25,[3]Inputs!$D$24,[3]Inputs!$D$26)) -> 3.348253974 | E24: 31396 | F24: 105121.7818 | G24: 0.1925 | H24: 20235.94299
B25: STLD 3712100 NE4 2 WAS | C25: WASATCH | D25: =IF(LEFT(B25,12)=[3]Inputs!$C$24,[3]Inputs!$D$24,IF(LEFT(B25,13)=[3]Inputs!$C$25,[3]Inputs!$D$24,[3]Inputs!$D$26)) -> 3.348253974 | E25: 18530 | F25: 62043.14614 | G25: 0.13375 | H25: 8298.270796
B26: STLD 3712100 SE4 4 WAS | C26: WASATCH | D26: =IF(LEFT(B26,12)=[3]Inputs!$C$24,[3]Inputs!$D$24,IF(LEFT(B26,13)=[3]Inputs!$C$25,[3]Inputs!$D$24,[3]Inputs!$D$26)) -> 3.348253974 | E26: 43577 | F26: 145906.8634 | G26: 0.1375 | H26: 20062.19372
B27: STLD 3712100 W2 5 FT UN | C27: FORT UNION | D27: =IF(LEFT(B27,12)=[3]Inputs!$C$24,[3]Inputs!$D$24,IF(LEFT(B27,13)=[3]Inputs!$C$25,[3]Inputs!$D$24,[3]Inputs!$D$26)) -> 3.348253974 | E27: 24721 | F27: 82772.18649 | G27: 0.13375 | H27: 11070.77994
B28: G KUYKENDALL A 8 FT UN | C28: FORT UNION | D28: =IF(LEFT(B28,12)=[3]Inputs!$C$24,[3]Inputs!$D$24,IF(LEFT(B28,13)=[3]Inputs!$C$25,[3]Inputs!$D$24,[3]Inputs!$D$26)) -> 3.348253974 | E28: 8293 | F28: 27767.07021 | G28: 0.1925 | H28: 5345.161015
B29: KS WHITFORD 1 WAS | C29: WASATCH | D29: =IF(LEFT(B29,12)=[3]Inputs!$C$24,[3]Inputs!$D$24,IF(LEFT(B29,13)=[3]Inputs!$C$25,[3]Inputs!$D$24,[3]Inputs!$D$26)) -> 3.348253974 | E29: 61699 | F29: 206583.9219 | G29: 0.155 | H29: 32020.5079
B30: F WILSON B 24 FT UN | C30: FORT UNION | D30: =IF(LEFT(B30,12)=[3]Inputs!$C$24,[3]Inputs!$D$24,IF(LEFT(B30,13)=[3]Inputs!$C$25,[3]Inputs!$D$24,[3]Inputs!$D$26)) -> 3.348253974 | E30: 67341 | F30: 225474.7709 | G30: 0.1625 | H30: 36639.65027
B31: F WILSON B 25 FT UN | C31: FORT UNION | D31: =IF(LEFT(B31,12)=[3]Inputs!$C$24,[3]Inputs!$D$24,IF(LEFT(B31,13)=[3]Inputs!$C$25,[3]Inputs!$D$24,[3]Inputs!$D$26)) -> 3.348253974 | E31: 3414 | F31: 11430.93907 | G31: 0.1625 | H31: 1857.527598
B32: F WILSON A 26 FT UN | C32: FORT UNION | D32: =IF(LEFT(B32,12)=[3]Inputs!$C$24,[3]Inputs!$D$24,IF(LEFT(B32,13)=[3]Inputs!$C$25,[3]Inputs!$D$24,[3]Inputs!$D$26)) -> 3.348253974 | E32: 61384 | F32: 205529.2219 | G32: 0.1925 | H32: 39564.37522
B33: HIAWATHA STATELAND 6 FT UN | C33: FORT UNION | D33: =IF(LEFT(B33,12)=[3]Inputs!$C$24,[3]Inputs!$D$24,IF(LEFT(B33,13)=[3]Inputs!$C$25,[3]Inputs!$D$24,[3]Inputs!$D$26)) -> 3.348253974 | E33: 12301 | F33: 41186.87214 | G33: 0.13375 | H33: 5508.744148
B34: G KUYKENDALL 9 FT UN | C34: FORT UNION | D34: =IF(LEFT(B34,12)=[3]Inputs!$C$24,[3]Inputs!$D$24,IF(LEFT(B34,13)=[3]Inputs!$C$25,[3]Inputs!$D$24,[3]Inputs!$D$26)) -> 3.348253974 | E34: 26512 | F34: 88768.90936 | G34: 0.1925 | H34: 17088.01505
B35: F WILSON A 20 FT UN | C35: FORT UNION | D35: =IF(LEFT(B35,12)=[3]Inputs!$C$24,[3]Inputs!$D$24,IF(LEFT(B35,13)=[3]Inputs!$C$25,[3]Inputs!$D$24,[3]Inputs!$D$26)) -> 3.348253974 | E35: 1078 | F35: 3609.417784 | G35: 0.1925 | H35: 694.8129234
B36: F WILSON A 20 LEW/LAN/FT UN | C36: LEWIS/LANCE/FT U | D36: =IF(LEFT(B36,12)=[3]Inputs!$C$24,[3]Inputs!$D$24,IF(LEFT(B36,13)=[3]Inputs!$C$25,[3]Inputs!$D$24,[3]Inputs!$D$26)) -> 3.348253974 | E36: 20456 | F36: 68491.88329 | G36: 0.1925 | H36: 13184.68753
B37: F WILSON 32 MESA | C37: MESAVERDE | D37: =IF(LEFT(B37,12)=[3]Inputs!$C$24,[3]Inputs!$D$24,IF(LEFT(B37,13)=[3]Inputs!$C$25,[3]Inputs!$D$24,[3]Inputs!$D$26)) -> 3.348253974 | E37: 5319 | F37: 17809.36289 | G37: 0.1925 | H37: 3428.302356
B38: F WILSON 32 LEWIS | C38: LEWIS | D38: =IF(LEFT(B38,12)=[3]Inputs!$C$24,[3]Inputs!$D$24,IF(LEFT(B38,13)=[3]Inputs!$C$25,[3]Inputs!$D$24,[3]Inputs!$D$26)) -> 3.348253974 | E38: 38143 | F38: 127712.4513 | G38: 0.1925 | H38: 24584.64688
B39: F WILSON 32 LANCE | C39: LANCE | D39: =IF(LEFT(B39,12)=[3]Inputs!$C$24,[3]Inputs!$D$24,IF(LEFT(B39,13)=[3]Inputs!$C$25,[3]Inputs!$D$24,[3]Inputs!$D$26)) -> 3.348253974 | E39: 43009 | F39: 144005.0552 | G39: 0.1925 | H39: 27720.97312
B40: HIAWATHA STLD 7 FT UN | C40: FORT UNION | D40: =IF(LEFT(B40,12)=[3]Inputs!$C$24,[3]Inputs!$D$24,IF(LEFT(B40,13)=[3]Inputs!$C$25,[3]Inputs!$D$24,[3]Inputs!$D$26)) -> 3.348253974 | E40: 45869 | F40: 153581.0615 | G40: 0.1375 | H40: 21117.39596
B41: F WILSON 33 LEWIS | C41: LEWIS | D41: =IF(LEFT(B41,12)=[3]Inputs!$C$24,[3]Inputs!$D$24,IF(LEFT(B41,13)=[3]Inputs!$C$25,[3]Inputs!$D$24,[3]Inputs!$D$26)) -> 3.348253974 | E41: 11710 | F41: 39208.05404 | G41: 0.1925 | H41: 7547.550402
B42: F WILSON 33 LANCE | C42: LANCE | D42: =IF(LEFT(B42,12)=[3]Inputs!$C$24,[3]Inputs!$D$24,IF(LEFT(B42,13)=[3]Inputs!$C$25,[3]Inputs!$D$24,[3]Inputs!$D$26)) -> 3.348253974 | E42: 11710 | F42: 39208.05404 | G42: 0.1925 | H42: 7547.550402
B43: F WILSON 34 LEW/LAN/FT UN | C43: LEWIS/LANCE/FT U | D43: =IF(LEFT(B43,12)=[3]Inputs!$C$24,[3]Inputs!$D$24,IF(LEFT(B43,13)=[3]Inputs!$C$25,[3]Inputs!$D$24,[3]Inputs!$D$26)) -> 3.348253974 | E43: 48625 | F43: 162808.8495 | G43: 0.1625 | H43: 26456.43804
B44: F WILSON 35 LEW/LAN/FT UN | C44: LEWIS/LANCE/FT U | D44: =IF(LEFT(B44,12)=[3]Inputs!$C$24,[3]Inputs!$D$24,IF(LEFT(B44,13)=[3]Inputs!$C$25,[3]Inputs!$D$24,[3]Inputs!$D$26)) -> 3.348253974 | E44: 106616 | F44: 356977.4457 | G44: 0.1925 | H44: 68718.1583
B45: F WILSON 29E (DD) FT UN | C45: FORT UNION | D45: =IF(LEFT(B45,12)=[3]Inputs!$C$24,[3]Inputs!$D$24,IF(LEFT(B45,13)=[3]Inputs!$C$25,[3]Inputs!$D$24,[3]Inputs!$D$26)) -> 3.348253974 | E45: 30759 | F45: 102988.944 | G45: 0.1625 | H45: 16735.7034
B46: F WILSON 37 MESA | C46: FORT UNION | D46: =IF(LEFT(B46,12)=[3]Inputs!$C$24,[3]Inputs!$D$24,IF(LEFT(B46,13)=[3]Inputs!$C$25,[3]Inputs!$D$24,[3]Inputs!$D$26)) -> 3.348253974 | E46: 28230 | F46: 94521.20969 | G46: 0.2325 | H46: 21976.18125
B47: F WILSON 37 LEW/LNC/FTUN | C47: FORT UNION | D47: =IF(LEFT(B47,12)=[3]Inputs!$C$24,[3]Inputs!$D$24,IF(LEFT(B47,13)=[3]Inputs!$C$25,[3]Inputs!$D$24,[3]Inputs!$D$26)) -> 3.348253974 | E47: 159976 | F47: 535640.2778 | G47: 0.1625 | H47: 87041.54514
B48: F WILSON 33 FT UN | C48: FORT UNION | D48: =IF(LEFT(B48,12)=[3]Inputs!$C$24,[3]Inputs!$D$24,IF(LEFT(B48,13)=[3]Inputs!$C$25,[3]Inputs!$D$24,[3]Inputs!$D$26)) -> 3.348253974 | E48: 609590 | F48: 2041062.14 | G48: 0.1925 | H48: 392904.462
B49: F WILSON 35 MESA | C49: MESAVERDE | D49: =IF(LEFT(B49,12)=[3]Inputs!$C$24,[3]Inputs!$D$24,IF(LEFT(B49,13)=[3]Inputs!$C$25,[3]Inputs!$D$24,[3]Inputs!$D$26)) -> 3.348253974 | E49: 2178 | F49: 7292.497156 | G49: 0.1925 | H49: 1403.805702
A50: HIAW DEEP (CO) | B50: HIAWATHA DEEP UNIT 1 NUGGET | C50: NUGGET | D50: =IF(LEFT(B50,12)=[3]Inputs!$C$24,[3]Inputs!$D$24,IF(LEFT(B50,13)=[3]Inputs!$C$25,[3]Inputs!$D$24,[3]Inputs!$D$26)) -> 3.348253974 | E50: 80088 | F50: 268154.9643 | G50: 0.1723962084 | H50: 46228.89909
B51: HIAWATHA DEEP UNIT 3 NUGGET | C51: NUGGET | D51: =IF(LEFT(B51,12)=[3]Inputs!$C$24,[3]Inputs!$D$24,IF(LEFT(B51,13)=[3]Inputs!$C$25,[3]Inputs!$D$24,[3]Inputs!$D$26)) -> 3.348253974 | E51: 304919 | F51: 1020946.254 | G51: 0.1714959958 | H51: 175088.1944
B52: HIAWATHA DEEP UNIT 2 NUGGET | C52: NUGGET | D52: =IF(LEFT(B52,12)=[3]Inputs!$C$24,[3]Inputs!$D$24,IF(LEFT(B52,13)=[3]Inputs!$C$25,[3]Inputs!$D$24,[3]Inputs!$D$26)) -> 3.348253974 | E52: 21555 | F52: 72171.61441 | G52: 0.172395903 | H52: 12442.09064
A53: JACKS DRAW (CO) | B53: JACKS DRAW UNIT 2 FT UN | C53: FORT UNION | D53: =IF(LEFT(B53,12)=[3]Inputs!$C$24,[3]Inputs!$D$24,IF(LEFT(B53,13)=[3]Inputs!$C$25,[3]Inputs!$D$24,[3]Inputs!$D$26)) -> 3.348253974 | E53: 44791 | F53: 149971.6438 | G53: 0.1396875 | H53: 20949.16399
B54: JACKS DRAW UNIT 3 FT UN | C54: FORT UNION | D54: =IF(LEFT(B54,12)=[3]Inputs!$C$24,[3]Inputs!$D$24,IF(LEFT(B54,13)=[3]Inputs!$C$25,[3]Inputs!$D$24,[3]Inputs!$D$26)) -> 3.348253974 | E54: 23826 | F54: 79775.49919 | G54: 0.1396875 | H54: 11143.64004
B55: JACKS DRAW UNIT 9 FT UN | C55: FORT UNION | D55: =IF(LEFT(B55,12)=[3]Inputs!$C$24,[3]Inputs!$D$24,IF(LEFT(B55,13)=[3]Inputs!$C$25,[3]Inputs!$D$24,[3]Inputs!$D$26)) -> 3.348253974 | E55: 26828 | F55: 89826.95762 | G55: 0.1396875 | H55: 12547.70314
B56: JACKS DRAW UNIT 5 FT UN | C56: FORT UNION | D56: =IF(LEFT(B56,12)=[3]Inputs!$C$24,[3]Inputs!$D$24,IF(LEFT(B56,13)=[3]Inputs!$C$25,[3]Inputs!$D$24,[3]Inputs!$D$26)) -> 3.348253974 | E56: 2433 | F56: 8146.301919 | G56: 0.1489132823 | H56: 1213.092558
B57: JACKS DRAW UNIT 8 FT UN | C57: FORT UNION | D57: =IF(LEFT(B57,12)=[3]Inputs!$C$24,[3]Inputs!$D$24,IF(LEFT(B57,13)=[3]Inputs!$C$25,[3]Inputs!$D$24,[3]Inputs!$D$26)) -> 3.348253974 | E57: 4253 | F57: 14240.12415 | G57: 0.1489132823 | H57: 2120.543628
B58: JACKS DRAW UNIT 17 FT UN | C58: FORT UNION | D58: =IF(LEFT(B58,12)=[3]Inputs!$C$24,[3]Inputs!$D$24,IF(LEFT(B58,13)=[3]Inputs!$C$25,[3]Inputs!$D$24,[3]Inputs!$D$26)) -> 3.348253974 | E58: 53048 | F58: 177618.1768 | G58: 0.1396875 | H58: 24811.03907
B59: JACKS DRAW UNIT 19 FT UN | C59: FORT UNION | D59: =IF(LEFT(B59,12)=[3]Inputs!$C$24,[3]Inputs!$D$24,IF(LEFT(B59,13)=[3]Inputs!$C$25,[3]Inputs!$D$24,[3]Inputs!$D$26)) -> 3.348253974 | E59: 236896 | F59: 793187.9734 | G59: 0.149541643 | H59: 118614.6327
B60: JACKS DRAW UNIT 18 FT UN | C60: FORT UNION | D60: =IF(LEFT(B60,12)=[3]Inputs!$C$24,[3]Inputs!$D$24,IF(LEFT(B60,13)=[3]Inputs!$C$25,[3]Inputs!$D$24,[3]Inputs!$D$26)) -> 3.348253974 | E60: 73057 | F60: 244613.3906 | G60: 0.1396877 | H60: 34169.48192
B61: JACKS DRAW 20 FT UN | C61: FORT UNION | D61: =IF(LEFT(B61,12)=[3]Inputs!$C$24,[3]Inputs!$D$24,IF(LEFT(B61,13)=[3]Inputs!$C$25,[3]Inputs!$D$24,[3]Inputs!$D$26)) -> 3.348253974 | E61: 57787 | F61: 193485.5524 | G61: 0.1396877 | H61: 27027.5518
A62: LO HORSE DR (CO) | B62: LOWER HORSE DRAW 11-1 MANCOS B | C62: MANCOS B | D62: =IF(LEFT(B62,12)=[3]Inputs!$C$24,[3]Inputs!$D$24,IF(LEFT(B62,13)=[3]Inputs!$C$25,[3]Inputs!$D$24,[3]Inputs!$D$26)) -> 3.348253974 | E62: 2802 | F62: 9381.807635 | G62: 0.125 | H62: 1172.725954
B63: LOWER HORSE DRAW 12-2 MANCOS B | C63: MANCOS B | D63: =IF(LEFT(B63,12)=[3]Inputs!$C$24,[3]Inputs!$D$24,IF(LEFT(B63,13)=[3]Inputs!$C$25,[3]Inputs!$D$24,[3]Inputs!$D$26)) -> 3.348253974 | E63: 26655 | F63: 89247.70968 | G63: 0.125 | H63: 11155.96371
B64: LOWER HORSE DRAW 10-1 MANCOS B | C64: MANCOS B | D64: =IF(LEFT(B64,12)=[3]Inputs!$C$24,[3]Inputs!$D$24,IF(LEFT(B64,13)=[3]Inputs!$C$25,[3]Inputs!$D$24,[3]Inputs!$D$26)) -> 3.348253974 | E64: 3020 | F64: 10111.727 | G64: 0.125 | H64: 1263.965875
B65: LOWER HORSE DRAW 10-2 MB SILT | C65: MANCOS B SILT | D65: =IF(LEFT(B65,12)=[3]Inputs!$C$24,[3]Inputs!$D$24,IF(LEFT(B65,13)=[3]Inputs!$C$25,[3]Inputs!$D$24,[3]Inputs!$D$26)) -> 3.348253974 | E65: 5914 | F65: 19801.574 | G65: 0.125 | H65: 2475.19675
B66: LOWER HORSE FED 11-5 MANCOS B | C66: MANCOS B | D66: =IF(LEFT(B66,12)=[3]Inputs!$C$24,[3]Inputs!$D$24,IF(LEFT(B66,13)=[3]Inputs!$C$25,[3]Inputs!$D$24,[3]Inputs!$D$26)) -> 3.348253974 | E66: 29959 | F66: 100310.3408 | G66: 0.125 | H66: 12538.7926
B67: LOWER HORSE FED 11-5 MB SILT | C67: MANCOS B SILT | D67: =IF(LEFT(B67,12)=[3]Inputs!$C$24,[3]Inputs!$D$24,IF(LEFT(B67,13)=[3]Inputs!$C$25,[3]Inputs!$D$24,[3]Inputs!$D$26)) -> 3.348253974 | E67: 19563 | F67: 65501.8925 | G67: 0.125 | H67: 8187.736562
A68: POWDER WASH (CO) | B68: CARL ALLEN B 4 WAS | C68: WASATCH | D68: =IF(LEFT(B68,12)=[3]Inputs!$C$24,[3]Inputs!$D$24,IF(LEFT(B68,13)=[3]Inputs!$C$25,[3]Inputs!$D$24,[3]Inputs!$D$26)) -> 3.348253974 | E68: 3856 | F68: 12910.86732 | G68: 0.1100461 | H68: 1420.790597
B69: CARL ALLEN B 6 FT UN | C69: FORT UNION | D69: =IF(LEFT(B69,12)=[3]Inputs!$C$24,[3]Inputs!$D$24,IF(LEFT(B69,13)=[3]Inputs!$C$25,[3]Inputs!$D$24,[3]Inputs!$D$26)) -> 3.348253974 | E69: 49724 | F69: 166488.5806 | G69: 0.1100461 | H69: 18321.41899
B70: CARL ALLEN B 6 LOWER FT UN | C70: FORT UNION | D70: =IF(LEFT(B70,12)=[3]Inputs!$C$24,[3]Inputs!$D$24,IF(LEFT(B70,13)=[3]Inputs!$C$25,[3]Inputs!$D$24,[3]Inputs!$D$26)) -> 3.348253974 | E70: 49724 | F70: 166488.5806 | G70: 0.1100461 | H70: 18321.41899
B71: CARL ALLEN B 7 FT UN | C71: FORT UNION | D71: =IF(LEFT(B71,12)=[3]Inputs!$C$24,[3]Inputs!$D$24,IF(LEFT(B71,13)=[3]Inputs!$C$25,[3]Inputs!$D$24,[3]Inputs!$D$26)) -> 3.348253974 | E71: 50101 | F71: 167750.8724 | G71: 0.1100461 | H71: 18460.32927
B72: CARL ALLEN A 8 FT UN | C72: FORT UNION | D72: =IF(LEFT(B72,12)=[3]Inputs!$C$24,[3]Inputs!$D$24,IF(LEFT(B72,13)=[3]Inputs!$C$25,[3]Inputs!$D$24,[3]Inputs!$D$26)) -> 3.348253974 | E72: 38520 | F72: 128974.7431 | G72: 0.1100461 | H72: 14193.16747
B73: CARL ALLEN B 10 WAS | C73: WASATCH | D73: =IF(LEFT(B73,12)=[3]Inputs!$C$24,[3]Inputs!$D$24,IF(LEFT(B73,13)=[3]Inputs!$C$25,[3]Inputs!$D$24,[3]Inputs!$D$26)) -> 3.348253974 | E73: 4571 | F73: 15304.86892 | G73: 0.1100461 | H73: 1684.241135
B74: CARL ALLEN A 11 FT UN | C74: FORT UNION | D74: =IF(LEFT(B74,12)=[3]Inputs!$C$24,[3]Inputs!$D$24,IF(LEFT(B74,13)=[3]Inputs!$C$25,[3]Inputs!$D$24,[3]Inputs!$D$26)) -> 3.348253974 | E74: 5730 | F74: 19185.49527 | G74: 0.1100461 | H74: 2111.288931
B75: CARL ALLEN A 11 LOWER FT UN | C75: FORT UNION | D75: =IF(LEFT(B75,12)=[3]Inputs!$C$24,[3]Inputs!$D$24,IF(LEFT(B75,13)=[3]Inputs!$C$25,[3]Inputs!$D$24,[3]Inputs!$D$26)) -> 3.348253974 | E75: 108891 | F75: 364594.7235 | G75: 0.110046 | H75: 40122.19094
B76: CARL ALLEN B 15 WAS | C76: WASATCH | D76: =IF(LEFT(B76,12)=[3]Inputs!$C$24,[3]Inputs!$D$24,IF(LEFT(B76,13)=[3]Inputs!$C$25,[3]Inputs!$D$24,[3]Inputs!$D$26)) -> 3.348253974 | E76: 16411 | F76: =D76*E76 -> 54948.19597 | G76: 0.1100461 | H76: =F76*G76 -> 6046.834668
B77: CARL ALLEN B 17 WAS | C77: WASATCH | D77: =IF(LEFT(B77,12)=[3]Inputs!$C$24,[3]Inputs!$D$24,IF(LEFT(B77,13)=[3]Inputs!$C$25,[3]Inputs!$D$24,[3]Inputs!$D$26)) -> 3.348253974 | E77: 14080 | F77: 47143.41596 | G77: 0.1100461 | H77: 5187.949067
B78: CARL ALLEN A 19 FT UN | C78: FORT UNION | D78: =IF(LEFT(B78,12)=[3]Inputs!$C$24,[3]Inputs!$D$24,IF(LEFT(B78,13)=[3]Inputs!$C$25,[3]Inputs!$D$24,[3]Inputs!$D$26)) -> 3.348253974 | E78: 86358 | F78: 289148.5167 | G78: 0.1100461 | H78: 31819.66658
B79: CARL ALLEN A 20 FT UN | C79: FORT UNION | D79: =IF(LEFT(B79,12)=[3]Inputs!$C$24,[3]Inputs!$D$24,IF(LEFT(B79,13)=[3]Inputs!$C$25,[3]Inputs!$D$24,[3]Inputs!$D$26)) -> 3.348253974 | E79: 26346 | F79: 88213.0992 | G79: 0.1100461 | H79: 9707.507536
B80: BW MUSSER A 1 WAS | C80: WASATCH | D80: =IF(LEFT(B80,12)=[3]Inputs!$C$24,[3]Inputs!$D$24,IF(LEFT(B80,13)=[3]Inputs!$C$25,[3]Inputs!$D$24,[3]Inputs!$D$26)) -> 3.348253974 | E80: 8651 | F80: 28965.74513 | G80: 0.1100461 | H80: 3187.567285
B81: BW MUSSER B 21 FT UN | C81: FORT UNION | D81: =IF(LEFT(B81,12)=[3]Inputs!$C$24,[3]Inputs!$D$24,IF(LEFT(B81,13)=[3]Inputs!$C$25,[3]Inputs!$D$24,[3]Inputs!$D$26)) -> 3.348253974 | E81: 48049 | F81: 160880.2552 | G81: 0.1100461 | H81: 17704.24465
B82: BW MUSSER B 6 WAS | C82: WASATCH | D82: =IF(LEFT(B82,12)=[3]Inputs!$C$24,[3]Inputs!$D$24,IF(LEFT(B82,13)=[3]Inputs!$C$25,[3]Inputs!$D$24,[3]Inputs!$D$26)) -> 3.348253974 | E82: 10244 | F82: 34299.51371 | G82: 0.1100461 | H82: 3774.527716
B83: BW MUSSER B 10 FT UN | C83: FORT UNION | D83: =IF(LEFT(B83,12)=[3]Inputs!$C$24,[3]Inputs!$D$24,IF(LEFT(B83,13)=[3]Inputs!$C$25,[3]Inputs!$D$24,[3]Inputs!$D$26)) -> 3.348253974 | E83: 12649 | F83: 42352.06452 | G83: 0.1100461 | H83: 4660.679527
B84: BW MUSSER B 11 FT UN | C84: FORT UNION | D84: =IF(LEFT(B84,12)=[3]Inputs!$C$24,[3]Inputs!$D$24,IF(LEFT(B84,13)=[3]Inputs!$C$25,[3]Inputs!$D$24,[3]Inputs!$D$26)) -> 3.348253974 | E84: 13680 | F84: 45804.11437 | G84: 0.1100461 | H84: 5040.56415
B85: JC DONNELL B 3 WAS | C85: WASATCH | D85: =IF(LEFT(B85,12)=[3]Inputs!$C$24,[3]Inputs!$D$24,IF(LEFT(B85,13)=[3]Inputs!$C$25,[3]Inputs!$D$24,[3]Inputs!$D$26)) -> 3.348253974 | E85: 53716 | F85: 179854.8105 | G85: 0.1100461 | H85: 19792.32046
B86: JC DONNELL B 5 FT UN | C86: FORT UNION | D86: =IF(LEFT(B86,12)=[3]Inputs!$C$24,[3]Inputs!$D$24,IF(LEFT(B86,13)=[3]Inputs!$C$25,[3]Inputs!$D$24,[3]Inputs!$D$26)) -> 3.348253974 | E86: 22016 | F86: 73715.15949 | G86: 0.1100461 | H86: 8112.065813
B87: JC DONNELL B 9 FT UN | C87: FORT UNION | D87: =IF(LEFT(B87,12)=[3]Inputs!$C$24,[3]Inputs!$D$24,IF(LEFT(B87,13)=[3]Inputs!$C$25,[3]Inputs!$D$24,[3]Inputs!$D$26)) -> 3.348253974 | E87: 25759 | F87: 86247.67412 | G87: 0.1100461 | H87: 9491.220171
B88: JC DONNELL B 10 FT UN | C88: FORT UNION | D88: =IF(LEFT(B88,12)=[3]Inputs!$C$24,[3]Inputs!$D$24,IF(LEFT(B88,13)=[3]Inputs!$C$25,[3]Inputs!$D$24,[3]Inputs!$D$26)) -> 3.348253974 | E88: 38235 | F88: 128020.4907 | G88: 0.1100461 | H88: 14088.15572
B89: H STEWART A 1 FT UN | C89: FORT UNION | D89: =IF(LEFT(B89,12)=[3]Inputs!$C$24,[3]Inputs!$D$24,IF(LEFT(B89,13)=[3]Inputs!$C$25,[3]Inputs!$D$24,[3]Inputs!$D$26)) -> 3.348253974 | E89: 14247 | F89: 47702.57437 | G89: 0.1100461 | H89: 5249.482269
B90: BW MUSSER B 13 FT UN | C90: FORT UNION | D90: =IF(LEFT(B90,12)=[3]Inputs!$C$24,[3]Inputs!$D$24,IF(LEFT(B90,13)=[3]Inputs!$C$25,[3]Inputs!$D$24,[3]Inputs!$D$26)) -> 3.348253974 | E90: 31021 | F90: 103866.1865 | G90: 0.1100461 | H90: 11430.06875
B91: BW MUSSER A 14 FT UN | C91: FORT UNION | D91: =IF(LEFT(B91,12)=[3]Inputs!$C$24,[3]Inputs!$D$24,IF(LEFT(B91,13)=[3]Inputs!$C$25,[3]Inputs!$D$24,[3]Inputs!$D$26)) -> 3.348253974 | E91: 22916 | F91: 76728.58807 | G91: 0.1100461 | H91: 8443.681876
B92: BW MUSSER 15 UPPER FT UN | C92: FORT UNION | D92: =IF(LEFT(B92,12)=[3]Inputs!$C$24,[3]Inputs!$D$24,IF(LEFT(B92,13)=[3]Inputs!$C$25,[3]Inputs!$D$24,[3]Inputs!$D$26)) -> 3.348253974 | E92: 11045 | F92: 36981.46514 | G92: 0.1100461 | H92: 4069.666011
B93: BW MUSSER A 16 WAS | C93: WASATCH | D93: =IF(LEFT(B93,12)=[3]Inputs!$C$24,[3]Inputs!$D$24,IF(LEFT(B93,13)=[3]Inputs!$C$25,[3]Inputs!$D$24,[3]Inputs!$D$26)) -> 3.348253974 | E93: 22439 | F93: 75131.47092 | G93: 0.110046 | H93: 8267.917849
B94: BW MUSSER B 18 FT UN | C94: FORT UNION | D94: =IF(LEFT(B94,12)=[3]Inputs!$C$24,[3]Inputs!$D$24,IF(LEFT(B94,13)=[3]Inputs!$C$25,[3]Inputs!$D$24,[3]Inputs!$D$26)) -> 3.348253974 | E94: 54376 | F94: 182064.6581 | G94: 0.1100461 | H94: 20035.50557
B95: BW MUSSER B 19 FT UN | C95: FORT UNION | D95: =IF(LEFT(B95,12)=[3]Inputs!$C$24,[3]Inputs!$D$24,IF(LEFT(B95,13)=[3]Inputs!$C$25,[3]Inputs!$D$24,[3]Inputs!$D$26)) -> 3.348253974 | E95: 34738 | F95: 116311.6466 | G95: 0.1100461 | H95: 12799.64309
B96: BW MUSSER B 20 FT UN | C96: FORT UNION | D96: =IF(LEFT(B96,12)=[3]Inputs!$C$24,[3]Inputs!$D$24,IF(LEFT(B96,13)=[3]Inputs!$C$25,[3]Inputs!$D$24,[3]Inputs!$D$26)) -> 3.348253974 | E96: 9023 | F96: 30211.29561 | G96: 0.1100461 | H96: 3324.635258
B97: POWDER WASH GOVT 1 FT UN | C97: FORT UNION | D97: =IF(LEFT(B97,12)=[3]Inputs!$C$24,[3]Inputs!$D$24,IF(LEFT(B97,13)=[3]Inputs!$C$25,[3]Inputs!$D$24,[3]Inputs!$D$26)) -> 3.348253974 | E97: 8883 | F97: 29742.54005 | G97: 0.1100461 | H97: 3273.050537
B98: POWDER WASH GOVT 2 FT UN | C98: FORT UNION | D98: =IF(LEFT(B98,12)=[3]Inputs!$C$24,[3]Inputs!$D$24,IF(LEFT(B98,13)=[3]Inputs!$C$25,[3]Inputs!$D$24,[3]Inputs!$D$26)) -> 3.348253974 | E98: 568 | F98: 1901.808257 | G98: 0.1100461 | H98: 209.2865817
B99: JC DONNELL A 11 FT UN | C99: FORT UNION | D99: =IF(LEFT(B99,12)=[3]Inputs!$C$24,[3]Inputs!$D$24,IF(LEFT(B99,13)=[3]Inputs!$C$25,[3]Inputs!$D$24,[3]Inputs!$D$26)) -> 3.348253974 | E99: 68621 | F99: 229760.536 | G99: 0.1100461 | H99: 25284.25092
B100: JA LEE 1 FT UN | C100: FORT UNION | D100: =IF(LEFT(B100,12)=[3]Inputs!$C$24,[3]Inputs!$D$24,IF(LEFT(B100,13)=[3]Inputs!$C$25,[3]Inputs!$D$24,[3]Inputs!$D$26)) -> 3.348253974 | E100: 18296 | F100: 61259.65471 | G100: 0.1100461 | H100: 6741.386088
B101: JC DONNELL A 1 FT UN | C101: FORT UNION | D101: =IF(LEFT(B101,12)=[3]Inputs!$C$24,[3]Inputs!$D$24,IF(LEFT(B101,13)=[3]Inputs!$C$25,[3]Inputs!$D$24,[3]Inputs!$D$26)) -> 3.348253974 | E101: 14783 | F101: 49497.2385 | G101: 0.1100461 | H101: 5446.978058
B102: POWDER WASH 20-1 FT UN | C102: FORT UNION | D102: =IF(LEFT(B102,12)=[3]Inputs!$C$24,[3]Inputs!$D$24,IF(LEFT(B102,13)=[3]Inputs!$C$25,[3]Inputs!$D$24,[3]Inputs!$D$26)) -> 3.348253974 | E102: 77648 | F102: 259985.2246 | G102: 0.125 | H102: 32498.15307
B103: CARL ALLEN A 16 WAS | C103: WASATCH | D103: =IF(LEFT(B103,12)=[3]Inputs!$C$24,[3]Inputs!$D$24,IF(LEFT(B103,13)=[3]Inputs!$C$25,[3]Inputs!$D$24,[3]Inputs!$D$26)) -> 3.348253974 | E103: 22641 | F103: 75807.81823 | G103: 0.1100461 | H103: 8342.354745
B104: H STEWART A 2 FT UN | C104: FORT UNION | D104: =IF(LEFT(B104,12)=[3]Inputs!$C$24,[3]Inputs!$D$24,IF(LEFT(B104,13)=[3]Inputs!$C$25,[3]Inputs!$D$24,[3]Inputs!$D$26)) -> 3.348253974 | E104: 104000 | F104: 348218.4133 | G104: 0.1100461 | H104: 38320.07833
B105: CARL ALLEN B 9 UPPER WAS | C105: WASATCH | D105: =IF(LEFT(B105,12)=[3]Inputs!$C$24,[3]Inputs!$D$24,IF(LEFT(B105,13)=[3]Inputs!$C$25,[3]Inputs!$D$24,[3]Inputs!$D$26)) -> 3.348253974 | E105: 7981 | F105: 26722.41497 | G105: 0.1100461 | H105: 2940.69755
B106: CARL ALLEN A 2 WAS | C106: WASATCH | D106: =IF(LEFT(B106,12)=[3]Inputs!$C$24,[3]Inputs!$D$24,IF(LEFT(B106,13)=[3]Inputs!$C$25,[3]Inputs!$D$24,[3]Inputs!$D$26)) -> 3.348253974 | E106: 24376 | F106: 81617.03887 | G106: 0.1100461 | H106: 8981.636821
B107: BW MUSSER 22 FT UN | C107: FORT UNION | D107: =IF(LEFT(B107,12)=[3]Inputs!$C$24,[3]Inputs!$D$24,IF(LEFT(B107,13)=[3]Inputs!$C$25,[3]Inputs!$D$24,[3]Inputs!$D$26)) -> 3.348253974 | E107: 7206 | F107: 24127.51814 | G107: 0.1100461 | H107: 2655.139274
B108: CARL ALLEN 22 FT UN | C108: FORT UNION | D108: =IF(LEFT(B108,12)=[3]Inputs!$C$24,[3]Inputs!$D$24,IF(LEFT(B108,13)=[3]Inputs!$C$25,[3]Inputs!$D$24,[3]Inputs!$D$26)) -> 3.348253974 | E108: 238388 | F108: 798183.5684 | G108: 0.1100461 | H108: 87836.98878
B109: JC DONNELL 14-29 FT UN | C109: FORT UNION | D109: =IF(LEFT(B109,12)=[3]Inputs!$C$24,[3]Inputs!$D$24,IF(LEFT(B109,13)=[3]Inputs!$C$25,[3]Inputs!$D$24,[3]Inputs!$D$26)) -> 3.348253974 | E109: 49237 | F109: 164857.9809 | G109: 0.1100461 | H109: 18141.97785
B110: CARL ALLEN 23 FT UN | C110: FORT UNION | D110: =IF(LEFT(B110,12)=[3]Inputs!$C$24,[3]Inputs!$D$24,IF(LEFT(B110,13)=[3]Inputs!$C$25,[3]Inputs!$D$24,[3]Inputs!$D$26)) -> 3.348253974 | E110: 56433 | F110: 188952.0165 | G110: 0.1100461 | H110: 20793.43251
B111: BW MUSSER 23 FT UN | C111: FORT UNION | D111: =IF(LEFT(B111,12)=[3]Inputs!$C$24,[3]Inputs!$D$24,IF(LEFT(B111,13)=[3]Inputs!$C$25,[3]Inputs!$D$24,[3]Inputs!$D$26)) -> 3.348253974 | E111: 99530 | F111: 333251.718 | G111: 0.1100461 | H111: 36673.05189
B112: BW MUSSER 24 FT UN | C112: FORT UNION | D112: =IF(LEFT(B112,12)=[3]Inputs!$C$24,[3]Inputs!$D$24,IF(LEFT(B112,13)=[3]Inputs!$C$25,[3]Inputs!$D$24,[3]Inputs!$D$26)) -> 3.348253974 | E112: 64882 | F112: 217241.4143 | G112: 0.1100461 | H112: 23906.57041
B113: CARL ALLEN 26 FT UN | C113: MESAVERDE | D113: =IF(LEFT(B113,12)=[3]Inputs!$C$24,[3]Inputs!$D$24,IF(LEFT(B113,13)=[3]Inputs!$C$25,[3]Inputs!$D$24,[3]Inputs!$D$26)) -> 3.348253974 | E113: 74321 | F113: 248845.5836 | G113: 0.1100461 | H113: 27384.48598
B114: BW MUSSER 25 FT UN | C114: MESAVERDE | D114: =IF(LEFT(B114,12)=[3]Inputs!$C$24,[3]Inputs!$D$24,IF(LEFT(B114,13)=[3]Inputs!$C$25,[3]Inputs!$D$24,[3]Inputs!$D$26)) -> 3.348253974 | E114: 89654 | F114: 300184.3618 | G114: 0.1100461 | H114: 33034.1183
B115: CARL ALLEN 25 FT UN | C115: WASATCH | D115: =IF(LEFT(B115,12)=[3]Inputs!$C$24,[3]Inputs!$D$24,IF(LEFT(B115,13)=[3]Inputs!$C$25,[3]Inputs!$D$24,[3]Inputs!$D$26)) -> 3.348253974 | E115: 165651 | F115: 554641.6191 | G115: 0.1100461 | H115: 61036.14708
B116: H STEWART 5 FT UN | C116: FORT UNION | D116: =IF(LEFT(B116,12)=[3]Inputs!$C$24,[3]Inputs!$D$24,IF(LEFT(B116,13)=[3]Inputs!$C$25,[3]Inputs!$D$24,[3]Inputs!$D$26)) -> 3.348253974 | E116: 162339 | F116: 543552.2019 | G116: 0.1100461 | H116: 59815.79997
B117: CARL ALLEN 27 FT UN | C117: FORT UNION | D117: =IF(LEFT(B117,12)=[3]Inputs!$C$24,[3]Inputs!$D$24,IF(LEFT(B117,13)=[3]Inputs!$C$25,[3]Inputs!$D$24,[3]Inputs!$D$26)) -> 3.348253974 | E117: 103004 | F117: 344883.5523 | G117: 0.110046 | H117: 37953.0554
B118: CARL ALLEN 28 FT UN | C118: FORT UNION | D118: =IF(LEFT(B118,12)=[3]Inputs!$C$24,[3]Inputs!$D$24,IF(LEFT(B118,13)=[3]Inputs!$C$25,[3]Inputs!$D$24,[3]Inputs!$D$26)) -> 3.348253974 | E118: 124140 | F118: 415652.2483 | G118: 0.110046 | H118: 45740.86732
B119: CARL ALLEN 29 FT UN | C119: FORT UNION | D119: =IF(LEFT(B119,12)=[3]Inputs!$C$24,[3]Inputs!$D$24,IF(LEFT(B119,13)=[3]Inputs!$C$25,[3]Inputs!$D$24,[3]Inputs!$D$26)) -> 3.348253974 | E119: 131872 | F119: 441540.9481 | G119: 0.110046 | H119: 48589.81517
B120: BW MUSSER 27 FT UN | C120: FORT UNION | D120: =IF(LEFT(B120,12)=[3]Inputs!$C$24,[3]Inputs!$D$24,IF(LEFT(B120,13)=[3]Inputs!$C$25,[3]Inputs!$D$24,[3]Inputs!$D$26)) -> 3.348253974 | E120: 189157 | F120: 633345.677 | G120: 0.110046 | H120: 69697.15837
B121: JC DONNELL 14 FT UN | C121: FORT UNION | D121: =IF(LEFT(B121,12)=[3]Inputs!$C$24,[3]Inputs!$D$24,IF(LEFT(B121,13)=[3]Inputs!$C$25,[3]Inputs!$D$24,[3]Inputs!$D$26)) -> 3.348253974 | E121: 45846 | F121: 153504.0517 | G121: 0.110046 | H121: 16892.50687
B122: JC DONNELL 15 FT UN | C122: FORT UNION | D122: =IF(LEFT(B122,12)=[3]Inputs!$C$24,[3]Inputs!$D$24,IF(LEFT(B122,13)=[3]Inputs!$C$25,[3]Inputs!$D$24,[3]Inputs!$D$26)) -> 3.348253974 | E122: 114774 | F122: 384292.5016 | G122: 0.110046 | H122: 42289.85263
B123: JC DONNELL 16 FT UN | C123: FORT UNION | D123: =IF(LEFT(B123,12)=[3]Inputs!$C$24,[3]Inputs!$D$24,IF(LEFT(B123,13)=[3]Inputs!$C$25,[3]Inputs!$D$24,[3]Inputs!$D$26)) -> 3.348253974 | E123: 135624 | F123: 454103.597 | G123: 0.110046 | H123: 49972.28443
B124: BW MUSSER 28 FT UN | C124: FORT UNION | D124: =IF(LEFT(B124,12)=[3]Inputs!$C$24,[3]Inputs!$D$24,IF(LEFT(B124,13)=[3]Inputs!$C$25,[3]Inputs!$D$24,[3]Inputs!$D$26)) -> 3.348253974 | E124: 14212 | F124: 47585.38548 | G124: 0.110046 | H124: 5236.581331
B125: BW MUSSER 29 FT UN | C125: FORT UNION | D125: =IF(LEFT(B125,12)=[3]Inputs!$C$24,[3]Inputs!$D$24,IF(LEFT(B125,13)=[3]Inputs!$C$25,[3]Inputs!$D$24,[3]Inputs!$D$26)) -> 3.348253974 | E125: 133443 | F125: 446801.0551 | G125: 0.110046 | H125: 49168.66891
B126: BW MUSSER 26R FT UN | C126: FORT UNION | D126: =IF(LEFT(B126,12)=[3]Inputs!$C$24,[3]Inputs!$D$24,IF(LEFT(B126,13)=[3]Inputs!$C$25,[3]Inputs!$D$24,[3]Inputs!$D$26)) -> 3.348253974 | E126: 66653 | F126: 223171.1721 | G126: 0.1100461 | H126: 24559.11713
B127: CARL ALLEN 30 FT UN | C127: FORT UNION | D127: =IF(LEFT(B127,12)=[3]Inputs!$C$24,[3]Inputs!$D$24,IF(LEFT(B127,13)=[3]Inputs!$C$25,[3]Inputs!$D$24,[3]Inputs!$D$26)) -> 3.348253974 | E127: 179408 | F127: 600703.549 | G127: 0.110046 | H127: 66105.02275
B128: CARL ALLEN 31 FT UN | C128: FORT UNION | D128: =IF(LEFT(B128,12)=[3]Inputs!$C$24,[3]Inputs!$D$24,IF(LEFT(B128,13)=[3]Inputs!$C$25,[3]Inputs!$D$24,[3]Inputs!$D$26)) -> 3.348253974 | E128: 450099 | F128: 1507045.765 | G128: 0.110046 | H128: 165844.3583
B129: CARL ALLEN 32 FT UN | C129: FORT UNION | D129: =IF(LEFT(B129,12)=[3]Inputs!$C$24,[3]Inputs!$D$24,IF(LEFT(B129,13)=[3]Inputs!$C$25,[3]Inputs!$D$24,[3]Inputs!$D$26)) -> 3.348253974 | E129: 200728 | F129: 672088.3237 | G129: 0.110046 | H129: 73960.63167
B130: CARL ALLEN 33 FT UN | C130: FORT UNION | D130: =IF(LEFT(B130,12)=[3]Inputs!$C$24,[3]Inputs!$D$24,IF(LEFT(B130,13)=[3]Inputs!$C$25,[3]Inputs!$D$24,[3]Inputs!$D$26)) -> 3.348253974 | E130: 27325 | F130: 91491.03984 | G130: 0.110046 | H130: 10068.22297
B131: CARL ALLEN 34 FT UN | C131: FORT UNION | D131: =IF(LEFT(B131,12)=[3]Inputs!$C$24,[3]Inputs!$D$24,IF(LEFT(B131,13)=[3]Inputs!$C$25,[3]Inputs!$D$24,[3]Inputs!$D$26)) -> 3.348253974 | E131: 226266 | F131: 757596.0337 | G131: 0.110046 | H131: 83370.41312
B132: JC DONNELL 18 FT UN | C132: FORT UNION | D132: =IF(LEFT(B132,12)=[3]Inputs!$C$24,[3]Inputs!$D$24,IF(LEFT(B132,13)=[3]Inputs!$C$25,[3]Inputs!$D$24,[3]Inputs!$D$26)) -> 3.348253974 | E132: 37665 | F132: 126111.9859 | G132: 0.110046 | H132: 13878.1196
B133: BW MUSSER 32 FT UN | C133: FORT UNION | D133: =IF(LEFT(B133,12)=[3]Inputs!$C$24,[3]Inputs!$D$24,IF(LEFT(B133,13)=[3]Inputs!$C$25,[3]Inputs!$D$24,[3]Inputs!$D$26)) -> 3.348253974 | E133: 182230 | F133: 610152.3217 | G133: 0.110046 | H133: 67144.82239
B134: STEWART 6 FT UN | C134: FORT UNION | D134: =IF(LEFT(B134,12)=[3]Inputs!$C$24,[3]Inputs!$D$24,IF(LEFT(B134,13)=[3]Inputs!$C$25,[3]Inputs!$D$24,[3]Inputs!$D$26)) -> 3.348253974 | E134: 185920 | F134: 622507.3789 | G134: 0.110046 | H134: 68504.44701
B135: BW MUSSER 36 FT UN | C135: FORT UNION | D135: =IF(LEFT(B135,12)=[3]Inputs!$C$24,[3]Inputs!$D$24,IF(LEFT(B135,13)=[3]Inputs!$C$25,[3]Inputs!$D$24,[3]Inputs!$D$26)) -> 3.348253974 | E135: 289956 | F135: 970846.3293 | G135: 0.110046 | H135: 106837.7552
B136: BW MUSSER 37 FT UN | C136: FORT UNION | D136: =IF(LEFT(B136,12)=[3]Inputs!$C$24,[3]Inputs!$D$24,IF(LEFT(B136,13)=[3]Inputs!$C$25,[3]Inputs!$D$24,[3]Inputs!$D$26)) -> 3.348253974 | E136: 201595 | F136: 674991.2599 | G136: 0.110046 | H136: 74280.08819
B137: CARL ALLEN 35 FT UN | C137: FORT UNION | D137: =IF(LEFT(B137,12)=[3]Inputs!$C$24,[3]Inputs!$D$24,IF(LEFT(B137,13)=[3]Inputs!$C$25,[3]Inputs!$D$24,[3]Inputs!$D$26)) -> 3.348253974 | E137: 202186 | F137: 676970.078 | G137: 0.110046 | H137: 74497.8492
B138: CARL ALLEN 36 FT UN | C138: FORT UNION | D138: =IF(LEFT(B138,12)=[3]Inputs!$C$24,[3]Inputs!$D$24,IF(LEFT(B138,13)=[3]Inputs!$C$25,[3]Inputs!$D$24,[3]Inputs!$D$26)) -> 3.348253974 | E138: 298794 | F138: 1000438.198 | G138: 0.110046 | H138: 110094.2219
B139: CARL ALLEN A 14 WAS | C139: WASATCH | D139: =IF(LEFT(B139,12)=[3]Inputs!$C$24,[3]Inputs!$D$24,IF(LEFT(B139,13)=[3]Inputs!$C$25,[3]Inputs!$D$24,[3]Inputs!$D$26)) -> 3.348253974 | E139: 97 | F139: 324.7806355 | G139: 0.1100461 | H139: 35.74084229
B140: BW MUSSER 35 FT UN | C140: FORT UNION | D140: =IF(LEFT(B140,12)=[3]Inputs!$C$24,[3]Inputs!$D$24,IF(LEFT(B140,13)=[3]Inputs!$C$25,[3]Inputs!$D$24,[3]Inputs!$D$26)) -> 3.348253974 | E140: 317970 | F140: =D140*E140 -> 1064644.316 | G140: 0.110046 | H140: =F140*G140 -> 117159.8484
B141: BW MUSSER 35 LANCE | C141: LANCE | D141: =IF(LEFT(B141,12)=[3]Inputs!$C$24,[3]Inputs!$D$24,IF(LEFT(B141,13)=[3]Inputs!$C$25,[3]Inputs!$D$24,[3]Inputs!$D$26)) -> 3.348253974 | E141: 9836 | F141: 32933.42609 | G141: 0.12 | H141: 3952.011131
B142: BW MUSSER 72 FT UN | C142: FORT UNION | D142: =IF(LEFT(B142,12)=[3]Inputs!$C$24,[3]Inputs!$D$24,IF(LEFT(B142,13)=[3]Inputs!$C$25,[3]Inputs!$D$24,[3]Inputs!$D$26)) -> 3.348253974 | E142: 141193 | F142: 472750.0234 | G142: 0.110046 | H142: 52024.24907
B143: BW MUSSER 72 LANCE | C143: LANCE | D143: =IF(LEFT(B143,12)=[3]Inputs!$C$24,[3]Inputs!$D$24,IF(LEFT(B143,13)=[3]Inputs!$C$25,[3]Inputs!$D$24,[3]Inputs!$D$26)) -> 3.348253974 | E143: 9012 | F143: 30174.46481 | G143: 0.12 | H143: 3620.935778
B144: BW MUSSER 73 FT UN | C144: FORT UNION | D144: =IF(LEFT(B144,12)=[3]Inputs!$C$24,[3]Inputs!$D$24,IF(LEFT(B144,13)=[3]Inputs!$C$25,[3]Inputs!$D$24,[3]Inputs!$D$26)) -> 3.348253974 | E144: 77054 | F144: 257996.3617 | G144: 0.110046 | H144: 28391.46762
B145: BW MUSSER 73 LANCE | C145: LANCE | D145: =IF(LEFT(B145,12)=[3]Inputs!$C$24,[3]Inputs!$D$24,IF(LEFT(B145,13)=[3]Inputs!$C$25,[3]Inputs!$D$24,[3]Inputs!$D$26)) -> 3.348253974 | E145: 77048 | F145: 257976.2722 | G145: 0.12 | H145: 30957.15266
B146: BW MUSSER 34 FT UN | C146: FORT UNION | D146: =IF(LEFT(B146,12)=[3]Inputs!$C$24,[3]Inputs!$D$24,IF(LEFT(B146,13)=[3]Inputs!$C$25,[3]Inputs!$D$24,[3]Inputs!$D$26)) -> 3.348253974 | E146: 171850 | F146: 575397.4454 | G146: 0.110046 | H146: 63320.18728
B147: BW MUSSER 42 FT UN | C147: FORT UNION | D147: =IF(LEFT(B147,12)=[3]Inputs!$C$24,[3]Inputs!$D$24,IF(LEFT(B147,13)=[3]Inputs!$C$25,[3]Inputs!$D$24,[3]Inputs!$D$26)) -> 3.348253974 | E147: 37391 | F147: 125194.5643 | G147: 0.110046 | H147: 13777.16103
B148: POWDER WASH GOVT 16 FT UN | C148: FORT UNION | D148: =IF(LEFT(B148,12)=[3]Inputs!$C$24,[3]Inputs!$D$24,IF(LEFT(B148,13)=[3]Inputs!$C$25,[3]Inputs!$D$24,[3]Inputs!$D$26)) -> 3.348253974 | E148: 159 | F148: 532.3723819 | G148: 0.110046 | H148: 58.58545114
B149: POWDER WASH GOVT 17 FT UN | C149: FORT UNION | D149: =IF(LEFT(B149,12)=[3]Inputs!$C$24,[3]Inputs!$D$24,IF(LEFT(B149,13)=[3]Inputs!$C$25,[3]Inputs!$D$24,[3]Inputs!$D$26)) -> 3.348253974 | E149: 474 | F149: 1587.072384 | G149: 0.110046 | H149: 174.6509675
B150: BW MUSSER 31 FT UN | C150: FORT UNION | D150: =IF(LEFT(B150,12)=[3]Inputs!$C$24,[3]Inputs!$D$24,IF(LEFT(B150,13)=[3]Inputs!$C$25,[3]Inputs!$D$24,[3]Inputs!$D$26)) -> 3.348253974 | E150: 107932 | F150: 361383.7479 | G150: 0.110046 | H150: 39768.83592
B151: BW MUSSER 38 FT UN | C151: FORT UNION | D151: =IF(LEFT(B151,12)=[3]Inputs!$C$24,[3]Inputs!$D$24,IF(LEFT(B151,13)=[3]Inputs!$C$25,[3]Inputs!$D$24,[3]Inputs!$D$26)) -> 3.348253974 | E151: 85279 | F151: 285535.7507 | G151: 0.110046 | H151: 31422.06722
B152: BW MUSSER 39 FT UN | C152: FORT UNION | D152: =IF(LEFT(B152,12)=[3]Inputs!$C$24,[3]Inputs!$D$24,IF(LEFT(B152,13)=[3]Inputs!$C$25,[3]Inputs!$D$24,[3]Inputs!$D$26)) -> 3.348253974 | E152: 101406 | F152: 339533.0425 | G152: 0.110046 | H152: 37364.25319
B153: CARL ALLEN 37 FT UN | C153: FORT UNION | D153: =IF(LEFT(B153,12)=[3]Inputs!$C$24,[3]Inputs!$D$24,IF(LEFT(B153,13)=[3]Inputs!$C$25,[3]Inputs!$D$24,[3]Inputs!$D$26)) -> 3.348253974 | E153: 59429 | F153: 198983.3854 | G153: 0.1100461 | H153: 21897.34553
B154: CARL ALLEN 40 FT UN | C154: FORT UNION | D154: =IF(LEFT(B154,12)=[3]Inputs!$C$24,[3]Inputs!$D$24,IF(LEFT(B154,13)=[3]Inputs!$C$25,[3]Inputs!$D$24,[3]Inputs!$D$26)) -> 3.348253974 | E154: 68783 | F154: 230302.9531 | G154: 0.110046 | H154: 25343.91878
B155: CARL ALLEN 41 FT UN | C155: FORT UNION | D155: =IF(LEFT(B155,12)=[3]Inputs!$C$24,[3]Inputs!$D$24,IF(LEFT(B155,13)=[3]Inputs!$C$25,[3]Inputs!$D$24,[3]Inputs!$D$26)) -> 3.348253974 | E155: 37259 | F155: 124752.5948 | G155: 0.110046 | H155: 13728.52405
A156: RABBIT MTN (CO) | B156: MF FEDERAL 8-1 MANCOS B | C156: MANCOS B | D156: =IF(LEFT(B156,12)=[3]Inputs!$C$24,[3]Inputs!$D$24,IF(LEFT(B156,13)=[3]Inputs!$C$25,[3]Inputs!$D$24,[3]Inputs!$D$26)) -> 3.348253974 | E156: 39229 | F156: 131348.6551 | G156: 0.155 | H156: 20359.04155
B157: RABBIT MTN FED 7-1 MANCOS B | C157: MANCOS B | D157: =IF(LEFT(B157,12)=[3]Inputs!$C$24,[3]Inputs!$D$24,IF(LEFT(B157,13)=[3]Inputs!$C$25,[3]Inputs!$D$24,[3]Inputs!$D$26)) -> 3.348253974 | E157: 39939 | F157: 133725.9155 | G157: 0.125 | H157: 16715.73943
A158: SUGAR LOAF (CO) | B158: SUGARLOAF GOVT 1 MESA | C158: MESAVERDE | D158: =IF(LEFT(B158,12)=[3]Inputs!$C$24,[3]Inputs!$D$24,IF(LEFT(B158,13)=[3]Inputs!$C$25,[3]Inputs!$D$24,[3]Inputs!$D$26)) -> 3.348253974 | E158: 92063 | F158: 308250.3056 | G158: 0.13375 | H158: 41228.47838
B159: SUGARLOAF GOVT 2 MESA | C159: MESAVERDE | D159: =IF(LEFT(B159,12)=[3]Inputs!$C$24,[3]Inputs!$D$24,IF(LEFT(B159,13)=[3]Inputs!$C$25,[3]Inputs!$D$24,[3]Inputs!$D$26)) -> 3.348253974 | E159: 137427 | F159: 460140.4989 | G159: 0.13375 | H159: 61543.79173
B160: SUGARLOAF GOVT 3 FT UN | C160: FORT UNION | D160: =IF(LEFT(B160,12)=[3]Inputs!$C$24,[3]Inputs!$D$24,IF(LEFT(B160,13)=[3]Inputs!$C$25,[3]Inputs!$D$24,[3]Inputs!$D$26)) -> 3.348253974 | E160: 79241 | F160: 265318.9932 | G160: 0.13375 | H160: 35486.41534
B161: SUGARLOAF GOVT 4 MESA | C161: MESAVERDE | D161: =IF(LEFT(B161,12)=[3]Inputs!$C$24,[3]Inputs!$D$24,IF(LEFT(B161,13)=[3]Inputs!$C$25,[3]Inputs!$D$24,[3]Inputs!$D$26)) -> 3.348253974 | E161: 14895 | F161: 49872.24294 | G161: 0.13375 | H161: 6670.412494
B162: SUGARLOAF GOVT 6 MESA | C162: MESAVERDE | D162: =IF(LEFT(B162,12)=[3]Inputs!$C$24,[3]Inputs!$D$24,IF(LEFT(B162,13)=[3]Inputs!$C$25,[3]Inputs!$D$24,[3]Inputs!$D$26)) -> 3.348253974 | E162: 80193 | F162: 268506.5309 | G162: 0.13375 | H162: 35912.74851
B163: SUGARLOAF GOVT 8 MESA | C163: MESAVERDE | D163: =IF(LEFT(B163,12)=[3]Inputs!$C$24,[3]Inputs!$D$24,IF(LEFT(B163,13)=[3]Inputs!$C$25,[3]Inputs!$D$24,[3]Inputs!$D$26)) -> 3.348253974 | E163: 21165 | F163: 70865.79536 | G163: 0.13375 | H163: 9478.30013
B164: SUGARLOAF GOVT 10 MESA | C164: MESAVERDE | D164: =IF(LEFT(B164,12)=[3]Inputs!$C$24,[3]Inputs!$D$24,IF(LEFT(B164,13)=[3]Inputs!$C$25,[3]Inputs!$D$24,[3]Inputs!$D$26)) -> 3.348253974 | E164: 165192 | F164: 553104.7705 | G164: 0.13375 | H164: 73977.76305
B165: SUGARLOAF GOVT 12 MESA | C165: MESAVERDE | D165: =IF(LEFT(B165,12)=[3]Inputs!$C$24,[3]Inputs!$D$24,IF(LEFT(B165,13)=[3]Inputs!$C$25,[3]Inputs!$D$24,[3]Inputs!$D$26)) -> 3.348253974 | E165: 1695 | F165: 5675.290486 | G165: 0.13375 | H165: 759.0701025
B166: SUGARLOAF GOVT 14 MESA | C166: MESAVERDE | D166: =IF(LEFT(B166,12)=[3]Inputs!$C$24,[3]Inputs!$D$24,IF(LEFT(B166,13)=[3]Inputs!$C$25,[3]Inputs!$D$24,[3]Inputs!$D$26)) -> 3.348253974 | E166: 26817 | F166: 89790.12682 | G166: 0.13375 | H166: 12009.42946
B167: SUGARLOAF GOVT 15 MESA | C167: MESAVERDE | D167: =IF(LEFT(B167,12)=[3]Inputs!$C$24,[3]Inputs!$D$24,IF(LEFT(B167,13)=[3]Inputs!$C$25,[3]Inputs!$D$24,[3]Inputs!$D$26)) -> 3.348253974 | E167: 38100 | F167: 127568.4764 | G167: 0.13375 | H167: 17062.28372
B168: SUGARLOAF GOVT 17 ALMOND | C168: ALMOND | D168: =IF(LEFT(B168,12)=[3]Inputs!$C$24,[3]Inputs!$D$24,IF(LEFT(B168,13)=[3]Inputs!$C$25,[3]Inputs!$D$24,[3]Inputs!$D$26)) -> 3.348253974 | E168: 376042 | F168: 1259084.121 | G168: 0.20375 | H168: 256538.3896
A169: W HIAW (CO) | B169: WB LASHER A 2 WAS | C169: WASATCH | D169: =IF(LEFT(B169,12)=[3]Inputs!$C$24,[3]Inputs!$D$24,IF(LEFT(B169,13)=[3]Inputs!$C$25,[3]Inputs!$D$24,[3]Inputs!$D$26)) -> 3.348253974 | E169: 19718 | F169: 66020.87186 | G169: 0.1925 | H169: 12709.01783
B170: WB LASHER A 4 FT UN | C170: FORT UNION | D170: =IF(LEFT(B170,12)=[3]Inputs!$C$24,[3]Inputs!$D$24,IF(LEFT(B170,13)=[3]Inputs!$C$25,[3]Inputs!$D$24,[3]Inputs!$D$26)) -> 3.348253974 | E170: 47585 | F170: 159326.6654 | G170: 0.1925 | H170: 30670.38308
B171: WM WHEELER A 2 WAS | C171: WASATCH | D171: =IF(LEFT(B171,12)=[3]Inputs!$C$24,[3]Inputs!$D$24,IF(LEFT(B171,13)=[3]Inputs!$C$25,[3]Inputs!$D$24,[3]Inputs!$D$26)) -> 3.348253974 | E171: 34848 | F171: 116679.9545 | G171: 0.1925 | H171: 22460.89124
B172: WM WHEELER A 2 FT UN | C172: FORT UNION | D172: =IF(LEFT(B172,12)=[3]Inputs!$C$24,[3]Inputs!$D$24,IF(LEFT(B172,13)=[3]Inputs!$C$25,[3]Inputs!$D$24,[3]Inputs!$D$26)) -> 3.348253974 | E172: 18580 | F172: 62210.55884 | G172: 0.1925 | H172: 11975.53258
B173: WM WHEELER A 3 FT UN | C173: FORT UNION | D173: =IF(LEFT(B173,12)=[3]Inputs!$C$24,[3]Inputs!$D$24,IF(LEFT(B173,13)=[3]Inputs!$C$25,[3]Inputs!$D$24,[3]Inputs!$D$26)) -> 3.348253974 | E173: 35830 | F173: 119967.9399 | G173: 0.1925 | H173: 23093.82843
B174: WB LASHER A 5 FT UN | C174: FORT UNION | D174: =IF(LEFT(B174,12)=[3]Inputs!$C$24,[3]Inputs!$D$24,IF(LEFT(B174,13)=[3]Inputs!$C$25,[3]Inputs!$D$24,[3]Inputs!$D$26)) -> 3.348253974 | E174: 21455 | F174: 71836.78901 | G174: 0.1840625 | H174: 13222.45898
B175: WB LASHER A 6 LEW/LNC/FT UN | C175: LANCE/LEWIS | D175: =IF(LEFT(B175,12)=[3]Inputs!$C$24,[3]Inputs!$D$24,IF(LEFT(B175,13)=[3]Inputs!$C$25,[3]Inputs!$D$24,[3]Inputs!$D$26)) -> 3.348253974 | E175: 71738 | F175: 240197.0436 | G175: 0.1925 | H175: 46237.93089
B176: WM WHEELER A 4 LEW/LNC/FT UN | C176: LANCE/LEWIS | D176: =IF(LEFT(B176,12)=[3]Inputs!$C$24,[3]Inputs!$D$24,IF(LEFT(B176,13)=[3]Inputs!$C$25,[3]Inputs!$D$24,[3]Inputs!$D$26)) -> 3.348253974 | E176: 90997 | F176: 304681.0669 | G176: 0.1925 | H176: 58651.10537
B177: LASHER 7 LEWIS | C177: LEWIS | D177: =IF(LEFT(B177,12)=[3]Inputs!$C$24,[3]Inputs!$D$24,IF(LEFT(B177,13)=[3]Inputs!$C$25,[3]Inputs!$D$24,[3]Inputs!$D$26)) -> 3.348253974 | E177: 108202 | F177: 362287.7765 | G177: 0.1925 | H177: 69740.39698
B178: LASHER 8 LEWIS | C178: LEWIS | D178: =IF(LEFT(B178,12)=[3]Inputs!$C$24,[3]Inputs!$D$24,IF(LEFT(B178,13)=[3]Inputs!$C$25,[3]Inputs!$D$24,[3]Inputs!$D$26)) -> 3.348253974 | E178: 64850 | F178: 217134.2702 | G178: 0.1840625 | H178: 39966.27661
B179: LASHER 9 LEWIS | C179: LEWIS | D179: =IF(LEFT(B179,12)=[3]Inputs!$C$24,[3]Inputs!$D$24,IF(LEFT(B179,13)=[3]Inputs!$C$25,[3]Inputs!$D$24,[3]Inputs!$D$26)) -> 3.348253974 | E179: 79739 | F179: 266986.4236 | G179: 0.1840625 | H179: 49142.1886
B180: LASHER 10 MESA | C180: MESAVERDE | D180: =IF(LEFT(B180,12)=[3]Inputs!$C$24,[3]Inputs!$D$24,IF(LEFT(B180,13)=[3]Inputs!$C$25,[3]Inputs!$D$24,[3]Inputs!$D$26)) -> 3.348253974 | E180: 11020 | F180: 36897.75879 | G180: 0.2540625 | H180: 9374.336844
B181: LASHER 10 FT UN | C181: FORT UNION | D181: =IF(LEFT(B181,12)=[3]Inputs!$C$24,[3]Inputs!$D$24,IF(LEFT(B181,13)=[3]Inputs!$C$25,[3]Inputs!$D$24,[3]Inputs!$D$26)) -> 3.348253974 | E181: 10698 | F181: 35819.62101 | G181: 0.1840625 | H181: 6593.048993
B182: LASHER 10 LEWIS | C182: LEWIS | D182: =IF(LEFT(B182,12)=[3]Inputs!$C$24,[3]Inputs!$D$24,IF(LEFT(B182,13)=[3]Inputs!$C$25,[3]Inputs!$D$24,[3]Inputs!$D$26)) -> 3.348253974 | E182: 10698 | F182: 35819.62101 | G182: 0.1840625 | H182: 6593.048993
B183: LASHER 11 MESA | C183: MESAVERDE | D183: =IF(LEFT(B183,12)=[3]Inputs!$C$24,[3]Inputs!$D$24,IF(LEFT(B183,13)=[3]Inputs!$C$25,[3]Inputs!$D$24,[3]Inputs!$D$26)) -> 3.348253974 | E183: 31060 | F183: 103996.7684 | G183: 0.2540625 | H183: 26421.67898
B184: LASHER 11 FT UN | C184: FORT UNION | D184: =IF(LEFT(B184,12)=[3]Inputs!$C$24,[3]Inputs!$D$24,IF(LEFT(B184,13)=[3]Inputs!$C$25,[3]Inputs!$D$24,[3]Inputs!$D$26)) -> 3.348253974 | E184: 31061 | F184: 104000.1167 | G184: 0.1840625 | H184: 19142.52148
B185: LASHER 11 LEWIS | C185: LEWIS | D185: =IF(LEFT(B185,12)=[3]Inputs!$C$24,[3]Inputs!$D$24,IF(LEFT(B185,13)=[3]Inputs!$C$25,[3]Inputs!$D$24,[3]Inputs!$D$26)) -> 3.348253974 | E185: 31061 | F185: 104000.1167 | G185: 0.1840625 | H185: 19142.52148
B186: LASHER 11 LANCE | C186: LANCE | D186: =IF(LEFT(B186,12)=[3]Inputs!$C$24,[3]Inputs!$D$24,IF(LEFT(B186,13)=[3]Inputs!$C$25,[3]Inputs!$D$24,[3]Inputs!$D$26)) -> 3.348253974 | E186: 31061 | F186: 104000.1167 | G186: 0.1840625 | H186: 19142.52148
B187: LASHER 12 MESA | C187: MESAVERDE | D187: =IF(LEFT(B187,12)=[3]Inputs!$C$24,[3]Inputs!$D$24,IF(LEFT(B187,13)=[3]Inputs!$C$25,[3]Inputs!$D$24,[3]Inputs!$D$26)) -> 3.348253974 | E187: 19030 | F187: 63717.27313 | G187: 0.2540625 | H187: 16188.1697
B188: LASHER 12 FT UN | C188: FORT UNION | D188: =IF(LEFT(B188,12)=[3]Inputs!$C$24,[3]Inputs!$D$24,IF(LEFT(B188,13)=[3]Inputs!$C$25,[3]Inputs!$D$24,[3]Inputs!$D$26)) -> 3.348253974 | E188: 19032 | F188: 63723.96964 | G188: 0.1840625 | H188: 11729.19316
B189: LASHER 12 LEWIS | C189: LEWIS | D189: =IF(LEFT(B189,12)=[3]Inputs!$C$24,[3]Inputs!$D$24,IF(LEFT(B189,13)=[3]Inputs!$C$25,[3]Inputs!$D$24,[3]Inputs!$D$26)) -> 3.348253974 | E189: 19032 | F189: 63723.96964 | G189: 0.1840625 | H189: 11729.19316
B190: LASHER 12 LANCE | C190: LANCE | D190: =IF(LEFT(B190,12)=[3]Inputs!$C$24,[3]Inputs!$D$24,IF(LEFT(B190,13)=[3]Inputs!$C$25,[3]Inputs!$D$24,[3]Inputs!$D$26)) -> 3.348253974 | E190: 19032 | F190: 63723.96964 | G190: 0.1840625 | H190: 11729.19316
B191: WHEELER 6 MESA | C191: MESAVERDE | D191: =IF(LEFT(B191,12)=[3]Inputs!$C$24,[3]Inputs!$D$24,IF(LEFT(B191,13)=[3]Inputs!$C$25,[3]Inputs!$D$24,[3]Inputs!$D$26)) -> 3.348253974 | E191: 22487 | F191: 75292.18712 | G191: 0.2625 | H191: 19764.19912
B192: WHEELER 6 LEW/LAN/FT UN | C192: LANCE/LEWIS | D192: =IF(LEFT(B192,12)=[3]Inputs!$C$24,[3]Inputs!$D$24,IF(LEFT(B192,13)=[3]Inputs!$C$25,[3]Inputs!$D$24,[3]Inputs!$D$26)) -> 3.348253974 | E192: 31179 | F192: 104395.2107 | G192: 0.1925 | H192: 20096.07805
B193: WHEELER 5 MESA | C193: MESAVERDE | D193: =IF(LEFT(B193,12)=[3]Inputs!$C$24,[3]Inputs!$D$24,IF(LEFT(B193,13)=[3]Inputs!$C$25,[3]Inputs!$D$24,[3]Inputs!$D$26)) -> 3.348253974 | E193: 3322 | F193: 11122.8997 | G193: 0.2625 | H193: 2919.761172
B194: WHEELER 5 LEW/LAN/FT UN | C194: LANCE/LEWIS | D194: =IF(LEFT(B194,12)=[3]Inputs!$C$24,[3]Inputs!$D$24,IF(LEFT(B194,13)=[3]Inputs!$C$25,[3]Inputs!$D$24,[3]Inputs!$D$26)) -> 3.348253974 | E194: 70505 | F194: 236068.6464 | G194: 0.1925 | H194: 45443.21444
B195: WHEELER 7 MESA | C195: MESAVERDE | D195: =IF(LEFT(B195,12)=[3]Inputs!$C$24,[3]Inputs!$D$24,IF(LEFT(B195,13)=[3]Inputs!$C$25,[3]Inputs!$D$24,[3]Inputs!$D$26)) -> 3.348253974 | E195: 7310 | F195: 24475.73655 | G195: 0.2625 | H195: 6424.880845
B196: WHEELER 7 LEW/LAN/FT UN | C196: LANCE/LEWIS | D196: =IF(LEFT(B196,12)=[3]Inputs!$C$24,[3]Inputs!$D$24,IF(LEFT(B196,13)=[3]Inputs!$C$25,[3]Inputs!$D$24,[3]Inputs!$D$26)) -> 3.348253974 | E196: 16581 | F196: 55517.39914 | G196: 0.1925 | H196: 10687.09934
B197: WHEELER 8 MESA | C197: MESAVERDE | D197: =IF(LEFT(B197,12)=[3]Inputs!$C$24,[3]Inputs!$D$24,IF(LEFT(B197,13)=[3]Inputs!$C$25,[3]Inputs!$D$24,[3]Inputs!$D$26)) -> 3.348253974 | E197: 281 | F197: 940.8593667 | G197: 0.2625 | H197: 246.9755838
B198: WHEELER 8 LEW/LAN/FT UN | C198: LANCE/LEWIS | D198: =IF(LEFT(B198,12)=[3]Inputs!$C$24,[3]Inputs!$D$24,IF(LEFT(B198,13)=[3]Inputs!$C$25,[3]Inputs!$D$24,[3]Inputs!$D$26)) -> 3.348253974 | E198: 2866 | F198: 9596.09589 | G198: 0.1925 | H198: 1847.248459
B199: WHEELER 9 MESA | C199: MESAVERDE | D199: =IF(LEFT(B199,12)=[3]Inputs!$C$24,[3]Inputs!$D$24,IF(LEFT(B199,13)=[3]Inputs!$C$25,[3]Inputs!$D$24,[3]Inputs!$D$26)) -> 3.348253974 | E199: 8288 | F199: 27750.32894 | G199: 0.2625 | H199: 7284.461346
B200: WHEELER 9 LEW/LAN/FT UN | C200: LANCE/LEWIS | D200: =IF(LEFT(B200,12)=[3]Inputs!$C$24,[3]Inputs!$D$24,IF(LEFT(B200,13)=[3]Inputs!$C$25,[3]Inputs!$D$24,[3]Inputs!$D$26)) -> 3.348253974 | E200: 72966 | F200: 244308.6995 | G200: 0.1925 | H200: 47029.42465
A201: MOSU (CO) | B201: F WILSON B 23 WAS | C201: WASATCH | D201: =IF(LEFT(B201,12)=[3]Inputs!$C$24,[3]Inputs!$D$24,IF(LEFT(B201,13)=[3]Inputs!$C$25,[3]Inputs!$D$24,[3]Inputs!$D$26)) -> 3.348253974 | E201: 286 | F201: 957.6006366 | G201: 0.1825 | H201: 174.7621162
B202: F WILSON B 13 WAS | C202: WASATCH | D202: =IF(LEFT(B202,12)=[3]Inputs!$C$24,[3]Inputs!$D$24,IF(LEFT(B202,13)=[3]Inputs!$C$25,[3]Inputs!$D$24,[3]Inputs!$D$26)) -> 3.348253974 | E202: 467 | F202: 1563.634606 | G202: 0.1825 | H202: 285.3633156
... 1159 more rows

Sheet Ut 1.2
I1: ='Control Panel'!$F$32 -> Questar Gas Company
I2: ='Control Panel'!$F$33 -> Docket No. 12-057-08
I3: Exhibit 1.2
B8: TEST YEAR PURCHASED GAS COSTS
D11: (A) | E11: (B) | F11: (C) | G11: (D)
F12: Cost
C13: Component | E13: Dth | F13: per Dth | G13: Total Cost
B15: 1 | C15: Current Contracts | G15: =ROUND(Calculations!$P$183+Calculations!$P$186-G16,0) -> 91129992
B16: =B15+1 -> 2 | C16: Stabilization Costs | G16: ='Monthly Inputs'!S105 -> 1999999.98
B17: =B16+1 -> 3 | D17: Total Current Contracts | E17: =Calculations!$P$182+Calculations!$P$185 -> 26695000 | F17: =G17/E17 -> 3.48866799 | G17: =G15+G16 -> 93129991.98
B19: =B17+1 -> 4 | C19: Forecast Spot | E19: =Calculations!$P$179 -> 22135977 | F19: =G19/E19 -> 3.119548868 | G19: =ROUND(Calculations!P180,0) -> 69054262
B21: =B19+1 -> 5 | C21: Future Contracts | E21: =Calculations!P188 -> 308520 | F21: =G21/E21 -> 3.099306366 | G21: =ROUND(Calculations!P189,0) -> 956198
B24: =B21+1 -> 6 | C24: Total Gas Purchased | E24: =E17+E19+E21 -> 49139497 | F24: =G24/E24 -> 3.319945501 | G24: =G17+G19+G21 -> 163140452

Sheet Ut 1.3 p1
N1: ='Control Panel'!$F$32 -> Questar Gas Company
N2: ='Control Panel'!$F$33 -> Docket No. 12-057-08
N3: Exhibit 1.3
N4: Page 1 of 2
B8: TEST YEAR TRANSPORTATION, GATHERING AND PROCESSING CHARGES
B11: (A) | D11: (B) | F11: (C) | H11: (D) | J11: (E) | L11: (F) | M11: (G)
D12: Fctr | F12: Dth | H12: Months/Days | J12: Rate | M12: Total Costs
B14: TRANSPORTATION DEMAND
B16: QPC Demand
A17: 1 | B17: T-1 Transportation - Yearly | F17: ='Other Inputs'!D25 -> 880902 | G17: x | H17: ='Other Inputs'!E25 -> 12 | I17: x | J17: ='Other Inputs'!F22 -> 5.28804 | K17: = | L17: =ROUND(F17*H17*J17,0) -> 55898940 | Q17: =L17*'Ut 1.5'!$G$51 -> 54054269.28
A18: =A17+1 -> 2 | B18: No-Notice Transportation | F18: ='Other Inputs'!D29 -> 203542 | G18: x | H18: ='Other Inputs'!E29 -> 12 | I18: x | J18: ='Other Inputs'!F29 -> 0.86753 | K18: = | L18: =ROUND(F18*H18*J18,0) -> 2118945 | Q18: =L18*'Ut 1.5'!$G$51 -> 2049019.599
A19: =A18+1 -> 3 | B19: Capacity Release Credits | L19: =-ROUND('Other Inputs'!E269,0) -> -302762 | Q19: =L19*'Ut 1.5'!$G$51 -> -292770.8232
A20: =A19+1 -> 4 | C20: Total | L20: =SUM(L17:L19) -> 57715123 | Q20: =L20*'Ut 1.5'!$G$51 -> 55810518.06
Q21: =L21*'Ut 1.5'!$G$51 -> 0
B22: Kern River Demand | Q22: =L22*'Ut 1.5'!$G$51 -> 0
A23: =A20+1 -> 5 | B23: January - December | F23: ='Other Inputs'!D55 -> 1885 | G23: x | H23: ='Other Inputs'!E55 -> 12 | I23: x | J23: ='Other Inputs'!F55 -> 17.74204167 | K23: = | L23: =ROUND(F23*H23*J23,0) -> 401325
A24: =A23+1 -> 6 | B24: January - December | F24: ='Other Inputs'!D53 -> 3000 | G24: x | H24: ='Other Inputs'!E53 -> 12 | I24: x | J24: ='Other Inputs'!F53 -> 14.34754167 | K24: = | L24: =ROUND(F24*H24*J24,0) -> 516512 | Q24: =L24*'Ut 1.5'!$G$51 -> 499467.0514
A25: =A24+1 -> 7 | B25: November - March | F25: ='Other Inputs'!D54 -> 50000 | G25: x | H25: ='Other Inputs'!E54 -> 5 | I25: x | J25: =J24 -> 14.34754167 | K25: = | L25: =ROUND(F25*H25*J25,0) -> 3586885 | Q25: =L25*'Ut 1.5'!$G$51 -> 3468517.43
A26: =A25+1 -> 8 | C26: Total | L26: =SUM(L23:L25) -> 4504722 | Q26: =L26*'Ut 1.5'!$G$51 -> 4356065.715
Q27: =L27*'Ut 1.5'!$G$51 -> 0
A28: =A26+1 -> 9 | B28: Total Transportation Demand (SNG) | M28: =L20+L26 -> 62219845 | Q28: =M28*'Ut 1.5'!$G$51 -> 60166583.78
B31: TRANSPORTATION COMMODITY
B33: QPC Commodity
A34: =A28+1 -> 10 | B34: QPC Commodity (SNG) | F34: =F35-(D39*F39*H39)-(D40*F40*H40) -> 113886218 | I34: x | J34: ='Other Inputs'!F37 -> 0.00267 | K34: = | L34: =ROUND(F34*J34,0) -> 304076
A35: =A34+1 -> 11 | B35: ACA | F35: =Calculations!$P$172 -> 125483949.1 | I35: x | J35: ='Other Inputs'!F38 -> 0.0018 | K35: = | L35: =ROUND(F35*J35,0) -> 225871
A36: =A35+1 -> 12 | C36: Total | L36: =SUM(L34:L35) -> 529947
B38: Kern River Commodity
A39: =A36+1 -> 13 | B39: January - December | D39: ='Other Inputs'!C59 -> 1.2426551 | E39: x | F39: ='Other Inputs'!D59 -> 4885 | G39: x | H39: ='Other Inputs'!E59 -> 365 | I39: x | J39: ='Other Inputs'!F59 -> 0.0044 | K39: = | L39: =ROUND(D39*F39*H39*J39,0) -> 9749
A40: =A39+1 -> 14 | B40: November - March | D40: ='Other Inputs'!C60 -> 1.2426551 | E40: x | F40: ='Other Inputs'!D60 -> 50000 | G40: x | H40: ='Other Inputs'!E60 -> 151 | I40: x | J40: ='Other Inputs'!F60 -> 0.0044 | K40: = | L40: =ROUND(D40*F40*H40*J40,0) -> 41281
A41: =A40+1 -> 15 | C41: Total (SNG) | L41: =SUM(L39:L40) -> 51030
A43: =A41+1 -> 16 | B43: Total Transportation Commodity | M43: =L36+L41 -> 580977
B46: OTHER CHARGES
A48: =A43+1 -> 17 | B48: QEP Field Services Demand | H48: 12 | I48: x | J48: ='Other Inputs'!E176 -> 759167.5 | K48: = | L48: =ROUND(H48*J48,0) -> 9110010
A49: =A48+1 -> 18 | B49: QEP Field Services Commodity | F49: ='Other Inputs'!D177 -> 49308448 | I49: x | J49: ='Other Inputs'!D176 -> 0.13918 | K49: = | L49: =ROUND(F49*J49,0) -> 6862750
A50: =A49+1 -> 19 | C50: Total QEP Field Services (SNG) | M50: =L48+L49 -> 15972760 | N50: 1/
A52: =A50+1 -> 20 | B52: Other Gathering Charges | L52: =ROUND('Other Inputs'!D168,0) -> 2362113
A53: =A52+1 -> 21 | B53: Other Transportation Charges | L53: =ROUND('Other Inputs'!$D$170,0) -> 2836402
A54: =A53+1 -> 22 | C54: Total Other Gathering and Transportation (SNG) | M54: =SUM(L52:L53) -> 5198515
A59: =A54+1 -> 23 | B59: TOTAL TRANSPORTATION AND OTHER CHARGES | M59: =M28+M43+M50+M54 -> 83972097
A64: 1/ | B64: See paragraph 7c in application.

Sheet Ut 1.3 p2
L1: ='Control Panel'!$F$32 -> Questar Gas Company
L2: ='Control Panel'!$F$33 -> Docket No. 12-057-08
L3: Exhibit 1.3
L4: Page 2 of 2
B8: TEST YEAR STORAGE AND WORKING GAS CHARGES
B11: (A) | D11: (B) | F11: (C) | H11: (D) | J11: (E) | K11: (F)
B13: STORAGE CHARGES 1/
B15: Component | D15: Dth | F15: Months | H15: Rate | K15: Total Costs
B16: Storage Demand
A17: 1 | B17: Peaking Demand | D17: ='Other Inputs'!E154 -> 184625 | E17: x | F17: 12 | G17: x | H17: ='Other Inputs'!E14 -> 2.87375 | I17: = | J17: =ROUND(D17*F17*H17,0) -> 6366793
A18: =A17+1 -> 2 | B18: Ryckman Demand | D18: ='Other Inputs'!E155 -> 2500000 | E18: x | F18: 12 | G18: x | H18: ='Other Inputs'!E15 -> 0.09 | I18: = | J18: =ROUND(D18*F18*H18,0) -> 2700000
A19: =A18+1 -> 3 | B19: Clay Basin Demand | D19: ='Other Inputs'!E156 -> 111827 | E19: x | F19: 12 | G19: x | H19: ='Other Inputs'!E16 -> 2.85338 | I19: = | J19: =ROUND(D19*F19*H19,0) -> 3829019
A20: 4 | B20: Clay Basin Capacity | D20: ='Other Inputs'!E157 -> 13419000 | E20: x | F20: 12 | G20: x | H20: ='Other Inputs'!E17 -> 0.02378 | I20: = | J20: =ROUND(D20*F20*H20,0) -> 3829246
A21: 5 | C21: Total Demand Charges (SNG) | J21: =SUM(J17:J20) -> 16725058
B23: Storage Commodity 2/
A24: =A21+1 -> 6 | B24: Peaking Injections | D24: =(+'Monthly Inputs'!S35+'Monthly Inputs'!S37+'Monthly Inputs'!S38) -> 1173480 | F24: x | H24: ='Other Inputs'!E6 -> 0.03872 | I24: = | J24: =ROUND(D24*H24,0) -> 45437
A25: =A24+1 -> 7 | B25: Peaking Withdrawals | D25: =(+'Monthly Inputs'!S43+'Monthly Inputs'!S45+'Monthly Inputs'!S46) -> 1143071 | F25: x | H25: ='Other Inputs'!E7 -> 0.03872 | I25: = | J25: =ROUND(D25*H25,0) -> 44260
A26: =A25+1 -> 8 | B26: Ryckman Injections | D26: ='Monthly Inputs'!S39 -> 1816200 | F26: x | H26: ='Other Inputs'!E8 -> 0.015 | I26: = | J26: =ROUND(D26*H26,0) -> 27243
A27: =A26+1 -> 9 | B27: Ryckman Withdrawals | D27: ='Monthly Inputs'!S47 -> 0 | F27: x | H27: ='Other Inputs'!E9 -> 0.01 | I27: = | J27: 0
A28: =A27+1 -> 10 | B28: Clay Basin Injections | D28: ='Monthly Inputs'!S36 -> 11600280 | F28: x | H28: ='Other Inputs'!E10 -> 0.01049 | I28: = | J28: =ROUND(D28*H28,0) -> 121687
A29: =A28+1 -> 11 | B29: Clay Basin Withdrawals | D29: ='Monthly Inputs'!S44 -> 10721034 | F29: x | H29: ='Other Inputs'!E11 -> 0.01781 | I29: = | J29: =ROUND(D29*H29,0) -> 190942
A30: 12 | C30: Total Commodity Charges | J30: =SUM(J24:J29) -> 429569
A32: 13 | B32: Total Storage Charges | K32: =J21+J30 -> 17154627
B35: WORKING GAS CHARGES - QGC Account 164
C37: Month | D37: Amount | H37: Pre-Tax Return %
A39: =A32+1 -> 14 | C39: =+'Rate Base'!H8 -> 2011-06-21 | D39: =+'Rate Base'!H209 -> 18701733.87
A40: =A39+1 -> 15 | C40: =+'Rate Base'!I8 -> 2011-07-21 | D40: =+'Rate Base'!I209 -> 28586567.05
A41: 16 | C41: =+'Rate Base'!J8 -> 2011-08-20 | D41: =+'Rate Base'!J209 -> 39424262.69
A42: 17 | C42: =+'Rate Base'!K8 -> 2011-09-19 | D42: =+'Rate Base'!K209 -> 49586017.16
A43: 18 | C43: =+'Rate Base'!L8 -> 2011-10-19 | D43: =+'Rate Base'!L209 -> 56877322.03
A44: 19 | C44: =+'Rate Base'!M8 -> 2011-11-18 | D44: =+'Rate Base'!M209 -> 59095984.09
A45: 20 | C45: =+'Rate Base'!N8 -> 2011-12-18 | D45: =+'Rate Base'!N209 -> 40267239.18
A46: 21 | C46: =+'Rate Base'!O8 -> 2012-01-17 | D46: =+'Rate Base'!O209 -> 29171248.22
A47: 22 | C47: =+'Rate Base'!P8 -> 2012-02-16 | D47: =+'Rate Base'!P209 -> 19379640.34
A48: 23 | C48: =+'Rate Base'!Q8 -> 2012-03-17 | D48: =+'Rate Base'!Q209 -> 12903260.28
A49: 24 | C49: =+'Rate Base'!R8 -> 2012-04-16 | D49: =+'Rate Base'!R209 -> 11695451.32
A50: 25 | C50: =+'Rate Base'!S8 -> 2012-05-16 | D50: =+'Rate Base'!S209 -> 17454303.39
A51: 26 | C51: =+'Rate Base'!T8 -> 2012-06-15 | D51: =+'Rate Base'!T209 -> 29378840.71
A54: =A51+1 -> 27 | B54: 13-Month Average 3/ | D54: =(SUM(D40:D50)+D39/2+D51/2)/12 -> 32373465.25 | F54: x | H54: ='Other Inputs'!E259 -> 0.1179 | J54: = | K54: =D54*H54 -> 3816831.553
A57: =A54+1 -> 28 | B57: TOTAL FIRM STORAGE AND WORKING GAS CHARGES | K57: =K54+K32 -> 20971458.55
A61: 1/ | B61: =CONCATENATE("Exhibit 1.9 - ",'Other Inputs'!G22) -> Exhibit 1.9 - 1/1/2012
A62: 2/ | B62: Questar Gas planned volumes.
A63: 3/ | B63: (½ of Line 14 + sum of Lines 15 through 25 + ½ of Line 26) / 12

Sheet Ut 1.4 p1
H1: ='Control Panel'!$F$32 -> Questar Gas Company
H2: ='Control Panel'!$F$33 -> Docket No. 12-057-08
H3: Exhibit 1.4
H4: Page 1 of 3
B8: SUMMARY OF TEST-YEAR GAS RELATED COSTS AND REVENUES CREDITS
B11: (A) | E11: (B) | F11: (C) | G11: (D)
B12: Component | E12: Costs | F12: Dth | G12: $ per Dth
A14: 1 | C14: Questar Gas Production 1/ | E14: ='Other Inputs'!D185 -> 322105537.8
A15: =A14+1 -> 2 | C15: Other Revenues Credits 2/ | E15: =-'Ut 1.4 p3'!H32 -> -26212014
A16: =A15+1 -> 3 | D16: Net Questar Gas Production Costs | E16: =E14+E15 -> 295893523.8 | F16: =F21 -> 68366275 | G16: =E16/F21 -> 4.328062685
A18: =A16+1 -> 4 | D18: Gathering 3/ | E18: ='Ut 1.3 p1'!L52+'Ut 1.3 p1'!M50 -> 18334873
A21: =A18+1 -> 5 | B21: Total Cost of Questar Gas Production | E21: =SUM(E16:E18) -> 314228396.8 | F21: ='Monthly Inputs'!S16 -> 68366275 | G21: =E21/F21 -> 4.596248615
A23: =A21+1 -> 6 | B23: Questar Gas Contract Gas 4/ | E23: ='Ut 1.2'!G24 -> 163140452 | F23: ='Ut 1.2'!E24 -> 49139497 | G23: =E23/F23 -> 3.319945501
A25: =A23+1 -> 7 | B25: Injection / Withdrawal Adjustment 5/ | E25: ='Ut 1.4 p2'!H23 -> -15051074.33
A27: =A25+1 -> 8 | B27: Transportation & Other Costs 6/ | E27: ='Ut 1.3 p1'!M59-E18-'Ut 1.3 p1'!M56 -> 65637224 | F27: ='Ut 1.3 p1'!F34 -> 113886218 | G27: =E27/F27 -> 0.5763403612
A29: =A27+1 -> 9 | B29: Storage & Working Gas 7/ | E29: ='Ut 1.3 p2'!K57 -> 20971458.55
B31: Gas Management Costs | E31: ='Ut 1.3 p1'!M56 -> 0
A34: =A29+1 -> 10 | B34: Questar Gas - Related Gas Costs for Rate Purposes 8/ | E34: =E21+E23+E25+E27+E29+E31 -> 548926457 | F34: ='Ut 1.6 p1'!H23 -> 110108310 | G34: =E34/F34 -> 4.985331779
A41: 1/ | B41: Exhibit 1.1, Last Page.
A42: 2/ | B42: Exhibit 1.4, Page 3, Line 8.
A43: 3/ | B43: Exhibit 1.3, Page 1, Lines 19 + 20.
A44: 4/ | B44: Exhibit 1.2, Line 6.
A45: 5/ | B45: Exhibit 1.4, Page 2, Line 7.
A46: 6/ | B46: Exhibit 1.3, Page 1, Lines 9 + 16 + 21.
A47: 7/ | B47: Exhibit 1.3, Page 2, Line 28.
A48: 8/ | B48: Exhibit 1.6, Page 1, Line 6.

Sheet Ut 1.4 p2
J1: ='Control Panel'!$F$32 -> Questar Gas Company
J2: ='Control Panel'!$F$33 -> Docket No. 12-057-08
J3: Exhibit 1.4
J4: Page 2 of 3
B8: ANNUALIZED UNIT COST OF STORAGE GAS
C11: (A) | E11: (B) | F11: (C) | H11: (D)
F12: Average
E13: Dth | F13: Rate | H13: Total Costs
B15: 1 | C15: Company Production 1/ | E15: ='Ut 1.4 p1'!F21 -> 68366275 | F15: =H15/E15 -> 4.711468305 | H15: ='Ut 1.4 p1'!E14 -> 322105537.8
B16: =B15+1 -> 2 | C16: Purchased Gas 2/ | E16: ='Ut 1.2'!E24 -> 49139497 | F16: =H16/E16 -> 3.319945501 | H16: ='Ut 1.2'!G24 -> 163140452
B17: =B16+1 -> 3 | C17: Average Price | E17: =SUM(E15:E16) -> 117505772 | F17: =(+H15+H16)/(+E15+E16) -> 4.129550247 | H17: =SUM(H15:H16) -> 485245989.7
B20: 4 | C20: Storage 3/
B21: =B20+1 -> 5 | C21: Withdrawals | E21: ='Monthly Inputs'!S48 -> 11864105 | F21: ='Ut Storage'!L27 -> 4.167377853 | H21: =E21*F21 -> 49442208.42
B22: =B21+1 -> 6 | C22: Injections | E22: =-'Monthly Inputs'!S40 -> -14589960 | F22: ='Ut Storage'!K27 -> 4.420387907 | H22: =E22*F22 -> -64493282.75
B23: =B22+1 -> 7 | C23: Storage Adjustment | H23: =H21+H22 -> -15051074.33
B29: 1/ | C29: Exhibit 1.1, last Page.
B30: 2/ | C30: Exhibit 1.2, Line 6.
B31: 3/ | C31: Questar Gas Company planned volumes.

Sheet Ut 1.4 p3
K1: ='Control Panel'!$F$32 -> Questar Gas Company
K2: ='Control Panel'!$F$33 -> Docket No. 12-057-08
K3: Exhibit 1.4
K4: Page 3 of 3
D8: OTHER REVENUES
C11: (A) | E11: (B) | F11: (C) | G11: (D)
C12: Account | G12: =Expenses!S8 -> 12 Months Ending
C13: Number | E13: Account Name | G13: ='Control Panel'!F7 -> 2013-08-31
B15: 1 | D15: 483 | E15: Sales for Resale | H15: ='Other Inputs'!F192 -> 3701501 | I15: 1/
B18: =B15+1 -> 2 | D18: 490 | E18: Plant By-Product | H18: ='Other Inputs'!F193 -> 4844000 | I18: 1/
B21: =B18+1 -> 3 | D21: 492 | E21: Gasoline and Oil Sales | F21: ='Other Inputs'!F194 -> 1326369 | G21: 1/
B22: =B21+1 -> 4 | D22: 758-1 | E22: Gasoline and Oil Cost | F22: ='Other Inputs'!F197 -> -195925 | G22: 1/
B23: =B22+1 -> 5 | E23: Net Gasoline and Oil Sales | H23: =F21+F22 -> 1130444
B26: =B23+1 -> 6 | D26: 495-1 | E26: Overriding Royalty Revenue | H26: ='Other Inputs'!F195 -> 16536069 | I26: 1/
E27: from Questar E & P
B29: =B26+1 -> 7 | D29: 495-2 | E29: Oil Revenue Received from Wexpro | H29: ='Other Inputs'!F196 -> 0 | I29: 1/
B32: =B29+1 -> 8 | E32: Total | H32: =SUM(H15:H29) -> 26212014
B39: 1/ | D39: Forecasted 12-month test year.

Sheet Ut 1.5
H1: ='Control Panel'!$F$32 -> Questar Gas Company
H2: ='Control Panel'!$F$33 -> Docket No. 12-057-08
H3: Exhibit 1.5
B8: TEST-YEAR GAS COST ALLOCATION
B11: (A) | D11: (B) | E11: (C) | F11: (D) | G11: (E)
D12: Allocation
D13: Factor 1/ | E13: System | F13: Wyoming | G13: Utah
A15: 1 | B15: Questar Gas Production (Exhibit 1.1) | D15: 2 | E15: ='Ut 1.4 p1'!E14 -> 322105537.8 | F15: =CHOOSE($D15,F$51,F$54)*$E15 -> 11593408.88 | G15: 310512128.9
A16: =A15+1 -> 2 | B16: Other Revenue's Credit (Exhibit 1.4, p 3) | D16: 2 | E16: ='Ut 1.4 p1'!E15 -> -26212014 | F16: -943437.9736 | G16: -25268576.03
A17: =A16+1 -> 3 | B17: Gathering (Exhibit 1.3, p 1) | C17: - Demand | D17: 1 | E17: ='Ut 1.3 p1'!L48 -> 9110010 | F17: 300631.2582 | G17: 8809378.742
A18: =A17+1 -> 4 | B18: Gathering | C18: - Commodity | D18: 2 | E18: ='Ut 1.3 p1'!L52+'Ut 1.3 p1'!L49 -> 9224863 | F18: 332026.6064 | G18: 8892836.394
A19: =A18+1 -> 5 | B19: Net Cost of Questar Gas Production | E19: =SUM(E15:E18) -> 314228396.8 | F19: =SUM(F15:F18) -> 11282628.77 | G19: =SUM(G15:G18) -> 302945768
A21: =A19+1 -> 6 | B21: Questar Gas Contract Gas (Exhibit 1.2) | D21: 2 | E21: ='Ut 1.4 p1'!E23 -> 163140452 | F21: =CHOOSE($D21,F$51,F$54)*$E21 -> 5871845.537 | G21: =CHOOSE($D21,G$51,G$54)*$E21 -> 157268606.4
A24: =A21+1 -> 7 | B24: Injection / Withdrawal Adjustment (Exhibit 1.4, p 1) | D24: 2 | E24: ='Ut 1.4 p1'!E25 -> -15051074.33 | F24: =CHOOSE($D24,F$51,F$54)*$E24 -> -541726.9755 | G24: =CHOOSE($D24,G$51,G$54)*$E24 -> -14509347.35
A27: =A24+1 -> 8 | B27: Transportation (Exhibit 1.3, p 1) | C27: - Demand | D27: 1 | E27: ='Ut 1.3 p1'!M28 -> 62219845 | F27: =CHOOSE($D27,F$51,F$54)*$E27 -> 2053261.225 | G27: =CHOOSE($D27,G$51,G$54)*$E27 -> 60166583.78
A28: =A27+1 -> 9 | B28: Transportation | C28: - Commodity | D28: 2 | E28: ='Ut 1.3 p1'!M43 -> 580977 | F28: =CHOOSE($D28,F$51,F$54)*$E28 -> 20910.86033 | G28: =CHOOSE($D28,G$51,G$54)*$E28 -> 560066.1397
A31: =A28+1 -> 10 | B31: Storage (Exhibit 1.3, p 2) | C31: - Demand | D31: 1 | E31: ='Ut 1.3 p2'!J21 -> 16725058 | F31: =CHOOSE($D31,F$51,F$54)*$E31 -> 551928.6181 | G31: =CHOOSE($D31,G$51,G$54)*$E31 -> 16173129.38
A32: =A31+1 -> 11 | B32: Storage | C32: - Commodity | D32: 2 | E32: ='Ut 1.3 p2'!J30 -> 429569 | F32: =CHOOSE($D32,F$51,F$54)*$E32 -> 15461.29599 | G32: =CHOOSE($D32,G$51,G$54)*$E32 -> 414107.704
A35: =A32+1 -> 12 | B35: Other Transportation - Commodity (Exhibit 1.3, p1) | D35: 2 | E35: ='Ut 1.3 p1'!L53 -> 2836402 | F35: =CHOOSE($D35,F$51,F$54)*$E35 -> 102089.4219 | G35: =CHOOSE($D35,G$51,G$54)*$E35 -> 2734312.578
A38: =A35+1 -> 13 | B38: Working Gas Costs (Exhibit 1.3, p 2) | D38: 2 | E38: ='Ut 1.3 p2'!K54 -> 3816831.553 | F38: =CHOOSE($D38,F$51,F$54)*$E38 -> 137377.6096 | G38: =CHOOSE($D38,G$51,G$54)*$E38 -> 3679453.944
A41: =A38+1 -> 14 | B41: Totals | E41: =SUM(E19:E38) -> 548926457 | F41: =SUM(F19:F38) -> 19493776.36 | G41: =SUM(G19:G38) -> 529432680.6
A48: 1/ | B48: Allocation Factors | E48: Total | F48: Wyoming | G48: Utah
B50: #1 Peak Day Demand | D50: Dth- | E50: =SUM(F50:G50) -> 1285693 | F50: ='Other Inputs'!$E$133 -> 42428 | G50: ='Other Inputs'!$E$132 -> 1243265
D51: Percent- | E51: =F51+G51 -> 1 | F51: =F50/E50 -> 0.03300010189 | G51: =G50/E50 -> 0.9669998981
B53: #2 Commodity Sales - All | D53: Dth- | E53: =F53+G53 -> 110108310 | F53: ='Ut 1.6 p1'!H22 -> 3963082 | G53: ='Ut 1.6 p1'!H21 -> 106145228
D54: Percent- | E54: =F54+G54 -> 1 | F54: =F53/E53 -> 0.03599257858 | G54: =G53/E53 -> 0.9640074214

Sheet Ut 1.6 p1
J1: ='Control Panel'!$F$32 -> Questar Gas Company
J2: ='Control Panel'!$F$33 -> Docket No. 12-057-08
J3: Exhibit 1.6
J4: Page 1 of 3
B8: TEST-YEAR GAS COST CHANGE
B11: (A) | C11: (B) | D11: (C) | F11: (D) | H11: (E) | J11: (F)
F12: Average Rate | H12: x Dth | I12: = | J12: Total
A13: 1 | B13: Utah Allocation of Questar Gas-Related Gas Costs (Exhibit 1.5) 1/ | J13: ='Ut 1.5'!G41 -> 529432680.6
B14: Less:
A15: =A13+1 -> 2 | B15: IS Class Commodity Credit 2/ | F15: =Calculations!P234 -> 3.458260724 | H15: ='RevRun Fcst'!T93+'RevRun Fcst'!T111 -> 2683531 | J15: =-H15*F15 -> -9280349.858
A16: =A15+1 -> 3 | B16: Net Utah Gas Costs (for Firm Sales) | J16: =J13+J15 -> 520152330.8
H18: Total
B19: Test-Year Sales: 2/ | D19: Firm | F19: + Interruptible | H19: = Sales Dth
A21: =A16+1 -> 4 | B21: Utah | D21: =Calculations!P13 -> 103461697 | F21: =Calculations!P17 -> 2683531 | H21: =D21+F21 -> 106145228
A22: =A21+1 -> 5 | B22: Wyoming | D22: =Calculations!P32 -> 3815889 | F22: =Calculations!P36 -> 147193 | H22: =D22+F22 -> 3963082
A23: =A22+1 -> 6 | B23: Total Dth | H23: =SUM(H21:H22) -> 110108310
A25: =A23+1 -> 7 | B25: Supplier Non-Gas Costs 3/ | J25: =(-'Ut 1.6 p2'!F14) -> -97118565.69
A28: =A25+1 -> 8 | B28: Commodity Portion of Test-Year Gas Cost (Lines 3 + 7) | J28: =J16+J25+J26 -> 423033765.1
F31: Current Case | H31: Prior Case
B32: FIRM CUSTOMER RATES | F32: ='Control Panel'!F5 -> 12-057-08 | H32: ='Control Panel'!F9 -> 11-057-08 | J32: Difference
A34: =A28+1 -> 9 | B34: Firm Gas Cost (line 8/ Firm Sales, line 4) | F34: =ROUND((J28)/D21,5) -> 4.0888 | H34: ='Other Inputs'!F108 -> 4.16664 | J34: =F34-H34 -> -0.07784 | M34: =J34*D21 -> -8053458.494
A35: =A34+1 -> 10 | B35: 191 Account Amortization (Commodity Portion) 4/ | F35: =D55/D21 -> 0.07334552032 | H35: ='Other Inputs'!F109 -> 0 | J35: =F35-H35 -> 0.07334552032 | M35: =J35*D21 -> 7588452
A36: =A35+1 -> 11 | B36: Total Firm Sales Unit Commodity Cost (Lines 9 + 10) | F36: =F34+F35 -> 4.16214552 | H36: =H34+H35 -> 4.16664 | J36: =J34+J35 -> -0.004494479677 | M36: =SUM(M34:M35) -> -465006.4945
A46: 1/ | B46: Exhibit 1.5, Line 14, Column E.
A48: 2/ | B48: ="Revrun.exe - "&'RevRun Fcst'!D4 -> Revrun.exe - 7/16/2012 | D48: Dth | E48: x | F48: est. Com. Rate | G48: = | H48: Com. Revenues
C49: IS | D49: =H15 -> 2683531 | F49: =F15 -> 3.458260724 | H49: =D49*F49 -> 9280349.858
A51: 3/ | B51: Test Year Estimate of Transportation, Gathering, and Storage billings.
A53: 4/ | B53: 191 Account (Aug 2012) fcst. | D53: ='Other Inputs'!E126 -> 16975477
B54: Less: Supplier Non-Gas balance fcst. | D54: ='Other Inputs'!E127 -> 9387025
B55: 191 Account Commodity Portion | D55: =D53-D54 -> 7588452 | F55: =D21 -> 103461697 | H55: =D55/F55 -> 0.07334552032

Sheet Ut 1.6 p2
E1: Questar Gas Company
G2: ='Control Panel'!$F$33 -> Docket No. 12-057-08
G3: Exhibit 1.6
G4: Page 2 of 3
C8: TEST-YEAR SUPPLIER NON-GAS COST CHANGE
C11: (A) | D11: (B) | E11: (C) | F11: (D)
D12: Dth | E12: Average Rate | F12: Total
B14: 1 | C14: Supplier Non-Gas (SNG) Costs 1/ | F14: ='Ut 1.5'!G27+'Ut 1.5'!G31+'Ut 1.5'!G17+(+'Ut 1.3 p1'!L34+'Ut 1.3 p1'!L41+'Ut 1.3 p1'!L52+'Ut 1.3 p1'!L53+'Ut 1.3 p1'!L49)*'Ut 1.5'!G54 -> 97118565.69
B15: =B14+1 -> 2 | C15: 191 Account Balance for SNG Costs 2/ | F15: 0
B16: =1+B15 -> 3 | C16: Total | F16: =SUM(F14:F15) -> 97118565.69
B19: =B16+1 -> 4 | C19: SNG Costs Recovered at Current Rates 3/ | F19: ='Other Inputs'!E207-(D29*('Other Inputs'!G82-'Other Inputs'!F208)) -> 102374366.8
B22: =1+B19 -> 5 | C22: SNG Costs Adjustment to Current Rates (Line 3 - Line 4) | F22: =F16-F19 -> -5255801.132
B28: 6a | C28: Adjustment for SNG contributions from:
B29: 6b | C29: IS SNG current rate | D29: ='Ut 1.6 p1'!$H$15 -> 2683531 | E29: ='Ut 1.6 p3'!E24 -> 0.17919 | F29: =D29*E29 -> 480861.9199
B30: 6c | C30: IS SNG new rate | D30: ='Ut 1.6 p1'!$H$15 -> 2683531 | E30: ='Ut 1.6 p3'!I24 -> 0.1792 | F30: =D30*E30 -> 480888.7552
B35: =2+B22 -> 7 | C35: Percent Change to Current Rates | F35: =(((+F16-F30)-(F19-F29))/(F19-F29))*100 -> -5.158157993 | G35: %
C36: ((ln 3-ln 6c)-(ln 4-ln 6b))/(ln 4-ln 6b)
B42: 1/ | C42: Exhibit 1.6, Page 1, Line 7.
E43: SNG Balance
B44: 2/ | C44: August 2012 SNG Balance - Forecast | E44: ='Other Inputs'!E127 -> 9387025
C45: This balance will not be amortized in this filing
B46: 2/ | C46: The Company is proposing to amortize the SNG Account
C47: 191 balance only in the fall pass-throughs. As of July 31, 2009 the SNG Account 191 balance is ($19,007,538).
B50: 3/ | C50: ="Output of Revrun.Exe computer program dated "&'RevRun Fcst'!D4 -> Output of Revrun.Exe computer program dated 7/16/2012

Sheet Ut 1.6 p3
I1: ='Control Panel'!$F$32 -> Questar Gas Company
I2: ='Control Panel'!$F$33 -> Docket No. 12-057-08
I3: Exhibit 1.6
I4: Page 3 of 3
F8: TEST YEAR CHANGE IN SUPPLIER NON-GAS COSTS
F9: BY RATE CLASS
C12: (A) | D12: (B) | E12: (C) | F12: (D) | G12: (E) | H12: (F) | I12: (G)
G13: Rate per Dth
C14: Rate Class | D14: Season | E14: Current total 1/ | F14: Curr. Base 1/ | G14: Calc. Base 2/ | H14: Amortization 3/ | I14: Total 4/ | K14: CHECK !! | M14: Current Amort.
B16: 1 | C16: GS | D16: Winter | E16: ='Other Inputs'!G72 -> 1.17116 | F16: ='Other Inputs'!E72 -> 1.17116 | G16: =ROUND(E16*('Ut 1.6 p2'!$F$14-'Ut 1.6 p2'!$F$30)/('Ut 1.6 p2'!$F$19-'Ut 1.6 p2'!$F$29),5) -> 1.11075 | H16: =I16-G16 -> 0 | I16: =ROUND(E16*ROUND(1+'Ut 1.6 p2'!$F$35/100,7),5)+M16 -> 1.11075 | K16: =ROUND(G16*('Ut 1.6 p2'!$F$15)/('Ut 1.6 p2'!$F$14-'Ut 1.6 p2'!$F$30),5)-H16 -> 0 | M16: 0
B17: =B16+1 -> 2 | D17: Summer | E17: ='Other Inputs'!G73 -> 0.54987 | F17: ='Other Inputs'!E73 -> 0.54987 | G17: =ROUND(E17*('Ut 1.6 p2'!$F$14-'Ut 1.6 p2'!$F$30)/('Ut 1.6 p2'!$F$19-'Ut 1.6 p2'!$F$29),5) -> 0.52151 | H17: =I17-G17 -> 0 | I17: =ROUND(E17*ROUND(1+'Ut 1.6 p2'!$F$35/100,7),5)+M17 -> 0.52151 | K17: =ROUND(G17*('Ut 1.6 p2'!$F$15)/('Ut 1.6 p2'!$F$14-'Ut 1.6 p2'!$F$30),5)-H17 -> 0 | M17: 0
B19: =B17+1 -> 3 | C19: FS | D19: Winter | E19: ='Other Inputs'!G75 -> 1.14067 | F19: ='Other Inputs'!E75 -> 1.14067 | G19: =ROUND(E19*('Ut 1.6 p2'!$F$14-'Ut 1.6 p2'!$F$30)/('Ut 1.6 p2'!$F$19-'Ut 1.6 p2'!$F$29),5) -> 1.08183 | H19: =I19-G19 -> 0 | I19: =ROUND(E19*ROUND(1+'Ut 1.6 p2'!$F$35/100,7),5)+M19 -> 1.08183 | K19: =ROUND(G19*('Ut 1.6 p2'!$F$15)/('Ut 1.6 p2'!$F$14-'Ut 1.6 p2'!$F$30),5)-H19 -> 0 | M19: 0
B20: =B19+1 -> 4 | D20: Summer | E20: ='Other Inputs'!G76 -> 0.54985 | F20: ='Other Inputs'!E76 -> 0.54985 | G20: =ROUND(E20*('Ut 1.6 p2'!$F$14-'Ut 1.6 p2'!$F$30)/('Ut 1.6 p2'!$F$19-'Ut 1.6 p2'!$F$29),5) -> 0.52149 | H20: =I20-G20 -> 0 | I20: =ROUND(E20*ROUND(1+'Ut 1.6 p2'!$F$35/100,7),5)+M20 -> 0.52149 | K20: =ROUND(G20*('Ut 1.6 p2'!$F$15)/('Ut 1.6 p2'!$F$14-'Ut 1.6 p2'!$F$30),5)-H20 -> 0 | M20: 0
B22: =B20+1 -> 5 | C22: NGV | E22: ='Other Inputs'!G80 -> 0.84514 | F22: ='Other Inputs'!E80 -> 0.84514 | G22: =ROUND(E22*('Ut 1.6 p2'!$F$14-'Ut 1.6 p2'!$F$30)/('Ut 1.6 p2'!$F$19-'Ut 1.6 p2'!$F$29),5) -> 0.80155 | H22: =I22-G22 -> 0 | I22: =ROUND(E22*ROUND(1+'Ut 1.6 p2'!$F$35/100,7),5)+M22 -> 0.80155 | K22: =ROUND(G22*('Ut 1.6 p2'!$F$15)/('Ut 1.6 p2'!$F$14-'Ut 1.6 p2'!$F$30),5)-H22 -> 0 | M22: 0
B24: =B22+1 -> 6 | C24: IS 5/ | E24: ='Other Inputs'!F208 -> 0.17919 | F24: ='Other Inputs'!F208 -> 0.17919 | G24: ='Other Inputs'!$F$47 -> 0.1792 | H24: =I24-G24 -> 0 | I24: ='Other Inputs'!$F$47 -> 0.1792
B26: =B24+1 -> 7 | C26: ES | E26: ='Other Inputs'!G85 -> 6.07073 | F26: ='Other Inputs'!E85 -> 6.07073 | G26: =ROUND(E26*('Ut 1.6 p2'!$F$14-'Ut 1.6 p2'!$F$30)/('Ut 1.6 p2'!$F$19-'Ut 1.6 p2'!$F$29),5) -> 5.75759 | H26: =I26-G26 -> 0 | I26: =ROUND(E26*ROUND(1+'Ut 1.6 p2'!$F$35/100,7),5)+M26 -> 5.75759 | K26: =ROUND(G26*('Ut 1.6 p2'!$F$15)/('Ut 1.6 p2'!$F$14-'Ut 1.6 p2'!$F$30),5)-H26 -> 0 | M26: 0
B33: 1/ | C33: Current Questar Gas Tariff (excluding bad debt surcharge).
B35: 2/ | C35: Exhibit 1.6 page 2 (line 1 - line 6c)/(line 4 - line 6b)*Exhibit 1.6 page 3 column C. (N.A. to line 6)
B37: 3/ | C37: Column G - Column E
B39: 4/ | C39: (Current Questar Gas rates) x (1+Exhibit 1.6, Page 2, Line 7, % change).
C40: ="(except ln. 6, which is calculated by adding QPC T-2 and ACA rates, then adjusting for distr. loss of "&TEXT('Other Inputs'!E261,"0.000%") -> (except ln. 6, which is calculated by adding QPC T-2 and ACA rates, then adjusting for distr. loss of 0.490%
C41: ="= ("&TEXT('Other Inputs'!$F$41,"$0.00000")&" + "&TEXT('Other Inputs'!$F$43,"$0.00000")&") / ( 1 - "&TEXT('Other Inputs'!$E$261,"0.00000")&" ) = "&TEXT(('Other Inputs'!F41+'Other Inputs'!F43)/(1-('Other Inputs'!$E$261)),("$0.00000")) -> = ($0.17652 + $0.00180) / ( 1 - 0.00490 ) = $0.17920
B43: 5/ | C43: ="IS Tariff rate has an adjustment for bad debt of "&TEXT('Other Inputs'!$E$272,"0.0%")&" = "&TEXT($I$24,"$0.00000")&" / ( 1 - "&TEXT('Other Inputs'!$E$272,"0.00000")&" ) = "&TEXT($I$24/(1-('Other Inputs'!$E$272)),("$0.00000")) -> IS Tariff rate has an adjustment for bad debt of 0.4% = $0.17920 / ( 1 - 0.00400 ) = $0.17992

Sheet Ut 1.7
L1: ='Control Panel'!$F$32 -> Questar Gas Company
L2: ='Control Panel'!$F$33 -> Docket No. 12-057-08
L3: Exhibit 1.7
C7: EFFECT ON GS TYPICAL CUSTOMER
C8: 80 DTHS - ANNUAL CONSUMPTION
C11: (A) | D11: (B) | E11: (C) | F11: (D) | H11: (E) | J11: (F)
F12: Billed at Current | H12: Billed at
C13: Rate | E13: Usage | F13: Rates Effective | H13: Proposed
C14: Schedule | D14: Month | E14: In Dth | F14: ='Other Inputs'!J89 -> 2012-02-01 | H14: Rates | J14: Change
B16: 1 | C16: GS | D16: Jan | E16: ='Monthly Inputs'!G122 -> 14.9 | F16: =ROUND((+E16*'Other Inputs'!$G$91)+'Other Inputs'!$G$93,2) -> 125.21 | H16: =ROUND((+E16*'Ut 1.8'!$F$10)+'Ut 1.8'!$C$12,2) -> 124.24 | J16: =H16-F16 -> -0.97
B17: =B16+1 -> 2 | D17: Feb | E17: ='Monthly Inputs'!G123 -> 12.5 | F17: =ROUND((+E17*'Other Inputs'!$G$91)+'Other Inputs'!$G$93,2) -> 105.85 | H17: =ROUND((+E17*'Ut 1.8'!$F$10)+'Ut 1.8'!$C$12,2) -> 105.04 | J17: -0.81
B18: =B17+1 -> 3 | D18: Mar | E18: ='Monthly Inputs'!G124 -> 10.1 | F18: =ROUND((+E18*'Other Inputs'!$G$91)+'Other Inputs'!$G$93,2) -> 86.48 | H18: =ROUND((+E18*'Ut 1.8'!$F$10)+'Ut 1.8'!$C$12,2) -> 85.83 | J18: -0.65
B19: 4 | D19: Apr | E19: ='Monthly Inputs'!G125 -> 8.3 | F19: =ROUND((+E19*'Other Inputs'!$G$89)+'Other Inputs'!$G$93,2) -> 63.79 | H19: =ROUND((+E19*'Ut 1.8'!$C$10)+'Ut 1.8'!$C$12,2) -> 63.51 | J19: -0.28
B20: 5 | D20: May | E20: ='Monthly Inputs'!G126 -> 4.4 | F20: =ROUND((+E20*'Other Inputs'!$G$89)+'Other Inputs'!$G$93,2) -> 36.16 | H20: =ROUND((+E20*'Ut 1.8'!$C$10)+'Ut 1.8'!$C$12,2) -> 36.02 | J20: -0.14
B21: 6 | D21: Jun | E21: ='Monthly Inputs'!G127 -> 3.1 | F21: =ROUND((+E21*'Other Inputs'!$G$89)+'Other Inputs'!$G$93,2) -> 26.96 | H21: =ROUND((+E21*'Ut 1.8'!$C$10)+'Ut 1.8'!$C$12,2) -> 26.85 | J21: -0.11
B22: 7 | D22: Jul | E22: ='Monthly Inputs'!G128 -> 2 | F22: =ROUND((+E22*'Other Inputs'!$G$89)+'Other Inputs'!$G$93,2) -> 19.17 | H22: =ROUND((+E22*'Ut 1.8'!$C$10)+'Ut 1.8'!$C$12,2) -> 19.1 | J22: -0.07
B23: 8 | D23: Aug | E23: ='Monthly Inputs'!G129 -> 1.8 | F23: =ROUND((+E23*'Other Inputs'!$G$89)+'Other Inputs'!$G$93,2) -> 17.75 | H23: =ROUND((+E23*'Ut 1.8'!$C$10)+'Ut 1.8'!$C$12,2) -> 17.69 | J23: -0.06
B24: 9 | D24: Sep | E24: ='Monthly Inputs'!G130 -> 2 | F24: =ROUND((+E24*'Other Inputs'!$G$89)+'Other Inputs'!$G$93,2) -> 19.17 | H24: =ROUND((+E24*'Ut 1.8'!$C$10)+'Ut 1.8'!$C$12,2) -> 19.1 | J24: -0.07
B25: 10 | D25: Oct | E25: ='Monthly Inputs'!G131 -> 3.1 | F25: =ROUND((+E25*'Other Inputs'!$G$89)+'Other Inputs'!$G$93,2) -> 26.96 | H25: =ROUND((+E25*'Ut 1.8'!$C$10)+'Ut 1.8'!$C$12,2) -> 26.85 | J25: -0.11
B26: 11 | D26: Nov | E26: ='Monthly Inputs'!G132 -> 6.3 | F26: =ROUND((+E26*'Other Inputs'!$G$91)+'Other Inputs'!$G$93,2) -> 55.83 | H26: =ROUND((+E26*'Ut 1.8'!$F$10)+'Ut 1.8'!$C$12,2) -> 55.42 | J26: -0.41
B27: 12 | D27: Dec | E27: ='Monthly Inputs'!G133 -> 11.5 | F27: =ROUND((+E27*'Other Inputs'!$G$91)+'Other Inputs'!$G$93,2) -> 97.78 | H27: =ROUND((+E27*'Ut 1.8'!$F$10)+'Ut 1.8'!$C$12,2) -> 97.03 | J27: -0.75
B30: =B27+1 -> 13 | D30: Total | E30: =SUM(E16:E27) -> 80 | F30: =SUM(F16:F27) -> 681.11 | H30: =SUM(H16:H27) -> 676.68 | J30: =H30-F30 -> -4.43
H32: Percent Change: | J32: =ROUND(J30/F30,4)*100 -> -0.65 | K32: %

Sheet Ut 1.7 Tot
L1: ='Control Panel'!$F$32 -> Questar Gas Company
L2: Docket Nos. 08-057-15, 08-057-16 & 08-057-17
L3: Hearing Exhibit 2
C7: EFFECT ON GS-1 TYPICAL CUSTOMER
B8: OF PROPOSED COMMODITY AND SNG RATES AND CET AND DSM AMORTIZATIONS
C9: 80 DTHS - ANNUAL CONSUMPTION
C12: (A) | D12: (B) | E12: (C) | F12: (D) | H12: (E) | J12: (F)
F13: Billed at Current | H13: Billed at
C14: Rate | E14: Usage | F14: Rates Effective | H14: Proposed
C15: Schedule | D15: Month | E15: In Dth | F15: ='Other Inputs'!J89 -> 2012-02-01 | H15: Rates | J15: Change
B17: 1 | C17: GS | D17: Jan | E17: ='Monthly Inputs'!G122 -> 14.9 | F17: =ROUND((+E17*'Other Inputs'!$G$91)+'Other Inputs'!$G$93,2) -> 125.21 | H17: ='CET & DSM'!D107 -> 140.29 | J17: =H17-F17 -> 15.08
B18: =B17+1 -> 2 | D18: Feb | E18: ='Monthly Inputs'!G123 -> 12.5 | F18: =ROUND((+E18*'Other Inputs'!$G$91)+'Other Inputs'!$G$93,2) -> 105.85 | H18: ='CET & DSM'!D108 -> 118.5 | J18: 12.65
B19: 3 | D19: Mar | E19: ='Monthly Inputs'!G124 -> 10.1 | F19: =ROUND((+E19*'Other Inputs'!$G$91)+'Other Inputs'!$G$93,2) -> 86.48 | H19: ='CET & DSM'!D109 -> 96.71 | J19: 10.23
B20: 4 | D20: Apr | E20: ='Monthly Inputs'!G125 -> 8.3 | F20: =ROUND((+E20*'Other Inputs'!$G$89)+'Other Inputs'!$G$93,2) -> 63.79 | H20: ='CET & DSM'!D110 -> 67.65 | J20: 3.86
B21: 5 | D21: May | E21: ='Monthly Inputs'!G126 -> 4.4 | F21: =ROUND((+E21*'Other Inputs'!$G$89)+'Other Inputs'!$G$93,2) -> 36.16 | H21: ='CET & DSM'!D111 -> 38.21 | J21: 2.05
B22: 6 | D22: Jun | E22: ='Monthly Inputs'!G127 -> 3.1 | F22: =ROUND((+E22*'Other Inputs'!$G$89)+'Other Inputs'!$G$93,2) -> 26.96 | H22: ='CET & DSM'!D112 -> 28.4 | J22: 1.44
B23: 7 | D23: Jul | E23: ='Monthly Inputs'!G128 -> 2 | F23: =ROUND((+E23*'Other Inputs'!$G$89)+'Other Inputs'!$G$93,2) -> 19.17 | H23: ='CET & DSM'!D113 -> 20.1 | J23: 0.93
B24: 8 | D24: Aug | E24: ='Monthly Inputs'!G129 -> 1.8 | F24: =ROUND((+E24*'Other Inputs'!$G$89)+'Other Inputs'!$G$93,2) -> 17.75 | H24: ='CET & DSM'!D114 -> 18.59 | J24: 0.84
B25: 9 | D25: Sep | E25: ='Monthly Inputs'!G130 -> 2 | F25: =ROUND((+E25*'Other Inputs'!$G$89)+'Other Inputs'!$G$93,2) -> 19.17 | H25: ='CET & DSM'!D115 -> 20.1 | J25: 0.93
B26: 10 | D26: Oct | E26: ='Monthly Inputs'!G131 -> 3.1 | F26: =ROUND((+E26*'Other Inputs'!$G$89)+'Other Inputs'!$G$93,2) -> 26.96 | H26: ='CET & DSM'!D116 -> 28.4 | J26: 1.44
B27: 11 | D27: Nov | E27: ='Monthly Inputs'!G132 -> 6.3 | F27: =ROUND((+E27*'Other Inputs'!$G$91)+'Other Inputs'!$G$93,2) -> 55.83 | H27: ='CET & DSM'!D117 -> 62.2 | J27: 6.37
B28: 12 | D28: Dec | E28: ='Monthly Inputs'!G133 -> 11.5 | F28: =ROUND((+E28*'Other Inputs'!$G$91)+'Other Inputs'!$G$93,2) -> 97.78 | H28: ='CET & DSM'!D118 -> 109.42 | J28: 11.64
B31: =B28+1 -> 13 | D31: Total | E31: =SUM(E17:E28) -> 80 | F31: =SUM(F17:F28) -> 681.11 | H31: =SUM(H17:H28) -> 748.57 | J31: =H31-F31 -> 67.46
H33: Percent Change: | J33: =ROUND(J31/F31,4)*100 -> 9.9 | K33: %

Sheet Ut 1.8
A1: SUMMARY OF PROPOSED RATES
A3: UTAH RATE CLASSES | C3: Rates per Dth Used Each Month
C4: All Season Rates or Summer Rates: Apr. 1 - Oct. 31 | F4: Winter Rates: Nov. 1 - Mar. 31
A5: UT GS | C5: First 45 Dth | D5: All Over 45 Dth | F5: First 45 Dth | G5: All Over 45 Dth
B6: Distribution Non-Gas Cost | C6: ='Other Inputs'!F217 -> 2.36609 | D6: ='Other Inputs'!F218 -> 1.14443 | F6: ='Other Inputs'!F219 -> 2.73001 | G6: ='Other Inputs'!F220 -> 1.3809
B7: Supplier Non-Gas Cost | C7: ='Ut 1.6 p3'!I17 -> 0.52151 | D7: =C7 -> 0.52151 | F7: ='Ut 1.6 p3'!I16 -> 1.11075 | G7: =F7 -> 1.11075
B8: Commodity Cost | C8: =('Ut 1.6 p1'!$F$36) -> 4.16214552 | D8: =C8 -> 4.16214552 | F8: =D8 -> 4.16214552 | G8: =F8 -> 4.16214552
B10: Total Rate | C10: =SUM(C6:C9) -> 7.04974552 | D10: =SUM(D6:D9) -> 5.82808552 | F10: =SUM(F6:F9) -> 8.00290552 | G10: =SUM(G6:G9) -> 6.65379552
B12: BSF Category 1 | C12: 5
B13: BSF Category 2 | C13: 21
B14: BSF Category 3 | C14: 55
B15: BSF Category 4 | C15: 244
A18: UT FS | C18: First 200 Dth | D18: Next 1,800 Dth | E18: All Over 2,000 Dth | F18: First 200 Dth | G18: Next 1,800 Dth | H18: All Over 2,000 Dth
B19: Distribution Non-Gas Cost | C19: 0.69341 | D19: 0.5445 | E19: 0.47444 | F19: 0.77424 | G19: 0.6214 | H19: 0.56027
B20: Supplier Non-Gas Cost | C20: ='Ut 1.6 p3'!$I$20 -> 0.52149 | D20: =C20 -> 0.52149 | E20: =D20 -> 0.52149 | F20: ='Ut 1.6 p3'!$I$19 -> 1.08183 | G20: =F20 -> 1.08183 | H20: =G20 -> 1.08183
B21: Commodity Cost | C21: =('Ut 1.6 p1'!$F$36) -> 4.16214552 | D21: =C21 -> 4.16214552 | E21: =D21 -> 4.16214552 | F21: =E21 -> 4.16214552 | G21: =F21 -> 4.16214552 | H21: =G21 -> 4.16214552
B23: Total Rate | C23: =SUM(C19:C22) -> 5.37704552 | D23: =SUM(D19:D22) -> 5.22813552 | E23: 5.15807552 | F23: 6.01821552 | G23: 5.86537552 | H23: 5.80424552
B25: Minimum Monthly DNG Charge: | C25: =ROUND(C19*175,0) -> 121 | F25: =ROUND(F19*175,0) -> 135
B27: BSF Category 1 | C27: =C12 -> 5
B28: BSF Category 2 | C28: =C13 -> 21
B29: BSF Category 3 | C29: =C14 -> 55
B30: BSF Category 4 | C30: =C15 -> 244
A33: UT Future Rate Class
C34: First 10,000 Dth | D34: All Over 10,000 Dth
B35: Distribution Non-Gas Cost
B36: Supplier Non-Gas Cost
B37: Commodity Cost
B39: Total Rate | C39: =SUM(C35:C38) -> 0 | D39: =SUM(D35:D38) -> 0
B41: Minimum Yearly Distribution Non-Gas Charge | D41: =ROUND(((10000*C35))*12,-2) -> 0
B44: BSF Category 1 | C44: =C12 -> 5
B45: BSF Category 2 | C45: =C13 -> 21
B46: BSF Category 3 | C46: =C14 -> 55
B47: BSF Category 4 | C47: =C15 -> 244
A51: UT NGV
B52: Distribution Non-Gas Cost | C52: 5.1946
B53: Supplier Non-Gas Cost | C53: ='Ut 1.6 p3'!I22 -> 0.80155
B54: Commodity Cost | C54: ='Ut 1.6 p1'!F36 -> 4.16214552
B56: Total Rate | C56: =SUM(C52:C55) -> 10.15829552
A59: UT IS | C59: First 2,000 Dth | D59: Next 18,000 Dth | E59: All Over 20,000
B60: Distribution Non-Gas Cost | C60: 0.23781 | D60: 0.21878 | E60: 0.20128
B61: Supplier Non-Gas Cost | C61: ='Ut 1.6 p3'!$I$24/(1-'Other Inputs'!$E$272) -> 0.1799196787 | D61: =C61 -> 0.1799196787 | E61: =D61 -> 0.1799196787
B62: Commodity Cost | C62: Determined Monthly
B64: Total Rate | C64: Determined Monthly
B66: BSF Category 1 | C66: 5
B67: BSF Category 2 | C67: 29
B68: BSF Category 3 | C68: 67
B69: BSF Category 4 | C69: 274
A72: UT ES
B73: Distribution Non-Gas Cost | C73: 1.77311
B74: Supplier Non-Gas Cost | C74: ='Ut 1.6 p3'!I26 -> 5.75759
B75: Commodity Cost
B77: Total Rate

Sheet Ut 1.9
D1: ='Control Panel'!$F$32 -> Questar Gas Company
D2: ='Control Panel'!$F$33 -> Docket No. 12-057-08
D3: Exhibit 1.9
D4: Page 1 of 2
D6: ='Control Panel'!$F$32 -> Questar Gas Company
D7: ='Control Panel'!$F$33 -> Docket No. 12-057-08
D8: Exhibit 1.9
D9: Page 2 of 2

Sheet Ut 1.10
P17: Exhibit 1.10 | Q17: =CONCATENATE("Docket No. ",'Control Panel'!F5) -> Docket No. 12-057-08

Sheet Wy 1.1
F1: Questar Gas Company
E2: ='Control Panel'!F37 -> PSCW Docket No. 30010-115-GP-12
F3: Exhibit 1.1
C4: Test Year Cost of Questar Gas' Production
C5: =CONCATENATE('Control Panel'!F40," through ",'Control Panel'!F41) -> Sep-12 through Aug-13
A7: (A) | B7: (B) | C7: (C) | D7: (D) | E7: (E) | F7: (F) | G7: (G) | H7: (H)
E8: Base Year | F8: Market | G8: Royalty | H8: Test Year
A9: Field Name | B9: Well Name | C9: Formation | D9: Price $ | E9: Dth | F9: Value $ | G9: Rate % | H9: Royalty $
A11: ACE UNIT (CO) | B11: ACE UNIT 2 FT UN | C11: FORT UNION | D11: =IF(LEFT(B11,12)=[3]Inputs!$C$24,[3]Inputs!$D$24,IF(LEFT(B11,13)=[3]Inputs!$C$25,[3]Inputs!$D$24,[3]Inputs!$D$26)) -> 3.348253974 | E11: 61243 | F11: =D11*E11 -> 205057.1181 | G11: 0.1268519763 | H11: =F11*G11 -> 26011.90069
B12: ACE UNIT 7 LOWER FT UN | C12: FORT UNION | D12: =IF(LEFT(B12,12)=[3]Inputs!$C$24,[3]Inputs!$D$24,IF(LEFT(B12,13)=[3]Inputs!$C$25,[3]Inputs!$D$24,[3]Inputs!$D$26)) -> 3.348253974 | E12: 4344 | F12: =D12*E12 -> 14544.81526 | G12: 0.1268519763 | H12: =F12*G12 -> 1845.038561
B13: ACE UNIT 10 FT UN | C13: MESAVERDE | D13: =IF(LEFT(B13,12)=[3]Inputs!$C$24,[3]Inputs!$D$24,IF(LEFT(B13,13)=[3]Inputs!$C$25,[3]Inputs!$D$24,[3]Inputs!$D$26)) -> 3.348253974 | E13: 39110 | F13: 130950.2129 | G13: 0.1268519763 | H13: 16611.29331
B14: ACE UNIT 12 FT UN | C14: FORT UNION | D14: =IF(LEFT(B14,12)=[3]Inputs!$C$24,[3]Inputs!$D$24,IF(LEFT(B14,13)=[3]Inputs!$C$25,[3]Inputs!$D$24,[3]Inputs!$D$26)) -> 3.348253974 | E14: 110399 | F14: 369643.8905 | G14: 0.1268519763 | H14: 46890.05804
B15: ACE UNIT 11 FT UN | C15: FORT UNION | D15: =IF(LEFT(B15,12)=[3]Inputs!$C$24,[3]Inputs!$D$24,IF(LEFT(B15,13)=[3]Inputs!$C$25,[3]Inputs!$D$24,[3]Inputs!$D$26)) -> 3.348253974 | E15: 32976 | F15: 110412.023 | G15: 0.1268519763 | H15: 14005.98333
B16: ACE UNIT 13 FT UN | C16: FORT UNION | D16: =IF(LEFT(B16,12)=[3]Inputs!$C$24,[3]Inputs!$D$24,IF(LEFT(B16,13)=[3]Inputs!$C$25,[3]Inputs!$D$24,[3]Inputs!$D$26)) -> 3.348253974 | E16: 49855 | F16: 166927.2019 | G16: 0.1268519763 | H16: 21175.04546
A17: E HIAW (CO) | B17: HIAWATHA UNIT 1 FT UN | C17: FORT UNION | D17: =IF(LEFT(B17,12)=[3]Inputs!$C$24,[3]Inputs!$D$24,IF(LEFT(B17,13)=[3]Inputs!$C$25,[3]Inputs!$D$24,[3]Inputs!$D$26)) -> 3.348253974 | E17: 33059 | F17: 110689.9281 | G17: 0.1925 | H17: 21307.81116
B18: F WILSON A 2 WAS | C18: WASATCH | D18: =IF(LEFT(B18,12)=[3]Inputs!$C$24,[3]Inputs!$D$24,IF(LEFT(B18,13)=[3]Inputs!$C$25,[3]Inputs!$D$24,[3]Inputs!$D$26)) -> 3.348253974 | E18: 107043 | F18: 358407.1501 | G18: 0.1925 | H18: 68993.3764
B19: F WILSON B 3 WAS | C19: WASATCH | D19: =IF(LEFT(B19,12)=[3]Inputs!$C$24,[3]Inputs!$D$24,IF(LEFT(B19,13)=[3]Inputs!$C$25,[3]Inputs!$D$24,[3]Inputs!$D$26)) -> 3.348253974 | E19: 194026 | F19: 649648.3256 | G19: 0.1625 | H19: 105567.8529
B20: F WILSON B 6 WAS | C20: WASATCH | D20: =IF(LEFT(B20,12)=[3]Inputs!$C$24,[3]Inputs!$D$24,IF(LEFT(B20,13)=[3]Inputs!$C$25,[3]Inputs!$D$24,[3]Inputs!$D$26)) -> 3.348253974 | E20: 111825 | F20: 374418.5007 | G20: 0.1625 | H20: 60843.00636
B21: F WILSON A 9 WAS | C21: WASATCH | D21: =IF(LEFT(B21,12)=[3]Inputs!$C$24,[3]Inputs!$D$24,IF(LEFT(B21,13)=[3]Inputs!$C$25,[3]Inputs!$D$24,[3]Inputs!$D$26)) -> 3.348253974 | E21: 12987 | F21: 43483.77436 | G21: 0.1925 | H21: 8370.626565
B22: F WILSON B 12 FT UN | C22: FORT UNION | D22: =IF(LEFT(B22,12)=[3]Inputs!$C$24,[3]Inputs!$D$24,IF(LEFT(B22,13)=[3]Inputs!$C$25,[3]Inputs!$D$24,[3]Inputs!$D$26)) -> 3.348253974 | E22: 63096 | F22: 211261.4327 | G22: 0.1625 | H22: 34329.98282
B23: F WILSON B 2 UNIT (HIAW) FT UN | C23: FORT UNION | D23: =IF(LEFT(B23,12)=[3]Inputs!$C$24,[3]Inputs!$D$24,IF(LEFT(B23,13)=[3]Inputs!$C$25,[3]Inputs!$D$24,[3]Inputs!$D$26)) -> 3.348253974 | E23: 46986 | F23: 157321.0612 | G23: 0.1625 | H23: 25564.67245
B24: F WILSON A 22 FT UN | C24: FORT UNION | D24: =IF(LEFT(B24,12)=[3]Inputs!$C$24,[3]Inputs!$D$24,IF(LEFT(B24,13)=[3]Inputs!$C$25,[3]Inputs!$D$24,[3]Inputs!$D$26)) -> 3.348253974 | E24: 31396 | F24: 105121.7818 | G24: 0.1925 | H24: 20235.94299
B25: STLD 3712100 NE4 2 WAS | C25: WASATCH | D25: =IF(LEFT(B25,12)=[3]Inputs!$C$24,[3]Inputs!$D$24,IF(LEFT(B25,13)=[3]Inputs!$C$25,[3]Inputs!$D$24,[3]Inputs!$D$26)) -> 3.348253974 | E25: 18530 | F25: 62043.14614 | G25: 0.13375 | H25: 8298.270796
B26: STLD 3712100 SE4 4 WAS | C26: WASATCH | D26: =IF(LEFT(B26,12)=[3]Inputs!$C$24,[3]Inputs!$D$24,IF(LEFT(B26,13)=[3]Inputs!$C$25,[3]Inputs!$D$24,[3]Inputs!$D$26)) -> 3.348253974 | E26: 43577 | F26: 145906.8634 | G26: 0.1375 | H26: 20062.19372
B27: STLD 3712100 W2 5 FT UN | C27: FORT UNION | D27: =IF(LEFT(B27,12)=[3]Inputs!$C$24,[3]Inputs!$D$24,IF(LEFT(B27,13)=[3]Inputs!$C$25,[3]Inputs!$D$24,[3]Inputs!$D$26)) -> 3.348253974 | E27: 24721 | F27: 82772.18649 | G27: 0.13375 | H27: 11070.77994
B28: G KUYKENDALL A 8 FT UN | C28: FORT UNION | D28: =IF(LEFT(B28,12)=[3]Inputs!$C$24,[3]Inputs!$D$24,IF(LEFT(B28,13)=[3]Inputs!$C$25,[3]Inputs!$D$24,[3]Inputs!$D$26)) -> 3.348253974 | E28: 8293 | F28: 27767.07021 | G28: 0.1925 | H28: 5345.161015
B29: KS WHITFORD 1 WAS | C29: WASATCH | D29: =IF(LEFT(B29,12)=[3]Inputs!$C$24,[3]Inputs!$D$24,IF(LEFT(B29,13)=[3]Inputs!$C$25,[3]Inputs!$D$24,[3]Inputs!$D$26)) -> 3.348253974 | E29: 61699 | F29: 206583.9219 | G29: 0.155 | H29: 32020.5079
B30: F WILSON B 24 FT UN | C30: FORT UNION | D30: =IF(LEFT(B30,12)=[3]Inputs!$C$24,[3]Inputs!$D$24,IF(LEFT(B30,13)=[3]Inputs!$C$25,[3]Inputs!$D$24,[3]Inputs!$D$26)) -> 3.348253974 | E30: 67341 | F30: 225474.7709 | G30: 0.1625 | H30: 36639.65027
B31: F WILSON B 25 FT UN | C31: FORT UNION | D31: =IF(LEFT(B31,12)=[3]Inputs!$C$24,[3]Inputs!$D$24,IF(LEFT(B31,13)=[3]Inputs!$C$25,[3]Inputs!$D$24,[3]Inputs!$D$26)) -> 3.348253974 | E31: 3414 | F31: 11430.93907 | G31: 0.1625 | H31: 1857.527598
B32: F WILSON A 26 FT UN | C32: FORT UNION | D32: =IF(LEFT(B32,12)=[3]Inputs!$C$24,[3]Inputs!$D$24,IF(LEFT(B32,13)=[3]Inputs!$C$25,[3]Inputs!$D$24,[3]Inputs!$D$26)) -> 3.348253974 | E32: 61384 | F32: 205529.2219 | G32: 0.1925 | H32: 39564.37522
B33: HIAWATHA STATELAND 6 FT UN | C33: FORT UNION | D33: =IF(LEFT(B33,12)=[3]Inputs!$C$24,[3]Inputs!$D$24,IF(LEFT(B33,13)=[3]Inputs!$C$25,[3]Inputs!$D$24,[3]Inputs!$D$26)) -> 3.348253974 | E33: 12301 | F33: 41186.87214 | G33: 0.13375 | H33: 5508.744148
B34: G KUYKENDALL 9 FT UN | C34: FORT UNION | D34: =IF(LEFT(B34,12)=[3]Inputs!$C$24,[3]Inputs!$D$24,IF(LEFT(B34,13)=[3]Inputs!$C$25,[3]Inputs!$D$24,[3]Inputs!$D$26)) -> 3.348253974 | E34: 26512 | F34: 88768.90936 | G34: 0.1925 | H34: 17088.01505
B35: F WILSON A 20 FT UN | C35: FORT UNION | D35: =IF(LEFT(B35,12)=[3]Inputs!$C$24,[3]Inputs!$D$24,IF(LEFT(B35,13)=[3]Inputs!$C$25,[3]Inputs!$D$24,[3]Inputs!$D$26)) -> 3.348253974 | E35: 1078 | F35: 3609.417784 | G35: 0.1925 | H35: 694.8129234
B36: F WILSON A 20 LEW/LAN/FT UN | C36: LEWIS/LANCE/FT U | D36: =IF(LEFT(B36,12)=[3]Inputs!$C$24,[3]Inputs!$D$24,IF(LEFT(B36,13)=[3]Inputs!$C$25,[3]Inputs!$D$24,[3]Inputs!$D$26)) -> 3.348253974 | E36: 20456 | F36: 68491.88329 | G36: 0.1925 | H36: 13184.68753
B37: F WILSON 32 MESA | C37: MESAVERDE | D37: =IF(LEFT(B37,12)=[3]Inputs!$C$24,[3]Inputs!$D$24,IF(LEFT(B37,13)=[3]Inputs!$C$25,[3]Inputs!$D$24,[3]Inputs!$D$26)) -> 3.348253974 | E37: 5319 | F37: 17809.36289 | G37: 0.1925 | H37: 3428.302356
B38: F WILSON 32 LEWIS | C38: LEWIS | D38: =IF(LEFT(B38,12)=[3]Inputs!$C$24,[3]Inputs!$D$24,IF(LEFT(B38,13)=[3]Inputs!$C$25,[3]Inputs!$D$24,[3]Inputs!$D$26)) -> 3.348253974 | E38: 38143 | F38: 127712.4513 | G38: 0.1925 | H38: 24584.64688
B39: F WILSON 32 LANCE | C39: LANCE | D39: =IF(LEFT(B39,12)=[3]Inputs!$C$24,[3]Inputs!$D$24,IF(LEFT(B39,13)=[3]Inputs!$C$25,[3]Inputs!$D$24,[3]Inputs!$D$26)) -> 3.348253974 | E39: 43009 | F39: 144005.0552 | G39: 0.1925 | H39: 27720.97312
B40: HIAWATHA STLD 7 FT UN | C40: FORT UNION | D40: =IF(LEFT(B40,12)=[3]Inputs!$C$24,[3]Inputs!$D$24,IF(LEFT(B40,13)=[3]Inputs!$C$25,[3]Inputs!$D$24,[3]Inputs!$D$26)) -> 3.348253974 | E40: 45869 | F40: 153581.0615 | G40: 0.1375 | H40: 21117.39596
B41: F WILSON 33 LEWIS | C41: LEWIS | D41: =IF(LEFT(B41,12)=[3]Inputs!$C$24,[3]Inputs!$D$24,IF(LEFT(B41,13)=[3]Inputs!$C$25,[3]Inputs!$D$24,[3]Inputs!$D$26)) -> 3.348253974 | E41: 11710 | F41: 39208.05404 | G41: 0.1925 | H41: 7547.550402
B42: F WILSON 33 LANCE | C42: LANCE | D42: =IF(LEFT(B42,12)=[3]Inputs!$C$24,[3]Inputs!$D$24,IF(LEFT(B42,13)=[3]Inputs!$C$25,[3]Inputs!$D$24,[3]Inputs!$D$26)) -> 3.348253974 | E42: 11710 | F42: 39208.05404 | G42: 0.1925 | H42: 7547.550402
B43: F WILSON 34 LEW/LAN/FT UN | C43: LEWIS/LANCE/FT U | D43: =IF(LEFT(B43,12)=[3]Inputs!$C$24,[3]Inputs!$D$24,IF(LEFT(B43,13)=[3]Inputs!$C$25,[3]Inputs!$D$24,[3]Inputs!$D$26)) -> 3.348253974 | E43: 48625 | F43: 162808.8495 | G43: 0.1625 | H43: 26456.43804
B44: F WILSON 35 LEW/LAN/FT UN | C44: LEWIS/LANCE/FT U | D44: =IF(LEFT(B44,12)=[3]Inputs!$C$24,[3]Inputs!$D$24,IF(LEFT(B44,13)=[3]Inputs!$C$25,[3]Inputs!$D$24,[3]Inputs!$D$26)) -> 3.348253974 | E44: 106616 | F44: 356977.4457 | G44: 0.1925 | H44: 68718.1583
B45: F WILSON 29E (DD) FT UN | C45: FORT UNION | D45: =IF(LEFT(B45,12)=[3]Inputs!$C$24,[3]Inputs!$D$24,IF(LEFT(B45,13)=[3]Inputs!$C$25,[3]Inputs!$D$24,[3]Inputs!$D$26)) -> 3.348253974 | E45: 30759 | F45: 102988.944 | G45: 0.1625 | H45: 16735.7034
B46: F WILSON 37 MESA | C46: FORT UNION | D46: =IF(LEFT(B46,12)=[3]Inputs!$C$24,[3]Inputs!$D$24,IF(LEFT(B46,13)=[3]Inputs!$C$25,[3]Inputs!$D$24,[3]Inputs!$D$26)) -> 3.348253974 | E46: 28230 | F46: 94521.20969 | G46: 0.2325 | H46: 21976.18125
B47: F WILSON 37 LEW/LNC/FTUN | C47: FORT UNION | D47: =IF(LEFT(B47,12)=[3]Inputs!$C$24,[3]Inputs!$D$24,IF(LEFT(B47,13)=[3]Inputs!$C$25,[3]Inputs!$D$24,[3]Inputs!$D$26)) -> 3.348253974 | E47: 159976 | F47: 535640.2778 | G47: 0.1625 | H47: 87041.54514
B48: F WILSON 33 FT UN | C48: FORT UNION | D48: =IF(LEFT(B48,12)=[3]Inputs!$C$24,[3]Inputs!$D$24,IF(LEFT(B48,13)=[3]Inputs!$C$25,[3]Inputs!$D$24,[3]Inputs!$D$26)) -> 3.348253974 | E48: 609590 | F48: 2041062.14 | G48: 0.1925 | H48: 392904.462
B49: F WILSON 35 MESA | C49: MESAVERDE | D49: =IF(LEFT(B49,12)=[3]Inputs!$C$24,[3]Inputs!$D$24,IF(LEFT(B49,13)=[3]Inputs!$C$25,[3]Inputs!$D$24,[3]Inputs!$D$26)) -> 3.348253974 | E49: 2178 | F49: 7292.497156 | G49: 0.1925 | H49: 1403.805702
A50: HIAW DEEP (CO) | B50: HIAWATHA DEEP UNIT 1 NUGGET | C50: NUGGET | D50: =IF(LEFT(B50,12)=[3]Inputs!$C$24,[3]Inputs!$D$24,IF(LEFT(B50,13)=[3]Inputs!$C$25,[3]Inputs!$D$24,[3]Inputs!$D$26)) -> 3.348253974 | E50: 80088 | F50: 268154.9643 | G50: 0.1723962084 | H50: 46228.89909
B51: HIAWATHA DEEP UNIT 3 NUGGET | C51: NUGGET | D51: =IF(LEFT(B51,12)=[3]Inputs!$C$24,[3]Inputs!$D$24,IF(LEFT(B51,13)=[3]Inputs!$C$25,[3]Inputs!$D$24,[3]Inputs!$D$26)) -> 3.348253974 | E51: 304919 | F51: 1020946.254 | G51: 0.1714959958 | H51: 175088.1944
B52: HIAWATHA DEEP UNIT 2 NUGGET | C52: NUGGET | D52: =IF(LEFT(B52,12)=[3]Inputs!$C$24,[3]Inputs!$D$24,IF(LEFT(B52,13)=[3]Inputs!$C$25,[3]Inputs!$D$24,[3]Inputs!$D$26)) -> 3.348253974 | E52: 21555 | F52: 72171.61441 | G52: 0.172395903 | H52: 12442.09064
A53: JACKS DRAW (CO) | B53: JACKS DRAW UNIT 2 FT UN | C53: FORT UNION | D53: =IF(LEFT(B53,12)=[3]Inputs!$C$24,[3]Inputs!$D$24,IF(LEFT(B53,13)=[3]Inputs!$C$25,[3]Inputs!$D$24,[3]Inputs!$D$26)) -> 3.348253974 | E53: 44791 | F53: 149971.6438 | G53: 0.1396875 | H53: 20949.16399
B54: JACKS DRAW UNIT 3 FT UN | C54: FORT UNION | D54: =IF(LEFT(B54,12)=[3]Inputs!$C$24,[3]Inputs!$D$24,IF(LEFT(B54,13)=[3]Inputs!$C$25,[3]Inputs!$D$24,[3]Inputs!$D$26)) -> 3.348253974 | E54: 23826 | F54: 79775.49919 | G54: 0.1396875 | H54: 11143.64004
B55: JACKS DRAW UNIT 9 FT UN | C55: FORT UNION | D55: =IF(LEFT(B55,12)=[3]Inputs!$C$24,[3]Inputs!$D$24,IF(LEFT(B55,13)=[3]Inputs!$C$25,[3]Inputs!$D$24,[3]Inputs!$D$26)) -> 3.348253974 | E55: 26828 | F55: 89826.95762 | G55: 0.1396875 | H55: 12547.70314
B56: JACKS DRAW UNIT 5 FT UN | C56: FORT UNION | D56: =IF(LEFT(B56,12)=[3]Inputs!$C$24,[3]Inputs!$D$24,IF(LEFT(B56,13)=[3]Inputs!$C$25,[3]Inputs!$D$24,[3]Inputs!$D$26)) -> 3.348253974 | E56: 2433 | F56: 8146.301919 | G56: 0.1489132823 | H56: 1213.092558
B57: JACKS DRAW UNIT 8 FT UN | C57: FORT UNION | D57: =IF(LEFT(B57,12)=[3]Inputs!$C$24,[3]Inputs!$D$24,IF(LEFT(B57,13)=[3]Inputs!$C$25,[3]Inputs!$D$24,[3]Inputs!$D$26)) -> 3.348253974 | E57: 4253 | F57: 14240.12415 | G57: 0.1489132823 | H57: 2120.543628
B58: JACKS DRAW UNIT 17 FT UN | C58: FORT UNION | D58: =IF(LEFT(B58,12)=[3]Inputs!$C$24,[3]Inputs!$D$24,IF(LEFT(B58,13)=[3]Inputs!$C$25,[3]Inputs!$D$24,[3]Inputs!$D$26)) -> 3.348253974 | E58: 53048 | F58: 177618.1768 | G58: 0.1396875 | H58: 24811.03907
B59: JACKS DRAW UNIT 19 FT UN | C59: FORT UNION | D59: =IF(LEFT(B59,12)=[3]Inputs!$C$24,[3]Inputs!$D$24,IF(LEFT(B59,13)=[3]Inputs!$C$25,[3]Inputs!$D$24,[3]Inputs!$D$26)) -> 3.348253974 | E59: 236896 | F59: 793187.9734 | G59: 0.149541643 | H59: 118614.6327
B60: JACKS DRAW UNIT 18 FT UN | C60: FORT UNION | D60: =IF(LEFT(B60,12)=[3]Inputs!$C$24,[3]Inputs!$D$24,IF(LEFT(B60,13)=[3]Inputs!$C$25,[3]Inputs!$D$24,[3]Inputs!$D$26)) -> 3.348253974 | E60: 73057 | F60: 244613.3906 | G60: 0.1396877 | H60: 34169.48192
B61: JACKS DRAW 20 FT UN | C61: FORT UNION | D61: =IF(LEFT(B61,12)=[3]Inputs!$C$24,[3]Inputs!$D$24,IF(LEFT(B61,13)=[3]Inputs!$C$25,[3]Inputs!$D$24,[3]Inputs!$D$26)) -> 3.348253974 | E61: 57787 | F61: 193485.5524 | G61: 0.1396877 | H61: 27027.5518
A62: LO HORSE DR (CO) | B62: LOWER HORSE DRAW 11-1 MANCOS B | C62: MANCOS B | D62: =IF(LEFT(B62,12)=[3]Inputs!$C$24,[3]Inputs!$D$24,IF(LEFT(B62,13)=[3]Inputs!$C$25,[3]Inputs!$D$24,[3]Inputs!$D$26)) -> 3.348253974 | E62: 2802 | F62: 9381.807635 | G62: 0.125 | H62: 1172.725954
B63: LOWER HORSE DRAW 12-2 MANCOS B | C63: MANCOS B | D63: =IF(LEFT(B63,12)=[3]Inputs!$C$24,[3]Inputs!$D$24,IF(LEFT(B63,13)=[3]Inputs!$C$25,[3]Inputs!$D$24,[3]Inputs!$D$26)) -> 3.348253974 | E63: 26655 | F63: 89247.70968 | G63: 0.125 | H63: 11155.96371
B64: LOWER HORSE DRAW 10-1 MANCOS B | C64: MANCOS B | D64: =IF(LEFT(B64,12)=[3]Inputs!$C$24,[3]Inputs!$D$24,IF(LEFT(B64,13)=[3]Inputs!$C$25,[3]Inputs!$D$24,[3]Inputs!$D$26)) -> 3.348253974 | E64: 3020 | F64: 10111.727 | G64: 0.125 | H64: 1263.965875
B65: LOWER HORSE DRAW 10-2 MB SILT | C65: MANCOS B SILT | D65: =IF(LEFT(B65,12)=[3]Inputs!$C$24,[3]Inputs!$D$24,IF(LEFT(B65,13)=[3]Inputs!$C$25,[3]Inputs!$D$24,[3]Inputs!$D$26)) -> 3.348253974 | E65: 5914 | F65: 19801.574 | G65: 0.125 | H65: 2475.19675
B66: LOWER HORSE FED 11-5 MANCOS B | C66: MANCOS B | D66: =IF(LEFT(B66,12)=[3]Inputs!$C$24,[3]Inputs!$D$24,IF(LEFT(B66,13)=[3]Inputs!$C$25,[3]Inputs!$D$24,[3]Inputs!$D$26)) -> 3.348253974 | E66: 29959 | F66: 100310.3408 | G66: 0.125 | H66: 12538.7926
B67: LOWER HORSE FED 11-5 MB SILT | C67: MANCOS B SILT | D67: =IF(LEFT(B67,12)=[3]Inputs!$C$24,[3]Inputs!$D$24,IF(LEFT(B67,13)=[3]Inputs!$C$25,[3]Inputs!$D$24,[3]Inputs!$D$26)) -> 3.348253974 | E67: 19563 | F67: 65501.8925 | G67: 0.125 | H67: 8187.736562
A68: POWDER WASH (CO) | B68: CARL ALLEN B 4 WAS | C68: WASATCH | D68: =IF(LEFT(B68,12)=[3]Inputs!$C$24,[3]Inputs!$D$24,IF(LEFT(B68,13)=[3]Inputs!$C$25,[3]Inputs!$D$24,[3]Inputs!$D$26)) -> 3.348253974 | E68: 3856 | F68: 12910.86732 | G68: 0.1100461 | H68: 1420.790597
B69: CARL ALLEN B 6 FT UN | C69: FORT UNION | D69: =IF(LEFT(B69,12)=[3]Inputs!$C$24,[3]Inputs!$D$24,IF(LEFT(B69,13)=[3]Inputs!$C$25,[3]Inputs!$D$24,[3]Inputs!$D$26)) -> 3.348253974 | E69: 49724 | F69: 166488.5806 | G69: 0.1100461 | H69: 18321.41899
B70: CARL ALLEN B 6 LOWER FT UN | C70: FORT UNION | D70: =IF(LEFT(B70,12)=[3]Inputs!$C$24,[3]Inputs!$D$24,IF(LEFT(B70,13)=[3]Inputs!$C$25,[3]Inputs!$D$24,[3]Inputs!$D$26)) -> 3.348253974 | E70: 49724 | F70: 166488.5806 | G70: 0.1100461 | H70: 18321.41899
B71: CARL ALLEN B 7 FT UN | C71: FORT UNION | D71: =IF(LEFT(B71,12)=[3]Inputs!$C$24,[3]Inputs!$D$24,IF(LEFT(B71,13)=[3]Inputs!$C$25,[3]Inputs!$D$24,[3]Inputs!$D$26)) -> 3.348253974 | E71: 50101 | F71: 167750.8724 | G71: 0.1100461 | H71: 18460.32927
B72: CARL ALLEN A 8 FT UN | C72: FORT UNION | D72: =IF(LEFT(B72,12)=[3]Inputs!$C$24,[3]Inputs!$D$24,IF(LEFT(B72,13)=[3]Inputs!$C$25,[3]Inputs!$D$24,[3]Inputs!$D$26)) -> 3.348253974 | E72: 38520 | F72: 128974.7431 | G72: 0.1100461 | H72: 14193.16747
B73: CARL ALLEN B 10 WAS | C73: WASATCH | D73: =IF(LEFT(B73,12)=[3]Inputs!$C$24,[3]Inputs!$D$24,IF(LEFT(B73,13)=[3]Inputs!$C$25,[3]Inputs!$D$24,[3]Inputs!$D$26)) -> 3.348253974 | E73: 4571 | F73: 15304.86892 | G73: 0.1100461 | H73: 1684.241135
B74: CARL ALLEN A 11 FT UN | C74: FORT UNION | D74: =IF(LEFT(B74,12)=[3]Inputs!$C$24,[3]Inputs!$D$24,IF(LEFT(B74,13)=[3]Inputs!$C$25,[3]Inputs!$D$24,[3]Inputs!$D$26)) -> 3.348253974 | E74: 5730 | F74: 19185.49527 | G74: 0.1100461 | H74: 2111.288931
B75: CARL ALLEN A 11 LOWER FT UN | C75: FORT UNION | D75: =IF(LEFT(B75,12)=[3]Inputs!$C$24,[3]Inputs!$D$24,IF(LEFT(B75,13)=[3]Inputs!$C$25,[3]Inputs!$D$24,[3]Inputs!$D$26)) -> 3.348253974 | E75: 108891 | F75: 364594.7235 | G75: 0.110046 | H75: 40122.19094
B76: CARL ALLEN B 15 WAS | C76: WASATCH | D76: =IF(LEFT(B76,12)=[3]Inputs!$C$24,[3]Inputs!$D$24,IF(LEFT(B76,13)=[3]Inputs!$C$25,[3]Inputs!$D$24,[3]Inputs!$D$26)) -> 3.348253974 | E76: 16411 | F76: =D76*E76 -> 54948.19597 | G76: 0.1100461 | H76: =F76*G76 -> 6046.834668
B77: CARL ALLEN B 17 WAS | C77: WASATCH | D77: =IF(LEFT(B77,12)=[3]Inputs!$C$24,[3]Inputs!$D$24,IF(LEFT(B77,13)=[3]Inputs!$C$25,[3]Inputs!$D$24,[3]Inputs!$D$26)) -> 3.348253974 | E77: 14080 | F77: 47143.41596 | G77: 0.1100461 | H77: 5187.949067
B78: CARL ALLEN A 19 FT UN | C78: FORT UNION | D78: =IF(LEFT(B78,12)=[3]Inputs!$C$24,[3]Inputs!$D$24,IF(LEFT(B78,13)=[3]Inputs!$C$25,[3]Inputs!$D$24,[3]Inputs!$D$26)) -> 3.348253974 | E78: 86358 | F78: 289148.5167 | G78: 0.1100461 | H78: 31819.66658
B79: CARL ALLEN A 20 FT UN | C79: FORT UNION | D79: =IF(LEFT(B79,12)=[3]Inputs!$C$24,[3]Inputs!$D$24,IF(LEFT(B79,13)=[3]Inputs!$C$25,[3]Inputs!$D$24,[3]Inputs!$D$26)) -> 3.348253974 | E79: 26346 | F79: 88213.0992 | G79: 0.1100461 | H79: 9707.507536
B80: BW MUSSER A 1 WAS | C80: WASATCH | D80: =IF(LEFT(B80,12)=[3]Inputs!$C$24,[3]Inputs!$D$24,IF(LEFT(B80,13)=[3]Inputs!$C$25,[3]Inputs!$D$24,[3]Inputs!$D$26)) -> 3.348253974 | E80: 8651 | F80: 28965.74513 | G80: 0.1100461 | H80: 3187.567285
B81: BW MUSSER B 21 FT UN | C81: FORT UNION | D81: =IF(LEFT(B81,12)=[3]Inputs!$C$24,[3]Inputs!$D$24,IF(LEFT(B81,13)=[3]Inputs!$C$25,[3]Inputs!$D$24,[3]Inputs!$D$26)) -> 3.348253974 | E81: 48049 | F81: 160880.2552 | G81: 0.1100461 | H81: 17704.24465
B82: BW MUSSER B 6 WAS | C82: WASATCH | D82: =IF(LEFT(B82,12)=[3]Inputs!$C$24,[3]Inputs!$D$24,IF(LEFT(B82,13)=[3]Inputs!$C$25,[3]Inputs!$D$24,[3]Inputs!$D$26)) -> 3.348253974 | E82: 10244 | F82: 34299.51371 | G82: 0.1100461 | H82: 3774.527716
B83: BW MUSSER B 10 FT UN | C83: FORT UNION | D83: =IF(LEFT(B83,12)=[3]Inputs!$C$24,[3]Inputs!$D$24,IF(LEFT(B83,13)=[3]Inputs!$C$25,[3]Inputs!$D$24,[3]Inputs!$D$26)) -> 3.348253974 | E83: 12649 | F83: 42352.06452 | G83: 0.1100461 | H83: 4660.679527
B84: BW MUSSER B 11 FT UN | C84: FORT UNION | D84: =IF(LEFT(B84,12)=[3]Inputs!$C$24,[3]Inputs!$D$24,IF(LEFT(B84,13)=[3]Inputs!$C$25,[3]Inputs!$D$24,[3]Inputs!$D$26)) -> 3.348253974 | E84: 13680 | F84: 45804.11437 | G84: 0.1100461 | H84: 5040.56415
B85: JC DONNELL B 3 WAS | C85: WASATCH | D85: =IF(LEFT(B85,12)=[3]Inputs!$C$24,[3]Inputs!$D$24,IF(LEFT(B85,13)=[3]Inputs!$C$25,[3]Inputs!$D$24,[3]Inputs!$D$26)) -> 3.348253974 | E85: 53716 | F85: 179854.8105 | G85: 0.1100461 | H85: 19792.32046
B86: JC DONNELL B 5 FT UN | C86: FORT UNION | D86: =IF(LEFT(B86,12)=[3]Inputs!$C$24,[3]Inputs!$D$24,IF(LEFT(B86,13)=[3]Inputs!$C$25,[3]Inputs!$D$24,[3]Inputs!$D$26)) -> 3.348253974 | E86: 22016 | F86: 73715.15949 | G86: 0.1100461 | H86: 8112.065813
B87: JC DONNELL B 9 FT UN | C87: FORT UNION | D87: =IF(LEFT(B87,12)=[3]Inputs!$C$24,[3]Inputs!$D$24,IF(LEFT(B87,13)=[3]Inputs!$C$25,[3]Inputs!$D$24,[3]Inputs!$D$26)) -> 3.348253974 | E87: 25759 | F87: 86247.67412 | G87: 0.1100461 | H87: 9491.220171
B88: JC DONNELL B 10 FT UN | C88: FORT UNION | D88: =IF(LEFT(B88,12)=[3]Inputs!$C$24,[3]Inputs!$D$24,IF(LEFT(B88,13)=[3]Inputs!$C$25,[3]Inputs!$D$24,[3]Inputs!$D$26)) -> 3.348253974 | E88: 38235 | F88: 128020.4907 | G88: 0.1100461 | H88: 14088.15572
B89: H STEWART A 1 FT UN | C89: FORT UNION | D89: =IF(LEFT(B89,12)=[3]Inputs!$C$24,[3]Inputs!$D$24,IF(LEFT(B89,13)=[3]Inputs!$C$25,[3]Inputs!$D$24,[3]Inputs!$D$26)) -> 3.348253974 | E89: 14247 | F89: 47702.57437 | G89: 0.1100461 | H89: 5249.482269
B90: BW MUSSER B 13 FT UN | C90: FORT UNION | D90: =IF(LEFT(B90,12)=[3]Inputs!$C$24,[3]Inputs!$D$24,IF(LEFT(B90,13)=[3]Inputs!$C$25,[3]Inputs!$D$24,[3]Inputs!$D$26)) -> 3.348253974 | E90: 31021 | F90: 103866.1865 | G90: 0.1100461 | H90: 11430.06875
B91: BW MUSSER A 14 FT UN | C91: FORT UNION | D91: =IF(LEFT(B91,12)=[3]Inputs!$C$24,[3]Inputs!$D$24,IF(LEFT(B91,13)=[3]Inputs!$C$25,[3]Inputs!$D$24,[3]Inputs!$D$26)) -> 3.348253974 | E91: 22916 | F91: 76728.58807 | G91: 0.1100461 | H91: 8443.681876
B92: BW MUSSER 15 UPPER FT UN | C92: FORT UNION | D92: =IF(LEFT(B92,12)=[3]Inputs!$C$24,[3]Inputs!$D$24,IF(LEFT(B92,13)=[3]Inputs!$C$25,[3]Inputs!$D$24,[3]Inputs!$D$26)) -> 3.348253974 | E92: 11045 | F92: 36981.46514 | G92: 0.1100461 | H92: 4069.666011
B93: BW MUSSER A 16 WAS | C93: WASATCH | D93: =IF(LEFT(B93,12)=[3]Inputs!$C$24,[3]Inputs!$D$24,IF(LEFT(B93,13)=[3]Inputs!$C$25,[3]Inputs!$D$24,[3]Inputs!$D$26)) -> 3.348253974 | E93: 22439 | F93: 75131.47092 | G93: 0.110046 | H93: 8267.917849
B94: BW MUSSER B 18 FT UN | C94: FORT UNION | D94: =IF(LEFT(B94,12)=[3]Inputs!$C$24,[3]Inputs!$D$24,IF(LEFT(B94,13)=[3]Inputs!$C$25,[3]Inputs!$D$24,[3]Inputs!$D$26)) -> 3.348253974 | E94: 54376 | F94: 182064.6581 | G94: 0.1100461 | H94: 20035.50557
B95: BW MUSSER B 19 FT UN | C95: FORT UNION | D95: =IF(LEFT(B95,12)=[3]Inputs!$C$24,[3]Inputs!$D$24,IF(LEFT(B95,13)=[3]Inputs!$C$25,[3]Inputs!$D$24,[3]Inputs!$D$26)) -> 3.348253974 | E95: 34738 | F95: 116311.6466 | G95: 0.1100461 | H95: 12799.64309
B96: BW MUSSER B 20 FT UN | C96: FORT UNION | D96: =IF(LEFT(B96,12)=[3]Inputs!$C$24,[3]Inputs!$D$24,IF(LEFT(B96,13)=[3]Inputs!$C$25,[3]Inputs!$D$24,[3]Inputs!$D$26)) -> 3.348253974 | E96: 9023 | F96: 30211.29561 | G96: 0.1100461 | H96: 3324.635258
B97: POWDER WASH GOVT 1 FT UN | C97: FORT UNION | D97: =IF(LEFT(B97,12)=[3]Inputs!$C$24,[3]Inputs!$D$24,IF(LEFT(B97,13)=[3]Inputs!$C$25,[3]Inputs!$D$24,[3]Inputs!$D$26)) -> 3.348253974 | E97: 8883 | F97: 29742.54005 | G97: 0.1100461 | H97: 3273.050537
B98: POWDER WASH GOVT 2 FT UN | C98: FORT UNION | D98: =IF(LEFT(B98,12)=[3]Inputs!$C$24,[3]Inputs!$D$24,IF(LEFT(B98,13)=[3]Inputs!$C$25,[3]Inputs!$D$24,[3]Inputs!$D$26)) -> 3.348253974 | E98: 568 | F98: 1901.808257 | G98: 0.1100461 | H98: 209.2865817
B99: JC DONNELL A 11 FT UN | C99: FORT UNION | D99: =IF(LEFT(B99,12)=[3]Inputs!$C$24,[3]Inputs!$D$24,IF(LEFT(B99,13)=[3]Inputs!$C$25,[3]Inputs!$D$24,[3]Inputs!$D$26)) -> 3.348253974 | E99: 68621 | F99: 229760.536 | G99: 0.1100461 | H99: 25284.25092
B100: JA LEE 1 FT UN | C100: FORT UNION | D100: =IF(LEFT(B100,12)=[3]Inputs!$C$24,[3]Inputs!$D$24,IF(LEFT(B100,13)=[3]Inputs!$C$25,[3]Inputs!$D$24,[3]Inputs!$D$26)) -> 3.348253974 | E100: 18296 | F100: 61259.65471 | G100: 0.1100461 | H100: 6741.386088
B101: JC DONNELL A 1 FT UN | C101: FORT UNION | D101: =IF(LEFT(B101,12)=[3]Inputs!$C$24,[3]Inputs!$D$24,IF(LEFT(B101,13)=[3]Inputs!$C$25,[3]Inputs!$D$24,[3]Inputs!$D$26)) -> 3.348253974 | E101: 14783 | F101: 49497.2385 | G101: 0.1100461 | H101: 5446.978058
B102: POWDER WASH 20-1 FT UN | C102: FORT UNION | D102: =IF(LEFT(B102,12)=[3]Inputs!$C$24,[3]Inputs!$D$24,IF(LEFT(B102,13)=[3]Inputs!$C$25,[3]Inputs!$D$24,[3]Inputs!$D$26)) -> 3.348253974 | E102: 77648 | F102: 259985.2246 | G102: 0.125 | H102: 32498.15307
B103: CARL ALLEN A 16 WAS | C103: WASATCH | D103: =IF(LEFT(B103,12)=[3]Inputs!$C$24,[3]Inputs!$D$24,IF(LEFT(B103,13)=[3]Inputs!$C$25,[3]Inputs!$D$24,[3]Inputs!$D$26)) -> 3.348253974 | E103: 22641 | F103: 75807.81823 | G103: 0.1100461 | H103: 8342.354745
B104: H STEWART A 2 FT UN | C104: FORT UNION | D104: =IF(LEFT(B104,12)=[3]Inputs!$C$24,[3]Inputs!$D$24,IF(LEFT(B104,13)=[3]Inputs!$C$25,[3]Inputs!$D$24,[3]Inputs!$D$26)) -> 3.348253974 | E104: 104000 | F104: 348218.4133 | G104: 0.1100461 | H104: 38320.07833
B105: CARL ALLEN B 9 UPPER WAS | C105: WASATCH | D105: =IF(LEFT(B105,12)=[3]Inputs!$C$24,[3]Inputs!$D$24,IF(LEFT(B105,13)=[3]Inputs!$C$25,[3]Inputs!$D$24,[3]Inputs!$D$26)) -> 3.348253974 | E105: 7981 | F105: 26722.41497 | G105: 0.1100461 | H105: 2940.69755
B106: CARL ALLEN A 2 WAS | C106: WASATCH | D106: =IF(LEFT(B106,12)=[3]Inputs!$C$24,[3]Inputs!$D$24,IF(LEFT(B106,13)=[3]Inputs!$C$25,[3]Inputs!$D$24,[3]Inputs!$D$26)) -> 3.348253974 | E106: 24376 | F106: 81617.03887 | G106: 0.1100461 | H106: 8981.636821
B107: BW MUSSER 22 FT UN | C107: FORT UNION | D107: =IF(LEFT(B107,12)=[3]Inputs!$C$24,[3]Inputs!$D$24,IF(LEFT(B107,13)=[3]Inputs!$C$25,[3]Inputs!$D$24,[3]Inputs!$D$26)) -> 3.348253974 | E107: 7206 | F107: 24127.51814 | G107: 0.1100461 | H107: 2655.139274
B108: CARL ALLEN 22 FT UN | C108: FORT UNION | D108: =IF(LEFT(B108,12)=[3]Inputs!$C$24,[3]Inputs!$D$24,IF(LEFT(B108,13)=[3]Inputs!$C$25,[3]Inputs!$D$24,[3]Inputs!$D$26)) -> 3.348253974 | E108: 238388 | F108: 798183.5684 | G108: 0.1100461 | H108: 87836.98878
B109: JC DONNELL 14-29 FT UN | C109: FORT UNION | D109: =IF(LEFT(B109,12)=[3]Inputs!$C$24,[3]Inputs!$D$24,IF(LEFT(B109,13)=[3]Inputs!$C$25,[3]Inputs!$D$24,[3]Inputs!$D$26)) -> 3.348253974 | E109: 49237 | F109: 164857.9809 | G109: 0.1100461 | H109: 18141.97785
B110: CARL ALLEN 23 FT UN | C110: FORT UNION | D110: =IF(LEFT(B110,12)=[3]Inputs!$C$24,[3]Inputs!$D$24,IF(LEFT(B110,13)=[3]Inputs!$C$25,[3]Inputs!$D$24,[3]Inputs!$D$26)) -> 3.348253974 | E110: 56433 | F110: 188952.0165 | G110: 0.1100461 | H110: 20793.43251
B111: BW MUSSER 23 FT UN | C111: FORT UNION | D111: =IF(LEFT(B111,12)=[3]Inputs!$C$24,[3]Inputs!$D$24,IF(LEFT(B111,13)=[3]Inputs!$C$25,[3]Inputs!$D$24,[3]Inputs!$D$26)) -> 3.348253974 | E111: 99530 | F111: 333251.718 | G111: 0.1100461 | H111: 36673.05189
B112: BW MUSSER 24 FT UN | C112: FORT UNION | D112: =IF(LEFT(B112,12)=[3]Inputs!$C$24,[3]Inputs!$D$24,IF(LEFT(B112,13)=[3]Inputs!$C$25,[3]Inputs!$D$24,[3]Inputs!$D$26)) -> 3.348253974 | E112: 64882 | F112: 217241.4143 | G112: 0.1100461 | H112: 23906.57041
B113: CARL ALLEN 26 FT UN | C113: MESAVERDE | D113: =IF(LEFT(B113,12)=[3]Inputs!$C$24,[3]Inputs!$D$24,IF(LEFT(B113,13)=[3]Inputs!$C$25,[3]Inputs!$D$24,[3]Inputs!$D$26)) -> 3.348253974 | E113: 74321 | F113: 248845.5836 | G113: 0.1100461 | H113: 27384.48598
B114: BW MUSSER 25 FT UN | C114: MESAVERDE | D114: =IF(LEFT(B114,12)=[3]Inputs!$C$24,[3]Inputs!$D$24,IF(LEFT(B114,13)=[3]Inputs!$C$25,[3]Inputs!$D$24,[3]Inputs!$D$26)) -> 3.348253974 | E114: 89654 | F114: 300184.3618 | G114: 0.1100461 | H114: 33034.1183
B115: CARL ALLEN 25 FT UN | C115: WASATCH | D115: =IF(LEFT(B115,12)=[3]Inputs!$C$24,[3]Inputs!$D$24,IF(LEFT(B115,13)=[3]Inputs!$C$25,[3]Inputs!$D$24,[3]Inputs!$D$26)) -> 3.348253974 | E115: 165651 | F115: 554641.6191 | G115: 0.1100461 | H115: 61036.14708
B116: H STEWART 5 FT UN | C116: FORT UNION | D116: =IF(LEFT(B116,12)=[3]Inputs!$C$24,[3]Inputs!$D$24,IF(LEFT(B116,13)=[3]Inputs!$C$25,[3]Inputs!$D$24,[3]Inputs!$D$26)) -> 3.348253974 | E116: 162339 | F116: 543552.2019 | G116: 0.1100461 | H116: 59815.79997
B117: CARL ALLEN 27 FT UN | C117: FORT UNION | D117: =IF(LEFT(B117,12)=[3]Inputs!$C$24,[3]Inputs!$D$24,IF(LEFT(B117,13)=[3]Inputs!$C$25,[3]Inputs!$D$24,[3]Inputs!$D$26)) -> 3.348253974 | E117: 103004 | F117: 344883.5523 | G117: 0.110046 | H117: 37953.0554
B118: CARL ALLEN 28 FT UN | C118: FORT UNION | D118: =IF(LEFT(B118,12)=[3]Inputs!$C$24,[3]Inputs!$D$24,IF(LEFT(B118,13)=[3]Inputs!$C$25,[3]Inputs!$D$24,[3]Inputs!$D$26)) -> 3.348253974 | E118: 124140 | F118: 415652.2483 | G118: 0.110046 | H118: 45740.86732
B119: CARL ALLEN 29 FT UN | C119: FORT UNION | D119: =IF(LEFT(B119,12)=[3]Inputs!$C$24,[3]Inputs!$D$24,IF(LEFT(B119,13)=[3]Inputs!$C$25,[3]Inputs!$D$24,[3]Inputs!$D$26)) -> 3.348253974 | E119: 131872 | F119: 441540.9481 | G119: 0.110046 | H119: 48589.81517
B120: BW MUSSER 27 FT UN | C120: FORT UNION | D120: =IF(LEFT(B120,12)=[3]Inputs!$C$24,[3]Inputs!$D$24,IF(LEFT(B120,13)=[3]Inputs!$C$25,[3]Inputs!$D$24,[3]Inputs!$D$26)) -> 3.348253974 | E120: 189157 | F120: 633345.677 | G120: 0.110046 | H120: 69697.15837
B121: JC DONNELL 14 FT UN | C121: FORT UNION | D121: =IF(LEFT(B121,12)=[3]Inputs!$C$24,[3]Inputs!$D$24,IF(LEFT(B121,13)=[3]Inputs!$C$25,[3]Inputs!$D$24,[3]Inputs!$D$26)) -> 3.348253974 | E121: 45846 | F121: 153504.0517 | G121: 0.110046 | H121: 16892.50687
B122: JC DONNELL 15 FT UN | C122: FORT UNION | D122: =IF(LEFT(B122,12)=[3]Inputs!$C$24,[3]Inputs!$D$24,IF(LEFT(B122,13)=[3]Inputs!$C$25,[3]Inputs!$D$24,[3]Inputs!$D$26)) -> 3.348253974 | E122: 114774 | F122: 384292.5016 | G122: 0.110046 | H122: 42289.85263
B123: JC DONNELL 16 FT UN | C123: FORT UNION | D123: =IF(LEFT(B123,12)=[3]Inputs!$C$24,[3]Inputs!$D$24,IF(LEFT(B123,13)=[3]Inputs!$C$25,[3]Inputs!$D$24,[3]Inputs!$D$26)) -> 3.348253974 | E123: 135624 | F123: 454103.597 | G123: 0.110046 | H123: 49972.28443
B124: BW MUSSER 28 FT UN | C124: FORT UNION | D124: =IF(LEFT(B124,12)=[3]Inputs!$C$24,[3]Inputs!$D$24,IF(LEFT(B124,13)=[3]Inputs!$C$25,[3]Inputs!$D$24,[3]Inputs!$D$26)) -> 3.348253974 | E124: 14212 | F124: 47585.38548 | G124: 0.110046 | H124: 5236.581331
B125: BW MUSSER 29 FT UN | C125: FORT UNION | D125: =IF(LEFT(B125,12)=[3]Inputs!$C$24,[3]Inputs!$D$24,IF(LEFT(B125,13)=[3]Inputs!$C$25,[3]Inputs!$D$24,[3]Inputs!$D$26)) -> 3.348253974 | E125: 133443 | F125: 446801.0551 | G125: 0.110046 | H125: 49168.66891
B126: BW MUSSER 26R FT UN | C126: FORT UNION | D126: =IF(LEFT(B126,12)=[3]Inputs!$C$24,[3]Inputs!$D$24,IF(LEFT(B126,13)=[3]Inputs!$C$25,[3]Inputs!$D$24,[3]Inputs!$D$26)) -> 3.348253974 | E126: 66653 | F126: 223171.1721 | G126: 0.1100461 | H126: 24559.11713
B127: CARL ALLEN 30 FT UN | C127: FORT UNION | D127: =IF(LEFT(B127,12)=[3]Inputs!$C$24,[3]Inputs!$D$24,IF(LEFT(B127,13)=[3]Inputs!$C$25,[3]Inputs!$D$24,[3]Inputs!$D$26)) -> 3.348253974 | E127: 179408 | F127: 600703.549 | G127: 0.110046 | H127: 66105.02275
B128: CARL ALLEN 31 FT UN | C128: FORT UNION | D128: =IF(LEFT(B128,12)=[3]Inputs!$C$24,[3]Inputs!$D$24,IF(LEFT(B128,13)=[3]Inputs!$C$25,[3]Inputs!$D$24,[3]Inputs!$D$26)) -> 3.348253974 | E128: 450099 | F128: 1507045.765 | G128: 0.110046 | H128: 165844.3583
B129: CARL ALLEN 32 FT UN | C129: FORT UNION | D129: =IF(LEFT(B129,12)=[3]Inputs!$C$24,[3]Inputs!$D$24,IF(LEFT(B129,13)=[3]Inputs!$C$25,[3]Inputs!$D$24,[3]Inputs!$D$26)) -> 3.348253974 | E129: 200728 | F129: 672088.3237 | G129: 0.110046 | H129: 73960.63167
B130: CARL ALLEN 33 FT UN | C130: FORT UNION | D130: =IF(LEFT(B130,12)=[3]Inputs!$C$24,[3]Inputs!$D$24,IF(LEFT(B130,13)=[3]Inputs!$C$25,[3]Inputs!$D$24,[3]Inputs!$D$26)) -> 3.348253974 | E130: 27325 | F130: 91491.03984 | G130: 0.110046 | H130: 10068.22297
B131: CARL ALLEN 34 FT UN | C131: FORT UNION | D131: =IF(LEFT(B131,12)=[3]Inputs!$C$24,[3]Inputs!$D$24,IF(LEFT(B131,13)=[3]Inputs!$C$25,[3]Inputs!$D$24,[3]Inputs!$D$26)) -> 3.348253974 | E131: 226266 | F131: 757596.0337 | G131: 0.110046 | H131: 83370.41312
B132: JC DONNELL 18 FT UN | C132: FORT UNION | D132: =IF(LEFT(B132,12)=[3]Inputs!$C$24,[3]Inputs!$D$24,IF(LEFT(B132,13)=[3]Inputs!$C$25,[3]Inputs!$D$24,[3]Inputs!$D$26)) -> 3.348253974 | E132: 37665 | F132: 126111.9859 | G132: 0.110046 | H132: 13878.1196
B133: BW MUSSER 32 FT UN | C133: FORT UNION | D133: =IF(LEFT(B133,12)=[3]Inputs!$C$24,[3]Inputs!$D$24,IF(LEFT(B133,13)=[3]Inputs!$C$25,[3]Inputs!$D$24,[3]Inputs!$D$26)) -> 3.348253974 | E133: 182230 | F133: 610152.3217 | G133: 0.110046 | H133: 67144.82239
B134: STEWART 6 FT UN | C134: FORT UNION | D134: =IF(LEFT(B134,12)=[3]Inputs!$C$24,[3]Inputs!$D$24,IF(LEFT(B134,13)=[3]Inputs!$C$25,[3]Inputs!$D$24,[3]Inputs!$D$26)) -> 3.348253974 | E134: 185920 | F134: 622507.3789 | G134: 0.110046 | H134: 68504.44701
B135: BW MUSSER 36 FT UN | C135: FORT UNION | D135: =IF(LEFT(B135,12)=[3]Inputs!$C$24,[3]Inputs!$D$24,IF(LEFT(B135,13)=[3]Inputs!$C$25,[3]Inputs!$D$24,[3]Inputs!$D$26)) -> 3.348253974 | E135: 289956 | F135: 970846.3293 | G135: 0.110046 | H135: 106837.7552
B136: BW MUSSER 37 FT UN | C136: FORT UNION | D136: =IF(LEFT(B136,12)=[3]Inputs!$C$24,[3]Inputs!$D$24,IF(LEFT(B136,13)=[3]Inputs!$C$25,[3]Inputs!$D$24,[3]Inputs!$D$26)) -> 3.348253974 | E136: 201595 | F136: 674991.2599 | G136: 0.110046 | H136: 74280.08819
B137: CARL ALLEN 35 FT UN | C137: FORT UNION | D137: =IF(LEFT(B137,12)=[3]Inputs!$C$24,[3]Inputs!$D$24,IF(LEFT(B137,13)=[3]Inputs!$C$25,[3]Inputs!$D$24,[3]Inputs!$D$26)) -> 3.348253974 | E137: 202186 | F137: 676970.078 | G137: 0.110046 | H137: 74497.8492
B138: CARL ALLEN 36 FT UN | C138: FORT UNION | D138: =IF(LEFT(B138,12)=[3]Inputs!$C$24,[3]Inputs!$D$24,IF(LEFT(B138,13)=[3]Inputs!$C$25,[3]Inputs!$D$24,[3]Inputs!$D$26)) -> 3.348253974 | E138: 298794 | F138: 1000438.198 | G138: 0.110046 | H138: 110094.2219
B139: CARL ALLEN A 14 WAS | C139: WASATCH | D139: =IF(LEFT(B139,12)=[3]Inputs!$C$24,[3]Inputs!$D$24,IF(LEFT(B139,13)=[3]Inputs!$C$25,[3]Inputs!$D$24,[3]Inputs!$D$26)) -> 3.348253974 | E139: 97 | F139: 324.7806355 | G139: 0.1100461 | H139: 35.74084229
B140: BW MUSSER 35 FT UN | C140: FORT UNION | D140: =IF(LEFT(B140,12)=[3]Inputs!$C$24,[3]Inputs!$D$24,IF(LEFT(B140,13)=[3]Inputs!$C$25,[3]Inputs!$D$24,[3]Inputs!$D$26)) -> 3.348253974 | E140: 317970 | F140: =D140*E140 -> 1064644.316 | G140: 0.110046 | H140: =F140*G140 -> 117159.8484
B141: BW MUSSER 35 LANCE | C141: LANCE | D141: =IF(LEFT(B141,12)=[3]Inputs!$C$24,[3]Inputs!$D$24,IF(LEFT(B141,13)=[3]Inputs!$C$25,[3]Inputs!$D$24,[3]Inputs!$D$26)) -> 3.348253974 | E141: 9836 | F141: 32933.42609 | G141: 0.12 | H141: 3952.011131
B142: BW MUSSER 72 FT UN | C142: FORT UNION | D142: =IF(LEFT(B142,12)=[3]Inputs!$C$24,[3]Inputs!$D$24,IF(LEFT(B142,13)=[3]Inputs!$C$25,[3]Inputs!$D$24,[3]Inputs!$D$26)) -> 3.348253974 | E142: 141193 | F142: 472750.0234 | G142: 0.110046 | H142: 52024.24907
B143: BW MUSSER 72 LANCE | C143: LANCE | D143: =IF(LEFT(B143,12)=[3]Inputs!$C$24,[3]Inputs!$D$24,IF(LEFT(B143,13)=[3]Inputs!$C$25,[3]Inputs!$D$24,[3]Inputs!$D$26)) -> 3.348253974 | E143: 9012 | F143: 30174.46481 | G143: 0.12 | H143: 3620.935778
B144: BW MUSSER 73 FT UN | C144: FORT UNION | D144: =IF(LEFT(B144,12)=[3]Inputs!$C$24,[3]Inputs!$D$24,IF(LEFT(B144,13)=[3]Inputs!$C$25,[3]Inputs!$D$24,[3]Inputs!$D$26)) -> 3.348253974 | E144: 77054 | F144: 257996.3617 | G144: 0.110046 | H144: 28391.46762
B145: BW MUSSER 73 LANCE | C145: LANCE | D145: =IF(LEFT(B145,12)=[3]Inputs!$C$24,[3]Inputs!$D$24,IF(LEFT(B145,13)=[3]Inputs!$C$25,[3]Inputs!$D$24,[3]Inputs!$D$26)) -> 3.348253974 | E145: 77048 | F145: 257976.2722 | G145: 0.12 | H145: 30957.15266
B146: BW MUSSER 34 FT UN | C146: FORT UNION | D146: =IF(LEFT(B146,12)=[3]Inputs!$C$24,[3]Inputs!$D$24,IF(LEFT(B146,13)=[3]Inputs!$C$25,[3]Inputs!$D$24,[3]Inputs!$D$26)) -> 3.348253974 | E146: 171850 | F146: 575397.4454 | G146: 0.110046 | H146: 63320.18728
B147: BW MUSSER 42 FT UN | C147: FORT UNION | D147: =IF(LEFT(B147,12)=[3]Inputs!$C$24,[3]Inputs!$D$24,IF(LEFT(B147,13)=[3]Inputs!$C$25,[3]Inputs!$D$24,[3]Inputs!$D$26)) -> 3.348253974 | E147: 37391 | F147: 125194.5643 | G147: 0.110046 | H147: 13777.16103
B148: POWDER WASH GOVT 16 FT UN | C148: FORT UNION | D148: =IF(LEFT(B148,12)=[3]Inputs!$C$24,[3]Inputs!$D$24,IF(LEFT(B148,13)=[3]Inputs!$C$25,[3]Inputs!$D$24,[3]Inputs!$D$26)) -> 3.348253974 | E148: 159 | F148: 532.3723819 | G148: 0.110046 | H148: 58.58545114
B149: POWDER WASH GOVT 17 FT UN | C149: FORT UNION | D149: =IF(LEFT(B149,12)=[3]Inputs!$C$24,[3]Inputs!$D$24,IF(LEFT(B149,13)=[3]Inputs!$C$25,[3]Inputs!$D$24,[3]Inputs!$D$26)) -> 3.348253974 | E149: 474 | F149: 1587.072384 | G149: 0.110046 | H149: 174.6509675
B150: BW MUSSER 31 FT UN | C150: FORT UNION | D150: =IF(LEFT(B150,12)=[3]Inputs!$C$24,[3]Inputs!$D$24,IF(LEFT(B150,13)=[3]Inputs!$C$25,[3]Inputs!$D$24,[3]Inputs!$D$26)) -> 3.348253974 | E150: 107932 | F150: 361383.7479 | G150: 0.110046 | H150: 39768.83592
B151: BW MUSSER 38 FT UN | C151: FORT UNION | D151: =IF(LEFT(B151,12)=[3]Inputs!$C$24,[3]Inputs!$D$24,IF(LEFT(B151,13)=[3]Inputs!$C$25,[3]Inputs!$D$24,[3]Inputs!$D$26)) -> 3.348253974 | E151: 85279 | F151: 285535.7507 | G151: 0.110046 | H151: 31422.06722
B152: BW MUSSER 39 FT UN | C152: FORT UNION | D152: =IF(LEFT(B152,12)=[3]Inputs!$C$24,[3]Inputs!$D$24,IF(LEFT(B152,13)=[3]Inputs!$C$25,[3]Inputs!$D$24,[3]Inputs!$D$26)) -> 3.348253974 | E152: 101406 | F152: 339533.0425 | G152: 0.110046 | H152: 37364.25319
B153: CARL ALLEN 37 FT UN | C153: FORT UNION | D153: =IF(LEFT(B153,12)=[3]Inputs!$C$24,[3]Inputs!$D$24,IF(LEFT(B153,13)=[3]Inputs!$C$25,[3]Inputs!$D$24,[3]Inputs!$D$26)) -> 3.348253974 | E153: 59429 | F153: 198983.3854 | G153: 0.1100461 | H153: 21897.34553
B154: CARL ALLEN 40 FT UN | C154: FORT UNION | D154: =IF(LEFT(B154,12)=[3]Inputs!$C$24,[3]Inputs!$D$24,IF(LEFT(B154,13)=[3]Inputs!$C$25,[3]Inputs!$D$24,[3]Inputs!$D$26)) -> 3.348253974 | E154: 68783 | F154: 230302.9531 | G154: 0.110046 | H154: 25343.91878
B155: CARL ALLEN 41 FT UN | C155: FORT UNION | D155: =IF(LEFT(B155,12)=[3]Inputs!$C$24,[3]Inputs!$D$24,IF(LEFT(B155,13)=[3]Inputs!$C$25,[3]Inputs!$D$24,[3]Inputs!$D$26)) -> 3.348253974 | E155: 37259 | F155: 124752.5948 | G155: 0.110046 | H155: 13728.52405
A156: RABBIT MTN (CO) | B156: MF FEDERAL 8-1 MANCOS B | C156: MANCOS B | D156: =IF(LEFT(B156,12)=[3]Inputs!$C$24,[3]Inputs!$D$24,IF(LEFT(B156,13)=[3]Inputs!$C$25,[3]Inputs!$D$24,[3]Inputs!$D$26)) -> 3.348253974 | E156: 39229 | F156: 131348.6551 | G156: 0.155 | H156: 20359.04155
B157: RABBIT MTN FED 7-1 MANCOS B | C157: MANCOS B | D157: =IF(LEFT(B157,12)=[3]Inputs!$C$24,[3]Inputs!$D$24,IF(LEFT(B157,13)=[3]Inputs!$C$25,[3]Inputs!$D$24,[3]Inputs!$D$26)) -> 3.348253974 | E157: 39939 | F157: 133725.9155 | G157: 0.125 | H157: 16715.73943
